Workbook

Sheet Info
A3: Character generator, ver 1.0 Middle-Earth edition
A4: Jag tog den av Charlie och förädlade den. Välkommen till 2011, nu kan vi göra rollpersoner i datan. Jag har ändrat och lagt till mycket och glömt bort att skriva versioninfo tyvärr, så ja… men allt funkar. Tror jag.
A9: NPC-generator, ver 0.6 Georgetown edition
A10: Är du less på att göra NPCs och försöka klura ut en rimlig OB? Det hoppas jag att du slipper. Den här kalkylen genererar en NPC utan namn, de NPC som har namn bör göras lika noggrant som en vanlig karaktär.
A14: Vad behöver du?
A15: Ett kalkylprogram kompatibelt med Excel 97. OpenOffice.org är tyvärr inte det ännu…
A16: Aktivera makron (eller nöj dig med att göra bara en NPC).
A17: Troligtvis behöver du ha spelat RoleMaster i Spelföreningen Stonehenge också…
A18: En skärmupplösning som är 1024 x 768 eller ett fönster som är så stort…
A21: Hjälp, jag fattar ingenting av det här!
A24: =OFFSET(Diverse!K1,Diverse!L1-1,0) -> Svar på tal, din jävla tattare… du med så sparsam intellektuell begåvning ska passa dig noga!

Sheet Ny NPC
A2: 1 | B2: Cost | C2: 1 | D2: Hur ofta sätter du ut kryss? | E2: Rank | F2: Cost1 | G2: Cost2 | H2: Cost | J2: Skill | K2: Stat | L2: Lvl | M2: Ras | N2: Armor | O2: Special | P2: Item | Q2: Total | S2: Character Name | V2: Temp | W2: Dev | X2: Pot | Y2: Stat | Z2: Ras | AA2: B.O | AB2: Spec | AC2: Tot
A3: AM Balance | B3: =VLOOKUP(A3,AllaSkills!$A$3:$BV$319,$A$2+3,FALSE) -> 6 | C3: 0 | D3: =INDEX(Diverse!$H$1:$H$5,$C3+1) -> Nada | E3: =ROUND(Level*(C3/2),0)+VLOOKUP($A3,Rasbonus!$A$29:$AM$59,MATCH(Ras,Rasbonus!$A$1:$AM$1,0),FALSE) -> 0 | F3: =IF(LEN(B3)=3,LEFT(B3,1),IF(LEN(B3)<3,B3,99)) -> 6 | G3: =IF(RIGHT(B3,1)="*",LEFT(B3,1),IF(LEN(B3)=3,RIGHT(B3,1),IF(LEN(B3)<3,B3,RIGHT(B3,2)))) -> 6 | H3: =IF(D3="Ett varannan level",F3+F3-F3,IF(D3="Ett varje level",2*F3,IF(D3="Tre på två levlar",F3+G3+F3,IF(D3="Nada",0,F3+G3+F3+G3)))) -> 0 | I3: =HLOOKUP(Yrke,Levelbonus!$B$1:$CR$20,6,0) -> 0 | J3: =IF(E3<1,-25,IF(E3>30,80+((E3-30)*0.5),IF(E3>20,70+(E3-20),IF(E3>10,50+((E3-10)*2),E3*5)))) -> -25 | K3: =ROUND((AG+SD)/2,0) -> 5 | L3: =IF(Level<21,Level*I3,IF(I3>2,60+(Level-20),IF(I3=2,40+((Level-20)*0.5),IF(Level=0,0,IF(I3=0,0,20))))) -> 0 | M3: =IF(ISNUMBER(VLOOKUP($A3,Rasbonus!$A$61:$AM$295,MATCH(Ras,Rasbonus!$A$1:$AM$1,0),FALSE)),VLOOKUP($A3,Rasbonus!$A$61:$AM$295,MATCH(Ras,Rasbonus!$A$1:$AM$1,0),FALSE),0) -> 0 | N3: =IF($AC$58>16,$Q$23,IF($AC$58>12,$Q$22, IF($AC$58>8,$Q$21,IF($AC$58>4,$Q$20,"0")))) -> 0 | Q3: =SUM(J3:P3) -> -20 | S3: Yrke | U3: Constitution | V3: 75 | W3: =VLOOKUP(V3,Diverse!$A$2:$C$131,3,0) -> 7 | Y3: =VLOOKUP(V3,Diverse!$A$2:$B$131,2,0) -> 5 | Z3: =HLOOKUP(Ras,Rasbonus!$B$1:$AM$12,2,0) -> 15 | AC3: =SUM(Y3:AB3) -> 20
A4: AM Landing | B4: =VLOOKUP(A4,AllaSkills!$A$3:$BV$319,$A$2+3,FALSE) -> 6 | C4: 0 | D4: =INDEX(Diverse!$H$1:$H$5,$C4+1) -> Nada | E4: =ROUND(Level*(C4/2),0) -> 0 | F4: =IF(LEN(B4)=3,LEFT(B4,1),IF(LEN(B4)<3,B4,99)) -> 6 | G4: 6 | H4: =IF(D4="Ett varannan level",F4+F4-F4,IF(D4="Ett varje level",2*F4,IF(D4="Tre på två levlar",F4+G4+F4,IF(D4="Nada",0,F4+G4+F4+G4)))) -> 0 | I4: =HLOOKUP(Yrke,Levelbonus!$B$1:$CR$20,6,0) -> 0 | J4: =IF(E4<1,-25,IF(E4>30,80+((E4-30)*0.5),IF(E4>20,70+(E4-20),IF(E4>10,50+((E4-10)*2),E4*5)))) -> -25 | K4: =ROUND((AG+SD)/2,0) -> 5 | L4: 0 | M4: =IF(ISNUMBER(VLOOKUP($A4,Rasbonus!$A$61:$AM$295,MATCH(Ras,Rasbonus!$A$1:$AM$1,0),FALSE)),VLOOKUP($A4,Rasbonus!$A$61:$AM$295,MATCH(Ras,Rasbonus!$A$1:$AM$1,0),FALSE),0) -> 0 | N4: =IF($AC$58>16,$Q$23,IF($AC$58>12,$Q$22, IF($AC$58>8,$Q$21,IF($AC$58>4,$Q$20,"0")))) -> 0 | Q4: -20 | U4: Agility | V4: 75 | W4: =VLOOKUP(V4,Diverse!$A$2:$C$131,3,0) -> 7 | Y4: =VLOOKUP(V4,Diverse!$A$2:$B$131,2,0) -> 5 | Z4: =HLOOKUP(Ras,Rasbonus!$B$1:$AM$12,3,0) -> 0 | AC4: =SUM(Y4:AB4) -> 5
A5: AM Leaping | B5: =VLOOKUP(A5,AllaSkills!$A$3:$BV$319,$A$2+3,FALSE) -> 6 | C5: 0 | D5: =INDEX(Diverse!$H$1:$H$5,$C5+1) -> Nada | E5: =ROUND(Level*(C5/2),0) -> 0 | F5: =IF(LEN(B5)=3,LEFT(B5,1),IF(LEN(B5)<3,B5,99)) -> 6 | G5: 6 | H5: =IF(D5="Ett varannan level",F5+F5-F5,IF(D5="Ett varje level",2*F5,IF(D5="Tre på två levlar",F5+G5+F5,IF(D5="Nada",0,F5+G5+F5+G5)))) -> 0 | I5: =HLOOKUP(Yrke,Levelbonus!$B$1:$CR$20,6,0) -> 0 | J5: =IF(E5<1,-25,IF(E5>30,80+((E5-30)*0.5),IF(E5>20,70+(E5-20),IF(E5>10,50+((E5-10)*2),E5*5)))) -> -25 | K5: =ROUND((AG+SD)/2,0) -> 5 | L5: 0 | M5: =IF(ISNUMBER(VLOOKUP($A5,Rasbonus!$A$61:$AM$295,MATCH(Ras,Rasbonus!$A$1:$AM$1,0),FALSE)),VLOOKUP($A5,Rasbonus!$A$61:$AM$295,MATCH(Ras,Rasbonus!$A$1:$AM$1,0),FALSE),0) -> 0 | N5: =IF($AC$58>16,$Q$23,IF($AC$58>12,$Q$22, IF($AC$58>8,$Q$21,IF($AC$58>4,$Q$20,"0")))) -> 0 | Q5: -20 | U5: Self Discipline | V5: 75 | W5: =VLOOKUP(V5,Diverse!$A$2:$C$131,3,0) -> 7 | Y5: =VLOOKUP(V5,Diverse!$A$2:$B$131,2,0) -> 5 | Z5: =HLOOKUP(Ras,Rasbonus!$B$1:$AM$12,4,0) -> 0 | AC5: =SUM(Y5:AB5) -> 5
A6: AM Speed | B6: =VLOOKUP(A6,AllaSkills!$A$3:$BV$319,$A$2+3,FALSE) -> 6 | C6: 0 | D6: =INDEX(Diverse!$H$1:$H$5,$C6+1) -> Nada | E6: =ROUND(Level*(C6/2),0)+VLOOKUP($A6,Rasbonus!$A$29:$AM$59,MATCH(Ras,Rasbonus!$A$1:$AM$1,0),FALSE) -> 0 | F6: 6 | G6: 6 | H6: 0 | I6: =HLOOKUP(Yrke,Levelbonus!$B$1:$CR$20,6,0) -> 0 | J6: -25 | K6: =ROUND((AG+SD)/2,0) -> 5 | L6: 0 | M6: =IF(ISNUMBER(VLOOKUP($A6,Rasbonus!$A$61:$AM$295,MATCH(Ras,Rasbonus!$A$1:$AM$1,0),FALSE)),VLOOKUP($A6,Rasbonus!$A$61:$AM$295,MATCH(Ras,Rasbonus!$A$1:$AM$1,0),FALSE),0) -> 0 | N6: =IF($AC$58>16,$Q$23,IF($AC$58>12,$Q$22, IF($AC$58>8,$Q$21,IF($AC$58>4,$Q$20,"0")))) -> 0 | Q6: -20 | S6: Ras | U6: Reasoning | V6: 75 | W6: =VLOOKUP(V6,Diverse!$A$2:$C$131,3,0) -> 7 | Y6: =VLOOKUP(V6,Diverse!$A$2:$B$131,2,0) -> 5 | Z6: =HLOOKUP(Ras,Rasbonus!$B$1:$AM$12,5,0) -> 0 | AC6: 5
A7: AM Strength | B7: =VLOOKUP(A7,AllaSkills!$A$3:$BV$319,$A$2+3,FALSE) -> 6 | C7: 0 | D7: =INDEX(Diverse!$H$1:$H$5,$C7+1) -> Nada | E7: =ROUND(Level*(C7/2),0)+VLOOKUP($A7,Rasbonus!$A$29:$AM$59,MATCH(Ras,Rasbonus!$A$1:$AM$1,0),FALSE) -> 2 | F7: 6 | G7: 6 | H7: 0 | I7: =HLOOKUP(Yrke,Levelbonus!$B$1:$CR$20,6,0) -> 0 | J7: 10 | K7: =ROUND((ST+SD)/2,0) -> 13 | L7: 0 | M7: =IF(ISNUMBER(VLOOKUP($A7,Rasbonus!$A$61:$AM$295,MATCH(Ras,Rasbonus!$A$1:$AM$1,0),FALSE)),VLOOKUP($A7,Rasbonus!$A$61:$AM$295,MATCH(Ras,Rasbonus!$A$1:$AM$1,0),FALSE),0) -> 0 | Q7: 23 | U7: Eloquence | V7: 75 | W7: =VLOOKUP(V7,Diverse!$A$2:$C$131,3,0) -> 7 | Y7: =VLOOKUP(V7,Diverse!$A$2:$B$131,2,0) -> 5 | Z7: =HLOOKUP(Ras,Rasbonus!$B$1:$AM$12,6,0) -> 0 | AC7: 5
A8: Adrenal Defense | B8: =VLOOKUP(A8,AllaSkills!$A$3:$BV$319,$A$2+3,FALSE) -> 20 | C8: 0 | D8: =INDEX(Diverse!$H$1:$H$5,$C8+1) -> Nada | E8: =ROUND(Level*(C8/2),0) -> 0 | F8: 20 | G8: 20 | H8: 0 | I8: =HLOOKUP(Yrke,Levelbonus!$B$1:$CR$20,6,0) -> 0 | J8: -25 | L8: 0 | M8: =IF(ISNUMBER(VLOOKUP($A8,Rasbonus!$A$61:$AM$295,MATCH(Ras,Rasbonus!$A$1:$AM$1,0),FALSE)),VLOOKUP($A8,Rasbonus!$A$61:$AM$295,MATCH(Ras,Rasbonus!$A$1:$AM$1,0),FALSE),0) -> 0 | N8: =IF($AC$58>16,$Q$23,IF($AC$58>12,$Q$22, IF($AC$58>8,$Q$21,IF($AC$58>4,$Q$20,"0")))) -> 0 | Q8: -25 | U8: Strength | V8: 75 | W8: =VLOOKUP(V8,Diverse!$A$2:$C$131,3,0) -> 7 | Y8: =VLOOKUP(V8,Diverse!$A$2:$B$131,2,0) -> 5 | Z8: =HLOOKUP(Ras,Rasbonus!$B$1:$AM$12,7,0) -> 15 | AC8: 20
A9: Armored AD | B9: =VLOOKUP(A9,AllaSkills!$A$3:$BV$319,$A$2+3,FALSE) -> 20 | C9: 0 | D9: =INDEX(Diverse!$H$1:$H$5,$C9+1) -> Nada | E9: 0 | F9: 20 | G9: 20 | H9: 0 | I9: =HLOOKUP(Yrke,Levelbonus!$B$1:$CR$20,6,0) -> 0 | J9: -25 | L9: 0 | M9: =IF(ISNUMBER(VLOOKUP($A9,Rasbonus!$A$61:$AM$295,MATCH(Ras,Rasbonus!$A$1:$AM$1,0),FALSE)),VLOOKUP($A9,Rasbonus!$A$61:$AM$295,MATCH(Ras,Rasbonus!$A$1:$AM$1,0),FALSE),0) -> 0 | N9: =IF($AC$58>16,$Q$23,IF($AC$58>12,$Q$22, IF($AC$58>8,$Q$21,IF($AC$58>4,$Q$20,"0")))) -> 0 | Q9: -25 | S9: =CONCATENATE("Level: ",Level) -> Level: 1 | U9: Quickness | V9: 75 | W9: =VLOOKUP(V9,Diverse!$A$2:$C$131,3,0) -> 7 | Y9: =VLOOKUP(V9,Diverse!$A$2:$B$131,2,0) -> 5 | Z9: =HLOOKUP(Ras,Rasbonus!$B$1:$AM$12,8,0) -> -5 | AC9: 0
A10: Ambush | B10: =VLOOKUP(A10,AllaSkills!$A$3:$BV$319,$A$2+3,FALSE) -> 9 | C10: 0 | D10: =INDEX(Diverse!$H$1:$H$5,$C10+1) -> Nada | E10: =ROUND(Level*(C10/2),0)+VLOOKUP($A10,Rasbonus!$A$29:$AM$59,MATCH(Ras,Rasbonus!$A$1:$AM$1,0),FALSE) -> 0 | F10: 9 | G10: 9 | H10: 0 | I10: =HLOOKUP(Yrke,Levelbonus!$B$1:$CR$20,7,0) -> 0 | J10: -25 | L10: 0 | M10: =IF(ISNUMBER(VLOOKUP($A10,Rasbonus!$A$61:$AM$295,MATCH(Ras,Rasbonus!$A$1:$AM$1,0),FALSE)),VLOOKUP($A10,Rasbonus!$A$61:$AM$295,MATCH(Ras,Rasbonus!$A$1:$AM$1,0),FALSE),0) -> 0 | Q10: -25 | U10: Presence | V10: 75 | W10: =VLOOKUP(V10,Diverse!$A$2:$C$131,3,0) -> 7 | Y10: =VLOOKUP(V10,Diverse!$A$2:$B$131,2,0) -> 5 | Z10: =HLOOKUP(Ras,Rasbonus!$B$1:$AM$12,9,0) -> 5 | AC10: 10
A11: Sniping | B11: =VLOOKUP(A11,AllaSkills!$A$3:$BV$319,$A$2+3,FALSE) -> 9 | C11: 0 | D11: =INDEX(Diverse!$H$1:$H$5,$C11+1) -> Nada | E11: 0 | F11: 9 | G11: 9 | H11: 0 | I11: =HLOOKUP(Yrke,Levelbonus!$B$1:$CR$20,7,0) -> 0 | J11: -25 | L11: 0 | M11: =IF(ISNUMBER(VLOOKUP($A11,Rasbonus!$A$61:$AM$295,MATCH(Ras,Rasbonus!$A$1:$AM$1,0),FALSE)),VLOOKUP($A11,Rasbonus!$A$61:$AM$295,MATCH(Ras,Rasbonus!$A$1:$AM$1,0),FALSE),0) -> 0 | Q11: -25 | S11: =CONCATENATE("Din ras slår hits med en ",HLOOKUP(Ras,Rasbonus!$B$1:$AM$13,13,FALSE)," vilket ger ett medel mellan 1 och ",MID(HLOOKUP(Ras,Rasbonus!$B$1:$AM$13,13,FALSE),2,2),". Hur mycket har du slagit?") -> Din ras slår hits med en D10 vilket ger ett medel mellan 1 och 10. Hur mycket har du slagit? | U11: Intuition | V11: 75 | W11: =VLOOKUP(V11,Diverse!$A$2:$C$131,3,0) -> 7 | Y11: =VLOOKUP(V11,Diverse!$A$2:$B$131,2,0) -> 5 | Z11: =HLOOKUP(Ras,Rasbonus!$B$1:$AM$12,10,0) -> 0 | AC11: 5
A12: Body Development | B12: =VLOOKUP(A12,AllaSkills!$A$3:$BV$319,$A$2+3,FALSE) -> 6 | C12: 0 | D12: =INDEX(Diverse!$H$1:$H$5,$C12+1) -> Nada | E12: =ROUND(Level*(C12/2),0)+VLOOKUP($A12,Rasbonus!$A$29:$AM$59,MATCH(Ras,Rasbonus!$A$1:$AM$1,0),FALSE) -> 3 | F12: 6 | G12: 6 | H12: 0 | I12: =HLOOKUP(Yrke,Levelbonus!$B$1:$CR$20,19,0) -> 0 | J12: =E12*Medelhits -> 13.5 | K12: =ROUND(V3,0)/10 -> 7.5 | L12: 0 | M12: =IF(ISNUMBER(VLOOKUP($A12,Rasbonus!$A$61:$AM$295,MATCH(Ras,Rasbonus!$A$1:$AM$1,0),FALSE)),VLOOKUP($A12,Rasbonus!$A$61:$AM$295,MATCH(Ras,Rasbonus!$A$1:$AM$1,0),FALSE),0) -> 0 | Q12: 21 | U12: Empathy | V12: 75 | W12: =VLOOKUP(V12,Diverse!$A$2:$C$131,3,0) -> 7 | Y12: =VLOOKUP(V12,Diverse!$A$2:$B$131,2,0) -> 5 | Z12: =HLOOKUP(Ras,Rasbonus!$B$1:$AM$12,11,0) -> 0 | AC12: 5
A13: Channeling | B13: =VLOOKUP(A13,AllaSkills!$A$3:$BV$319,$A$2+3,FALSE) -> 4/8 | C13: 0 | D13: =INDEX(Diverse!$H$1:$H$5,$C13+1) -> Nada | E13: 0 | F13: 4 | G13: 8 | H13: 0 | I13: =HLOOKUP(Yrke,Levelbonus!$B$1:$CR$20,12,0) -> 3 | J13: -25 | K13: =IN -> 5 | L13: 3 | M13: =IF(ISNUMBER(VLOOKUP($A13,Rasbonus!$A$61:$AM$295,MATCH(Ras,Rasbonus!$A$1:$AM$1,0),FALSE)),VLOOKUP($A13,Rasbonus!$A$61:$AM$295,MATCH(Ras,Rasbonus!$A$1:$AM$1,0),FALSE),0) -> 0 | Q13: -17 | U13: Appearance | V13: 75 | Y13: =VLOOKUP(V13,Diverse!$A$2:$B$131,2,0) -> 5 | Z13: =HLOOKUP(Ras,Rasbonus!$B$1:$AM$12,12,0) -> 0 | AC13: =SUM(Y13:AB13) -> 5
A14: Climbing | B14: =VLOOKUP(A14,AllaSkills!$A$3:$BV$319,$A$2+3,FALSE) -> 7 | C14: 0 | D14: =INDEX(Diverse!$H$1:$H$5,$C14+1) -> Nada | E14: =ROUND(Level*(C14/2),0)+VLOOKUP($A14,Rasbonus!$A$29:$AM$59,MATCH(Ras,Rasbonus!$A$1:$AM$1,0),FALSE) -> 2 | F14: 7 | G14: 7 | H14: 0 | I14: =HLOOKUP(Yrke,Levelbonus!$B$1:$CR$20,4,0) -> 0 | J14: 10 | K14: =AG -> 5 | L14: 0 | M14: =IF(ISNUMBER(VLOOKUP($A14,Rasbonus!$A$61:$AM$295,MATCH(Ras,Rasbonus!$A$1:$AM$1,0),FALSE)),VLOOKUP($A14,Rasbonus!$A$61:$AM$295,MATCH(Ras,Rasbonus!$A$1:$AM$1,0),FALSE),0) -> 0 | N14: =IF($AC$58>16,$Q$23,IF($AC$58>12,$Q$22, IF($AC$58>8,$Q$21,IF($AC$58>4,$Q$20,"0")))) -> 0 | Q14: 15 | V14: =SUM(V3:V13) -> 825 | Y14: =SUM(Y3:Y13) -> 55 | Z14: =SUM(Z3:Z13) -> 30 | AA14: =SUM(AA3:AA13) -> 0 | AB14: =SUM(AB3:AB13) -> 0 | AC14: =SUM(AC3:AC13) -> 85
A15: Directed Spells | B15: =VLOOKUP(A15,AllaSkills!$A$3:$BV$319,$A$2+3,FALSE) -> 2/7 | C15: 0 | D15: =INDEX(Diverse!$H$1:$H$5,$C15+1) -> Nada | E15: =ROUND(Level*(C15/2),0) -> 0 | F15: 2 | G15: 7 | H15: 0 | I15: =HLOOKUP(Yrke,Levelbonus!$B$1:$CR$20,17,0) -> 0 | J15: -25 | K15: =AG -> 5 | L15: 0 | M15: =IF(ISNUMBER(VLOOKUP($A15,Rasbonus!$A$61:$AM$295,MATCH(Ras,Rasbonus!$A$1:$AM$1,0),FALSE)),VLOOKUP($A15,Rasbonus!$A$61:$AM$295,MATCH(Ras,Rasbonus!$A$1:$AM$1,0),FALSE),0) -> 0 | Q15: -20 | S15: =CONCATENATE("Eh jag slog.. ca ",Medelhits) -> Eh jag slog.. ca 4,5
A16: Disarm Traps | B16: =VLOOKUP(A16,AllaSkills!$A$3:$BV$319,$A$2+3,FALSE) -> 4 | C16: 0 | D16: =INDEX(Diverse!$H$1:$H$5,$C16+1) -> Nada | E16: =ROUND(Level*(C16/2),0)+VLOOKUP($A16,Rasbonus!$A$29:$AM$59,MATCH(Ras,Rasbonus!$A$1:$AM$1,0),FALSE) -> 0 | F16: 4 | G16: 4 | H16: 0 | I16: =HLOOKUP(Yrke,Levelbonus!$B$1:$CR$20,16,0) -> 0 | J16: -25 | K16: =ROUND((IN+AG)/2,0) -> 5 | L16: 0 | M16: =IF(ISNUMBER(VLOOKUP($A16,Rasbonus!$A$61:$AM$295,MATCH(Ras,Rasbonus!$A$1:$AM$1,0),FALSE)),VLOOKUP($A16,Rasbonus!$A$61:$AM$295,MATCH(Ras,Rasbonus!$A$1:$AM$1,0),FALSE),0) -> 0 | Q16: -20 | U16: Spell lists Aqcuisition | AC16: Cost
A17: General Perception | B17: =VLOOKUP(A17,AllaSkills!$A$3:$BV$319,$A$2+3,FALSE) -> 3 | C17: 0 | D17: =INDEX(Diverse!$H$1:$H$5,$C17+1) -> Nada | E17: =ROUND(Level*(C17/2),0)+VLOOKUP($A17,Rasbonus!$A$29:$AM$59,MATCH(Ras,Rasbonus!$A$1:$AM$1,0),FALSE) -> 1 | F17: 3 | G17: 3 | H17: 0 | I17: =HLOOKUP(Yrke,Levelbonus!$B$1:$CR$20,14,0) -> 1 | J17: 5 | K17: =ROUND((IN+RE)/2,0) -> 5 | L17: 1 | M17: =IF(ISNUMBER(VLOOKUP($A17,Rasbonus!$A$61:$AM$295,MATCH(Ras,Rasbonus!$A$1:$AM$1,0),FALSE)),VLOOKUP($A17,Rasbonus!$A$61:$AM$295,MATCH(Ras,Rasbonus!$A$1:$AM$1,0),FALSE),0) -> 0 | Q17: 11 | S17: =CONCATENATE("Du har spenderat ",SUM(H3:H36)/2," av dina ",Dev.pts_primary," dev.pts.") -> Du har spenderat 0 av dina 35 dev.pts. | U17: SL (closed, A) | AC17: =VLOOKUP(U17,AllaSkills!$A$3:$BV$319,$A$2+3,FALSE) -> N/A
A18: MA Strikes | B18: =VLOOKUP(A18,AllaSkills!$A$3:$BV$319,$A$2+3,FALSE) -> 9 | C18: 0 | D18: =INDEX(Diverse!$H$1:$H$5,$C18+1) -> Nada | E18: =ROUND(Level*(C18/2),0)+VLOOKUP($A18,Rasbonus!$A$29:$AM$59,MATCH(Ras,Rasbonus!$A$1:$AM$1,0),FALSE) -> 2 | F18: =IF(LEN(B18)=3,LEFT(B18,1),IF(LEN(B18)<3,B18,99)) -> 9 | G18: =IF(RIGHT(B18,1)="*",LEFT(B18,1),IF(LEN(B18)=3,RIGHT(B18,1),IF(LEN(B18)<3,B18,RIGHT(B18,2)))) -> 9 | H18: =IF(D18="Ett varannan level",F18+F18-F18,IF(D18="Ett varje level",2*F18,IF(D18="Tre på två levlar",F18+G18+F18,IF(D18="Nada",0,F18+G18+F18+G18)))) -> 0 | I18: =HLOOKUP(Yrke,Levelbonus!$B$1:$CR$20,5,0) -> 0 | J18: =IF(E18<1,-25,IF(E18>30,80+((E18-30)*0.5),IF(E18>20,70+(E18-20),IF(E18>10,50+((E18-10)*2),E18*5)))) -> 10 | K18: =ROUND((ST+ST+AG)/3,0) -> 15 | L18: 0 | M18: =IF(ISNUMBER(VLOOKUP($A18,Rasbonus!$A$61:$AM$295,MATCH(Ras,Rasbonus!$A$1:$AM$1,0),FALSE)),VLOOKUP($A18,Rasbonus!$A$61:$AM$295,MATCH(Ras,Rasbonus!$A$1:$AM$1,0),FALSE),0) -> 0 | Q18: 25 | U18: SL (closed, B) | AC18: =VLOOKUP(U18,AllaSkills!$A$3:$BV$319,$A$2+3,FALSE) -> 1/*
A19: MA Sweeps | B19: =VLOOKUP(A19,AllaSkills!$A$3:$BV$319,$A$2+3,FALSE) -> 9 | C19: 0 | D19: =INDEX(Diverse!$H$1:$H$5,$C19+1) -> Nada | E19: =ROUND(Level*(C19/2),0)+VLOOKUP($A19,Rasbonus!$A$29:$AM$59,MATCH(Ras,Rasbonus!$A$1:$AM$1,0),FALSE) -> 0 | F19: =IF(LEN(B19)=3,LEFT(B19,1),IF(LEN(B19)<3,B19,99)) -> 9 | G19: =IF(RIGHT(B19,1)="*",LEFT(B19,1),IF(LEN(B19)=3,RIGHT(B19,1),IF(LEN(B19)<3,B19,RIGHT(B19,2)))) -> 9 | H19: 0 | I19: =HLOOKUP(Yrke,Levelbonus!$B$1:$CR$20,5,0) -> 0 | J19: =IF(E19<1,-25,IF(E19>30,80+((E19-30)*0.5),IF(E19>20,70+(E19-20),IF(E19>10,50+((E19-10)*2),E19*5)))) -> -25 | K19: =ROUND((AG+AG+ST)/3,0) -> 10 | L19: 0 | M19: =IF(ISNUMBER(VLOOKUP($A19,Rasbonus!$A$61:$AM$295,MATCH(Ras,Rasbonus!$A$1:$AM$1,0),FALSE)),VLOOKUP($A19,Rasbonus!$A$61:$AM$295,MATCH(Ras,Rasbonus!$A$1:$AM$1,0),FALSE),0) -> 0 | Q19: -15 | U19: SL (closed, C) | AC19: =VLOOKUP(U19,AllaSkills!$A$3:$BV$319,$A$2+3,FALSE) -> N/A
A20: Man. Soft L | B20: =VLOOKUP(A20,AllaSkills!$A$3:$BV$319,$A$2+3,FALSE) -> 9 | C20: 0 | D20: =INDEX(Diverse!$H$1:$H$5,$C20+1) -> Nada | E20: =ROUND(Level*(C20/2),0)+VLOOKUP($A20,Rasbonus!$A$29:$AM$59,MATCH(Ras,Rasbonus!$A$1:$AM$1,0),FALSE) -> 1 | F20: =IF(LEN(B20)=3,LEFT(B20,1),IF(LEN(B20)<3,B20,99)) -> 9 | G20: =IF(RIGHT(B20,1)="*",LEFT(B20,1),IF(LEN(B20)=3,RIGHT(B20,1),IF(LEN(B20)<3,B20,RIGHT(B20,2)))) -> 9 | H20: 0 | I20: =HLOOKUP(Yrke,Levelbonus!$B$1:$CR$20,5,0) -> 0 | J20: =IF(E20<1,-25,E20*5) -> 5 | K20: =AG -> 5 | L20: 0 | M20: =IF(ISNUMBER(VLOOKUP($A20,Rasbonus!$A$61:$AM$295,MATCH(Ras,Rasbonus!$A$1:$AM$1,0),FALSE)),VLOOKUP($A20,Rasbonus!$A$61:$AM$295,MATCH(Ras,Rasbonus!$A$1:$AM$1,0),FALSE),0) -> 0 | N20: =IF(AND($AC$58>4,$AC$58<9),$AC$59,"") ->  | Q20: =IF((SUM(J20:P20)>=AC60),AC60,(SUM(J20:P20))) -> 0 | S20: Primär vapentyp | U20: SL (closed, D) | AC20: =VLOOKUP(U20,AllaSkills!$A$3:$BV$319,$A$2+3,FALSE) -> 1/*
A21: Man. Rigid L | B21: =VLOOKUP(A21,AllaSkills!$A$3:$BV$319,$A$2+3,FALSE) -> 9 | C21: 0 | D21: =INDEX(Diverse!$H$1:$H$5,$C21+1) -> Nada | E21: =ROUND(Level*(C21/2),0)+VLOOKUP($A21,Rasbonus!$A$29:$AM$59,MATCH(Ras,Rasbonus!$A$1:$AM$1,0),FALSE) -> 0 | F21: =IF(LEN(B21)=3,LEFT(B21,1),IF(LEN(B21)<3,B21,99)) -> 9 | G21: =IF(RIGHT(B21,1)="*",LEFT(B21,1),IF(LEN(B21)=3,RIGHT(B21,1),IF(LEN(B21)<3,B21,RIGHT(B21,2)))) -> 9 | H21: 0 | I21: =HLOOKUP(Yrke,Levelbonus!$B$1:$CR$20,5,0) -> 0 | J21: =IF(E21<1,-25,E21*5) -> -25 | K21: =AG -> 5 | L21: 0 | M21: =IF(ISNUMBER(VLOOKUP($A21,Rasbonus!$A$61:$AM$295,MATCH(Ras,Rasbonus!$A$1:$AM$1,0),FALSE)),VLOOKUP($A21,Rasbonus!$A$61:$AM$295,MATCH(Ras,Rasbonus!$A$1:$AM$1,0),FALSE),0) -> 0 | N21: =IF(AND($AC$58>8,$AC$58<13),$AC$59,"") ->  | Q21: =IF((SUM(J21:P21)>=AC60),AC60,(SUM(J21:P21))) -> -20 | U21: SL (closed, E) | AC21: =VLOOKUP(U21,AllaSkills!$A$3:$BV$319,$A$2+3,FALSE) -> 3/*
A22: Man. Chain | B22: =VLOOKUP(A22,AllaSkills!$A$3:$BV$319,$A$2+3,FALSE) -> 10 | C22: 0 | D22: =INDEX(Diverse!$H$1:$H$5,$C22+1) -> Nada | E22: =ROUND(Level*(C22/2),0)+VLOOKUP($A22,Rasbonus!$A$29:$AM$59,MATCH(Ras,Rasbonus!$A$1:$AM$1,0),FALSE) -> 0 | F22: =IF(LEN(B22)=3,LEFT(B22,1),IF(LEN(B22)<3,B22,99)) -> 10 | G22: 10 | H22: 0 | I22: =HLOOKUP(Yrke,Levelbonus!$B$1:$CR$20,5,0) -> 0 | J22: =IF(E22<1,-25,E22*5) -> -25 | K22: =ST -> 20 | L22: 0 | M22: =IF(ISNUMBER(VLOOKUP($A22,Rasbonus!$A$61:$AM$295,MATCH(Ras,Rasbonus!$A$1:$AM$1,0),FALSE)),VLOOKUP($A22,Rasbonus!$A$61:$AM$295,MATCH(Ras,Rasbonus!$A$1:$AM$1,0),FALSE),0) -> 0 | N22: =IF(AND($AC$58>12,$AC$58<17),$AC$59,"") ->  | Q22: =IF((SUM(J22:P22)>=AC60),AC60,(SUM(J22:P22))) -> -5 | U22: SL (open, A) | AC22: =VLOOKUP(U22,AllaSkills!$A$3:$BV$319,$A$2+3,FALSE) -> N/A
A23: Man. Plate | B23: =VLOOKUP(A23,AllaSkills!$A$3:$BV$319,$A$2+3,FALSE) -> 11 | C23: 0 | D23: =INDEX(Diverse!$H$1:$H$5,$C23+1) -> Nada | E23: =ROUND(Level*(C23/2),0)+VLOOKUP($A23,Rasbonus!$A$29:$AM$59,MATCH(Ras,Rasbonus!$A$1:$AM$1,0),FALSE) -> 0 | F23: =IF(LEN(B23)=3,LEFT(B23,1),IF(LEN(B23)<3,B23,99)) -> 11 | G23: 11 | H23: 0 | I23: =HLOOKUP(Yrke,Levelbonus!$B$1:$CR$20,5,0) -> 0 | J23: =IF(E23<1,-25,E23*5) -> -25 | K23: =ST -> 20 | L23: 0 | M23: =IF(ISNUMBER(VLOOKUP($A23,Rasbonus!$A$61:$AM$295,MATCH(Ras,Rasbonus!$A$1:$AM$1,0),FALSE)),VLOOKUP($A23,Rasbonus!$A$61:$AM$295,MATCH(Ras,Rasbonus!$A$1:$AM$1,0),FALSE),0) -> 0 | N23: =IF(AND($AC$58>16,$AC$58<21),$AC$59,"") ->  | Q23: =IF((SUM(J23:P23)>=AC60),AC60,(SUM(J23:P23))) -> -5 | S23: Sekundär vapentyp | U23: SL (open, B) | AC23: =VLOOKUP(U23,AllaSkills!$A$3:$BV$319,$A$2+3,FALSE) -> 1/*
A24: Pick locks | B24: =VLOOKUP(A24,AllaSkills!$A$3:$BV$319,$A$2+3,FALSE) -> 4 | C24: 0 | D24: =INDEX(Diverse!$H$1:$H$5,$C24+1) -> Nada | E24: =ROUND(Level*(C24/2),0)+VLOOKUP($A24,Rasbonus!$A$29:$AM$59,MATCH(Ras,Rasbonus!$A$1:$AM$1,0),FALSE) -> 0 | F24: 4 | G24: 4 | H24: 0 | I24: =HLOOKUP(Yrke,Levelbonus!$B$1:$CR$20,16,0) -> 0 | J24: =IF(E24<1,-25,IF(E24>30,80+((E24-30)*0.5),IF(E24>20,70+(E24-20),IF(E24>10,50+((E24-10)*2),E24*5)))) -> -25 | K24: =ROUND((IN+RE+AG)/3,0) -> 5 | L24: 0 | M24: =IF(ISNUMBER(VLOOKUP($A24,Rasbonus!$A$61:$AM$295,MATCH(Ras,Rasbonus!$A$1:$AM$1,0),FALSE)),VLOOKUP($A24,Rasbonus!$A$61:$AM$295,MATCH(Ras,Rasbonus!$A$1:$AM$1,0),FALSE),0) -> 0 | Q24: =SUM(J24:P24) -> -20 | U24: SL (open, C) | AC24: =VLOOKUP(U24,AllaSkills!$A$3:$BV$319,$A$2+3,FALSE) -> N/A
A25: Riding | B25: =VLOOKUP(A25,AllaSkills!$A$3:$BV$319,$A$2+3,FALSE) -> 3 | C25: 0 | D25: =INDEX(Diverse!$H$1:$H$5,$C25+1) -> Nada | E25: =ROUND(Level*(C25/2),0)+VLOOKUP($A25,Rasbonus!$A$29:$AM$59,MATCH(Ras,Rasbonus!$A$1:$AM$1,0),FALSE) -> 0 | F25: 3 | G25: 3 | H25: 0 | I25: =HLOOKUP(Yrke,Levelbonus!$B$1:$CR$20,3,0) -> 0 | J25: -25 | K25: =ROUND((EM+AG)/2,0) -> 5 | L25: 0 | M25: =IF(ISNUMBER(VLOOKUP($A25,Rasbonus!$A$61:$AM$295,MATCH(Ras,Rasbonus!$A$1:$AM$1,0),FALSE)),VLOOKUP($A25,Rasbonus!$A$61:$AM$295,MATCH(Ras,Rasbonus!$A$1:$AM$1,0),FALSE),0) -> 0 | Q25: -20 | U25: SL (open, D) | AC25: =VLOOKUP(U25,AllaSkills!$A$3:$BV$319,$A$2+3,FALSE) -> 1/*
A26: Runes | B26: =VLOOKUP(A26,AllaSkills!$A$3:$BV$319,$A$2+3,FALSE) -> 1/3 | C26: 0 | D26: =INDEX(Diverse!$H$1:$H$5,$C26+1) -> Nada | E26: =ROUND(Level*(C26/2),0)+VLOOKUP($A26,Rasbonus!$A$29:$AM$59,MATCH(Ras,Rasbonus!$A$1:$AM$1,0),FALSE) -> 0 | F26: 1 | G26: 3 | H26: 0 | I26: =HLOOKUP(Yrke,Levelbonus!$B$1:$CR$20,12,0) -> 3 | J26: -25 | K26: =ROUND((IN+EM)/2,0) -> 5 | L26: 3 | M26: =IF(ISNUMBER(VLOOKUP($A26,Rasbonus!$A$61:$AM$295,MATCH(Ras,Rasbonus!$A$1:$AM$1,0),FALSE)),VLOOKUP($A26,Rasbonus!$A$61:$AM$295,MATCH(Ras,Rasbonus!$A$1:$AM$1,0),FALSE),0) -> 0 | Q26: -17 | S26: Tertiär vapentyp | U26: SL (open, E) | AC26: =VLOOKUP(U26,AllaSkills!$A$3:$BV$319,$A$2+3,FALSE) -> 1/*
A27: Staves & Wands | B27: =VLOOKUP(A27,AllaSkills!$A$3:$BV$319,$A$2+3,FALSE) -> 1/3 | C27: 0 | D27: =INDEX(Diverse!$H$1:$H$5,$C27+1) -> Nada | E27: =ROUND(Level*(C27/2),0)+VLOOKUP($A27,Rasbonus!$A$29:$AM$59,MATCH(Ras,Rasbonus!$A$1:$AM$1,0),FALSE) -> 0 | F27: 1 | G27: 3 | H27: 0 | I27: =HLOOKUP(Yrke,Levelbonus!$B$1:$CR$20,12,0) -> 3 | J27: -25 | K27: =ROUND((IN+EM)/2,0) -> 5 | L27: 3 | M27: =IF(ISNUMBER(VLOOKUP($A27,Rasbonus!$A$61:$AM$295,MATCH(Ras,Rasbonus!$A$1:$AM$1,0),FALSE)),VLOOKUP($A27,Rasbonus!$A$61:$AM$295,MATCH(Ras,Rasbonus!$A$1:$AM$1,0),FALSE),0) -> 0 | Q27: -17 | U27: SL (oth realm, base, A) | AC27: =VLOOKUP(U27,AllaSkills!$A$3:$BV$319,$A$2+3,FALSE) -> 10
A28: Stalk & Hide | B28: =VLOOKUP(A28,AllaSkills!$A$3:$BV$319,$A$2+3,FALSE) -> 6 | C28: 0 | D28: =INDEX(Diverse!$H$1:$H$5,$C28+1) -> Nada | E28: =ROUND(Level*(C28/2),0)+VLOOKUP($A28,Rasbonus!$A$29:$AM$59,MATCH(Ras,Rasbonus!$A$1:$AM$1,0),FALSE) -> 4 | F28: 6 | G28: 6 | H28: 0 | I28: =HLOOKUP(Yrke,Levelbonus!$B$1:$CR$20,16,0) -> 0 | J28: 20 | K28: =ROUND((AG+SD)/2,0) -> 5 | L28: 0 | M28: =IF(ISNUMBER(VLOOKUP($A28,Rasbonus!$A$61:$AM$295,MATCH(Ras,Rasbonus!$A$1:$AM$1,0),FALSE)),VLOOKUP($A28,Rasbonus!$A$61:$AM$295,MATCH(Ras,Rasbonus!$A$1:$AM$1,0),FALSE),0) -> 0 | N28: =IF($AC$58>16,$Q$23,IF($AC$58>12,$Q$22, IF($AC$58>8,$Q$21,IF($AC$58>4,$Q$20,"0")))) -> 0 | Q28: 25 | U28: SL (oth realm, cl, A) | AC28: =VLOOKUP(U28,AllaSkills!$A$3:$BV$319,$A$2+3,FALSE) -> 5
A29: Swimming | B29: =VLOOKUP(A29,AllaSkills!$A$3:$BV$319,$A$2+3,FALSE) -> 3 | C29: 0 | D29: =INDEX(Diverse!$H$1:$H$5,$C29+1) -> Nada | E29: =ROUND(Level*(C29/2),0)+VLOOKUP($A29,Rasbonus!$A$29:$AM$59,MATCH(Ras,Rasbonus!$A$1:$AM$1,0),FALSE) -> 2 | F29: 3 | G29: =IF(RIGHT(B29,1)="*",LEFT(B29,1),IF(LEN(B29)=3,RIGHT(B29,1),IF(LEN(B29)<3,B29,RIGHT(B29,2)))) -> 3 | H29: 0 | I29: =HLOOKUP(Yrke,Levelbonus!$B$1:$CR$20,4,0) -> 0 | J29: 10 | K29: =ROUND((AG+SD)/2,0) -> 5 | L29: 0 | M29: =IF(ISNUMBER(VLOOKUP($A29,Rasbonus!$A$61:$AM$295,MATCH(Ras,Rasbonus!$A$1:$AM$1,0),FALSE)),VLOOKUP($A29,Rasbonus!$A$61:$AM$295,MATCH(Ras,Rasbonus!$A$1:$AM$1,0),FALSE),0) -> 0 | N29: =IF($AC$58>16,$Q$23,IF($AC$58>12,$Q$22, IF($AC$58>8,$Q$21,IF($AC$58>4,$Q$20,"0")))) -> 0 | Q29: 15 | S29: Fjärde vapentyp | U29: SL (oth realm, cl, B) | AC29: =VLOOKUP(U29,AllaSkills!$A$3:$BV$319,$A$2+3,FALSE) -> 10
A30: =OFFSET(Diverse!$G$14,Diverse!H26,0) -> 2 Handed | B30: =VLOOKUP("Weapon #1",AllaSkills!$A$3:$BV$319,$A$2+3,FALSE) -> 9 | C30: 0 | D30: =INDEX(Diverse!$H$1:$H$5,$C30+1) -> Nada | E30: =ROUND(Level*(C30/2),0)+IF(ISNUMBER(VLOOKUP($A30,Rasbonus!$A$29:$AM$59,MATCH(Ras,Rasbonus!$A$1:$AM$1,0),FALSE)),VLOOKUP($A30,Rasbonus!$A$29:$AM$59,MATCH(Ras,Rasbonus!$A$1:$AM$1,0),FALSE),0) -> 2 | F30: 9 | G30: 9 | H30: 0 | I30: =HLOOKUP(Yrke,Levelbonus!$B$1:$CR$20,5,0) -> 0 | J30: 10 | K30: =OFFSET(Diverse!$H$14,Diverse!H26,0) -> 15 | L30: 0 | M30: =IF(ISNUMBER(VLOOKUP($A30,Rasbonus!$A$61:$AM$295,MATCH(Ras,Rasbonus!$A$1:$AM$1,0),FALSE)),VLOOKUP($A30,Rasbonus!$A$61:$AM$295,MATCH(Ras,Rasbonus!$A$1:$AM$1,0),FALSE),0) -> 0 | N30: =IF(OR($A$30="Bow", $A$30="Thrown"),$AC$62,"") ->  | Q30: 25 | U30: SL (oth realm, op, A) | AC30: =VLOOKUP(U30,AllaSkills!$A$3:$BV$319,$A$2+3,FALSE) -> 4/*
A31: =OFFSET(Diverse!$G$14,Diverse!H27,0) -> Polearm | B31: =VLOOKUP("Weapon #2",AllaSkills!$A$3:$BV$319,$A$2+3,FALSE) -> 20 | C31: 0 | D31: =INDEX(Diverse!$H$1:$H$5,$C31+1) -> Nada | E31: =ROUND(Level*(C31/2),0)+IF(ISNUMBER(VLOOKUP($A31,Rasbonus!$A$29:$AM$59,MATCH(Ras,Rasbonus!$A$1:$AM$1,0),FALSE)),VLOOKUP($A31,Rasbonus!$A$29:$AM$59,MATCH(Ras,Rasbonus!$A$1:$AM$1,0),FALSE),0) -> 2 | F31: 20 | G31: 20 | H31: 0 | I31: =HLOOKUP(Yrke,Levelbonus!$B$1:$CR$20,5,0) -> 0 | J31: 10 | K31: =OFFSET(Diverse!$H$14,Diverse!H27,0) -> 12.5 | L31: 0 | M31: =IF(ISNUMBER(VLOOKUP($A31,Rasbonus!$A$61:$AM$295,MATCH(Ras,Rasbonus!$A$1:$AM$1,0),FALSE)),VLOOKUP($A31,Rasbonus!$A$61:$AM$295,MATCH(Ras,Rasbonus!$A$1:$AM$1,0),FALSE),0) -> 0 | N31: =IF(OR($A$31="Bow", $A$31="Thrown"),$AC$62,"") ->  | Q31: 22.5 | U31: SL (oth realm, op, C) | AC31: =VLOOKUP(U31,AllaSkills!$A$3:$BV$319,$A$2+3,FALSE) -> 8
A32: =OFFSET(Diverse!$G$14,Diverse!H28,0) -> Thrown | B32: =VLOOKUP("Weapon #3",AllaSkills!$A$3:$BV$319,$A$2+3,FALSE) -> 20 | C32: 0 | D32: =INDEX(Diverse!$H$1:$H$5,$C32+1) -> Nada | E32: =ROUND(Level*(C32/2),0)+IF(ISNUMBER(VLOOKUP($A32,Rasbonus!$A$29:$AM$59,MATCH(Ras,Rasbonus!$A$1:$AM$1,0),FALSE)),VLOOKUP($A32,Rasbonus!$A$29:$AM$59,MATCH(Ras,Rasbonus!$A$1:$AM$1,0),FALSE),0) -> 1 | F32: 20 | G32: 20 | H32: 0 | I32: =HLOOKUP(Yrke,Levelbonus!$B$1:$CR$20,5,0) -> 0 | J32: 5 | K32: =OFFSET(Diverse!$H$14,Diverse!H28,0) -> 12.5 | L32: 0 | M32: =IF(ISNUMBER(VLOOKUP($A32,Rasbonus!$A$61:$AM$295,MATCH(Ras,Rasbonus!$A$1:$AM$1,0),FALSE)),VLOOKUP($A32,Rasbonus!$A$61:$AM$295,MATCH(Ras,Rasbonus!$A$1:$AM$1,0),FALSE),0) -> 0 | N32: =IF(OR($A$32="Bow", $A$32="Thrown"),$AC$62,"") -> 0 | Q32: 17.5 | S32: Femte vapentyp | U32: SL (oth realm, op, D) | AC32: =VLOOKUP(U32,AllaSkills!$A$3:$BV$319,$A$2+3,FALSE) -> 10
A33: =OFFSET(Diverse!$G$14,Diverse!H29,0) -> 1H Slash | B33: =VLOOKUP("Weapon #4",AllaSkills!$A$3:$BV$319,$A$2+3,FALSE) -> 20 | C33: 0 | D33: =INDEX(Diverse!$H$1:$H$5,$C33+1) -> Nada | E33: =ROUND(Level*(C33/2),0)+IF(ISNUMBER(VLOOKUP($A33,Rasbonus!$A$29:$AM$59,MATCH(Ras,Rasbonus!$A$1:$AM$1,0),FALSE)),VLOOKUP($A33,Rasbonus!$A$29:$AM$59,MATCH(Ras,Rasbonus!$A$1:$AM$1,0),FALSE),0) -> 0 | F33: =IF(LEN(B33)=3,LEFT(B33,1),IF(LEN(B33)<3,B33,99)) -> 20 | G33: 20 | H33: =IF(D33="Ett varannan level",F33+F33-F33,IF(D33="Ett varje level",2*F33,IF(D33="Tre på två levlar",F33+G33+F33,IF(D33="Nada",0,F33+G33+F33+G33)))) -> 0 | I33: =HLOOKUP(Yrke,Levelbonus!$B$1:$CR$20,5,0) -> 0 | J33: =IF(E33<1,-25,IF(E33>30,80+((E33-30)*0.5),IF(E33>20,70+(E33-20),IF(E33>10,50+((E33-10)*2),E33*5)))) -> -25 | K33: =OFFSET(Diverse!$H$14,Diverse!H29,0) -> 12.5 | L33: 0 | M33: =IF(ISNUMBER(VLOOKUP($A33,Rasbonus!$A$61:$AM$295,MATCH(Ras,Rasbonus!$A$1:$AM$1,0),FALSE)),VLOOKUP($A33,Rasbonus!$A$61:$AM$295,MATCH(Ras,Rasbonus!$A$1:$AM$1,0),FALSE),0) -> 0 | N33: =IF(OR($A$33="Bow", $A$33="Thrown"),$AC$62,"") ->  | Q33: -12.5 | U33: SL (other base, A) | AC33: =VLOOKUP(U33,AllaSkills!$A$3:$BV$319,$A$2+3,FALSE) -> 3/*
A34: =OFFSET(Diverse!$G$14,Diverse!H30,0) -> 1H Thrust | B34: =VLOOKUP("Weapon #5",AllaSkills!$A$3:$BV$319,$A$2+3,FALSE) -> 20 | C34: 0 | D34: =INDEX(Diverse!$H$1:$H$5,$C34+1) -> Nada | E34: =ROUND(Level*(C34/2),0)+IF(ISNUMBER(VLOOKUP($A34,Rasbonus!$A$29:$AM$59,MATCH(Ras,Rasbonus!$A$1:$AM$1,0),FALSE)),VLOOKUP($A34,Rasbonus!$A$29:$AM$59,MATCH(Ras,Rasbonus!$A$1:$AM$1,0),FALSE),0) -> 0 | F34: =IF(LEN(B34)=3,LEFT(B34,1),IF(LEN(B34)<3,B34,99)) -> 20 | G34: 20 | H34: =IF(D34="Ett varannan level",F34+F34-F34,IF(D34="Ett varje level",2*F34,IF(D34="Tre på två levlar",F34+G34+F34,IF(D34="Nada",0,F34+G34+F34+G34)))) -> 0 | I34: =HLOOKUP(Yrke,Levelbonus!$B$1:$CR$20,5,0) -> 0 | J34: =IF(E34<1,-25,IF(E34>30,80+((E34-30)*0.5),IF(E34>20,70+(E34-20),IF(E34>10,50+((E34-10)*2),E34*5)))) -> -25 | K34: =OFFSET(Diverse!$H$14,Diverse!H30,0) -> 7.5 | L34: 0 | M34: =IF(ISNUMBER(VLOOKUP($A34,Rasbonus!$A$61:$AM$295,MATCH(Ras,Rasbonus!$A$1:$AM$1,0),FALSE)),VLOOKUP($A34,Rasbonus!$A$61:$AM$295,MATCH(Ras,Rasbonus!$A$1:$AM$1,0),FALSE),0) -> 0 | N34: =IF(OR($A$34="Bow", $A$34="Thrown"),$AC$62,"") ->  | Q34: -17.5 | U34: SL (other base, C) | AC34: =VLOOKUP(U34,AllaSkills!$A$3:$BV$319,$A$2+3,FALSE) -> 4/*
A35: =OFFSET(Diverse!$G$14,Diverse!H31,0) -> Bow | B35: =VLOOKUP("Weapon #6",AllaSkills!$A$3:$BV$319,$A$2+3,FALSE) -> 20 | C35: 0 | D35: =INDEX(Diverse!$H$1:$H$5,$C35+1) -> Nada | E35: =ROUND(Level*(C35/2),0)+IF(ISNUMBER(VLOOKUP($A35,Rasbonus!$A$29:$AM$59,MATCH(Ras,Rasbonus!$A$1:$AM$1,0),FALSE)),VLOOKUP($A35,Rasbonus!$A$29:$AM$59,MATCH(Ras,Rasbonus!$A$1:$AM$1,0),FALSE),0) -> 0 | F35: =IF(LEN(B35)=3,LEFT(B35,1),IF(LEN(B35)<3,B35,99)) -> 20 | G35: 20 | H35: =IF(D35="Ett varannan level",F35+F35-F35,IF(D35="Ett varje level",2*F35,IF(D35="Tre på två levlar",F35+G35+F35,IF(D35="Nada",0,F35+G35+F35+G35)))) -> 0 | I35: =HLOOKUP(Yrke,Levelbonus!$B$1:$CR$20,5,0) -> 0 | J35: =IF(E35<1,-25,IF(E35>30,80+((E35-30)*0.5),IF(E35>20,70+(E35-20),IF(E35>10,50+((E35-10)*2),E35*5)))) -> -25 | K35: =OFFSET(Diverse!$H$14,Diverse!H31,0) -> 10 | L35: 0 | M35: =IF(ISNUMBER(VLOOKUP($A35,Rasbonus!$A$61:$AM$295,MATCH(Ras,Rasbonus!$A$1:$AM$1,0),FALSE)),VLOOKUP($A35,Rasbonus!$A$61:$AM$295,MATCH(Ras,Rasbonus!$A$1:$AM$1,0),FALSE),0) -> 0 | N35: =IF(OR($A$35="Bow", $A$35="Thrown"),$AC$62,"") -> 0 | Q35: -15 | S35: Sjätte vapentyp | U35: SL (other base, D) | AC35: =VLOOKUP(U35,AllaSkills!$A$3:$BV$319,$A$2+3,FALSE) -> 5
A36: Shield | B36: =VLOOKUP("Shield Skill",AllaSkills!$A$3:$BV$319,$A$2+3,FALSE) -> 20 | C36: 0 | D36: =INDEX(Diverse!$H$1:$H$5,$C36+1) -> Nada | E36: =ROUND(Level*(C36/2),0)+IF(ISNUMBER(VLOOKUP($A36,Rasbonus!$A$29:$AM$59,MATCH(Ras,Rasbonus!$A$1:$AM$1,0),FALSE)),VLOOKUP($A36,Rasbonus!$A$29:$AM$59,MATCH(Ras,Rasbonus!$A$1:$AM$1,0),FALSE),0) -> 0 | F36: =IF(LEN(B36)=3,LEFT(B36,1),IF(LEN(B36)<3,B36,99)) -> 20 | G36: 20 | H36: =IF(D36="Ett varannan level",F36+F36-F36,IF(D36="Ett varje level",2*F36,IF(D36="Tre på två levlar",F36+G36+F36,IF(D36="Nada",0,F36+G36+F36+G36)))) -> 0 | J36: =IF(E36<1,0,IF(E36>30,46+((E36-50)*0.5),IF(E36>10,26+(E36-10),IF(E36>6,20+((E36-6)*1.5),IF(E36>2,10+((E36-2)*2.5),E36*5))))) -> 0 | K36: 0 | M36: =IF(ISNUMBER(VLOOKUP($A36,Rasbonus!$A$61:$AM$295,MATCH(Ras,Rasbonus!$A$1:$AM$1,0),FALSE)),VLOOKUP($A36,Rasbonus!$A$61:$AM$295,MATCH(Ras,Rasbonus!$A$1:$AM$1,0),FALSE),0) -> 0 | N36: =SUM(Secondary!AK99+15) -> 15 | Q36: 15 | U36: SL (other base, E) | AC36: =VLOOKUP(U36,AllaSkills!$A$3:$BV$319,$A$2+3,FALSE) -> 10
A38: Defensive Bonus | K38: Power Points | Q38: Background Options | U38: General Information
B39: w/shield | D39: w/other | K39: Developed | O39: =Secondary!AK185 -> 5 | U39: Namn:
A40: Shield skill | B40: =IF($Q$36<0,0,$Q$36) -> 15 | K40: Added | U40: Yrke: | V40: =Yrke -> Alchemist
A41: Magic shield | B41: 0 | K41: Multiplier | O41: 1 | U41: Ras: | V41: =Ras -> Beorning
A42: Quickness | B42: =MIN($AB$71,IF($AC$9+$AC$61<1,0,($AC$9+$AC$61))) -> 0 | D42: =SUM(B42) -> 0 | K42: Total | O42: =SUM(O39:O40)*(O41) -> 5 | U42: Level: | V42: =Level -> 1
K43: Spent | U43: Total hits: | V43: =IF(Q12>(HLOOKUP(Ras,Rasbonus!$B$1:$AM$16,16,FALSE)+CO),ROUND(((HLOOKUP(Ras,Rasbonus!$B$1:$AM$16,16,FALSE)+CO))*(1+(CO/100)),0),ROUND(((Q12*CO%)+Q12),0)) -> 25
A44: Magical | B44: 0 | D44: =SUM(B44) -> 0 | K44: Recovery (hour) | O44: =IF(V45=1,VLOOKUP(V11,Diverse!G82:H186,2),IF(V45=2,VLOOKUP(V12,Diverse!G82:H186,2),IF(V45=3,VLOOKUP(V10,Diverse!G82:H186,2),IF(V45=4,VLOOKUP(SUM(V11:V12)*0.5,Diverse!G82:H186,2),IF(V45=5,VLOOKUP(SUM(V10:V11)*0.5,Diverse!G82:H186,2),IF(V45=6,VLOOKUP(SUM(V11:V12)*0.5,Diverse!G82:H186,2),VLOOKUP(SUM(V10:V12)*0.33,Diverse!G82:H186,2))))))) -> 2 | U44: Baserate | V44: =VLOOKUP(V9,Diverse!$A$2:$D$131,4,0)+Z9+$O$66 -> 45
A45: Adrenal Defense | B45: =IF($Q$8<0,0,$Q$8) -> 0 | D45: =SUM(B45) -> 0 | U45: Realm: | V45: 1
A46: Def. Technique | B46: =IF(Secondary!$AK$80<0,0,Secondary!$AK$80) -> 0 | D46: =SUM(B46) -> 0 | K46: Character Traits | U46: XP:
A47: Def. Weaving | B47: =IF(Secondary!$AK$81<0,0,Secondary!$AK$81) -> 0 | D47: 0 | K47: Height: | N47: 165 | O47: cm | U47: Campaign:
A48: BO | B48: 0 | D48: 0 | K48: Weight: | N48: 65 | O48: kg | U48: Year of birth:
A49: Other | B49: 0 | D49: 0 | K49: Hair:
A50: Spells | B50: 0 | D50: 0 | K50: Eyes: | Q50: Racial Abilities/Special bonuses
A51: Inherent | B51: 0 | D51: 0 | K51: Scars:
A53: Total | B53: =SUM(B51,B50,B49,B44,B42,B41,B40) -> 15 | D53: =SUM(D40:D52) -> 0 | K53: Tattoos:
A55: Resistances | D55: Base Spell Casting | K55: Other:
A56: Channeling | B56: =SUM(IN)+HLOOKUP(Ras,Rasbonus!$B$1:$AM$26,21,0) -> 5 | D56: BAR | E56: =IF(Level<21,Level*I56,IF(I56>2,60+(Level-20),IF(I56=2,40+((Level-20)*0.5),IF(Level=0,0,IF(I56=0,0,20))))) -> 2 | I56: =HLOOKUP(Yrke,Levelbonus!$B$1:$CR$20,18,0) -> 2
A57: Essence | B57: =SUM(EM)+HLOOKUP(Ras,Rasbonus!$B$1:$AM$26,20,0) -> 5 | D57: Power Man. | E57: =IF(Secondary!AC182<31,Secondary!AC182,30) -> 0 | U57: Armor Type and Weaponry
A58: Mentalism | B58: =SUM(PR)+HLOOKUP(Ras,Rasbonus!$B$1:$AM$26,22,0) -> 10 | D58: BO | U58: Armor Type | AC58: 1
A59: Arcane | B59: =SUM(B56:B58)/3 -> 6.666666667 | D59: Other | U59: Max Maneuver Penalty | AC59: =VLOOKUP($AC$58,Diverse!$G$34:$L$53,3,0) -> 0
A60: Poison | B60: =SUM(CO)+HLOOKUP(Ras,Rasbonus!$B$1:$AM$26,19,0) -> 20 | U60: Min Maneuver Penalty | AC60: =VLOOKUP($AC$58,Diverse!$G$34:$L$53,2,0) -> 0
A61: Disease | B61: =SUM(CO)+HLOOKUP(Ras,Rasbonus!$B$1:$AM$26,18,0) -> 20 | U61: Quickness Penalty | AC61: =VLOOKUP($AC$58,Diverse!$G$34:$L$53,5,0) -> 0
A62: Fear (Will) | B62: =SUM(SD)+HLOOKUP(Ras,Rasbonus!$B$1:$AM$26,17,0) -> 5 | D62: Total | E62: =SUM(E56:E61) -> 2 | K62: =(S2) -> Character Name | Q62: Språk | S62: Spoken/Written | U62: Missile Attack Penalty | AC62: =VLOOKUP($AC$58,Diverse!$G$34:$L$53,4,0) -> 0
Q63: Westron 8/8 | U63: Reverse Armor mod. | AC63: =VLOOKUP($AC$58,Diverse!$G$34:$L$53,6,0) -> 0
A65: Initiative | D65: Movement | E65: Difficulty | K65: Movement | M65: Exhaustion | U65: Shield Type: | Z65: Armor ESF | AC65: =IF(V45=1,VLOOKUP(AC58,Diverse!G34:N53,7),IF(V45=3,0,IF(V45=5,VLOOKUP(AC58,Diverse!G34:N53,7),VLOOKUP(AC58,Diverse!G34:N53,8)))) -> 0
A66: QU minus MMP | B66: =QU+N3 -> 0 | D66: Walk (x1) | E66: None | K66: =($V$44) -> 45 | M66: 1/30 rnds | O66: =VLOOKUP('Ny NPC'!N47,Diverse!G55:H62,2,1) -> 0 | U66: Helm Type: | V66: 1 | Z66: Helm ESF | AC66: =IF(V45=1,VLOOKUP(V66,Diverse!K27:N30,2),IF(V45=4,VLOOKUP(V66,Diverse!K27:N30,3),IF(V45=3,VLOOKUP(V66,Diverse!K27:N30,4),VLOOKUP(V66,Diverse!K27:N30,4)))) -> 0
A67: Instinctive Man. | B67: =(Secondary!AK93)/5 -> -4.6 | D67: Fast walk (x1,5) | E67: Routine | K67: =($V$44)*1.5 -> 67.5 | M67: 1/6 rnds | U67: Neck prot: | Z67: Transcend Armor | AC67: =IF(Secondary!$AK$192<0,0,Secondary!$AK$192/3) -> 0
A68: Other | B68: 0 | D68: Run (x2) | E68: Easy | K68: =($V$44)*2 -> 90 | M68: 1/2 rnds | U68: Nose guard: | Z68: Other
A69: Other | B69: 0 | D69: Sprint (x3) | E69: Light | K69: =($V$44)*3 -> 135 | M69: 5/rnd | U69: Throat prot: | Z69: Total ESF | AC69: =IF((AC65+AC66-AC67-AC68<=0),0,AC65+AC66-AC67-AC68) -> 0
D70: Fast sprint (x4) | E70: Medium | K70: =($V$44)*4 -> 180 | M70: 25/rnd
D71: Dash (x5) | E71: Hard | K71: =($V$44)*5 -> 225 | M71: 40/rnd | Z71: QU-Limit | AB71: =IF(I73=1,Diverse!I65,IF(I73=2,Diverse!I66,IF(I73=3,Diverse!I67,IF(I73=4,Diverse!I68,IF(I73=5,Diverse!I69,IF(I73=6,Diverse!I70,IF(I73=7,Diverse!I71))))))) -> 25
A72: Total | B72: =IF(B67>B66,IF(B67>0,B67+B68,B66+B68),B66+B68) -> 0 | D72: Movement = (Base Rate) x (Pace Multiplier) x (Maneuver Roll Result) /100
I73: 7

Sheet Secondary
A1: Secondary Skills | B1: Dev.pts per level | C1: Cost 1 | D1: Cost 2 | E1: Grupp | F1: Adolescence | H1: Annat | I1: Level 1 | J1: Level 2 | K1: Level 3 | L1: Level 4 | M1: Level 5 | N1: Level 6 | O1: Level 7 | P1: Level 8 | Q1: Level 9 | R1: Level 10 | S1: Level 11 | T1: Level 12 | U1: Level 13 | V1: Level 14 | W1: Level 15 | X1: Level 16 | Y1: Level 17 | Z1: Level 18 | AA1: Level 19 | AB1: Level 20 | AC1: Total ranks | AD1: Skill | AE1: Stat | AF1: Levelbonus | AG1: Level | AH1: Racial | AI1: Armor mods. | AJ1: Items | AK1: Total | AL1: Adolescence | AM1: Level 1 | AN1: Level 2 | AO1: Level 3 | AP1: Level 4 | AQ1: Level 5 | AR1: Level 6 | AS1: Level 7 | AT1: Level 8 | AU1: Level 9 | AV1: Level 10 | AW1: Level 11 | AX1: Level 12 | AY1: Level 13 | AZ1: Level 14 | BA1: Level 15 | BB1: Level 16 | BC1: Level 17 | BD1: Level 18 | BE1: Level 19 | BF1: Level 20
A2: Academic | B2: =HLOOKUP(Diverse!$G$2,'2nd'!$B$1:$CR$18,2,FALSE) -> 34 | F2: =SUM(AL3:AL38) -> 0 | I2: =SUM(AM3:AM38) -> 0 | J2: 0 | K2: 0 | L2: 0 | M2: 0 | N2: 0 | O2: 0 | P2: 0 | Q2: 0 | R2: 0 | S2: 0 | T2: 0 | U2: 0 | V2: 0 | W2: 0 | X2: 0 | Y2: 0 | Z2: 0 | AA2: 0 | AB2: 0 | AC2: Rank | AD2: Skill | AE2: Stat | AG2: Lvl | AH2: Race | AI2: Armor | AJ2: Item | AK2: Total
A3: Administration | B3: =VLOOKUP(A3,AllaSkills!$A$2:$BV$319,'Ny NPC'!$A$2+3,FALSE) -> 2/5 | C3: =IF(LEN(B3)=3,LEFT(B3,1),IF(LEN(B3)<3,B3,99)) -> 2 | D3: =IF(RIGHT(B3,1)="*",LEFT(B3,1),IF(LEN(B3)=3,RIGHT(B3,1),IF(LEN(B3)<3,B3,RIGHT(B3,2)))) -> 5 | E3: Academic | AC3: =SUM(F3:AB3) -> 0 | AD3: =IF(AC3<1,-25,IF(AC3>30,80+((AC3-30)*0.5),IF(AC3>20,70+(AC3-20),IF(AC3>10,50+((AC3-10)*2),AC3*5)))) -> -25 | AE3: =(RE+PR)/2 -> 7.5 | AF3: =HLOOKUP(Yrke,Levelbonus!$B$1:$CR$20,2,FALSE) -> 3 | AG3: =AF3*Level -> 3 | AH3: =IF(ISNUMBER(VLOOKUP($A3,Rasbonus!$A$61:$AM$295,MATCH(Ras,Rasbonus!$A$1:$AM$1,0),FALSE)),VLOOKUP($A3,Rasbonus!$A$61:$AM$295,MATCH(Ras,Rasbonus!$A$1:$AM$1,0),FALSE),"0") -> 0 | AK3: =ROUND(AD3+AE3+AG3+AH3+AI3+AJ3,0) -> -15 | AL3: =IF(F3>2,"99",IF(F3<1,0,IF(F3=1,$C3+$C3-$C3,IF(F3=2,$C3+$D3)))) -> 0 | AM3: =IF(I3>2,"99",IF(I3<1,0,IF(I3=1,$C3+$C3-$C3,IF(I3=2,$C3+$D3)))) -> 0 | AN3: 0 | AO3: 0 | AP3: 0 | AQ3: 0 | AR3: 0 | AS3: 0 | AT3: 0 | AU3: 0 | AV3: 0 | AW3: 0 | AX3: 0 | AY3: 0 | AZ3: 0 | BA3: 0 | BB3: 0 | BC3: 0 | BD3: 0 | BE3: 0 | BF3: 0
A4: Alchemy | B4: =VLOOKUP(A4,AllaSkills!$A$2:$BV$319,'Ny NPC'!$A$2+3,FALSE) -> 1/3 | C4: 1 | D4: =IF(RIGHT(B4,1)="*",LEFT(B4,1),IF(LEN(B4)=3,RIGHT(B4,1),IF(LEN(B4)<3,B4,RIGHT(B4,2)))) -> 3 | E4: Academic | AC4: =SUM(F4:AB4) -> 0 | AD4: =IF(AC4<1,-25,IF(AC4>30,80+((AC4-30)*0.5),IF(AC4>20,70+(AC4-20),IF(AC4>10,50+((AC4-10)*2),AC4*5)))) -> -25 | AE4: =(RE) -> 5 | AF4: =HLOOKUP(Yrke,Levelbonus!$B$1:$CR$20,2,FALSE) -> 3 | AG4: 3 | AH4: =IF(ISNUMBER(VLOOKUP($A4,Rasbonus!$A$61:$AM$295,MATCH(Ras,Rasbonus!$A$1:$AM$1,0),FALSE)),VLOOKUP($A4,Rasbonus!$A$61:$AM$295,MATCH(Ras,Rasbonus!$A$1:$AM$1,0),FALSE),"0") -> 0 | AK4: =ROUND(AD4+AE4+AG4+AH4+AI4+AJ4,0) -> -17 | AL4: =IF(F4>2,"99",IF(F4<1,0,IF(F4=1,$C4+$C4-$C4,IF(F4=2,$C4+$D4)))) -> 0 | AM4: =IF(I4>2,"99",IF(I4<1,0,IF(I4=1,$C4+$C4-$C4,IF(I4=2,$C4+$D4)))) -> 0 | AN4: =IF(J4>2,"99",IF(J4<1,0,IF(J4=1,$C4+$C4-$C4,IF(J4=2,$C4+$D4)))) -> 0 | AO4: =IF(K4>2,"99",IF(K4<1,0,IF(K4=1,$C4+$C4-$C4,IF(K4=2,$C4+$D4)))) -> 0 | AP4: =IF(L4>2,"99",IF(L4<1,0,IF(L4=1,$C4+$C4-$C4,IF(L4=2,$C4+$D4)))) -> 0 | AQ4: =IF(M4>2,"99",IF(M4<1,0,IF(M4=1,$C4+$C4-$C4,IF(M4=2,$C4+$D4)))) -> 0 | AR4: =IF(N4>2,"99",IF(N4<1,0,IF(N4=1,$C4+$C4-$C4,IF(N4=2,$C4+$D4)))) -> 0 | AS4: =IF(O4>2,"99",IF(O4<1,0,IF(O4=1,$C4+$C4-$C4,IF(O4=2,$C4+$D4)))) -> 0 | AT4: =IF(P4>2,"99",IF(P4<1,0,IF(P4=1,$C4+$C4-$C4,IF(P4=2,$C4+$D4)))) -> 0 | AU4: =IF(Q4>2,"99",IF(Q4<1,0,IF(Q4=1,$C4+$C4-$C4,IF(Q4=2,$C4+$D4)))) -> 0 | AV4: =IF(R4>2,"99",IF(R4<1,0,IF(R4=1,$C4+$C4-$C4,IF(R4=2,$C4+$D4)))) -> 0 | AW4: =IF(S4>2,"99",IF(S4<1,0,IF(S4=1,$C4+$C4-$C4,IF(S4=2,$C4+$D4)))) -> 0 | AX4: =IF(T4>2,"99",IF(T4<1,0,IF(T4=1,$C4+$C4-$C4,IF(T4=2,$C4+$D4)))) -> 0 | AY4: =IF(U4>2,"99",IF(U4<1,0,IF(U4=1,$C4+$C4-$C4,IF(U4=2,$C4+$D4)))) -> 0 | AZ4: =IF(V4>2,"99",IF(V4<1,0,IF(V4=1,$C4+$C4-$C4,IF(V4=2,$C4+$D4)))) -> 0 | BA4: =IF(W4>2,"99",IF(W4<1,0,IF(W4=1,$C4+$C4-$C4,IF(W4=2,$C4+$D4)))) -> 0 | BB4: =IF(X4>2,"99",IF(X4<1,0,IF(X4=1,$C4+$C4-$C4,IF(X4=2,$C4+$D4)))) -> 0 | BC4: =IF(Y4>2,"99",IF(Y4<1,0,IF(Y4=1,$C4+$C4-$C4,IF(Y4=2,$C4+$D4)))) -> 0 | BD4: =IF(Z4>2,"99",IF(Z4<1,0,IF(Z4=1,$C4+$C4-$C4,IF(Z4=2,$C4+$D4)))) -> 0 | BE4: =IF(AA4>2,"99",IF(AA4<1,0,IF(AA4=1,$C4+$C4-$C4,IF(AA4=2,$C4+$D4)))) -> 0 | BF4: =IF(AB4>2,"99",IF(AB4<1,0,IF(AB4=1,$C4+$C4-$C4,IF(AB4=2,$C4+$D4)))) -> 0
A5: Architecture | B5: =VLOOKUP(A5,AllaSkills!$A$2:$BV$319,'Ny NPC'!$A$2+3,FALSE) -> 2/5 | C5: 2 | D5: 5 | E5: Academic | AC5: 0 | AD5: -25 | AE5: =(RE+EM)/2 -> 5 | AF5: =HLOOKUP(Yrke,Levelbonus!$B$1:$CR$20,2,FALSE) -> 3 | AG5: 3 | AH5: =IF(ISNUMBER(VLOOKUP($A5,Rasbonus!$A$61:$AM$295,MATCH(Ras,Rasbonus!$A$1:$AM$1,0),FALSE)),VLOOKUP($A5,Rasbonus!$A$61:$AM$295,MATCH(Ras,Rasbonus!$A$1:$AM$1,0),FALSE),"0") -> 0 | AK5: -17 | AL5: 0 | AM5: 0 | AN5: 0 | AO5: 0 | AP5: 0 | AQ5: 0 | AR5: 0 | AS5: 0 | AT5: 0 | AU5: 0 | AV5: 0 | AW5: 0 | AX5: 0 | AY5: 0 | AZ5: 0 | BA5: 0 | BB5: 0 | BC5: 0 | BD5: 0 | BE5: 0 | BF5: 0
A6: Basic Mathematics | B6: =VLOOKUP(A6,AllaSkills!$A$2:$BV$319,'Ny NPC'!$A$2+3,FALSE) -> 1/4 | C6: 1 | D6: 4 | E6: Academic | AC6: 0 | AD6: -25 | AE6: =(RE) -> 5 | AF6: =HLOOKUP(Yrke,Levelbonus!$B$1:$CR$20,2,FALSE) -> 3 | AG6: 3 | AH6: =IF(ISNUMBER(VLOOKUP($A6,Rasbonus!$A$61:$AM$295,MATCH(Ras,Rasbonus!$A$1:$AM$1,0),FALSE)),VLOOKUP($A6,Rasbonus!$A$61:$AM$295,MATCH(Ras,Rasbonus!$A$1:$AM$1,0),FALSE),"0") -> 0 | AK6: -17 | AL6: 0 | AM6: 0 | AN6: 0 | AO6: 0 | AP6: 0 | AQ6: 0 | AR6: 0 | AS6: 0 | AT6: 0 | AU6: 0 | AV6: 0 | AW6: 0 | AX6: 0 | AY6: 0 | AZ6: 0 | BA6: 0 | BB6: 0 | BC6: 0 | BD6: 0 | BE6: 0 | BF6: 0
A7: Biochemistry | B7: =VLOOKUP(A7,AllaSkills!$A$2:$BV$319,'Ny NPC'!$A$2+3,FALSE) -> 5 | C7: 5 | D7: 5 | E7: Academic | AC7: 0 | AD7: -25 | AE7: =(IN+RE)/2 -> 5 | AF7: =HLOOKUP(Yrke,Levelbonus!$B$1:$CR$20,2,FALSE) -> 3 | AG7: 3 | AH7: =IF(ISNUMBER(VLOOKUP($A7,Rasbonus!$A$61:$AM$295,MATCH(Ras,Rasbonus!$A$1:$AM$1,0),FALSE)),VLOOKUP($A7,Rasbonus!$A$61:$AM$295,MATCH(Ras,Rasbonus!$A$1:$AM$1,0),FALSE),"0") -> 0 | AK7: -17 | AL7: 0 | AM7: 0 | AN7: 0 | AO7: 0 | AP7: 0 | AQ7: 0 | AR7: 0 | AS7: 0 | AT7: 0 | AU7: 0 | AV7: 0 | AW7: 0 | AX7: 0 | AY7: 0 | AZ7: 0 | BA7: 0 | BB7: 0 | BC7: 0 | BD7: 0 | BE7: 0 | BF7: 0
A8: Boat Pilot | B8: =VLOOKUP(A8,AllaSkills!$A$2:$BV$319,'Ny NPC'!$A$2+3,FALSE) -> 2/6 | C8: 2 | D8: 6 | E8: Academic | AC8: 0 | AD8: -25 | AE8: =(RE+AG)/2 -> 5 | AF8: =HLOOKUP(Yrke,Levelbonus!$B$1:$CR$20,2,FALSE) -> 3 | AG8: 3 | AH8: =IF(ISNUMBER(VLOOKUP($A8,Rasbonus!$A$61:$AM$295,MATCH(Ras,Rasbonus!$A$1:$AM$1,0),FALSE)),VLOOKUP($A8,Rasbonus!$A$61:$AM$295,MATCH(Ras,Rasbonus!$A$1:$AM$1,0),FALSE),"0") -> 0 | AK8: -17 | AL8: 0 | AM8: 0 | AN8: 0 | AO8: 0 | AP8: 0 | AQ8: 0 | AR8: 0 | AS8: 0 | AT8: 0 | AU8: 0 | AV8: 0 | AW8: 0 | AX8: 0 | AY8: 0 | AZ8: 0 | BA8: 0 | BB8: 0 | BC8: 0 | BD8: 0 | BE8: 0 | BF8: 0
A9: Cryptography | B9: =VLOOKUP(A9,AllaSkills!$A$2:$BV$319,'Ny NPC'!$A$2+3,FALSE) -> 2/6 | C9: 2 | D9: 6 | E9: Academic | AC9: 0 | AD9: -25 | AE9: =(IN+RE)/2 -> 5 | AF9: =HLOOKUP(Yrke,Levelbonus!$B$1:$CR$20,2,FALSE) -> 3 | AG9: 3 | AH9: =IF(ISNUMBER(VLOOKUP($A9,Rasbonus!$A$61:$AM$295,MATCH(Ras,Rasbonus!$A$1:$AM$1,0),FALSE)),VLOOKUP($A9,Rasbonus!$A$61:$AM$295,MATCH(Ras,Rasbonus!$A$1:$AM$1,0),FALSE),"0") -> 0 | AK9: -17 | AL9: 0 | AM9: 0 | AN9: 0 | AO9: 0 | AP9: 0 | AQ9: 0 | AR9: 0 | AS9: 0 | AT9: 0 | AU9: 0 | AV9: 0 | AW9: 0 | AX9: 0 | AY9: 0 | AZ9: 0 | BA9: 0 | BB9: 0 | BC9: 0 | BD9: 0 | BE9: 0 | BF9: 0
A10: Demon/Devil Lore | B10: =VLOOKUP(A10,AllaSkills!$A$2:$BV$319,'Ny NPC'!$A$2+3,FALSE) -> 1/3 | C10: 1 | D10: 3 | E10: Academic | AC10: 0 | AD10: -25 | AE10: =(RE) -> 5 | AF10: =HLOOKUP(Yrke,Levelbonus!$B$1:$CR$20,2,FALSE) -> 3 | AG10: 3 | AH10: =IF(ISNUMBER(VLOOKUP($A10,Rasbonus!$A$61:$AM$295,MATCH(Ras,Rasbonus!$A$1:$AM$1,0),FALSE)),VLOOKUP($A10,Rasbonus!$A$61:$AM$295,MATCH(Ras,Rasbonus!$A$1:$AM$1,0),FALSE),"0") -> 0 | AK10: -17 | AL10: 0 | AM10: 0 | AN10: 0 | AO10: 0 | AP10: 0 | AQ10: 0 | AR10: 0 | AS10: 0 | AT10: 0 | AU10: 0 | AV10: 0 | AW10: 0 | AX10: 0 | AY10: 0 | AZ10: 0 | BA10: 0 | BB10: 0 | BC10: 0 | BD10: 0 | BE10: 0 | BF10: 0
A11: Drafting | B11: =VLOOKUP(A11,AllaSkills!$A$2:$BV$319,'Ny NPC'!$A$2+3,FALSE) -> 1/3 | C11: 1 | D11: 3 | E11: Academic | AC11: 0 | AD11: -25 | AE11: =(RE) -> 5 | AF11: =HLOOKUP(Yrke,Levelbonus!$B$1:$CR$20,2,FALSE) -> 3 | AG11: 3 | AH11: =IF(ISNUMBER(VLOOKUP($A11,Rasbonus!$A$61:$AM$295,MATCH(Ras,Rasbonus!$A$1:$AM$1,0),FALSE)),VLOOKUP($A11,Rasbonus!$A$61:$AM$295,MATCH(Ras,Rasbonus!$A$1:$AM$1,0),FALSE),"0") -> 0 | AK11: -17 | AL11: 0 | AM11: 0 | AN11: 0 | AO11: 0 | AP11: 0 | AQ11: 0 | AR11: 0 | AS11: 0 | AT11: 0 | AU11: 0 | AV11: 0 | AW11: 0 | AX11: 0 | AY11: 0 | AZ11: 0 | BA11: 0 | BB11: 0 | BC11: 0 | BD11: 0 | BE11: 0 | BF11: 0
A12: Dragon Lore | B12: =VLOOKUP(A12,AllaSkills!$A$2:$BV$319,'Ny NPC'!$A$2+3,FALSE) -> 1/3 | C12: 1 | D12: 3 | E12: Academic | AC12: 0 | AD12: -25 | AE12: =(RE) -> 5 | AF12: =HLOOKUP(Yrke,Levelbonus!$B$1:$CR$20,2,FALSE) -> 3 | AG12: 3 | AH12: =IF(ISNUMBER(VLOOKUP($A12,Rasbonus!$A$61:$AM$295,MATCH(Ras,Rasbonus!$A$1:$AM$1,0),FALSE)),VLOOKUP($A12,Rasbonus!$A$61:$AM$295,MATCH(Ras,Rasbonus!$A$1:$AM$1,0),FALSE),"0") -> 0 | AK12: -17 | AL12: 0 | AM12: 0 | AN12: 0 | AO12: 0 | AP12: 0 | AQ12: 0 | AR12: 0 | AS12: 0 | AT12: 0 | AU12: 0 | AV12: 0 | AW12: 0 | AX12: 0 | AY12: 0 | AZ12: 0 | BA12: 0 | BB12: 0 | BC12: 0 | BD12: 0 | BE12: 0 | BF12: 0
A13: Engineering | B13: =VLOOKUP(A13,AllaSkills!$A$2:$BV$319,'Ny NPC'!$A$2+3,FALSE) -> 1/2 | C13: 1 | D13: 2 | E13: Academic | AC13: 0 | AD13: -25 | AE13: =(IN+RE)/2 -> 5 | AF13: =HLOOKUP(Yrke,Levelbonus!$B$1:$CR$20,2,FALSE) -> 3 | AG13: 3 | AH13: =IF(ISNUMBER(VLOOKUP($A13,Rasbonus!$A$61:$AM$295,MATCH(Ras,Rasbonus!$A$1:$AM$1,0),FALSE)),VLOOKUP($A13,Rasbonus!$A$61:$AM$295,MATCH(Ras,Rasbonus!$A$1:$AM$1,0),FALSE),"0") -> 0 | AK13: -17 | AL13: 0 | AM13: 0 | AN13: 0 | AO13: 0 | AP13: 0 | AQ13: 0 | AR13: 0 | AS13: 0 | AT13: 0 | AU13: 0 | AV13: 0 | AW13: 0 | AX13: 0 | AY13: 0 | AZ13: 0 | BA13: 0 | BB13: 0 | BC13: 0 | BD13: 0 | BE13: 0 | BF13: 0
A14: Faerie Lore | B14: =VLOOKUP(A14,AllaSkills!$A$2:$BV$319,'Ny NPC'!$A$2+3,FALSE) -> 1/3 | C14: 1 | D14: 3 | E14: Academic | AC14: 0 | AD14: -25 | AE14: =(RE) -> 5 | AF14: =HLOOKUP(Yrke,Levelbonus!$B$1:$CR$20,2,FALSE) -> 3 | AG14: 3 | AH14: =IF(ISNUMBER(VLOOKUP($A14,Rasbonus!$A$61:$AM$295,MATCH(Ras,Rasbonus!$A$1:$AM$1,0),FALSE)),VLOOKUP($A14,Rasbonus!$A$61:$AM$295,MATCH(Ras,Rasbonus!$A$1:$AM$1,0),FALSE),"0") -> 0 | AK14: -17 | AL14: 0 | AM14: 0 | AN14: 0 | AO14: 0 | AP14: 0 | AQ14: 0 | AR14: 0 | AS14: 0 | AT14: 0 | AU14: 0 | AV14: 0 | AW14: 0 | AX14: 0 | AY14: 0 | AZ14: 0 | BA14: 0 | BB14: 0 | BC14: 0 | BD14: 0 | BE14: 0 | BF14: 0
A15: Fauna Lore | B15: =VLOOKUP(A15,AllaSkills!$A$2:$BV$319,'Ny NPC'!$A$2+3,FALSE) -> 1/4 | C15: 1 | D15: 4 | E15: Academic | AC15: 0 | AD15: -25 | AE15: 5 | AF15: =HLOOKUP(Yrke,Levelbonus!$B$1:$CR$20,2,FALSE) -> 3 | AG15: 3 | AH15: =IF(ISNUMBER(VLOOKUP($A15,Rasbonus!$A$61:$AM$295,MATCH(Ras,Rasbonus!$A$1:$AM$1,0),FALSE)),VLOOKUP($A15,Rasbonus!$A$61:$AM$295,MATCH(Ras,Rasbonus!$A$1:$AM$1,0),FALSE),"0") -> 20 | AK15: 3 | AL15: 0 | AM15: 0 | AN15: 0 | AO15: 0 | AP15: 0 | AQ15: 0 | AR15: 0 | AS15: 0 | AT15: 0 | AU15: 0 | AV15: 0 | AW15: 0 | AX15: 0 | AY15: 0 | AZ15: 0 | BA15: 0 | BB15: 0 | BC15: 0 | BD15: 0 | BE15: 0 | BF15: 0
A16: Flora Lore | B16: =VLOOKUP(A16,AllaSkills!$A$2:$BV$319,'Ny NPC'!$A$2+3,FALSE) -> 1/4 | C16: 1 | D16: 4 | E16: Academic | AC16: 0 | AD16: -25 | AE16: 5 | AF16: =HLOOKUP(Yrke,Levelbonus!$B$1:$CR$20,2,FALSE) -> 3 | AG16: 3 | AH16: =IF(ISNUMBER(VLOOKUP($A16,Rasbonus!$A$61:$AM$295,MATCH(Ras,Rasbonus!$A$1:$AM$1,0),FALSE)),VLOOKUP($A16,Rasbonus!$A$61:$AM$295,MATCH(Ras,Rasbonus!$A$1:$AM$1,0),FALSE),"0") -> 0 | AK16: -17 | AL16: 0 | AM16: 0 | AN16: 0 | AO16: 0 | AP16: 0 | AQ16: 0 | AR16: 0 | AS16: 0 | AT16: 0 | AU16: 0 | AV16: 0 | AW16: 0 | AX16: 0 | AY16: 0 | AZ16: 0 | BA16: 0 | BB16: 0 | BC16: 0 | BD16: 0 | BE16: 0 | BF16: 0
A17: Heraldry | B17: =VLOOKUP(A17,AllaSkills!$A$2:$BV$319,'Ny NPC'!$A$2+3,FALSE) -> 3/5 | C17: 3 | D17: 5 | E17: Academic | AC17: 0 | AD17: -25 | AE17: 5 | AF17: =HLOOKUP(Yrke,Levelbonus!$B$1:$CR$20,2,FALSE) -> 3 | AG17: 3 | AH17: =IF(ISNUMBER(VLOOKUP($A17,Rasbonus!$A$61:$AM$295,MATCH(Ras,Rasbonus!$A$1:$AM$1,0),FALSE)),VLOOKUP($A17,Rasbonus!$A$61:$AM$295,MATCH(Ras,Rasbonus!$A$1:$AM$1,0),FALSE),"0") -> 0 | AK17: -17 | AL17: 0 | AM17: 0 | AN17: 0 | AO17: 0 | AP17: 0 | AQ17: 0 | AR17: 0 | AS17: 0 | AT17: 0 | AU17: 0 | AV17: 0 | AW17: 0 | AX17: 0 | AY17: 0 | AZ17: 0 | BA17: 0 | BB17: 0 | BC17: 0 | BD17: 0 | BE17: 0 | BF17: 0
A18: Herb Lore | B18: =VLOOKUP(A18,AllaSkills!$A$2:$BV$319,'Ny NPC'!$A$2+3,FALSE) -> 1/3 | C18: 1 | D18: 3 | E18: Academic | AC18: 0 | AD18: -25 | AE18: 5 | AF18: =HLOOKUP(Yrke,Levelbonus!$B$1:$CR$20,2,FALSE) -> 3 | AG18: 3 | AH18: =IF(ISNUMBER(VLOOKUP($A18,Rasbonus!$A$61:$AM$295,MATCH(Ras,Rasbonus!$A$1:$AM$1,0),FALSE)),VLOOKUP($A18,Rasbonus!$A$61:$AM$295,MATCH(Ras,Rasbonus!$A$1:$AM$1,0),FALSE),"0") -> 0 | AK18: -17 | AL18: 0 | AM18: 0 | AN18: 0 | AO18: 0 | AP18: 0 | AQ18: 0 | AR18: 0 | AS18: 0 | AT18: 0 | AU18: 0 | AV18: 0 | AW18: 0 | AX18: 0 | AY18: 0 | AZ18: 0 | BA18: 0 | BB18: 0 | BC18: 0 | BD18: 0 | BE18: 0 | BF18: 0
A19: Lock Lore | B19: =VLOOKUP(A19,AllaSkills!$A$2:$BV$319,'Ny NPC'!$A$2+3,FALSE) -> 1/3 | C19: 1 | D19: 3 | E19: Academic | AC19: 0 | AD19: -25 | AE19: 5 | AF19: =HLOOKUP(Yrke,Levelbonus!$B$1:$CR$20,2,FALSE) -> 3 | AG19: 3 | AH19: =IF(ISNUMBER(VLOOKUP($A19,Rasbonus!$A$61:$AM$295,MATCH(Ras,Rasbonus!$A$1:$AM$1,0),FALSE)),VLOOKUP($A19,Rasbonus!$A$61:$AM$295,MATCH(Ras,Rasbonus!$A$1:$AM$1,0),FALSE),"0") -> 0 | AK19: -17 | AL19: 0 | AM19: 0 | AN19: 0 | AO19: 0 | AP19: 0 | AQ19: 0 | AR19: 0 | AS19: 0 | AT19: 0 | AU19: 0 | AV19: 0 | AW19: 0 | AX19: 0 | AY19: 0 | AZ19: 0 | BA19: 0 | BB19: 0 | BC19: 0 | BD19: 0 | BE19: 0 | BF19: 0
A20: Mapping | B20: =VLOOKUP(A20,AllaSkills!$A$2:$BV$319,'Ny NPC'!$A$2+3,FALSE) -> 2 | C20: 2 | D20: 2 | E20: Academic | AC20: 0 | AD20: -25 | AE20: 5 | AF20: =HLOOKUP(Yrke,Levelbonus!$B$1:$CR$20,2,FALSE) -> 3 | AG20: 3 | AH20: =IF(ISNUMBER(VLOOKUP($A20,Rasbonus!$A$61:$AM$295,MATCH(Ras,Rasbonus!$A$1:$AM$1,0),FALSE)),VLOOKUP($A20,Rasbonus!$A$61:$AM$295,MATCH(Ras,Rasbonus!$A$1:$AM$1,0),FALSE),"0") -> 0 | AK20: -17 | AL20: 0 | AM20: 0 | AN20: 0 | AO20: 0 | AP20: 0 | AQ20: 0 | AR20: 0 | AS20: 0 | AT20: 0 | AU20: 0 | AV20: 0 | AW20: 0 | AX20: 0 | AY20: 0 | AZ20: 0 | BA20: 0 | BB20: 0 | BC20: 0 | BD20: 0 | BE20: 0 | BF20: 0
A21: Mechanition | B21: =VLOOKUP(A21,AllaSkills!$A$2:$BV$319,'Ny NPC'!$A$2+3,FALSE) -> 1/2 | C21: 1 | D21: 2 | E21: Academic | AC21: 0 | AD21: -25 | AE21: =(AG+RE)/2 -> 5 | AF21: =HLOOKUP(Yrke,Levelbonus!$B$1:$CR$20,2,FALSE) -> 3 | AG21: 3 | AH21: =IF(ISNUMBER(VLOOKUP($A21,Rasbonus!$A$61:$AM$295,MATCH(Ras,Rasbonus!$A$1:$AM$1,0),FALSE)),VLOOKUP($A21,Rasbonus!$A$61:$AM$295,MATCH(Ras,Rasbonus!$A$1:$AM$1,0),FALSE),"0") -> 0 | AK21: -17 | AL21: 0 | AM21: 0 | AN21: 0 | AO21: 0 | AP21: 0 | AQ21: 0 | AR21: 0 | AS21: 0 | AT21: 0 | AU21: 0 | AV21: 0 | AW21: 0 | AX21: 0 | AY21: 0 | AZ21: 0 | BA21: 0 | BB21: 0 | BC21: 0 | BD21: 0 | BE21: 0 | BF21: 0
A22: Metal Lore | B22: =VLOOKUP(A22,AllaSkills!$A$2:$BV$319,'Ny NPC'!$A$2+3,FALSE) -> 1/2 | C22: 1 | D22: 2 | E22: Academic | AC22: 0 | AD22: -25 | AE22: =(RE) -> 5 | AF22: =HLOOKUP(Yrke,Levelbonus!$B$1:$CR$20,2,FALSE) -> 3 | AG22: 3 | AH22: =IF(ISNUMBER(VLOOKUP($A22,Rasbonus!$A$61:$AM$295,MATCH(Ras,Rasbonus!$A$1:$AM$1,0),FALSE)),VLOOKUP($A22,Rasbonus!$A$61:$AM$295,MATCH(Ras,Rasbonus!$A$1:$AM$1,0),FALSE),"0") -> 0 | AK22: -17 | AL22: 0 | AM22: 0 | AN22: 0 | AO22: 0 | AP22: 0 | AQ22: 0 | AR22: 0 | AS22: 0 | AT22: 0 | AU22: 0 | AV22: 0 | AW22: 0 | AX22: 0 | AY22: 0 | AZ22: 0 | BA22: 0 | BB22: 0 | BC22: 0 | BD22: 0 | BE22: 0 | BF22: 0
A23: Military Organization | B23: =VLOOKUP(A23,AllaSkills!$A$2:$BV$319,'Ny NPC'!$A$2+3,FALSE) -> 3/6 | C23: 3 | D23: 6 | E23: Academic | AC23: 0 | AD23: -25 | AE23: =(PR+RE)/2 -> 7.5 | AF23: =HLOOKUP(Yrke,Levelbonus!$B$1:$CR$20,2,FALSE) -> 3 | AG23: 3 | AH23: =IF(ISNUMBER(VLOOKUP($A23,Rasbonus!$A$61:$AM$295,MATCH(Ras,Rasbonus!$A$1:$AM$1,0),FALSE)),VLOOKUP($A23,Rasbonus!$A$61:$AM$295,MATCH(Ras,Rasbonus!$A$1:$AM$1,0),FALSE),"0") -> 0 | AK23: -15 | AL23: 0 | AM23: 0 | AN23: 0 | AO23: 0 | AP23: 0 | AQ23: 0 | AR23: 0 | AS23: 0 | AT23: 0 | AU23: 0 | AV23: 0 | AW23: 0 | AX23: 0 | AY23: 0 | AZ23: 0 | BA23: 0 | BB23: 0 | BC23: 0 | BD23: 0 | BE23: 0 | BF23: 0
A24: Mining | B24: =VLOOKUP(A24,AllaSkills!$A$2:$BV$319,'Ny NPC'!$A$2+3,FALSE) -> 3 | C24: 3 | D24: 3 | E24: Academic | AC24: 0 | AD24: -25 | AE24: =(RE+IN)/2 -> 5 | AF24: =HLOOKUP(Yrke,Levelbonus!$B$1:$CR$20,2,FALSE) -> 3 | AG24: 3 | AH24: =IF(ISNUMBER(VLOOKUP($A24,Rasbonus!$A$61:$AM$295,MATCH(Ras,Rasbonus!$A$1:$AM$1,0),FALSE)),VLOOKUP($A24,Rasbonus!$A$61:$AM$295,MATCH(Ras,Rasbonus!$A$1:$AM$1,0),FALSE),"0") -> 0 | AK24: -17 | AL24: 0 | AM24: 0 | AN24: 0 | AO24: 0 | AP24: 0 | AQ24: 0 | AR24: 0 | AS24: 0 | AT24: 0 | AU24: 0 | AV24: 0 | AW24: 0 | AX24: 0 | AY24: 0 | AZ24: 0 | BA24: 0 | BB24: 0 | BC24: 0 | BD24: 0 | BE24: 0 | BF24: 0
A25: Navigation | B25: =VLOOKUP(A25,AllaSkills!$A$2:$BV$319,'Ny NPC'!$A$2+3,FALSE) -> 2/6 | C25: 2 | D25: 6 | E25: Academic | AC25: 0 | AD25: -25 | AE25: =(RE+IN)/2 -> 5 | AF25: =HLOOKUP(Yrke,Levelbonus!$B$1:$CR$20,2,FALSE) -> 3 | AG25: 3 | AH25: =IF(ISNUMBER(VLOOKUP($A25,Rasbonus!$A$61:$AM$295,MATCH(Ras,Rasbonus!$A$1:$AM$1,0),FALSE)),VLOOKUP($A25,Rasbonus!$A$61:$AM$295,MATCH(Ras,Rasbonus!$A$1:$AM$1,0),FALSE),"0") -> 0 | AK25: -17 | AL25: 0 | AM25: 0 | AN25: 0 | AO25: 0 | AP25: 0 | AQ25: 0 | AR25: 0 | AS25: 0 | AT25: 0 | AU25: 0 | AV25: 0 | AW25: 0 | AX25: 0 | AY25: 0 | AZ25: 0 | BA25: 0 | BB25: 0 | BC25: 0 | BD25: 0 | BE25: 0 | BF25: 0
A26: Phil/Relig. Doctrine | B26: =VLOOKUP(A26,AllaSkills!$A$2:$BV$319,'Ny NPC'!$A$2+3,FALSE) -> 1/2 | C26: 1 | D26: 2 | E26: Academic | AC26: 0 | AD26: -25 | AE26: =(IN+RE)/2 -> 5 | AF26: =HLOOKUP(Yrke,Levelbonus!$B$1:$CR$20,2,FALSE) -> 3 | AG26: 3 | AH26: =IF(ISNUMBER(VLOOKUP($A26,Rasbonus!$A$61:$AM$295,MATCH(Ras,Rasbonus!$A$1:$AM$1,0),FALSE)),VLOOKUP($A26,Rasbonus!$A$61:$AM$295,MATCH(Ras,Rasbonus!$A$1:$AM$1,0),FALSE),"0") -> 0 | AK26: -17 | AL26: 0 | AM26: 0 | AN26: 0 | AO26: 0 | AP26: 0 | AQ26: 0 | AR26: 0 | AS26: 0 | AT26: 0 | AU26: 0 | AV26: 0 | AW26: 0 | AX26: 0 | AY26: 0 | AZ26: 0 | BA26: 0 | BB26: 0 | BC26: 0 | BD26: 0 | BE26: 0 | BF26: 0
A27: Poison Lore | B27: =VLOOKUP(A27,AllaSkills!$A$2:$BV$319,'Ny NPC'!$A$2+3,FALSE) -> 1/3 | C27: 1 | D27: 3 | E27: Academic | AC27: 0 | AD27: -25 | AE27: =(RE) -> 5 | AF27: =HLOOKUP(Yrke,Levelbonus!$B$1:$CR$20,2,FALSE) -> 3 | AG27: 3 | AH27: =IF(ISNUMBER(VLOOKUP($A27,Rasbonus!$A$61:$AM$295,MATCH(Ras,Rasbonus!$A$1:$AM$1,0),FALSE)),VLOOKUP($A27,Rasbonus!$A$61:$AM$295,MATCH(Ras,Rasbonus!$A$1:$AM$1,0),FALSE),"0") -> 0 | AK27: -17 | AL27: 0 | AM27: 0 | AN27: 0 | AO27: 0 | AP27: 0 | AQ27: 0 | AR27: 0 | AS27: 0 | AT27: 0 | AU27: 0 | AV27: 0 | AW27: 0 | AX27: 0 | AY27: 0 | AZ27: 0 | BA27: 0 | BB27: 0 | BC27: 0 | BD27: 0 | BE27: 0 | BF27: 0
A28: Racial History | B28: =VLOOKUP(A28,AllaSkills!$A$2:$BV$319,'Ny NPC'!$A$2+3,FALSE) -> 1/4 | C28: 1 | D28: =IF(RIGHT(B28,1)="*",LEFT(B28,1),IF(LEN(B28)=3,RIGHT(B28,1),IF(LEN(B28)<3,B28,RIGHT(B28,2)))) -> 4 | E28: Academic | AC28: =SUM(F28:AB28) -> 0 | AD28: -25 | AE28: =(RE) -> 5 | AF28: =HLOOKUP(Yrke,Levelbonus!$B$1:$CR$20,2,FALSE) -> 3 | AG28: 3 | AH28: =IF(ISNUMBER(VLOOKUP($A28,Rasbonus!$A$61:$AM$295,MATCH(Ras,Rasbonus!$A$1:$AM$1,0),FALSE)),VLOOKUP($A28,Rasbonus!$A$61:$AM$295,MATCH(Ras,Rasbonus!$A$1:$AM$1,0),FALSE),"0") -> 0 | AK28: -17 | AL28: 0 | AM28: 0 | AN28: 0 | AO28: 0 | AP28: 0 | AQ28: 0 | AR28: 0 | AS28: 0 | AT28: 0 | AU28: 0 | AV28: 0 | AW28: 0 | AX28: 0 | AY28: 0 | AZ28: 0 | BA28: 0 | BB28: 0 | BC28: 0 | BD28: 0 | BE28: 0 | BF28: 0
AL29: 0 | AM29: 0 | AN29: 0 | AO29: 0 | AP29: 0 | AQ29: 0 | AR29: 0 | AS29: 0 | AT29: 0 | AU29: 0 | AV29: 0 | AW29: 0 | AX29: 0 | AY29: 0 | AZ29: 0 | BA29: 0 | BB29: 0 | BC29: 0 | BD29: 0 | BE29: 0 | BF29: 0
A30: Sanity Healing Lore | B30: =VLOOKUP(A30,AllaSkills!$A$2:$BV$319,'Ny NPC'!$A$2+3,FALSE) -> 2 | C30: =IF(LEN(B30)=3,LEFT(B30,1),IF(LEN(B30)<3,B30,99)) -> 2 | D30: 2 | E30: Academic | AC30: 0 | AD30: -25 | AE30: =(EM) -> 5 | AF30: =HLOOKUP(Yrke,Levelbonus!$B$1:$CR$20,2,FALSE) -> 3 | AG30: 3 | AH30: =IF(ISNUMBER(VLOOKUP($A30,Rasbonus!$A$61:$AM$295,MATCH(Ras,Rasbonus!$A$1:$AM$1,0),FALSE)),VLOOKUP($A30,Rasbonus!$A$61:$AM$295,MATCH(Ras,Rasbonus!$A$1:$AM$1,0),FALSE),"0") -> 0 | AK30: -17 | AL30: 0 | AM30: 0 | AN30: 0 | AO30: 0 | AP30: 0 | AQ30: 0 | AR30: 0 | AS30: 0 | AT30: 0 | AU30: 0 | AV30: 0 | AW30: 0 | AX30: 0 | AY30: 0 | AZ30: 0 | BA30: 0 | BB30: 0 | BC30: 0 | BD30: 0 | BE30: 0 | BF30: 0
A31: Siege Engineer | B31: =VLOOKUP(A31,AllaSkills!$A$2:$BV$319,'Ny NPC'!$A$2+3,FALSE) -> 2/4 | C31: =IF(LEN(B31)=3,LEFT(B31,1),IF(LEN(B31)<3,B31,99)) -> 2 | D31: 4 | E31: Academic | AC31: 0 | AD31: -25 | AE31: =(RE+IN)/2 -> 5 | AF31: =HLOOKUP(Yrke,Levelbonus!$B$1:$CR$20,2,FALSE) -> 3 | AG31: 3 | AH31: =IF(ISNUMBER(VLOOKUP($A31,Rasbonus!$A$61:$AM$295,MATCH(Ras,Rasbonus!$A$1:$AM$1,0),FALSE)),VLOOKUP($A31,Rasbonus!$A$61:$AM$295,MATCH(Ras,Rasbonus!$A$1:$AM$1,0),FALSE),"0") -> 0 | AK31: -17 | AL31: 0 | AM31: 0 | AN31: 0 | AO31: 0 | AP31: 0 | AQ31: 0 | AR31: 0 | AS31: 0 | AT31: 0 | AU31: 0 | AV31: 0 | AW31: 0 | AX31: 0 | AY31: 0 | AZ31: 0 | BA31: 0 | BB31: 0 | BC31: 0 | BD31: 0 | BE31: 0 | BF31: 0
A32: Spec. know. Lore | B32: =VLOOKUP(A32,AllaSkills!$A$2:$BV$319,'Ny NPC'!$A$2+3,FALSE) -> 1/3 | C32: =IF(LEN(B32)=3,LEFT(B32,1),IF(LEN(B32)<3,B32,99)) -> 1 | D32: 3 | E32: Academic | AC32: 0 | AD32: -25 | AE32: =(RE) -> 5 | AF32: =HLOOKUP(Yrke,Levelbonus!$B$1:$CR$20,2,FALSE) -> 3 | AG32: 3 | AH32: =IF(ISNUMBER(VLOOKUP($A32,Rasbonus!$A$61:$AM$295,MATCH(Ras,Rasbonus!$A$1:$AM$1,0),FALSE)),VLOOKUP($A32,Rasbonus!$A$61:$AM$295,MATCH(Ras,Rasbonus!$A$1:$AM$1,0),FALSE),"0") -> 0 | AK32: -17 | AL32: 0 | AM32: 0 | AN32: 0 | AO32: 0 | AP32: 0 | AQ32: 0 | AR32: 0 | AS32: 0 | AT32: 0 | AU32: 0 | AV32: 0 | AW32: 0 | AX32: 0 | AY32: 0 | AZ32: 0 | BA32: 0 | BB32: 0 | BC32: 0 | BD32: 0 | BE32: 0 | BF32: 0
A35: Stone Lore | B35: =VLOOKUP(A35,AllaSkills!$A$2:$BV$319,'Ny NPC'!$A$2+3,FALSE) -> 1/2 | C35: =IF(LEN(B35)=3,LEFT(B35,1),IF(LEN(B35)<3,B35,99)) -> 1 | D35: 2 | E35: Academic | AC35: 0 | AD35: -25 | AE35: =(RE) -> 5 | AF35: =HLOOKUP(Yrke,Levelbonus!$B$1:$CR$20,2,FALSE) -> 3 | AG35: 3 | AH35: =IF(ISNUMBER(VLOOKUP($A35,Rasbonus!$A$61:$AM$295,MATCH(Ras,Rasbonus!$A$1:$AM$1,0),FALSE)),VLOOKUP($A35,Rasbonus!$A$61:$AM$295,MATCH(Ras,Rasbonus!$A$1:$AM$1,0),FALSE),"0") -> 0 | AK35: -17 | AL35: 0 | AM35: 0 | AN35: 0 | AO35: 0 | AP35: 0 | AQ35: 0 | AR35: 0 | AS35: 0 | AT35: 0 | AU35: 0 | AV35: 0 | AW35: 0 | AX35: 0 | AY35: 0 | AZ35: 0 | BA35: 0 | BB35: 0 | BC35: 0 | BD35: 0 | BE35: 0 | BF35: 0
A36: Tactics | B36: =VLOOKUP(A36,AllaSkills!$A$2:$BV$319,'Ny NPC'!$A$2+3,FALSE) -> 2/4 | C36: =IF(LEN(B36)=3,LEFT(B36,1),IF(LEN(B36)<3,B36,99)) -> 2 | D36: 4 | E36: Academic | AC36: 0 | AD36: -25 | AE36: =(IN+RE)/2 -> 5 | AF36: =HLOOKUP(Yrke,Levelbonus!$B$1:$CR$20,2,FALSE) -> 3 | AG36: 3 | AH36: =IF(ISNUMBER(VLOOKUP($A36,Rasbonus!$A$61:$AM$295,MATCH(Ras,Rasbonus!$A$1:$AM$1,0),FALSE)),VLOOKUP($A36,Rasbonus!$A$61:$AM$295,MATCH(Ras,Rasbonus!$A$1:$AM$1,0),FALSE),"0") -> 0 | AK36: -17 | AL36: 0 | AM36: 0 | AN36: 0 | AO36: 0 | AP36: 0 | AQ36: 0 | AR36: 0 | AS36: 0 | AT36: 0 | AU36: 0 | AV36: 0 | AW36: 0 | AX36: 0 | AY36: 0 | AZ36: 0 | BA36: 0 | BB36: 0 | BC36: 0 | BD36: 0 | BE36: 0 | BF36: 0
A37: Trading lore | B37: =VLOOKUP(A37,AllaSkills!$A$2:$BV$319,'Ny NPC'!$A$2+3,FALSE) -> 2/6 | C37: =IF(LEN(B37)=3,LEFT(B37,1),IF(LEN(B37)<3,B37,99)) -> 2 | D37: 6 | E37: Academic | AC37: 0 | AD37: -25 | AE37: =(RE) -> 5 | AF37: =HLOOKUP(Yrke,Levelbonus!$B$1:$CR$20,2,FALSE) -> 3 | AG37: 3 | AH37: =IF(ISNUMBER(VLOOKUP($A37,Rasbonus!$A$61:$AM$295,MATCH(Ras,Rasbonus!$A$1:$AM$1,0),FALSE)),VLOOKUP($A37,Rasbonus!$A$61:$AM$295,MATCH(Ras,Rasbonus!$A$1:$AM$1,0),FALSE),"0") -> 0 | AK37: -17 | AL37: 0 | AM37: 0 | AN37: 0 | AO37: 0 | AP37: 0 | AQ37: 0 | AR37: 0 | AS37: 0 | AT37: 0 | AU37: 0 | AV37: 0 | AW37: 0 | AX37: 0 | AY37: 0 | AZ37: 0 | BA37: 0 | BB37: 0 | BC37: 0 | BD37: 0 | BE37: 0 | BF37: 0
A38: Weather Watching | B38: =VLOOKUP(A38,AllaSkills!$A$2:$BV$319,'Ny NPC'!$A$2+3,FALSE) -> 1/4 | C38: =IF(LEN(B38)=3,LEFT(B38,1),IF(LEN(B38)<3,B38,99)) -> 1 | D38: =IF(RIGHT(B38,1)="*",LEFT(B38,1),IF(LEN(B38)=3,RIGHT(B38,1),IF(LEN(B38)<3,B38,RIGHT(B38,2)))) -> 4 | E38: Academic | AC38: =SUM(F38:AB38) -> 0 | AD38: =IF(AC38<1,-25,IF(AC38>30,80+((AC38-30)*0.5),IF(AC38>20,70+(AC38-20),IF(AC38>10,50+((AC38-10)*2),AC38*5)))) -> -25 | AE38: =(IN+EM)/2 -> 5 | AF38: =HLOOKUP(Yrke,Levelbonus!$B$1:$CR$20,2,FALSE) -> 3 | AG38: =AF38*Level -> 3 | AH38: =IF(ISNUMBER(VLOOKUP($A38,Rasbonus!$A$61:$AM$295,MATCH(Ras,Rasbonus!$A$1:$AM$1,0),FALSE)),VLOOKUP($A38,Rasbonus!$A$61:$AM$295,MATCH(Ras,Rasbonus!$A$1:$AM$1,0),FALSE),"0") -> 10 | AK38: -7 | AL38: 0 | AM38: 0 | AN38: 0 | AO38: 0 | AP38: 0 | AQ38: 0 | AR38: 0 | AS38: 0 | AT38: 0 | AU38: 0 | AV38: 0 | AW38: 0 | AX38: 0 | AY38: 0 | AZ38: 0 | BA38: 0 | BB38: 0 | BC38: 0 | BD38: 0 | BE38: 0 | BF38: 0
A40: Animal & Survival | B40: =HLOOKUP(Diverse!$G$2,'2nd'!$B$1:$CR$18,3,FALSE) -> 2 | F40: =SUM(AL41:AL52) -> 0 | G40: =SUM(AM41:AM52) -> 0 | I40: =SUM(AM41:AM52) -> 0 | J40: =SUM(AN41:AN52) -> 0 | K40: 0 | L40: 0 | M40: 0 | N40: 0 | O40: 0 | P40: 0 | Q40: 0 | R40: 0 | S40: 0 | T40: 0 | U40: 0 | V40: 0 | W40: 0 | X40: 0 | Y40: 0 | Z40: 0 | AA40: 0 | AB40: 0 | AC40: Rank | AD40: Skill | AE40: Stat | AG40: Lvl | AH40: Race | AI40: Armor | AJ40: Item | AK40: Total
A41: Animal handling | B41: =VLOOKUP(A41,AllaSkills!$A$3:$BV$319,'Ny NPC'!$A$2+3,FALSE) -> 2/5 | C41: =IF(LEN(B41)=3,LEFT(B41,1),IF(LEN(B41)<3,B41,99)) -> 2 | D41: 5 | E41: Animal | AC41: 0 | AD41: -25 | AE41: =(EM+PR+AP)/3 -> 6.666666667 | AF41: =HLOOKUP(Yrke,Levelbonus!$B$1:$CR$20,3,FALSE) -> 0 | AG41: 0 | AH41: =IF(ISNUMBER(VLOOKUP($A41,Rasbonus!$A$61:$AM$295,MATCH(Ras,Rasbonus!$A$1:$AM$1,0),FALSE)),VLOOKUP($A41,Rasbonus!$A$61:$AM$295,MATCH(Ras,Rasbonus!$A$1:$AM$1,0),FALSE),"0") -> 15 | AK41: -3 | AL41: 0 | AM41: =IF(I41>2,"99",IF(I41<1,0,IF(I41=1,$C41+$C41-$C41,IF(I41=2,$C41+$D41)))) -> 0 | AN41: 0 | AO41: 0 | AP41: 0 | AQ41: 0 | AR41: 0 | AS41: 0 | AT41: 0 | AU41: 0 | AV41: 0 | AW41: 0 | AX41: 0 | AY41: 0 | AZ41: 0 | BA41: 0 | BB41: 0 | BC41: 0 | BD41: 0 | BE41: 0 | BF41: 0
A42: Animal training | B42: =VLOOKUP(A42,AllaSkills!$A$3:$BV$319,'Ny NPC'!$A$2+3,FALSE) -> 4 | C42: 4 | D42: 4 | E42: Animal | AC42: 0 | AD42: -25 | AE42: =(EM+PR+AP)/3 -> 6.666666667 | AF42: =HLOOKUP(Yrke,Levelbonus!$B$1:$CR$20,3,FALSE) -> 0 | AG42: 0 | AH42: =IF(ISNUMBER(VLOOKUP($A42,Rasbonus!$A$61:$AM$295,MATCH(Ras,Rasbonus!$A$1:$AM$1,0),FALSE)),VLOOKUP($A42,Rasbonus!$A$61:$AM$295,MATCH(Ras,Rasbonus!$A$1:$AM$1,0),FALSE),"0") -> 15 | AK42: -3 | AL42: 0 | AM42: =IF(I42>2,"99",IF(I42<1,0,IF(I42=1,$C42+$C42-$C42,IF(I42=2,$C42+$D42)))) -> 0 | AN42: 0 | AO42: 0 | AP42: 0 | AQ42: 0 | AR42: 0 | AS42: 0 | AT42: 0 | AU42: 0 | AV42: 0 | AW42: =IF(S42>2,"99",IF(S42<1,0,IF(S42=1,$C42+$C42-$C42,IF(S42=2,$C42+$D42)))) -> 0 | AX42: 0 | AY42: 0 | AZ42: 0 | BA42: 0 | BB42: 0 | BC42: 0 | BD42: 0 | BE42: 0 | BF42: 0
A43: Beast Master | B43: =VLOOKUP(A43,AllaSkills!$A$3:$BV$319,'Ny NPC'!$A$2+3,FALSE) -> 5 | C43: 5 | D43: 5 | E43: Animal | AC43: 0 | AD43: -25 | AE43: =(EM+PR)/2 -> 7.5 | AF43: =HLOOKUP(Yrke,Levelbonus!$B$1:$CR$20,3,FALSE) -> 0 | AG43: 0 | AH43: =IF(ISNUMBER(VLOOKUP($A43,Rasbonus!$A$61:$AM$295,MATCH(Ras,Rasbonus!$A$1:$AM$1,0),FALSE)),VLOOKUP($A43,Rasbonus!$A$61:$AM$295,MATCH(Ras,Rasbonus!$A$1:$AM$1,0),FALSE),"0") -> 25 | AK43: 8 | AL43: 0 | AM43: 0 | AN43: 0 | AO43: 0 | AP43: 0 | AQ43: 0 | AR43: 0 | AS43: 0 | AT43: 0 | AU43: 0 | AV43: 0 | AW43: 0 | AX43: 0 | AY43: 0 | AZ43: 0 | BA43: 0 | BB43: 0 | BC43: 0 | BD43: 0 | BE43: 0 | BF43: 0
A44: Driving | B44: =VLOOKUP(A44,AllaSkills!$A$3:$BV$319,'Ny NPC'!$A$2+3,FALSE) -> 3 | C44: 3 | D44: 3 | E44: Animal | AC44: 0 | AD44: -25 | AE44: =(AG+QU)/2 -> 2.5 | AF44: =HLOOKUP(Yrke,Levelbonus!$B$1:$CR$20,3,FALSE) -> 0 | AG44: 0 | AH44: =IF(ISNUMBER(VLOOKUP($A44,Rasbonus!$A$61:$AM$295,MATCH(Ras,Rasbonus!$A$1:$AM$1,0),FALSE)),VLOOKUP($A44,Rasbonus!$A$61:$AM$295,MATCH(Ras,Rasbonus!$A$1:$AM$1,0),FALSE),"0") -> 0 | AK44: -23 | AL44: 0 | AM44: 0 | AN44: 0 | AO44: 0 | AP44: 0 | AQ44: 0 | AR44: 0 | AS44: 0 | AT44: 0 | AU44: 0 | AV44: 0 | AW44: 0 | AX44: 0 | AY44: 0 | AZ44: 0 | BA44: 0 | BB44: 0 | BC44: 0 | BD44: 0 | BE44: 0 | BF44: 0
A45: Herding | B45: =VLOOKUP(A45,AllaSkills!$A$3:$BV$319,'Ny NPC'!$A$2+3,FALSE) -> 2/6 | C45: 2 | D45: 6 | E45: Animal | AC45: 0 | AD45: -25 | AE45: =(EM+PR)/2 -> 7.5 | AF45: =HLOOKUP(Yrke,Levelbonus!$B$1:$CR$20,3,FALSE) -> 0 | AG45: 0 | AH45: =IF(ISNUMBER(VLOOKUP($A45,Rasbonus!$A$61:$AM$295,MATCH(Ras,Rasbonus!$A$1:$AM$1,0),FALSE)),VLOOKUP($A45,Rasbonus!$A$61:$AM$295,MATCH(Ras,Rasbonus!$A$1:$AM$1,0),FALSE),"0") -> 10 | AK45: -8 | AL45: 0 | AM45: 0 | AN45: 0 | AO45: 0 | AP45: 0 | AQ45: 0 | AR45: 0 | AS45: 0 | AT45: 0 | AU45: 0 | AV45: 0 | AW45: 0 | AX45: 0 | AY45: 0 | AZ45: 0 | BA45: 0 | BB45: 0 | BC45: 0 | BD45: 0 | BE45: 0 | BF45: 0
A46: Loading | B46: =VLOOKUP(A46,AllaSkills!$A$3:$BV$319,'Ny NPC'!$A$2+3,FALSE) -> 3 | C46: =IF(LEN(B46)=3,LEFT(B46,1),IF(LEN(B46)<3,B46,99)) -> 3 | D46: =IF(RIGHT(B46,1)="*",LEFT(B46,1),IF(LEN(B46)=3,RIGHT(B46,1),IF(LEN(B46)<3,B46,RIGHT(B46,2)))) -> 3 | E46: Animal | AC46: =SUM(F46:AB46) -> 0 | AD46: =IF(AC46<1,-25,IF(AC46>30,80+((AC46-30)*0.5),IF(AC46>20,70+(AC46-20),IF(AC46>10,50+((AC46-10)*2),AC46*5)))) -> -25 | AE46: =(EM+RE)/2 -> 5 | AF46: =HLOOKUP(Yrke,Levelbonus!$B$1:$CR$20,3,FALSE) -> 0 | AG46: =AF46*Level -> 0 | AH46: =IF(ISNUMBER(VLOOKUP($A46,Rasbonus!$A$61:$AM$295,MATCH(Ras,Rasbonus!$A$1:$AM$1,0),FALSE)),VLOOKUP($A46,Rasbonus!$A$61:$AM$295,MATCH(Ras,Rasbonus!$A$1:$AM$1,0),FALSE),"0") -> 0 | AK46: =ROUND(AD46+AE46+AG46+AH46+AI46+AJ46,0) -> -20 | AL46: =IF(F46>2,"99",IF(F46<1,0,IF(F46=1,$C46+$C46-$C46,IF(F46=2,$C46+$D46)))) -> 0 | AM46: 0 | AN46: 0 | AO46: 0 | AP46: 0 | AQ46: 0 | AR46: 0 | AS46: 0 | AT46: 0 | AU46: 0 | AV46: 0 | AW46: 0 | AX46: 0 | AY46: 0 | AZ46: 0 | BA46: 0 | BB46: 0 | BC46: 0 | BD46: 0 | BE46: 0 | BF46: 0
A48: Caving | B48: =VLOOKUP(A48,AllaSkills!$A$3:$BV$319,'Ny NPC'!$A$2+3,FALSE) -> 3 | C48: 3 | D48: 3 | E48: Survivial | AC48: 0 | AD48: -25 | AE48: =(SD+RE)/2 -> 5 | AF48: =HLOOKUP(Yrke,Levelbonus!$B$1:$CR$20,20,FALSE) -> 0 | AG48: 0 | AH48: =IF(ISNUMBER(VLOOKUP($A48,Rasbonus!$A$61:$AM$295,MATCH(Ras,Rasbonus!$A$1:$AM$1,0),FALSE)),VLOOKUP($A48,Rasbonus!$A$61:$AM$295,MATCH(Ras,Rasbonus!$A$1:$AM$1,0),FALSE),"0") -> 0 | AK48: -20 | AL48: 0 | AM48: =IF(I48>2,"99",IF(I48<1,0,IF(I48=1,$C48+$C48-$C48,IF(I48=2,$C48+$D48)))) -> 0 | AN48: =IF(J48>2,"99",IF(J48<1,0,IF(J48=1,$C48+$C48-$C48,IF(J48=2,$C48+$D48)))) -> 0 | AO48: =IF(K48>2,"99",IF(K48<1,0,IF(K48=1,$C48+$C48-$C48,IF(K48=2,$C48+$D48)))) -> 0 | AP48: =IF(L48>2,"99",IF(L48<1,0,IF(L48=1,$C48+$C48-$C48,IF(L48=2,$C48+$D48)))) -> 0 | AQ48: =IF(M48>2,"99",IF(M48<1,0,IF(M48=1,$C48+$C48-$C48,IF(M48=2,$C48+$D48)))) -> 0 | AR48: =IF(N48>2,"99",IF(N48<1,0,IF(N48=1,$C48+$C48-$C48,IF(N48=2,$C48+$D48)))) -> 0 | AS48: =IF(O48>2,"99",IF(O48<1,0,IF(O48=1,$C48+$C48-$C48,IF(O48=2,$C48+$D48)))) -> 0 | AT48: =IF(P48>2,"99",IF(P48<1,0,IF(P48=1,$C48+$C48-$C48,IF(P48=2,$C48+$D48)))) -> 0 | AU48: =IF(Q48>2,"99",IF(Q48<1,0,IF(Q48=1,$C48+$C48-$C48,IF(Q48=2,$C48+$D48)))) -> 0 | AV48: =IF(R48>2,"99",IF(R48<1,0,IF(R48=1,$C48+$C48-$C48,IF(R48=2,$C48+$D48)))) -> 0 | AW48: =IF(S48>2,"99",IF(S48<1,0,IF(S48=1,$C48+$C48-$C48,IF(S48=2,$C48+$D48)))) -> 0 | AX48: =IF(T48>2,"99",IF(T48<1,0,IF(T48=1,$C48+$C48-$C48,IF(T48=2,$C48+$D48)))) -> 0 | AY48: =IF(U48>2,"99",IF(U48<1,0,IF(U48=1,$C48+$C48-$C48,IF(U48=2,$C48+$D48)))) -> 0 | AZ48: =IF(V48>2,"99",IF(V48<1,0,IF(V48=1,$C48+$C48-$C48,IF(V48=2,$C48+$D48)))) -> 0 | BA48: =IF(W48>2,"99",IF(W48<1,0,IF(W48=1,$C48+$C48-$C48,IF(W48=2,$C48+$D48)))) -> 0 | BB48: =IF(X48>2,"99",IF(X48<1,0,IF(X48=1,$C48+$C48-$C48,IF(X48=2,$C48+$D48)))) -> 0 | BC48: =IF(Y48>2,"99",IF(Y48<1,0,IF(Y48=1,$C48+$C48-$C48,IF(Y48=2,$C48+$D48)))) -> 0 | BD48: =IF(Z48>2,"99",IF(Z48<1,0,IF(Z48=1,$C48+$C48-$C48,IF(Z48=2,$C48+$D48)))) -> 0 | BE48: =IF(AA48>2,"99",IF(AA48<1,0,IF(AA48=1,$C48+$C48-$C48,IF(AA48=2,$C48+$D48)))) -> 0 | BF48: =IF(AB48>2,"99",IF(AB48<1,0,IF(AB48=1,$C48+$C48-$C48,IF(AB48=2,$C48+$D48)))) -> 0
A49: Foraging | B49: =VLOOKUP(A49,AllaSkills!$A$3:$BV$319,'Ny NPC'!$A$2+3,FALSE) -> 2/5 | C49: 2 | D49: 5 | E49: Survivial | AC49: 0 | AD49: -25 | AE49: =(IN+RE)/2 -> 5 | AF49: =HLOOKUP(Yrke,Levelbonus!$B$1:$CR$20,20,FALSE) -> 0 | AG49: 0 | AH49: =IF(ISNUMBER(VLOOKUP($A49,Rasbonus!$A$61:$AM$295,MATCH(Ras,Rasbonus!$A$1:$AM$1,0),FALSE)),VLOOKUP($A49,Rasbonus!$A$61:$AM$295,MATCH(Ras,Rasbonus!$A$1:$AM$1,0),FALSE),"0") -> 0 | AK49: -20 | AL49: 0 | AM49: 0 | AN49: 0 | AO49: 0 | AP49: 0 | AQ49: 0 | AR49: 0 | AS49: 0 | AT49: 0 | AU49: 0 | AV49: 0 | AW49: 0 | AX49: 0 | AY49: 0 | AZ49: 0 | BA49: 0 | BB49: 0 | BC49: 0 | BD49: 0 | BE49: 0 | BF49: 0
A50: Hostile Environment | B50: =VLOOKUP(A50,AllaSkills!$A$3:$BV$319,'Ny NPC'!$A$2+3,FALSE) -> 3 | C50: 3 | D50: 3 | E50: Survivial | AC50: 0 | AD50: -25 | AE50: =(AG+SD)/2 -> 5 | AF50: =HLOOKUP(Yrke,Levelbonus!$B$1:$CR$20,20,FALSE) -> 0 | AG50: 0 | AH50: =IF(ISNUMBER(VLOOKUP($A50,Rasbonus!$A$61:$AM$295,MATCH(Ras,Rasbonus!$A$1:$AM$1,0),FALSE)),VLOOKUP($A50,Rasbonus!$A$61:$AM$295,MATCH(Ras,Rasbonus!$A$1:$AM$1,0),FALSE),"0") -> 0 | AK50: -20 | AL50: 0 | AM50: 0 | AN50: 0 | AO50: 0 | AP50: 0 | AQ50: 0 | AR50: 0 | AS50: 0 | AT50: 0 | AU50: 0 | AV50: 0 | AW50: 0 | AX50: 0 | AY50: 0 | AZ50: 0 | BA50: 0 | BB50: 0 | BC50: 0 | BD50: 0 | BE50: 0 | BF50: 0
A51: Region Lore | B51: =VLOOKUP(A51,AllaSkills!$A$3:$BV$319,'Ny NPC'!$A$2+3,FALSE) -> 2/5 | C51: 2 | D51: 5 | E51: Survivial | AC51: 0 | AD51: -25 | AE51: =(RE) -> 5 | AF51: =HLOOKUP(Yrke,Levelbonus!$B$1:$CR$20,20,FALSE) -> 0 | AG51: 0 | AH51: =IF(ISNUMBER(VLOOKUP($A51,Rasbonus!$A$61:$AM$295,MATCH(Ras,Rasbonus!$A$1:$AM$1,0),FALSE)),VLOOKUP($A51,Rasbonus!$A$61:$AM$295,MATCH(Ras,Rasbonus!$A$1:$AM$1,0),FALSE),"0") -> 0 | AK51: -20 | AL51: 0 | AM51: 0 | AN51: 0 | AO51: 0 | AP51: 0 | AQ51: 0 | AR51: 0 | AS51: 0 | AT51: 0 | AU51: 0 | AV51: 0 | AW51: 0 | AX51: 0 | AY51: 0 | AZ51: 0 | BA51: 0 | BB51: 0 | BC51: 0 | BD51: 0 | BE51: 0 | BF51: 0
A52: Streetwise | B52: =VLOOKUP(A52,AllaSkills!$A$3:$BV$319,'Ny NPC'!$A$2+3,FALSE) -> 2/7 | C52: 2 | D52: 7 | E52: Survivial | AC52: 0 | AD52: -25 | AE52: =(PR+IN)/2 -> 7.5 | AF52: =HLOOKUP(Yrke,Levelbonus!$B$1:$CR$20,20,FALSE) -> 0 | AG52: 0 | AH52: =IF(ISNUMBER(VLOOKUP($A52,Rasbonus!$A$61:$AM$295,MATCH(Ras,Rasbonus!$A$1:$AM$1,0),FALSE)),VLOOKUP($A52,Rasbonus!$A$61:$AM$295,MATCH(Ras,Rasbonus!$A$1:$AM$1,0),FALSE),"0") -> 0 | AK52: -18 | AL52: 0 | AM52: 0 | AN52: 0 | AO52: 0 | AP52: 0 | AQ52: 0 | AR52: 0 | AS52: 0 | AT52: 0 | AU52: 0 | AV52: 0 | AW52: 0 | AX52: 0 | AY52: 0 | AZ52: 0 | BA52: 0 | BB52: 0 | BC52: 0 | BD52: 0 | BE52: 0 | BF52: 0
A54: Athletic & Gymnastic | B54: =HLOOKUP(Diverse!$G$2,'2nd'!$B$1:$CR$18,4,FALSE) -> 0 | F54: =SUM(AL55:AL76) -> 0 | G54: =SUM(AM55:AM76) -> 0 | I54: =SUM(AM55:AM76) -> 0 | J54: =SUM(AN55:AN76) -> 0 | K54: 0 | L54: 0 | M54: 0 | N54: 0 | O54: 0 | P54: 0 | Q54: 0 | R54: 0 | S54: 0 | T54: 0 | U54: 0 | V54: 0 | W54: 0 | X54: 0 | Y54: 0 | Z54: 0 | AA54: 0 | AB54: 0 | AC54: Rank | AD54: Skill | AE54: Stat | AG54: Lvl | AH54: Race | AI54: Armor | AJ54: Item | AK54: Total
A55: Athletic Games | B55: =VLOOKUP(A55,AllaSkills!$A$3:$BV$319,'Ny NPC'!$A$2+3,FALSE) -> 7 | C55: =IF(LEN(B55)=3,LEFT(B55,1),IF(LEN(B55)<3,B55,99)) -> 7 | D55: 7 | E55: Athletic | AC55: 0 | AD55: -25 | AE55: =(ST+AG+QU)/3 -> 8.333333333 | AF55: =HLOOKUP(Yrke,Levelbonus!$B$1:$CR$20,4,FALSE) -> 0 | AG55: 0 | AH55: =IF(ISNUMBER(VLOOKUP($A55,Rasbonus!$A$61:$AM$295,MATCH(Ras,Rasbonus!$A$1:$AM$1,0),FALSE)),VLOOKUP($A55,Rasbonus!$A$61:$AM$295,MATCH(Ras,Rasbonus!$A$1:$AM$1,0),FALSE),"0") -> 0 | AI55: ='Ny NPC'!$N$3 -> 0 | AK55: -17 | AL55: 0 | AM55: =IF(I55>2,"99",IF(I55<1,0,IF(I55=1,$C55+$C55-$C55,IF(I55=2,$C55+$D55)))) -> 0 | AN55: =IF(J55>2,"99",IF(J55<1,0,IF(J55=1,$C55+$C55-$C55,IF(J55=2,$C55+$D55)))) -> 0 | AO55: 0 | AP55: 0 | AQ55: 0 | AR55: 0 | AS55: 0 | AT55: 0 | AU55: 0 | AV55: 0 | AW55: 0 | AX55: 0 | AY55: 0 | AZ55: 0 | BA55: 0 | BB55: 0 | BC55: 0 | BD55: 0 | BE55: 0 | BF55: 0
A56: Dancing | B56: =VLOOKUP(A56,AllaSkills!$A$3:$BV$319,'Ny NPC'!$A$2+3,FALSE) -> 2/6 | C56: 2 | D56: 6 | E56: Athletic | AC56: 0 | AD56: -25 | AE56: =(AG+IN)/2 -> 5 | AF56: =HLOOKUP(Yrke,Levelbonus!$B$1:$CR$20,4,FALSE) -> 0 | AG56: 0 | AH56: =IF(ISNUMBER(VLOOKUP($A56,Rasbonus!$A$61:$AM$295,MATCH(Ras,Rasbonus!$A$1:$AM$1,0),FALSE)),VLOOKUP($A56,Rasbonus!$A$61:$AM$295,MATCH(Ras,Rasbonus!$A$1:$AM$1,0),FALSE),"0") -> 0 | AI56: ='Ny NPC'!$N$3 -> 0 | AK56: -20 | AL56: 0 | AM56: =IF(I56>2,"99",IF(I56<1,0,IF(I56=1,$C56+$C56-$C56,IF(I56=2,$C56+$D56)))) -> 0 | AN56: =IF(J56>2,"99",IF(J56<1,0,IF(J56=1,$C56+$C56-$C56,IF(J56=2,$C56+$D56)))) -> 0 | AO56: =IF(K56>2,"99",IF(K56<1,0,IF(K56=1,$C56+$C56-$C56,IF(K56=2,$C56+$D56)))) -> 0 | AP56: =IF(L56>2,"99",IF(L56<1,0,IF(L56=1,$C56+$C56-$C56,IF(L56=2,$C56+$D56)))) -> 0 | AQ56: =IF(M56>2,"99",IF(M56<1,0,IF(M56=1,$C56+$C56-$C56,IF(M56=2,$C56+$D56)))) -> 0 | AR56: =IF(N56>2,"99",IF(N56<1,0,IF(N56=1,$C56+$C56-$C56,IF(N56=2,$C56+$D56)))) -> 0 | AS56: =IF(O56>2,"99",IF(O56<1,0,IF(O56=1,$C56+$C56-$C56,IF(O56=2,$C56+$D56)))) -> 0 | AT56: =IF(P56>2,"99",IF(P56<1,0,IF(P56=1,$C56+$C56-$C56,IF(P56=2,$C56+$D56)))) -> 0 | AU56: =IF(Q56>2,"99",IF(Q56<1,0,IF(Q56=1,$C56+$C56-$C56,IF(Q56=2,$C56+$D56)))) -> 0 | AV56: =IF(R56>2,"99",IF(R56<1,0,IF(R56=1,$C56+$C56-$C56,IF(R56=2,$C56+$D56)))) -> 0 | AW56: =IF(S56>2,"99",IF(S56<1,0,IF(S56=1,$C56+$C56-$C56,IF(S56=2,$C56+$D56)))) -> 0 | AX56: =IF(T56>2,"99",IF(T56<1,0,IF(T56=1,$C56+$C56-$C56,IF(T56=2,$C56+$D56)))) -> 0 | AY56: =IF(U56>2,"99",IF(U56<1,0,IF(U56=1,$C56+$C56-$C56,IF(U56=2,$C56+$D56)))) -> 0 | AZ56: =IF(V56>2,"99",IF(V56<1,0,IF(V56=1,$C56+$C56-$C56,IF(V56=2,$C56+$D56)))) -> 0 | BA56: =IF(W56>2,"99",IF(W56<1,0,IF(W56=1,$C56+$C56-$C56,IF(W56=2,$C56+$D56)))) -> 0 | BB56: =IF(X56>2,"99",IF(X56<1,0,IF(X56=1,$C56+$C56-$C56,IF(X56=2,$C56+$D56)))) -> 0 | BC56: =IF(Y56>2,"99",IF(Y56<1,0,IF(Y56=1,$C56+$C56-$C56,IF(Y56=2,$C56+$D56)))) -> 0 | BD56: =IF(Z56>2,"99",IF(Z56<1,0,IF(Z56=1,$C56+$C56-$C56,IF(Z56=2,$C56+$D56)))) -> 0 | BE56: =IF(AA56>2,"99",IF(AA56<1,0,IF(AA56=1,$C56+$C56-$C56,IF(AA56=2,$C56+$D56)))) -> 0 | BF56: =IF(AB56>2,"99",IF(AB56<1,0,IF(AB56=1,$C56+$C56-$C56,IF(AB56=2,$C56+$D56)))) -> 0
A57: Distance Running | B57: =VLOOKUP(A57,AllaSkills!$A$3:$BV$319,'Ny NPC'!$A$2+3,FALSE) -> 3 | C57: 3 | D57: 3 | E57: Athletic | AC57: 0 | AD57: -25 | AE57: =CO -> 20 | AF57: =HLOOKUP(Yrke,Levelbonus!$B$1:$CR$20,4,FALSE) -> 0 | AG57: 0 | AH57: =IF(ISNUMBER(VLOOKUP($A57,Rasbonus!$A$61:$AM$295,MATCH(Ras,Rasbonus!$A$1:$AM$1,0),FALSE)),VLOOKUP($A57,Rasbonus!$A$61:$AM$295,MATCH(Ras,Rasbonus!$A$1:$AM$1,0),FALSE),"0") -> 15 | AI57: ='Ny NPC'!$N$3 -> 0 | AK57: 10 | AL57: 0 | AM57: 0 | AN57: 0 | AO57: 0 | AP57: 0 | AQ57: 0 | AR57: 0 | AS57: 0 | AT57: 0 | AU57: 0 | AV57: 0 | AW57: 0 | AX57: 0 | AY57: 0 | AZ57: 0 | BA57: 0 | BB57: 0 | BC57: 0 | BD57: 0 | BE57: 0 | BF57: 0
A58: Diving | B58: =VLOOKUP(A58,AllaSkills!$A$3:$BV$319,'Ny NPC'!$A$2+3,FALSE) -> 3 | C58: 3 | D58: 3 | E58: Athletic | AC58: 0 | AD58: -25 | AE58: =(SD+AG)/2 -> 5 | AF58: =HLOOKUP(Yrke,Levelbonus!$B$1:$CR$20,4,FALSE) -> 0 | AG58: 0 | AH58: =IF(ISNUMBER(VLOOKUP($A58,Rasbonus!$A$61:$AM$295,MATCH(Ras,Rasbonus!$A$1:$AM$1,0),FALSE)),VLOOKUP($A58,Rasbonus!$A$61:$AM$295,MATCH(Ras,Rasbonus!$A$1:$AM$1,0),FALSE),"0") -> 0 | AI58: ='Ny NPC'!$N$3 -> 0 | AK58: -20 | AL58: 0 | AM58: 0 | AN58: 0 | AO58: 0 | AP58: 0 | AQ58: 0 | AR58: 0 | AS58: 0 | AT58: 0 | AU58: 0 | AV58: 0 | AW58: 0 | AX58: 0 | AY58: 0 | AZ58: 0 | BA58: 0 | BB58: 0 | BC58: 0 | BD58: 0 | BE58: 0 | BF58: 0
A59: Flying/Gliding | B59: =VLOOKUP(A59,AllaSkills!$A$3:$BV$319,'Ny NPC'!$A$2+3,FALSE) -> 3 | C59: 3 | D59: 3 | E59: Athletic | AC59: 0 | AD59: -25 | AE59: =AG -> 5 | AF59: =HLOOKUP(Yrke,Levelbonus!$B$1:$CR$20,4,FALSE) -> 0 | AG59: 0 | AH59: =IF(ISNUMBER(VLOOKUP($A59,Rasbonus!$A$61:$AM$295,MATCH(Ras,Rasbonus!$A$1:$AM$1,0),FALSE)),VLOOKUP($A59,Rasbonus!$A$61:$AM$295,MATCH(Ras,Rasbonus!$A$1:$AM$1,0),FALSE),"0") -> 0 | AI59: ='Ny NPC'!$N$3 -> 0 | AK59: -20 | AL59: 0 | AM59: 0 | AN59: 0 | AO59: 0 | AP59: 0 | AQ59: 0 | AR59: 0 | AS59: 0 | AT59: 0 | AU59: 0 | AV59: 0 | AW59: 0 | AX59: 0 | AY59: 0 | AZ59: 0 | BA59: 0 | BB59: 0 | BC59: 0 | BD59: 0 | BE59: 0 | BF59: 0
A60: Holding Breath | B60: =VLOOKUP(A60,AllaSkills!$A$3:$BV$319,'Ny NPC'!$A$2+3,FALSE) -> 6 | C60: 6 | D60: 6 | E60: Athletic | AC60: 0 | AD60: -25 | AE60: =(CO+SD)/2 -> 12.5 | AF60: =HLOOKUP(Yrke,Levelbonus!$B$1:$CR$20,4,FALSE) -> 0 | AG60: 0 | AH60: =IF(ISNUMBER(VLOOKUP($A60,Rasbonus!$A$61:$AM$295,MATCH(Ras,Rasbonus!$A$1:$AM$1,0),FALSE)),VLOOKUP($A60,Rasbonus!$A$61:$AM$295,MATCH(Ras,Rasbonus!$A$1:$AM$1,0),FALSE),"0") -> 0 | AK60: -13 | AL60: 0 | AM60: 0 | AN60: 0 | AO60: 0 | AP60: 0 | AQ60: 0 | AR60: 0 | AS60: 0 | AT60: 0 | AU60: 0 | AV60: 0 | AW60: 0 | AX60: 0 | AY60: 0 | AZ60: 0 | BA60: 0 | BB60: 0 | BC60: 0 | BD60: 0 | BE60: 0 | BF60: 0
A61: Portaging | B61: =VLOOKUP(A61,AllaSkills!$A$3:$BV$319,'Ny NPC'!$A$2+3,FALSE) -> 2/4 | C61: 2 | D61: 4 | E61: Athletic | AC61: 0 | AD61: -25 | AF61: =HLOOKUP(Yrke,Levelbonus!$B$1:$CR$20,4,FALSE) -> 0 | AG61: 0 | AH61: =IF(ISNUMBER(VLOOKUP($A61,Rasbonus!$A$61:$AM$295,MATCH(Ras,Rasbonus!$A$1:$AM$1,0),FALSE)),VLOOKUP($A61,Rasbonus!$A$61:$AM$295,MATCH(Ras,Rasbonus!$A$1:$AM$1,0),FALSE),"0") -> 10 | AI61: ='Ny NPC'!$N$3 -> 0 | AK61: -15 | AL61: 0 | AM61: 0 | AN61: 0 | AO61: 0 | AP61: 0 | AQ61: 0 | AR61: 0 | AS61: 0 | AT61: 0 | AU61: 0 | AV61: 0 | AW61: 0 | AX61: 0 | AY61: 0 | AZ61: 0 | BA61: 0 | BB61: 0 | BC61: 0 | BD61: 0 | BE61: 0 | BF61: 0
A62: Rappelling | B62: =VLOOKUP(A62,AllaSkills!$A$3:$BV$319,'Ny NPC'!$A$2+3,FALSE) -> 7 | C62: 7 | D62: 7 | E62: Athletic | AC62: 0 | AD62: -25 | AE62: =AG -> 5 | AF62: =HLOOKUP(Yrke,Levelbonus!$B$1:$CR$20,4,FALSE) -> 0 | AG62: 0 | AH62: =IF(ISNUMBER(VLOOKUP($A62,Rasbonus!$A$61:$AM$295,MATCH(Ras,Rasbonus!$A$1:$AM$1,0),FALSE)),VLOOKUP($A62,Rasbonus!$A$61:$AM$295,MATCH(Ras,Rasbonus!$A$1:$AM$1,0),FALSE),"0") -> 0 | AI62: ='Ny NPC'!$N$3 -> 0 | AK62: -20 | AL62: 0 | AM62: 0 | AN62: 0 | AO62: 0 | AP62: 0 | AQ62: 0 | AR62: 0 | AS62: 0 | AT62: 0 | AU62: 0 | AV62: 0 | AW62: 0 | AX62: 0 | AY62: 0 | AZ62: 0 | BA62: 0 | BB62: 0 | BC62: 0 | BD62: 0 | BE62: 0 | BF62: 0
A63: Rowing | B63: =VLOOKUP(A63,AllaSkills!$A$3:$BV$319,'Ny NPC'!$A$2+3,FALSE) -> 3 | C63: 3 | D63: 3 | E63: Athletic | AC63: 0 | AD63: -25 | AE63: =(ST+SD)/2 -> 12.5 | AF63: =HLOOKUP(Yrke,Levelbonus!$B$1:$CR$20,4,FALSE) -> 0 | AG63: 0 | AH63: =IF(ISNUMBER(VLOOKUP($A63,Rasbonus!$A$61:$AM$295,MATCH(Ras,Rasbonus!$A$1:$AM$1,0),FALSE)),VLOOKUP($A63,Rasbonus!$A$61:$AM$295,MATCH(Ras,Rasbonus!$A$1:$AM$1,0),FALSE),"0") -> 0 | AI63: ='Ny NPC'!$N$3 -> 0 | AK63: -13 | AL63: 0 | AM63: 0 | AN63: 0 | AO63: 0 | AP63: 0 | AQ63: 0 | AR63: 0 | AS63: 0 | AT63: 0 | AU63: 0 | AV63: 0 | AW63: 0 | AX63: 0 | AY63: 0 | AZ63: 0 | BA63: 0 | BB63: 0 | BC63: 0 | BD63: 0 | BE63: 0 | BF63: 0
A64: Sailing | B64: =VLOOKUP(A64,AllaSkills!$A$3:$BV$319,'Ny NPC'!$A$2+3,FALSE) -> 3 | C64: 3 | D64: 3 | E64: Athletic | AC64: 0 | AD64: -25 | AE64: =(EM+IN)/2 -> 5 | AF64: =HLOOKUP(Yrke,Levelbonus!$B$1:$CR$20,4,FALSE) -> 0 | AG64: 0 | AH64: =IF(ISNUMBER(VLOOKUP($A64,Rasbonus!$A$61:$AM$295,MATCH(Ras,Rasbonus!$A$1:$AM$1,0),FALSE)),VLOOKUP($A64,Rasbonus!$A$61:$AM$295,MATCH(Ras,Rasbonus!$A$1:$AM$1,0),FALSE),"0") -> 0 | AI64: ='Ny NPC'!$N$3 -> 0 | AK64: -20 | AL64: 0 | AM64: 0 | AN64: 0 | AO64: 0 | AP64: 0 | AQ64: 0 | AR64: 0 | AS64: 0 | AT64: 0 | AU64: 0 | AV64: 0 | AW64: 0 | AX64: 0 | AY64: 0 | AZ64: 0 | BA64: 0 | BB64: 0 | BC64: 0 | BD64: 0 | BE64: 0 | BF64: 0
A65: Skating | B65: =VLOOKUP(A65,AllaSkills!$A$3:$BV$319,'Ny NPC'!$A$2+3,FALSE) -> 3 | C65: 3 | D65: 3 | E65: Athletic | AC65: 0 | AD65: -25 | AE65: =(AG+SD)/2 -> 5 | AF65: =HLOOKUP(Yrke,Levelbonus!$B$1:$CR$20,4,FALSE) -> 0 | AG65: 0 | AH65: =IF(ISNUMBER(VLOOKUP($A65,Rasbonus!$A$61:$AM$295,MATCH(Ras,Rasbonus!$A$1:$AM$1,0),FALSE)),VLOOKUP($A65,Rasbonus!$A$61:$AM$295,MATCH(Ras,Rasbonus!$A$1:$AM$1,0),FALSE),"0") -> 0 | AI65: ='Ny NPC'!$N$3 -> 0 | AK65: -20 | AL65: 0 | AM65: 0 | AN65: 0 | AO65: 0 | AP65: 0 | AQ65: 0 | AR65: 0 | AS65: 0 | AT65: 0 | AU65: 0 | AV65: 0 | AW65: 0 | AX65: 0 | AY65: 0 | AZ65: 0 | BA65: 0 | BB65: 0 | BC65: 0 | BD65: 0 | BE65: 0 | BF65: 0
A66: Skiing | B66: =VLOOKUP(A66,AllaSkills!$A$3:$BV$319,'Ny NPC'!$A$2+3,FALSE) -> 3 | C66: 3 | D66: 3 | E66: Athletic | AC66: 0 | AD66: -25 | AE66: =(AG+SD)/2 -> 5 | AF66: =HLOOKUP(Yrke,Levelbonus!$B$1:$CR$20,4,FALSE) -> 0 | AG66: 0 | AH66: =IF(ISNUMBER(VLOOKUP($A66,Rasbonus!$A$61:$AM$295,MATCH(Ras,Rasbonus!$A$1:$AM$1,0),FALSE)),VLOOKUP($A66,Rasbonus!$A$61:$AM$295,MATCH(Ras,Rasbonus!$A$1:$AM$1,0),FALSE),"0") -> 0 | AI66: ='Ny NPC'!$N$3 -> 0 | AK66: -20 | AL66: 0 | AM66: 0 | AN66: 0 | AO66: 0 | AP66: 0 | AQ66: 0 | AR66: 0 | AS66: 0 | AT66: 0 | AU66: 0 | AV66: 0 | AW66: 0 | AX66: 0 | AY66: 0 | AZ66: 0 | BA66: 0 | BB66: 0 | BC66: 0 | BD66: 0 | BE66: 0 | BF66: 0
A67: Sprinting | B67: =VLOOKUP(A67,AllaSkills!$A$3:$BV$319,'Ny NPC'!$A$2+3,FALSE) -> 3 | C67: =IF(LEN(B67)=3,LEFT(B67,1),IF(LEN(B67)<3,B67,99)) -> 3 | D67: =IF(RIGHT(B67,1)="*",LEFT(B67,1),IF(LEN(B67)=3,RIGHT(B67,1),IF(LEN(B67)<3,B67,RIGHT(B67,2)))) -> 3 | E67: Athletic | AC67: =SUM(F67:AB67) -> 0 | AD67: =IF(AC67<1,-25,IF(AC67>30,80+((AC67-30)*0.5),IF(AC67>20,70+(AC67-20),IF(AC67>10,50+((AC67-10)*2),AC67*5)))) -> -25 | AE67: =QU -> 0 | AF67: =HLOOKUP(Yrke,Levelbonus!$B$1:$CR$20,4,FALSE) -> 0 | AG67: =AF67*Level -> 0 | AH67: =IF(ISNUMBER(VLOOKUP($A67,Rasbonus!$A$61:$AM$295,MATCH(Ras,Rasbonus!$A$1:$AM$1,0),FALSE)),VLOOKUP($A67,Rasbonus!$A$61:$AM$295,MATCH(Ras,Rasbonus!$A$1:$AM$1,0),FALSE),"0") -> 0 | AI67: ='Ny NPC'!$N$3 -> 0 | AK67: =ROUND(AD67+AE67+AG67+AH67+AI67+AJ67,0) -> -25 | AL67: =IF(F67>2,"99",IF(F67<1,0,IF(F67=1,$C67+$C67-$C67,IF(F67=2,$C67+$D67)))) -> 0 | AM67: =IF(I67>2,"99",IF(I67<1,0,IF(I67=1,$C67+$C67-$C67,IF(I67=2,$C67+$D67)))) -> 0 | AN67: =IF(J67>2,"99",IF(J67<1,0,IF(J67=1,$C67+$C67-$C67,IF(J67=2,$C67+$D67)))) -> 0 | AO67: =IF(K67>2,"99",IF(K67<1,0,IF(K67=1,$C67+$C67-$C67,IF(K67=2,$C67+$D67)))) -> 0 | AP67: =IF(L67>2,"99",IF(L67<1,0,IF(L67=1,$C67+$C67-$C67,IF(L67=2,$C67+$D67)))) -> 0 | AQ67: =IF(M67>2,"99",IF(M67<1,0,IF(M67=1,$C67+$C67-$C67,IF(M67=2,$C67+$D67)))) -> 0 | AR67: =IF(N67>2,"99",IF(N67<1,0,IF(N67=1,$C67+$C67-$C67,IF(N67=2,$C67+$D67)))) -> 0 | AS67: =IF(O67>2,"99",IF(O67<1,0,IF(O67=1,$C67+$C67-$C67,IF(O67=2,$C67+$D67)))) -> 0 | AT67: =IF(P67>2,"99",IF(P67<1,0,IF(P67=1,$C67+$C67-$C67,IF(P67=2,$C67+$D67)))) -> 0 | AU67: =IF(Q67>2,"99",IF(Q67<1,0,IF(Q67=1,$C67+$C67-$C67,IF(Q67=2,$C67+$D67)))) -> 0 | AV67: =IF(R67>2,"99",IF(R67<1,0,IF(R67=1,$C67+$C67-$C67,IF(R67=2,$C67+$D67)))) -> 0 | AW67: =IF(S67>2,"99",IF(S67<1,0,IF(S67=1,$C67+$C67-$C67,IF(S67=2,$C67+$D67)))) -> 0 | AX67: =IF(T67>2,"99",IF(T67<1,0,IF(T67=1,$C67+$C67-$C67,IF(T67=2,$C67+$D67)))) -> 0 | AY67: =IF(U67>2,"99",IF(U67<1,0,IF(U67=1,$C67+$C67-$C67,IF(U67=2,$C67+$D67)))) -> 0 | AZ67: =IF(V67>2,"99",IF(V67<1,0,IF(V67=1,$C67+$C67-$C67,IF(V67=2,$C67+$D67)))) -> 0 | BA67: =IF(W67>2,"99",IF(W67<1,0,IF(W67=1,$C67+$C67-$C67,IF(W67=2,$C67+$D67)))) -> 0 | BB67: =IF(X67>2,"99",IF(X67<1,0,IF(X67=1,$C67+$C67-$C67,IF(X67=2,$C67+$D67)))) -> 0 | BC67: =IF(Y67>2,"99",IF(Y67<1,0,IF(Y67=1,$C67+$C67-$C67,IF(Y67=2,$C67+$D67)))) -> 0 | BD67: =IF(Z67>2,"99",IF(Z67<1,0,IF(Z67=1,$C67+$C67-$C67,IF(Z67=2,$C67+$D67)))) -> 0 | BE67: =IF(AA67>2,"99",IF(AA67<1,0,IF(AA67=1,$C67+$C67-$C67,IF(AA67=2,$C67+$D67)))) -> 0 | BF67: =IF(AB67>2,"99",IF(AB67<1,0,IF(AB67=1,$C67+$C67-$C67,IF(AB67=2,$C67+$D67)))) -> 0
A69: Acrobatics | B69: =VLOOKUP(A69,AllaSkills!$A$3:$BV$319,'Ny NPC'!$A$2+3,FALSE) -> 3 | C69: 3 | D69: 3 | E69: Gymnastic | AC69: 0 | AD69: -25 | AE69: =(AG+QU)/2 -> 2.5 | AF69: =HLOOKUP(Yrke,Levelbonus!$B$1:$CR$20,10,FALSE) -> 0 | AG69: 0 | AH69: =IF(ISNUMBER(VLOOKUP($A69,Rasbonus!$A$61:$AM$295,MATCH(Ras,Rasbonus!$A$1:$AM$1,0),FALSE)),VLOOKUP($A69,Rasbonus!$A$61:$AM$295,MATCH(Ras,Rasbonus!$A$1:$AM$1,0),FALSE),"0") -> 0 | AI69: ='Ny NPC'!$N$3 -> 0 | AK69: -23 | AL69: 0 | AM69: 0 | AN69: 0 | AO69: 0 | AP69: 0 | AQ69: 0 | AR69: 0 | AS69: 0 | AT69: 0 | AU69: 0 | AV69: 0 | AW69: 0 | AX69: 0 | AY69: 0 | AZ69: 0 | BA69: 0 | BB69: 0 | BC69: 0 | BD69: 0 | BE69: 0 | BF69: 0
A70: Contortions | B70: =VLOOKUP(A70,AllaSkills!$A$3:$BV$319,'Ny NPC'!$A$2+3,FALSE) -> 5 | C70: 5 | D70: 5 | E70: Gymnastic | AC70: 0 | AD70: -25 | AE70: =(AG+SD)/2 -> 5 | AF70: =HLOOKUP(Yrke,Levelbonus!$B$1:$CR$20,10,FALSE) -> 0 | AG70: 0 | AH70: =IF(ISNUMBER(VLOOKUP($A70,Rasbonus!$A$61:$AM$295,MATCH(Ras,Rasbonus!$A$1:$AM$1,0),FALSE)),VLOOKUP($A70,Rasbonus!$A$61:$AM$295,MATCH(Ras,Rasbonus!$A$1:$AM$1,0),FALSE),"0") -> 0 | AI70: ='Ny NPC'!$N$3 -> 0 | AK70: -20 | AL70: 0 | AM70: 0 | AN70: 0 | AO70: 0 | AP70: 0 | AQ70: 0 | AR70: 0 | AS70: 0 | AT70: 0 | AU70: 0 | AV70: 0 | AW70: 0 | AX70: 0 | AY70: 0 | AZ70: 0 | BA70: 0 | BB70: 0 | BC70: 0 | BD70: 0 | BE70: 0 | BF70: 0
A71: Juggling | B71: =VLOOKUP(A71,AllaSkills!$A$3:$BV$319,'Ny NPC'!$A$2+3,FALSE) -> 3 | C71: 3 | D71: 3 | E71: Gymnastic | AC71: 0 | AD71: -25 | AE71: =(AG+IN)/2 -> 5 | AF71: =HLOOKUP(Yrke,Levelbonus!$B$1:$CR$20,10,FALSE) -> 0 | AG71: 0 | AH71: =IF(ISNUMBER(VLOOKUP($A71,Rasbonus!$A$61:$AM$295,MATCH(Ras,Rasbonus!$A$1:$AM$1,0),FALSE)),VLOOKUP($A71,Rasbonus!$A$61:$AM$295,MATCH(Ras,Rasbonus!$A$1:$AM$1,0),FALSE),"0") -> 0 | AI71: ='Ny NPC'!$N$3 -> 0 | AK71: -20 | AL71: 0 | AM71: 0 | AN71: 0 | AO71: 0 | AP71: 0 | AQ71: 0 | AR71: 0 | AS71: 0 | AT71: 0 | AU71: 0 | AV71: 0 | AW71: 0 | AX71: 0 | AY71: 0 | AZ71: 0 | BA71: 0 | BB71: 0 | BC71: 0 | BD71: 0 | BE71: 0 | BF71: 0
A72: Jumping | B72: =VLOOKUP(A72,AllaSkills!$A$3:$BV$319,'Ny NPC'!$A$2+3,FALSE) -> 4 | C72: 4 | D72: 4 | E72: Gymnastic | AC72: 0 | AD72: -25 | AE72: =(ST+AG)/2 -> 12.5 | AF72: =HLOOKUP(Yrke,Levelbonus!$B$1:$CR$20,10,FALSE) -> 0 | AG72: 0 | AH72: =IF(ISNUMBER(VLOOKUP($A72,Rasbonus!$A$61:$AM$295,MATCH(Ras,Rasbonus!$A$1:$AM$1,0),FALSE)),VLOOKUP($A72,Rasbonus!$A$61:$AM$295,MATCH(Ras,Rasbonus!$A$1:$AM$1,0),FALSE),"0") -> 0 | AI72: ='Ny NPC'!$N$3 -> 0 | AK72: -13 | AL72: 0 | AM72: 0 | AN72: 0 | AO72: 0 | AP72: 0 | AQ72: 0 | AR72: 0 | AS72: 0 | AT72: 0 | AU72: 0 | AV72: 0 | AW72: 0 | AX72: 0 | AY72: 0 | AZ72: 0 | BA72: 0 | BB72: 0 | BC72: 0 | BD72: 0 | BE72: 0 | BF72: 0
A73: Pole Vaulting | B73: =VLOOKUP(A73,AllaSkills!$A$3:$BV$319,'Ny NPC'!$A$2+3,FALSE) -> 5 | C73: 5 | D73: 5 | E73: Gymnastic | AC73: 0 | AD73: -25 | AE73: =(ST+AG)/2 -> 12.5 | AF73: =HLOOKUP(Yrke,Levelbonus!$B$1:$CR$20,10,FALSE) -> 0 | AG73: 0 | AH73: =IF(ISNUMBER(VLOOKUP($A73,Rasbonus!$A$61:$AM$295,MATCH(Ras,Rasbonus!$A$1:$AM$1,0),FALSE)),VLOOKUP($A73,Rasbonus!$A$61:$AM$295,MATCH(Ras,Rasbonus!$A$1:$AM$1,0),FALSE),"0") -> 0 | AI73: ='Ny NPC'!$N$3 -> 0 | AK73: -13 | AL73: 0 | AM73: 0 | AN73: 0 | AO73: 0 | AP73: 0 | AQ73: 0 | AR73: 0 | AS73: 0 | AT73: 0 | AU73: 0 | AV73: 0 | AW73: 0 | AX73: 0 | AY73: 0 | AZ73: 0 | BA73: 0 | BB73: 0 | BC73: 0 | BD73: 0 | BE73: 0 | BF73: 0
A74: Stilt Walking | B74: =VLOOKUP(A74,AllaSkills!$A$3:$BV$319,'Ny NPC'!$A$2+3,FALSE) -> 4 | C74: 4 | D74: 4 | E74: Gymnastic | AC74: 0 | AD74: -25 | AE74: =(ST+AG)/2 -> 12.5 | AF74: =HLOOKUP(Yrke,Levelbonus!$B$1:$CR$20,10,FALSE) -> 0 | AG74: 0 | AH74: =IF(ISNUMBER(VLOOKUP($A74,Rasbonus!$A$61:$AM$295,MATCH(Ras,Rasbonus!$A$1:$AM$1,0),FALSE)),VLOOKUP($A74,Rasbonus!$A$61:$AM$295,MATCH(Ras,Rasbonus!$A$1:$AM$1,0),FALSE),"0") -> 0 | AI74: ='Ny NPC'!$N$3 -> 0 | AK74: -13 | AL74: 0 | AM74: 0 | AN74: 0 | AO74: 0 | AP74: 0 | AQ74: 0 | AR74: 0 | AS74: 0 | AT74: 0 | AU74: 0 | AV74: 0 | AW74: 0 | AX74: 0 | AY74: 0 | AZ74: 0 | BA74: 0 | BB74: 0 | BC74: 0 | BD74: 0 | BE74: 0 | BF74: 0
A75: Tightrope Walking | B75: =VLOOKUP(A75,AllaSkills!$A$3:$BV$319,'Ny NPC'!$A$2+3,FALSE) -> 3 | C75: 3 | D75: 3 | E75: Gymnastic | AC75: 0 | AD75: -25 | AE75: =(AG+SD)/2 -> 5 | AF75: =HLOOKUP(Yrke,Levelbonus!$B$1:$CR$20,10,FALSE) -> 0 | AG75: 0 | AH75: =IF(ISNUMBER(VLOOKUP($A75,Rasbonus!$A$61:$AM$295,MATCH(Ras,Rasbonus!$A$1:$AM$1,0),FALSE)),VLOOKUP($A75,Rasbonus!$A$61:$AM$295,MATCH(Ras,Rasbonus!$A$1:$AM$1,0),FALSE),"0") -> 0 | AI75: ='Ny NPC'!$N$3 -> 0 | AK75: -20 | AL75: 0 | AM75: 0 | AN75: 0 | AO75: 0 | AP75: 0 | AQ75: 0 | AR75: 0 | AS75: 0 | AT75: 0 | AU75: 0 | AV75: 0 | AW75: 0 | AX75: 0 | AY75: 0 | AZ75: 0 | BA75: 0 | BB75: 0 | BC75: 0 | BD75: 0 | BE75: 0 | BF75: 0
A76: Tumbling | B76: =VLOOKUP(A76,AllaSkills!$A$3:$BV$319,'Ny NPC'!$A$2+3,FALSE) -> 3 | C76: 3 | D76: 3 | E76: Gymnastic | AC76: 0 | AD76: -25 | AE76: =(AG+QU)/2 -> 2.5 | AF76: =HLOOKUP(Yrke,Levelbonus!$B$1:$CR$20,10,FALSE) -> 0 | AG76: 0 | AH76: =IF(ISNUMBER(VLOOKUP($A76,Rasbonus!$A$61:$AM$295,MATCH(Ras,Rasbonus!$A$1:$AM$1,0),FALSE)),VLOOKUP($A76,Rasbonus!$A$61:$AM$295,MATCH(Ras,Rasbonus!$A$1:$AM$1,0),FALSE),"0") -> 0 | AI76: ='Ny NPC'!$N$3 -> 0 | AK76: -23 | AL76: 0 | AM76: 0 | AN76: 0 | AO76: 0 | AP76: 0 | AQ76: 0 | AR76: 0 | AS76: 0 | AT76: 0 | AU76: 0 | AV76: 0 | AW76: 0 | AX76: 0 | AY76: 0 | AZ76: 0 | BA76: 0 | BB76: 0 | BC76: 0 | BD76: 0 | BE76: 0 | BF76: 0
A78: Combat & Deadly | B78: =HLOOKUP(Diverse!$G$2,'2nd'!$B$1:$CR$18,5,FALSE) -> 0 | F78: =SUM(AL79:AL109) -> 0 | G78: =SUM(AM79:AM109) -> 0 | I78: =SUM(AM79:AM109) -> 0 | J78: =SUM(AN79:AN109) -> 0 | K78: 0 | L78: 0 | M78: 0 | N78: 0 | O78: 0 | P78: 0 | Q78: 0 | R78: 0 | S78: 0 | T78: 0 | U78: 0 | V78: 0 | W78: 0 | X78: 0 | Y78: 0 | Z78: 0 | AA78: 0 | AB78: 0 | AC78: Rank | AD78: Skill | AE78: Stat | AG78: Lvl | AH78: Race | AI78: Armor | AJ78: Item | AK78: Total
A79: Brawling | B79: =VLOOKUP(A79,AllaSkills!$A$3:$BV$319,'Ny NPC'!$A$2+3,FALSE) -> 18 | C79: =IF(LEN(B79)=3,LEFT(B79,1),IF(LEN(B79)<3,B79,99)) -> 18 | D79: 18 | E79: Combat | AC79: 0 | AD79: -25 | AE79: =(ST+AG+EQ)/3 -> 10 | AF79: =HLOOKUP(Yrke,Levelbonus!$B$1:$CR$20,5,FALSE) -> 0 | AG79: 0 | AH79: =IF(ISNUMBER(VLOOKUP($A79,Rasbonus!$A$61:$AM$295,MATCH(Ras,Rasbonus!$A$1:$AM$1,0),FALSE)),VLOOKUP($A79,Rasbonus!$A$61:$AM$295,MATCH(Ras,Rasbonus!$A$1:$AM$1,0),FALSE),"0") -> 20 | AK79: 5 | AL79: =IF(F79>2,"99",IF(F79<1,0,IF(F79=1,$C79+$C79-$C79,IF(F79=2,$C79+$D79)))) -> 0 | AM79: =IF(I79>2,"99",IF(I79<1,0,IF(I79=1,$C79+$C79-$C79,IF(I79=2,$C79+$D79)))) -> 0 | AN79: =IF(J79>2,"99",IF(J79<1,0,IF(J79=1,$C79+$C79-$C79,IF(J79=2,$C79+$D79)))) -> 0 | AO79: =IF(K79>2,"99",IF(K79<1,0,IF(K79=1,$C79+$C79-$C79,IF(K79=2,$C79+$D79)))) -> 0 | AP79: =IF(L79>2,"99",IF(L79<1,0,IF(L79=1,$C79+$C79-$C79,IF(L79=2,$C79+$D79)))) -> 0 | AQ79: =IF(M79>2,"99",IF(M79<1,0,IF(M79=1,$C79+$C79-$C79,IF(M79=2,$C79+$D79)))) -> 0 | AR79: =IF(N79>2,"99",IF(N79<1,0,IF(N79=1,$C79+$C79-$C79,IF(N79=2,$C79+$D79)))) -> 0 | AS79: =IF(O79>2,"99",IF(O79<1,0,IF(O79=1,$C79+$C79-$C79,IF(O79=2,$C79+$D79)))) -> 0 | AT79: =IF(P79>2,"99",IF(P79<1,0,IF(P79=1,$C79+$C79-$C79,IF(P79=2,$C79+$D79)))) -> 0 | AU79: =IF(Q79>2,"99",IF(Q79<1,0,IF(Q79=1,$C79+$C79-$C79,IF(Q79=2,$C79+$D79)))) -> 0 | AV79: =IF(R79>2,"99",IF(R79<1,0,IF(R79=1,$C79+$C79-$C79,IF(R79=2,$C79+$D79)))) -> 0 | AW79: =IF(S79>2,"99",IF(S79<1,0,IF(S79=1,$C79+$C79-$C79,IF(S79=2,$C79+$D79)))) -> 0 | AX79: =IF(T79>2,"99",IF(T79<1,0,IF(T79=1,$C79+$C79-$C79,IF(T79=2,$C79+$D79)))) -> 0 | AY79: =IF(U79>2,"99",IF(U79<1,0,IF(U79=1,$C79+$C79-$C79,IF(U79=2,$C79+$D79)))) -> 0 | AZ79: =IF(V79>2,"99",IF(V79<1,0,IF(V79=1,$C79+$C79-$C79,IF(V79=2,$C79+$D79)))) -> 0 | BA79: =IF(W79>2,"99",IF(W79<1,0,IF(W79=1,$C79+$C79-$C79,IF(W79=2,$C79+$D79)))) -> 0 | BB79: =IF(X79>2,"99",IF(X79<1,0,IF(X79=1,$C79+$C79-$C79,IF(X79=2,$C79+$D79)))) -> 0 | BC79: =IF(Y79>2,"99",IF(Y79<1,0,IF(Y79=1,$C79+$C79-$C79,IF(Y79=2,$C79+$D79)))) -> 0 | BD79: =IF(Z79>2,"99",IF(Z79<1,0,IF(Z79=1,$C79+$C79-$C79,IF(Z79=2,$C79+$D79)))) -> 0 | BE79: =IF(AA79>2,"99",IF(AA79<1,0,IF(AA79=1,$C79+$C79-$C79,IF(AA79=2,$C79+$D79)))) -> 0 | BF79: =IF(AB79>2,"99",IF(AB79<1,0,IF(AB79=1,$C79+$C79-$C79,IF(AB79=2,$C79+$D79)))) -> 0
A80: Defensive Technique | B80: =VLOOKUP(A80,AllaSkills!$A$3:$BV$319,'Ny NPC'!$A$2+3,FALSE) -> 20 | C80: =IF(LEN(B80)=3,LEFT(B80,1),IF(LEN(B80)<3,B80,99)) -> 20 | D80: =IF(RIGHT(B80,1)="*",LEFT(B80,1),IF(LEN(B80)=3,RIGHT(B80,1),IF(LEN(B80)<3,B80,RIGHT(B80,2)))) -> 20 | E80: Combat | AC80: 0 | AD80: =IF(AC80<1,0,IF(AC80>30,60,IF(AC80>20,50+(AC80-20),IF(AC80>10,30+((AC80-10)*2),AC80*3)))) -> 0 | AF80: =HLOOKUP(Yrke,Levelbonus!$B$1:$CR$20,5,FALSE) -> 0 | AK80: 0 | AL80: 0 | AM80: 0 | AN80: 0 | AO80: 0 | AP80: 0 | AQ80: 0 | AR80: 0 | AS80: 0 | AT80: 0 | AU80: 0 | AV80: 0 | AW80: 0 | AX80: 0 | AY80: 0 | AZ80: 0 | BA80: 0 | BB80: 0 | BC80: 0 | BD80: 0 | BE80: 0 | BF80: 0
A81: Defensive Weaving | B81: =VLOOKUP(A81,AllaSkills!$A$3:$BV$319,'Ny NPC'!$A$2+3,FALSE) -> 20 | C81: =IF(LEN(B81)=3,LEFT(B81,1),IF(LEN(B81)<3,B81,99)) -> 20 | D81: =IF(RIGHT(B81,1)="*",LEFT(B81,1),IF(LEN(B81)=3,RIGHT(B81,1),IF(LEN(B81)<3,B81,RIGHT(B81,2)))) -> 20 | E81: Combat | AC81: 0 | AD81: =IF(AC81<1,0,IF(AC81>30,60,IF(AC81>20,50+(AC81-20),IF(AC81>10,30+((AC81-10)*2),AC81*3)))) -> 0 | AF81: =HLOOKUP(Yrke,Levelbonus!$B$1:$CR$20,5,FALSE) -> 0 | AK81: 0 | AL81: 0 | AM81: 0 | AN81: 0 | AO81: 0 | AP81: 0 | AQ81: 0 | AR81: 0 | AS81: 0 | AT81: 0 | AU81: 0 | AV81: 0 | AW81: 0 | AX81: 0 | AY81: 0 | AZ81: 0 | BA81: 0 | BB81: 0 | BC81: 0 | BD81: 0 | BE81: 0 | BF81: 0
A82: Disarm, Armed | B82: =VLOOKUP(A82,AllaSkills!$A$3:$BV$319,'Ny NPC'!$A$2+3,FALSE) -> 6 | C82: =IF(LEN(B82)=3,LEFT(B82,1),IF(LEN(B82)<3,B82,99)) -> 6 | D82: =IF(RIGHT(B82,1)="*",LEFT(B82,1),IF(LEN(B82)=3,RIGHT(B82,1),IF(LEN(B82)<3,B82,RIGHT(B82,2)))) -> 6 | E82: Combat | AC82: =SUM(F82:AB82) -> 0 | AD82: =IF(AC82<1,-25,IF(AC82>30,80+((AC82-30)*0.5),IF(AC82>20,70+(AC82-20),IF(AC82>10,50+((AC82-10)*2),AC82*5)))) -> -25 | AE82: =(AG+EQ)/2 -> 5 | AF82: =HLOOKUP(Yrke,Levelbonus!$B$1:$CR$20,5,FALSE) -> 0 | AG82: =AF82*Level -> 0 | AH82: =IF(ISNUMBER(VLOOKUP($A82,Rasbonus!$A$61:$AM$295,MATCH(Ras,Rasbonus!$A$1:$AM$1,0),FALSE)),VLOOKUP($A82,Rasbonus!$A$61:$AM$295,MATCH(Ras,Rasbonus!$A$1:$AM$1,0),FALSE),"0") -> 0 | AK82: -20 | AL82: 0 | AM82: 0 | AN82: 0 | AO82: 0 | AP82: 0 | AQ82: 0 | AR82: 0 | AS82: 0 | AT82: 0 | AU82: 0 | AV82: 0 | AW82: 0 | AX82: 0 | AY82: 0 | AZ82: 0 | BA82: 0 | BB82: 0 | BC82: 0 | BD82: 0 | BE82: 0 | BF82: 0
A83: Disarm, Unarmed | B83: =VLOOKUP(A83,AllaSkills!$A$3:$BV$319,'Ny NPC'!$A$2+3,FALSE) -> 9 | C83: 9 | D83: 9 | E83: Combat | AC83: 0 | AD83: -25 | AE83: =(AG+EQ)/2 -> 5 | AF83: =HLOOKUP(Yrke,Levelbonus!$B$1:$CR$20,5,FALSE) -> 0 | AG83: 0 | AH83: =IF(ISNUMBER(VLOOKUP($A83,Rasbonus!$A$61:$AM$295,MATCH(Ras,Rasbonus!$A$1:$AM$1,0),FALSE)),VLOOKUP($A83,Rasbonus!$A$61:$AM$295,MATCH(Ras,Rasbonus!$A$1:$AM$1,0),FALSE),"0") -> 0 | AK83: -20 | AL83: 0 | AM83: 0 | AN83: 0 | AO83: 0 | AP83: 0 | AQ83: 0 | AR83: 0 | AS83: 0 | AT83: 0 | AU83: 0 | AV83: 0 | AW83: 0 | AX83: 0 | AY83: 0 | AZ83: 0 | BA83: 0 | BB83: 0 | BC83: 0 | BD83: 0 | BE83: 0 | BF83: 0
A84: Donning/Doffing Chain | B84: =VLOOKUP(A84,AllaSkills!$A$3:$BV$319,'Ny NPC'!$A$2+3,FALSE) -> 10 | C84: 10 | D84: 10 | E84: Combat | AC84: 0 | AD84: -25 | AE84: =(AG+QU)/2 -> 2.5 | AF84: =HLOOKUP(Yrke,Levelbonus!$B$1:$CR$20,5,FALSE) -> 0 | AG84: 0 | AH84: =IF(ISNUMBER(VLOOKUP($A84,Rasbonus!$A$61:$AM$295,MATCH(Ras,Rasbonus!$A$1:$AM$1,0),FALSE)),VLOOKUP($A84,Rasbonus!$A$61:$AM$295,MATCH(Ras,Rasbonus!$A$1:$AM$1,0),FALSE),"0") -> 0 | AK84: -23 | AL84: 0 | AM84: 0 | AN84: 0 | AO84: 0 | AP84: 0 | AQ84: 0 | AR84: 0 | AS84: 0 | AT84: 0 | AU84: 0 | AV84: 0 | AW84: 0 | AX84: 0 | AY84: 0 | AZ84: 0 | BA84: 0 | BB84: 0 | BC84: 0 | BD84: 0 | BE84: 0 | BF84: 0
A85: Donning/Doffing Plate | B85: =VLOOKUP(A85,AllaSkills!$A$3:$BV$319,'Ny NPC'!$A$2+3,FALSE) -> 11 | C85: 11 | D85: 11 | E85: Combat | AC85: 0 | AD85: -25 | AE85: =(AG+QU)/2 -> 2.5 | AF85: =HLOOKUP(Yrke,Levelbonus!$B$1:$CR$20,5,FALSE) -> 0 | AG85: 0 | AH85: =IF(ISNUMBER(VLOOKUP($A85,Rasbonus!$A$61:$AM$295,MATCH(Ras,Rasbonus!$A$1:$AM$1,0),FALSE)),VLOOKUP($A85,Rasbonus!$A$61:$AM$295,MATCH(Ras,Rasbonus!$A$1:$AM$1,0),FALSE),"0") -> 0 | AK85: -23 | AL85: 0 | AM85: 0 | AN85: 0 | AO85: 0 | AP85: 0 | AQ85: 0 | AR85: 0 | AS85: 0 | AT85: 0 | AU85: 0 | AV85: 0 | AW85: 0 | AX85: 0 | AY85: 0 | AZ85: 0 | BA85: 0 | BB85: 0 | BC85: 0 | BD85: 0 | BE85: 0 | BF85: 0
A86: Donning/Doffing RL | B86: =VLOOKUP(A86,AllaSkills!$A$3:$BV$319,'Ny NPC'!$A$2+3,FALSE) -> 9 | C86: 9 | D86: 9 | E86: Combat | AC86: 0 | AD86: -25 | AE86: =(AG+QU)/2 -> 2.5 | AF86: =HLOOKUP(Yrke,Levelbonus!$B$1:$CR$20,5,FALSE) -> 0 | AG86: 0 | AH86: =IF(ISNUMBER(VLOOKUP($A86,Rasbonus!$A$61:$AM$295,MATCH(Ras,Rasbonus!$A$1:$AM$1,0),FALSE)),VLOOKUP($A86,Rasbonus!$A$61:$AM$295,MATCH(Ras,Rasbonus!$A$1:$AM$1,0),FALSE),"0") -> 0 | AK86: =ROUND(AD86+AE86+AG86+AH86+AI86+AJ86,0) -> -23 | AL86: 0 | AM86: 0 | AN86: 0 | AO86: 0 | AP86: 0 | AQ86: 0 | AR86: 0 | AS86: 0 | AT86: 0 | AU86: 0 | AV86: 0 | AW86: 0 | AX86: 0 | AY86: 0 | AZ86: 0 | BA86: 0 | BB86: 0 | BC86: 0 | BD86: 0 | BE86: 0 | BF86: 0
A87: Donning/Doffing SL | B87: =VLOOKUP(A87,AllaSkills!$A$3:$BV$319,'Ny NPC'!$A$2+3,FALSE) -> 9 | C87: 9 | D87: 9 | E87: Combat | AC87: 0 | AD87: -25 | AE87: =(AG+QU)/2 -> 2.5 | AF87: =HLOOKUP(Yrke,Levelbonus!$B$1:$CR$20,5,FALSE) -> 0 | AG87: 0 | AH87: =IF(ISNUMBER(VLOOKUP($A87,Rasbonus!$A$61:$AM$295,MATCH(Ras,Rasbonus!$A$1:$AM$1,0),FALSE)),VLOOKUP($A87,Rasbonus!$A$61:$AM$295,MATCH(Ras,Rasbonus!$A$1:$AM$1,0),FALSE),"0") -> 0 | AK87: -23 | AL87: 0 | AM87: 0 | AN87: 0 | AO87: 0 | AP87: 0 | AQ87: 0 | AR87: 0 | AS87: 0 | AT87: 0 | AU87: 0 | AV87: 0 | AW87: 0 | AX87: 0 | AY87: 0 | AZ87: 0 | BA87: 0 | BB87: 0 | BC87: 0 | BD87: 0 | BE87: 0 | BF87: 0
A88: Expertise | B88: =VLOOKUP(A88,AllaSkills!$A$3:$BV$319,'Ny NPC'!$A$2+3,FALSE) -> 20 | C88: 20 | D88: 20 | E88: Combat | AC88: 0 | AF88: =HLOOKUP(Yrke,Levelbonus!$B$1:$CR$20,5,FALSE) -> 0 | AK88: =ROUND(AC88+AD88+AE88+AG88+AH88+AI88+AJ88,0) -> 0 | AL88: 0 | AM88: 0 | AN88: 0 | AO88: 0 | AP88: 0 | AQ88: 0 | AR88: 0 | AS88: 0 | AT88: 0 | AU88: 0 | AV88: 0 | AW88: 0 | AX88: 0 | AY88: 0 | AZ88: 0 | BA88: 0 | BB88: 0 | BC88: 0 | BD88: 0 | BE88: 0 | BF88: 0
A89: Feinting | B89: =VLOOKUP(A89,AllaSkills!$A$3:$BV$319,'Ny NPC'!$A$2+3,FALSE) -> 6 | C89: 6 | D89: 6 | E89: Combat | AC89: 0 | AD89: -25 | AE89: =(QU+PR)/2 -> 5 | AF89: =HLOOKUP(Yrke,Levelbonus!$B$1:$CR$20,5,FALSE) -> 0 | AG89: 0 | AH89: =IF(ISNUMBER(VLOOKUP($A89,Rasbonus!$A$61:$AM$295,MATCH(Ras,Rasbonus!$A$1:$AM$1,0),FALSE)),VLOOKUP($A89,Rasbonus!$A$61:$AM$295,MATCH(Ras,Rasbonus!$A$1:$AM$1,0),FALSE),"0") -> 0 | AI89: ='Ny NPC'!$N$3 -> 0 | AK89: -20 | AL89: 0 | AM89: 0 | AN89: 0 | AO89: 0 | AP89: 0 | AQ89: 0 | AR89: 0 | AS89: 0 | AT89: 0 | AU89: 0 | AV89: 0 | AW89: 0 | AX89: 0 | AY89: 0 | AZ89: 0 | BA89: 0 | BB89: 0 | BC89: 0 | BD89: 0 | BE89: 0 | BF89: 0
A90: Grappling Hook | B90: =VLOOKUP(A90,AllaSkills!$A$3:$BV$319,'Ny NPC'!$A$2+3,FALSE) -> 3 | C90: 3 | D90: 3 | E90: Combat | AC90: 0 | AD90: -25 | AE90: =AG -> 5 | AF90: =HLOOKUP(Yrke,Levelbonus!$B$1:$CR$20,5,FALSE) -> 0 | AG90: 0 | AH90: =IF(ISNUMBER(VLOOKUP($A90,Rasbonus!$A$61:$AM$295,MATCH(Ras,Rasbonus!$A$1:$AM$1,0),FALSE)),VLOOKUP($A90,Rasbonus!$A$61:$AM$295,MATCH(Ras,Rasbonus!$A$1:$AM$1,0),FALSE),"0") -> 0 | AI90: ='Ny NPC'!$AC$62 -> 0 | AK90: -20 | AL90: 0 | AM90: 0 | AN90: 0 | AO90: 0 | AP90: 0 | AQ90: 0 | AR90: 0 | AS90: 0 | AT90: 0 | AU90: 0 | AV90: 0 | AW90: 0 | AX90: 0 | AY90: 0 | AZ90: 0 | BA90: 0 | BB90: 0 | BC90: 0 | BD90: 0 | BE90: 0 | BF90: 0
A91: Honing | B91: =VLOOKUP(A91,AllaSkills!$A$3:$BV$319,'Ny NPC'!$A$2+3,FALSE) -> 20 | C91: 20 | D91: 20 | E91: Combat | AC91: 0 | AD91: -25 | AE91: =(AG+EM)/2 -> 5 | AF91: =HLOOKUP(Yrke,Levelbonus!$B$1:$CR$20,5,FALSE) -> 0 | AG91: 0 | AH91: =IF(ISNUMBER(VLOOKUP($A91,Rasbonus!$A$61:$AM$295,MATCH(Ras,Rasbonus!$A$1:$AM$1,0),FALSE)),VLOOKUP($A91,Rasbonus!$A$61:$AM$295,MATCH(Ras,Rasbonus!$A$1:$AM$1,0),FALSE),"0") -> 0 | AK91: -20 | AL91: 0 | AM91: 0 | AN91: 0 | AO91: 0 | AP91: 0 | AQ91: 0 | AR91: 0 | AS91: 0 | AT91: 0 | AU91: 0 | AV91: 0 | AW91: 0 | AX91: 0 | AY91: 0 | AZ91: 0 | BA91: 0 | BB91: 0 | BC91: 0 | BD91: 0 | BE91: 0 | BF91: 0
A92: Iai | B92: =VLOOKUP(A92,AllaSkills!$A$3:$BV$319,'Ny NPC'!$A$2+3,FALSE) -> 15 | C92: 15 | D92: 15 | E92: Combat | AC92: 0 | AD92: -25 | AE92: =(QU+EQ)/2 -> 2.5 | AF92: =HLOOKUP(Yrke,Levelbonus!$B$1:$CR$20,5,FALSE) -> 0 | AG92: 0 | AH92: =IF(ISNUMBER(VLOOKUP($A92,Rasbonus!$A$61:$AM$295,MATCH(Ras,Rasbonus!$A$1:$AM$1,0),FALSE)),VLOOKUP($A92,Rasbonus!$A$61:$AM$295,MATCH(Ras,Rasbonus!$A$1:$AM$1,0),FALSE),"0") -> 0 | AI92: ='Ny NPC'!$N$3 -> 0 | AK92: -23 | AL92: 0 | AM92: 0 | AN92: 0 | AO92: 0 | AP92: 0 | AQ92: 0 | AR92: 0 | AS92: 0 | AT92: 0 | AU92: 0 | AV92: 0 | AW92: 0 | AX92: 0 | AY92: 0 | AZ92: 0 | BA92: 0 | BB92: 0 | BC92: 0 | BD92: 0 | BE92: 0 | BF92: 0
A93: Instinctive Maneuver | B93: =VLOOKUP(A93,AllaSkills!$A$3:$BV$319,'Ny NPC'!$A$2+3,FALSE) -> 6 | C93: 6 | D93: 6 | E93: Combat | AC93: 0 | AD93: -25 | AE93: =(QU+EQ)/2 -> 2.5 | AF93: =HLOOKUP(Yrke,Levelbonus!$B$1:$CR$20,5,FALSE) -> 0 | AG93: 0 | AH93: =IF(ISNUMBER(VLOOKUP($A93,Rasbonus!$A$61:$AM$295,MATCH(Ras,Rasbonus!$A$1:$AM$1,0),FALSE)),VLOOKUP($A93,Rasbonus!$A$61:$AM$295,MATCH(Ras,Rasbonus!$A$1:$AM$1,0),FALSE),"0") -> 0 | AK93: -23 | AL93: 0 | AM93: 0 | AN93: 0 | AO93: 0 | AP93: 0 | AQ93: 0 | AR93: 0 | AS93: 0 | AT93: 0 | AU93: 0 | AV93: 0 | AW93: 0 | AX93: 0 | AY93: 0 | AZ93: 0 | BA93: 0 | BB93: 0 | BC93: 0 | BD93: 0 | BE93: 0 | BF93: 0
A94: Lancing | B94: =VLOOKUP(A94,AllaSkills!$A$3:$BV$319,'Ny NPC'!$A$2+3,FALSE) -> 18 | C94: 18 | D94: 18 | E94: Combat | AC94: 0 | AD94: -25 | AE94: =(ST+AG)/2 -> 12.5 | AF94: =HLOOKUP(Yrke,Levelbonus!$B$1:$CR$20,5,FALSE) -> 0 | AG94: 0 | AH94: =IF(ISNUMBER(VLOOKUP($A94,Rasbonus!$A$61:$AM$295,MATCH(Ras,Rasbonus!$A$1:$AM$1,0),FALSE)),VLOOKUP($A94,Rasbonus!$A$61:$AM$295,MATCH(Ras,Rasbonus!$A$1:$AM$1,0),FALSE),"0") -> 0 | AK94: -13 | AL94: 0 | AM94: 0 | AN94: 0 | AO94: 0 | AP94: 0 | AQ94: 0 | AR94: 0 | AS94: 0 | AT94: 0 | AU94: 0 | AV94: 0 | AW94: 0 | AX94: 0 | AY94: 0 | AZ94: 0 | BA94: 0 | BB94: 0 | BC94: 0 | BD94: 0 | BE94: 0 | BF94: 0
A95: Melee Scuffle | B95: =VLOOKUP(A95,AllaSkills!$A$3:$BV$319,'Ny NPC'!$A$2+3,FALSE) -> 8 | C95: 8 | D95: 8 | E95: Combat | AC95: 0 | AD95: -25 | AE95: =(ST+AG)/2 -> 12.5 | AF95: =HLOOKUP(Yrke,Levelbonus!$B$1:$CR$20,5,FALSE) -> 0 | AG95: 0 | AH95: =IF(ISNUMBER(VLOOKUP($A95,Rasbonus!$A$61:$AM$295,MATCH(Ras,Rasbonus!$A$1:$AM$1,0),FALSE)),VLOOKUP($A95,Rasbonus!$A$61:$AM$295,MATCH(Ras,Rasbonus!$A$1:$AM$1,0),FALSE),"0") -> 20 | AI95: ='Ny NPC'!$AC$63 -> 0 | AK95: 8 | AL95: 0 | AM95: 0 | AN95: 0 | AO95: 0 | AP95: 0 | AQ95: 0 | AR95: 0 | AS95: 0 | AT95: 0 | AU95: 0 | AV95: 0 | AW95: 0 | AX95: 0 | AY95: 0 | AZ95: 0 | BA95: 0 | BB95: 0 | BC95: 0 | BD95: 0 | BE95: 0 | BF95: 0
A96: Missile Artillery | B96: =VLOOKUP(A96,AllaSkills!$A$3:$BV$319,'Ny NPC'!$A$2+3,FALSE) -> 3/6 | C96: 3 | D96: 6 | E96: Combat | AC96: 0 | AD96: -25 | AE96: =(IN+AG)/2 -> 5 | AF96: =HLOOKUP(Yrke,Levelbonus!$B$1:$CR$20,5,FALSE) -> 0 | AG96: 0 | AH96: =IF(ISNUMBER(VLOOKUP($A96,Rasbonus!$A$61:$AM$295,MATCH(Ras,Rasbonus!$A$1:$AM$1,0),FALSE)),VLOOKUP($A96,Rasbonus!$A$61:$AM$295,MATCH(Ras,Rasbonus!$A$1:$AM$1,0),FALSE),"0") -> 0 | AK96: -20 | AL96: 0 | AM96: 0 | AN96: 0 | AO96: 0 | AP96: 0 | AQ96: 0 | AR96: 0 | AS96: 0 | AT96: 0 | AU96: 0 | AV96: 0 | AW96: 0 | AX96: 0 | AY96: 0 | AZ96: 0 | BA96: 0 | BB96: 0 | BC96: 0 | BD96: 0 | BE96: 0 | BF96: 0
A97: SeaBorn Combat | B97: =VLOOKUP(A97,AllaSkills!$A$3:$BV$319,'Ny NPC'!$A$2+3,FALSE) -> 3 | C97: 3 | D97: 3 | E97: Combat | AC97: 0 | AD97: -25 | AE97: =(AG+AG+EQ)/3 -> 5 | AF97: =HLOOKUP(Yrke,Levelbonus!$B$1:$CR$20,5,FALSE) -> 0 | AG97: 0 | AH97: =IF(ISNUMBER(VLOOKUP($A97,Rasbonus!$A$61:$AM$295,MATCH(Ras,Rasbonus!$A$1:$AM$1,0),FALSE)),VLOOKUP($A97,Rasbonus!$A$61:$AM$295,MATCH(Ras,Rasbonus!$A$1:$AM$1,0),FALSE),"0") -> 0 | AI97: ='Ny NPC'!$N$3 -> 0 | AK97: -20 | AL97: 0 | AM97: 0 | AN97: 0 | AO97: 0 | AP97: 0 | AQ97: 0 | AR97: 0 | AS97: 0 | AT97: 0 | AU97: 0 | AV97: 0 | AW97: 0 | AX97: 0 | AY97: 0 | AZ97: 0 | BA97: 0 | BB97: 0 | BC97: 0 | BD97: 0 | BE97: 0 | BF97: 0
A98: Shield Bash | B98: =VLOOKUP(A98,AllaSkills!$A$3:$BV$319,'Ny NPC'!$A$2+3,FALSE) -> 20 | C98: 20 | D98: 20 | E98: Combat | AC98: 0 | AD98: -25 | AE98: =(ST+ST+AG)/3 -> 15 | AF98: =HLOOKUP(Yrke,Levelbonus!$B$1:$CR$20,5,FALSE) -> 0 | AG98: 0 | AH98: =IF(ISNUMBER(VLOOKUP($A98,Rasbonus!$A$61:$AM$295,MATCH(Ras,Rasbonus!$A$1:$AM$1,0),FALSE)),VLOOKUP($A98,Rasbonus!$A$61:$AM$295,MATCH(Ras,Rasbonus!$A$1:$AM$1,0),FALSE),"0") -> 0 | AK98: -10 | AL98: 0 | AM98: 0 | AN98: 0 | AO98: 0 | AP98: 0 | AQ98: 0 | AR98: 0 | AS98: 0 | AT98: 0 | AU98: 0 | AV98: 0 | AW98: 0 | AX98: 0 | AY98: 0 | AZ98: 0 | BA98: 0 | BB98: 0 | BC98: 0 | BD98: 0 | BE98: 0 | BF98: 0
A99: Shield Expertise | B99: =VLOOKUP(A99,AllaSkills!$A$3:$BV$319,'Ny NPC'!$A$2+3,FALSE) -> 20 | C99: 20 | D99: =IF(RIGHT(B99,1)="*",LEFT(B99,1),IF(LEN(B99)=3,RIGHT(B99,1),IF(LEN(B99)<3,B99,RIGHT(B99,2)))) -> 20 | E99: Combat | AC99: 0 | AF99: =HLOOKUP(Yrke,Levelbonus!$B$1:$CR$20,5,FALSE) -> 0 | AK99: =ROUND(AC99+AD99+AE99+AG99+AH99+AI99+AJ99,0) -> 0 | AL99: 0 | AM99: 0 | AN99: 0 | AO99: 0 | AP99: 0 | AQ99: 0 | AR99: 0 | AS99: 0 | AT99: 0 | AU99: 0 | AV99: 0 | AW99: 0 | AX99: 0 | AY99: 0 | AZ99: 0 | BA99: 0 | BB99: 0 | BC99: 0 | BD99: 0 | BE99: 0 | BF99: 0
A100: Stunned Maneuver | B100: =VLOOKUP(A100,AllaSkills!$A$3:$BV$319,'Ny NPC'!$A$2+3,FALSE) -> 4 | C100: 4 | D100: 4 | E100: Combat | AC100: 0 | AD100: -25 | AE100: =SD -> 5 | AF100: =HLOOKUP(Yrke,Levelbonus!$B$1:$CR$20,5,FALSE) -> 0 | AG100: 0 | AH100: =IF(ISNUMBER(VLOOKUP($A100,Rasbonus!$A$61:$AM$295,MATCH(Ras,Rasbonus!$A$1:$AM$1,0),FALSE)),VLOOKUP($A100,Rasbonus!$A$61:$AM$295,MATCH(Ras,Rasbonus!$A$1:$AM$1,0),FALSE),"0") -> 0 | AK100: -20 | AL100: 0 | AM100: 0 | AN100: 0 | AO100: 0 | AP100: 0 | AQ100: 0 | AR100: 0 | AS100: 0 | AT100: 0 | AU100: 0 | AV100: 0 | AW100: 0 | AX100: 0 | AY100: 0 | AZ100: 0 | BA100: 0 | BB100: 0 | BC100: 0 | BD100: 0 | BE100: 0 | BF100: 0
A101: Subduing | B101: =VLOOKUP(A101,AllaSkills!$A$3:$BV$319,'Ny NPC'!$A$2+3,FALSE) -> 6 | C101: 6 | D101: 6 | E101: Combat | AC101: 0 | AD101: -25 | AE101: =(AG+QU)/2 -> 2.5 | AF101: =HLOOKUP(Yrke,Levelbonus!$B$1:$CR$20,5,FALSE) -> 0 | AG101: 0 | AH101: =IF(ISNUMBER(VLOOKUP($A101,Rasbonus!$A$61:$AM$295,MATCH(Ras,Rasbonus!$A$1:$AM$1,0),FALSE)),VLOOKUP($A101,Rasbonus!$A$61:$AM$295,MATCH(Ras,Rasbonus!$A$1:$AM$1,0),FALSE),"0") -> 0 | AK101: -23 | AL101: 0 | AM101: 0 | AN101: 0 | AO101: 0 | AP101: 0 | AQ101: 0 | AR101: 0 | AS101: 0 | AT101: 0 | AU101: 0 | AV101: 0 | AW101: 0 | AX101: 0 | AY101: 0 | AZ101: 0 | BA101: 0 | BB101: 0 | BC101: 0 | BD101: 0 | BE101: 0 | BF101: 0
A102: Tackling | B102: =VLOOKUP(A102,AllaSkills!$A$3:$BV$319,'Ny NPC'!$A$2+3,FALSE) -> 9 | C102: 9 | D102: 9 | E102: Combat | AC102: 0 | AD102: -25 | AE102: =(ST+AG)/2 -> 12.5 | AF102: =HLOOKUP(Yrke,Levelbonus!$B$1:$CR$20,5,FALSE) -> 0 | AG102: 0 | AH102: =IF(ISNUMBER(VLOOKUP($A102,Rasbonus!$A$61:$AM$295,MATCH(Ras,Rasbonus!$A$1:$AM$1,0),FALSE)),VLOOKUP($A102,Rasbonus!$A$61:$AM$295,MATCH(Ras,Rasbonus!$A$1:$AM$1,0),FALSE),"0") -> 20 | AI102: ='Ny NPC'!$AC$63 -> 0 | AK102: 8 | AL102: 0 | AM102: 0 | AN102: 0 | AO102: 0 | AP102: 0 | AQ102: 0 | AR102: 0 | AS102: 0 | AT102: 0 | AU102: 0 | AV102: 0 | AW102: 0 | AX102: 0 | AY102: 0 | AZ102: 0 | BA102: 0 | BB102: 0 | BC102: 0 | BD102: 0 | BE102: 0 | BF102: 0
A103: Unarmed Expertise | B103: =VLOOKUP(A103,AllaSkills!$A$3:$BV$319,'Ny NPC'!$A$2+3,FALSE) -> 9 | C103: 9 | D103: =IF(RIGHT(B103,1)="*",LEFT(B103,1),IF(LEN(B103)=3,RIGHT(B103,1),IF(LEN(B103)<3,B103,RIGHT(B103,2)))) -> 9 | E103: Combat | AC103: =SUM(F103:AB103) -> 0 | AD103: -25 | AE103: =(ST+AG+EQ)/3 -> 10 | AF103: =HLOOKUP(Yrke,Levelbonus!$B$1:$CR$20,5,FALSE) -> 0 | AG103: 0 | AH103: =IF(ISNUMBER(VLOOKUP($A103,Rasbonus!$A$61:$AM$295,MATCH(Ras,Rasbonus!$A$1:$AM$1,0),FALSE)),VLOOKUP($A103,Rasbonus!$A$61:$AM$295,MATCH(Ras,Rasbonus!$A$1:$AM$1,0),FALSE),"0") -> 0 | AI103: ='Ny NPC'!$N$3 -> 0 | AK103: -15 | AL103: 0 | AM103: 0 | AN103: 0 | AO103: 0 | AP103: 0 | AQ103: 0 | AR103: 0 | AS103: 0 | AT103: 0 | AU103: 0 | AV103: 0 | AW103: 0 | AX103: 0 | AY103: 0 | AZ103: 0 | BA103: 0 | BB103: 0 | BC103: 0 | BD103: 0 | BE103: 0 | BF103: 0
A104: Weapon Brawling | B104: =VLOOKUP(A104,AllaSkills!$A$3:$BV$319,'Ny NPC'!$A$2+3,FALSE) -> 9 | C104: 9 | D104: 9 | E104: Combat | AC104: 0 | AD104: -25 | AE104: =(ST+AG+QU)/3 -> 8.333333333 | AF104: =HLOOKUP(Yrke,Levelbonus!$B$1:$CR$20,5,FALSE) -> 0 | AG104: 0 | AH104: =IF(ISNUMBER(VLOOKUP($A104,Rasbonus!$A$61:$AM$295,MATCH(Ras,Rasbonus!$A$1:$AM$1,0),FALSE)),VLOOKUP($A104,Rasbonus!$A$61:$AM$295,MATCH(Ras,Rasbonus!$A$1:$AM$1,0),FALSE),"0") -> 0 | AK104: -17 | AL104: 0 | AM104: 0 | AN104: 0 | AO104: 0 | AP104: 0 | AQ104: 0 | AR104: 0 | AS104: 0 | AT104: 0 | AU104: 0 | AV104: 0 | AW104: 0 | AX104: 0 | AY104: 0 | AZ104: 0 | BA104: 0 | BB104: 0 | BC104: 0 | BD104: 0 | BE104: 0 | BF104: 0
A105: Weapon Kata | B105: =VLOOKUP(A105,AllaSkills!$A$3:$BV$319,'Ny NPC'!$A$2+3,FALSE) -> 9 | C105: 9 | D105: 9 | E105: Combat | AC105: 0 | AD105: -25 | AE105: =(ST+AG+EQ)/3 -> 10 | AF105: =HLOOKUP(Yrke,Levelbonus!$B$1:$CR$20,5,FALSE) -> 0 | AG105: 0 | AH105: =IF(ISNUMBER(VLOOKUP($A105,Rasbonus!$A$61:$AM$295,MATCH(Ras,Rasbonus!$A$1:$AM$1,0),FALSE)),VLOOKUP($A105,Rasbonus!$A$61:$AM$295,MATCH(Ras,Rasbonus!$A$1:$AM$1,0),FALSE),"0") -> 0 | AI105: ='Ny NPC'!$N$3 -> 0 | AK105: -15 | AL105: 0 | AM105: 0 | AN105: 0 | AO105: 0 | AP105: 0 | AQ105: 0 | AR105: 0 | AS105: 0 | AT105: 0 | AU105: 0 | AV105: 0 | AW105: 0 | AX105: 0 | AY105: 0 | AZ105: 0 | BA105: 0 | BB105: 0 | BC105: 0 | BD105: 0 | BE105: 0 | BF105: 0
A106: Yado | B106: =VLOOKUP(A106,AllaSkills!$A$3:$BV$319,'Ny NPC'!$A$2+3,FALSE) -> 6 | C106: =IF(LEN(B106)=3,LEFT(B106,1),IF(LEN(B106)<3,B106,99)) -> 6 | D106: =IF(RIGHT(B106,1)="*",LEFT(B106,1),IF(LEN(B106)=3,RIGHT(B106,1),IF(LEN(B106)<3,B106,RIGHT(B106,2)))) -> 6 | E106: Combat | AC106: =SUM(F106:AB106) -> 0 | AD106: =IF(AC106<1,-25,IF(AC106>30,80+((AC106-30)*0.5),IF(AC106>20,70+(AC106-20),IF(AC106>10,50+((AC106-10)*2),AC106*5)))) -> -25 | AE106: =(QU+AG)/2 -> 2.5 | AF106: =HLOOKUP(Yrke,Levelbonus!$B$1:$CR$20,5,FALSE) -> 0 | AG106: =AF106*Level -> 0 | AH106: =IF(ISNUMBER(VLOOKUP($A106,Rasbonus!$A$61:$AM$295,MATCH(Ras,Rasbonus!$A$1:$AM$1,0),FALSE)),VLOOKUP($A106,Rasbonus!$A$61:$AM$295,MATCH(Ras,Rasbonus!$A$1:$AM$1,0),FALSE),"0") -> 0 | AI106: ='Ny NPC'!$N$3 -> 0 | AK106: =ROUND(AD106+AE106+AG106+AH106+AI106+AJ106,0) -> -23 | AL106: 0 | AM106: 0 | AN106: 0 | AO106: 0 | AP106: 0 | AQ106: 0 | AR106: 0 | AS106: 0 | AT106: 0 | AU106: 0 | AV106: 0 | AW106: 0 | AX106: 0 | AY106: 0 | AZ106: 0 | BA106: 0 | BB106: 0 | BC106: 0 | BD106: 0 | BE106: 0 | BF106: 0
A108: Silent Kill | B108: =VLOOKUP(A108,AllaSkills!$A$3:$BV$319,'Ny NPC'!$A$2+3,FALSE) -> 6 | C108: =IF(LEN(B108)=3,LEFT(B108,1),IF(LEN(B108)<3,B108,99)) -> 6 | D108: =IF(RIGHT(B108,1)="*",LEFT(B108,1),IF(LEN(B108)=3,RIGHT(B108,1),IF(LEN(B108)<3,B108,RIGHT(B108,2)))) -> 6 | E108: Deadly | AC108: =SUM(F108:AB108) -> 0 | AD108: =IF(AC108<1,-25,IF(AC108>30,80+((AC108-30)*0.5),IF(AC108>20,70+(AC108-20),IF(AC108>10,50+((AC108-10)*2),AC108*5)))) -> -25 | AE108: =AG -> 5 | AF108: =HLOOKUP(Yrke,Levelbonus!$B$1:$CR$20,7,FALSE) -> 0 | AG108: =AF108*Level -> 0 | AH108: =IF(ISNUMBER(VLOOKUP($A108,Rasbonus!$A$61:$AM$295,MATCH(Ras,Rasbonus!$A$1:$AM$1,0),FALSE)),VLOOKUP($A108,Rasbonus!$A$61:$AM$295,MATCH(Ras,Rasbonus!$A$1:$AM$1,0),FALSE),"0") -> 0 | AI108: ='Ny NPC'!$N$3 -> 0 | AK108: =ROUND(AD108+AE108+AG108+AH108+AI108+AJ108,0) -> -20 | AL108: =IF(F108>2,"99",IF(F108<1,0,IF(F108=1,$C108+$C108-$C108,IF(F108=2,$C108+$D108)))) -> 0 | AM108: =IF(I108>2,"99",IF(I108<1,0,IF(I108=1,$C108+$C108-$C108,IF(I108=2,$C108+$D108)))) -> 0 | AN108: 0 | AO108: 0 | AP108: 0 | AQ108: 0 | AR108: 0 | AS108: 0 | AT108: 0 | AU108: 0 | AV108: 0 | AW108: =IF(S108>2,"99",IF(S108<1,0,IF(S108=1,$C108+$C108-$C108,IF(S108=2,$C108+$D108)))) -> 0 | AX108: 0 | AY108: 0 | AZ108: 0 | BA108: 0 | BB108: 0 | BC108: 0 | BD108: 0 | BE108: 0 | BF108: 0
A109: Use/Remove Poison | B109: =VLOOKUP(A109,AllaSkills!$A$3:$BV$319,'Ny NPC'!$A$2+3,FALSE) -> 1/4 | C109: =IF(LEN(B109)=3,LEFT(B109,1),IF(LEN(B109)<3,B109,99)) -> 1 | D109: =IF(RIGHT(B109,1)="*",LEFT(B109,1),IF(LEN(B109)=3,RIGHT(B109,1),IF(LEN(B109)<3,B109,RIGHT(B109,2)))) -> 4 | E109: Deadly | AC109: =SUM(F109:AB109) -> 0 | AD109: =IF(AC109<1,-25,IF(AC109>30,80+((AC109-30)*0.5),IF(AC109>20,70+(AC109-20),IF(AC109>10,50+((AC109-10)*2),AC109*5)))) -> -25 | AE109: =(AG+IN)/2 -> 5 | AF109: =HLOOKUP(Yrke,Levelbonus!$B$1:$CR$20,7,FALSE) -> 0 | AG109: =AF109*Level -> 0 | AH109: =IF(ISNUMBER(VLOOKUP($A109,Rasbonus!$A$61:$AM$295,MATCH(Ras,Rasbonus!$A$1:$AM$1,0),FALSE)),VLOOKUP($A109,Rasbonus!$A$61:$AM$295,MATCH(Ras,Rasbonus!$A$1:$AM$1,0),FALSE),"0") -> 0 | AK109: =ROUND(AD109+AE109+AG109+AH109+AI109+AJ109,0) -> -20 | AL109: =IF(F109>2,"99",IF(F109<1,0,IF(F109=1,$C109+$C109-$C109,IF(F109=2,$C109+$D109)))) -> 0 | AM109: 0 | AN109: 0 | AO109: 0 | AP109: 0 | AQ109: 0 | AR109: 0 | AS109: 0 | AT109: 0 | AU109: 0 | AV109: 0 | AW109: 0 | AX109: 0 | AY109: 0 | AZ109: 0 | BA109: 0 | BB109: 0 | BC109: 0 | BD109: 0 | BE109: 0 | BF109: 0
A111: Concentration | B111: =HLOOKUP(Diverse!$G$2,'2nd'!$B$1:$CR$18,6,FALSE) -> 1 | F111: =SUM(AL112:AL129) -> 0 | G111: =SUM(AM112:AM129) -> 0 | I111: =SUM(AM112:AM129) -> 0 | J111: =SUM(AN112:AN129) -> 0 | K111: 0 | L111: 0 | M111: 0 | N111: 0 | O111: 0 | P111: 0 | Q111: 0 | R111: 0 | S111: 0 | T111: 0 | U111: 0 | V111: 0 | W111: 0 | X111: 0 | Y111: 0 | Z111: 0 | AA111: 0 | AB111: 0 | AC111: Rank | AD111: Skill | AE111: Stat | AG111: Lvl | AH111: Race | AI111: Armor | AJ111: Item | AK111: Total
A112: AM Quickdraw | B112: =VLOOKUP(A112,AllaSkills!$A$3:$BV$319,'Ny NPC'!$A$2+3,FALSE) -> 4 | C112: 4 | D112: 4 | E112: Concentration | AC112: 0 | AD112: -25 | AE112: =(AG+EQ)/2 -> 5 | AF112: =HLOOKUP(Yrke,Levelbonus!$B$1:$CR$20,6,FALSE) -> 0 | AG112: 0 | AH112: =IF(ISNUMBER(VLOOKUP($A112,Rasbonus!$A$61:$AM$295,MATCH(Ras,Rasbonus!$A$1:$AM$1,0),FALSE)),VLOOKUP($A112,Rasbonus!$A$61:$AM$295,MATCH(Ras,Rasbonus!$A$1:$AM$1,0),FALSE),"0") -> 0 | AI112: ='Ny NPC'!$N$3 -> 0 | AK112: -20 | AL112: =IF(F112>2,"99",IF(F112<1,0,IF(F112=1,$C112+$C112-$C112,IF(F112=2,$C112+$D112)))) -> 0 | AM112: =IF(I112>2,"99",IF(I112<1,0,IF(I112=1,$C112+$C112-$C112,IF(I112=2,$C112+$D112)))) -> 0 | AN112: =IF(J112>2,"99",IF(J112<1,0,IF(J112=1,$C112+$C112-$C112,IF(J112=2,$C112+$D112)))) -> 0 | AO112: =IF(K112>2,"99",IF(K112<1,0,IF(K112=1,$C112+$C112-$C112,IF(K112=2,$C112+$D112)))) -> 0 | AP112: =IF(L112>2,"99",IF(L112<1,0,IF(L112=1,$C112+$C112-$C112,IF(L112=2,$C112+$D112)))) -> 0 | AQ112: =IF(M112>2,"99",IF(M112<1,0,IF(M112=1,$C112+$C112-$C112,IF(M112=2,$C112+$D112)))) -> 0 | AR112: =IF(N112>2,"99",IF(N112<1,0,IF(N112=1,$C112+$C112-$C112,IF(N112=2,$C112+$D112)))) -> 0 | AS112: =IF(O112>2,"99",IF(O112<1,0,IF(O112=1,$C112+$C112-$C112,IF(O112=2,$C112+$D112)))) -> 0 | AT112: =IF(P112>2,"99",IF(P112<1,0,IF(P112=1,$C112+$C112-$C112,IF(P112=2,$C112+$D112)))) -> 0 | AU112: =IF(Q112>2,"99",IF(Q112<1,0,IF(Q112=1,$C112+$C112-$C112,IF(Q112=2,$C112+$D112)))) -> 0 | AV112: =IF(R112>2,"99",IF(R112<1,0,IF(R112=1,$C112+$C112-$C112,IF(R112=2,$C112+$D112)))) -> 0 | AW112: =IF(S112>2,"99",IF(S112<1,0,IF(S112=1,$C112+$C112-$C112,IF(S112=2,$C112+$D112)))) -> 0 | AX112: =IF(T112>2,"99",IF(T112<1,0,IF(T112=1,$C112+$C112-$C112,IF(T112=2,$C112+$D112)))) -> 0 | AY112: =IF(U112>2,"99",IF(U112<1,0,IF(U112=1,$C112+$C112-$C112,IF(U112=2,$C112+$D112)))) -> 0 | AZ112: =IF(V112>2,"99",IF(V112<1,0,IF(V112=1,$C112+$C112-$C112,IF(V112=2,$C112+$D112)))) -> 0 | BA112: =IF(W112>2,"99",IF(W112<1,0,IF(W112=1,$C112+$C112-$C112,IF(W112=2,$C112+$D112)))) -> 0 | BB112: =IF(X112>2,"99",IF(X112<1,0,IF(X112=1,$C112+$C112-$C112,IF(X112=2,$C112+$D112)))) -> 0 | BC112: =IF(Y112>2,"99",IF(Y112<1,0,IF(Y112=1,$C112+$C112-$C112,IF(Y112=2,$C112+$D112)))) -> 0 | BD112: =IF(Z112>2,"99",IF(Z112<1,0,IF(Z112=1,$C112+$C112-$C112,IF(Z112=2,$C112+$D112)))) -> 0 | BE112: =IF(AA112>2,"99",IF(AA112<1,0,IF(AA112=1,$C112+$C112-$C112,IF(AA112=2,$C112+$D112)))) -> 0 | BF112: =IF(AB112>2,"99",IF(AB112<1,0,IF(AB112=1,$C112+$C112-$C112,IF(AB112=2,$C112+$D112)))) -> 0
A113: Blind Fighting | B113: =VLOOKUP(A113,AllaSkills!$A$3:$BV$319,'Ny NPC'!$A$2+3,FALSE) -> 10 | C113: 10 | D113: 10 | E113: Concentration | AC113: 0 | AD113: -25 | AE113: =(RE+EM)/2 -> 5 | AF113: =HLOOKUP(Yrke,Levelbonus!$B$1:$CR$20,6,FALSE) -> 0 | AG113: 0 | AH113: =IF(ISNUMBER(VLOOKUP($A113,Rasbonus!$A$61:$AM$295,MATCH(Ras,Rasbonus!$A$1:$AM$1,0),FALSE)),VLOOKUP($A113,Rasbonus!$A$61:$AM$295,MATCH(Ras,Rasbonus!$A$1:$AM$1,0),FALSE),"0") -> 0 | AK113: -20 | AL113: 0 | AM113: 0 | AN113: 0 | AO113: 0 | AP113: 0 | AQ113: 0 | AR113: 0 | AS113: 0 | AT113: 0 | AU113: 0 | AV113: 0 | AW113: 0 | AX113: 0 | AY113: 0 | AZ113: 0 | BA113: 0 | BB113: 0 | BC113: 0 | BD113: 0 | BE113: 0 | BF113: 0
A114: Body Damage Stabilization | B114: =VLOOKUP(A114,AllaSkills!$A$3:$BV$319,'Ny NPC'!$A$2+3,FALSE) -> 3/5 | C114: 3 | D114: 5 | E114: Concentration | AC114: 0 | AD114: -25 | AE114: =(SD+EM)/2 -> 5 | AF114: =HLOOKUP(Yrke,Levelbonus!$B$1:$CR$20,6,FALSE) -> 0 | AG114: 0 | AH114: =IF(ISNUMBER(VLOOKUP($A114,Rasbonus!$A$61:$AM$295,MATCH(Ras,Rasbonus!$A$1:$AM$1,0),FALSE)),VLOOKUP($A114,Rasbonus!$A$61:$AM$295,MATCH(Ras,Rasbonus!$A$1:$AM$1,0),FALSE),"0") -> 0 | AK114: -20 | AL114: 0 | AM114: 0 | AN114: 0 | AO114: 0 | AP114: 0 | AQ114: 0 | AR114: 0 | AS114: 0 | AT114: 0 | AU114: 0 | AV114: 0 | AW114: 0 | AX114: 0 | AY114: 0 | AZ114: 0 | BA114: 0 | BB114: 0 | BC114: 0 | BD114: 0 | BE114: 0 | BF114: 0
A115: Control Lycantrophy | B115: =VLOOKUP(A115,AllaSkills!$A$3:$BV$319,'Ny NPC'!$A$2+3,FALSE) -> 3/6 | C115: 3 | D115: 6 | E115: Concentration | AC115: 0 | AD115: -25 | AE115: =SD -> 5 | AF115: =HLOOKUP(Yrke,Levelbonus!$B$1:$CR$20,6,FALSE) -> 0 | AG115: 0 | AH115: =IF(ISNUMBER(VLOOKUP($A115,Rasbonus!$A$61:$AM$295,MATCH(Ras,Rasbonus!$A$1:$AM$1,0),FALSE)),VLOOKUP($A115,Rasbonus!$A$61:$AM$295,MATCH(Ras,Rasbonus!$A$1:$AM$1,0),FALSE),"0") -> 0 | AK115: -20 | AL115: 0 | AM115: 0 | AN115: 0 | AO115: 0 | AP115: 0 | AQ115: 0 | AR115: 0 | AS115: 0 | AT115: 0 | AU115: 0 | AV115: 0 | AW115: 0 | AX115: 0 | AY115: 0 | AZ115: 0 | BA115: 0 | BB115: 0 | BC115: 0 | BD115: 0 | BE115: 0 | BF115: 0
A116: Dowsing | B116: =VLOOKUP(A116,AllaSkills!$A$3:$BV$319,'Ny NPC'!$A$2+3,FALSE) -> 2/5 | C116: 2 | D116: 5 | E116: Concentration | AC116: 0 | AD116: -25 | AE116: =EM -> 5 | AF116: =HLOOKUP(Yrke,Levelbonus!$B$1:$CR$20,6,FALSE) -> 0 | AG116: 0 | AH116: =IF(ISNUMBER(VLOOKUP($A116,Rasbonus!$A$61:$AM$295,MATCH(Ras,Rasbonus!$A$1:$AM$1,0),FALSE)),VLOOKUP($A116,Rasbonus!$A$61:$AM$295,MATCH(Ras,Rasbonus!$A$1:$AM$1,0),FALSE),"0") -> 0 | AK116: -20 | AL116: 0 | AM116: 0 | AN116: 0 | AO116: 0 | AP116: 0 | AQ116: 0 | AR116: 0 | AS116: 0 | AT116: 0 | AU116: 0 | AV116: 0 | AW116: 0 | AX116: 0 | AY116: 0 | AZ116: 0 | BA116: 0 | BB116: 0 | BC116: 0 | BD116: 0 | BE116: 0 | BF116: 0
A117: Frenzy | B117: =VLOOKUP(A117,AllaSkills!$A$3:$BV$319,'Ny NPC'!$A$2+3,FALSE) -> 6 | C117: 6 | D117: 6 | E117: Concentration | AC117: 0 | AD117: -25 | AE117: =(EM+SD)/2 -> 5 | AF117: =HLOOKUP(Yrke,Levelbonus!$B$1:$CR$20,6,FALSE) -> 0 | AG117: 0 | AH117: =IF(ISNUMBER(VLOOKUP($A117,Rasbonus!$A$61:$AM$295,MATCH(Ras,Rasbonus!$A$1:$AM$1,0),FALSE)),VLOOKUP($A117,Rasbonus!$A$61:$AM$295,MATCH(Ras,Rasbonus!$A$1:$AM$1,0),FALSE),"0") -> 15 | AK117: -5 | AL117: 0 | AM117: 0 | AN117: 0 | AO117: 0 | AP117: 0 | AQ117: 0 | AR117: 0 | AS117: 0 | AT117: 0 | AU117: 0 | AV117: 0 | AW117: 0 | AX117: 0 | AY117: 0 | AZ117: 0 | BA117: 0 | BB117: 0 | BC117: 0 | BD117: 0 | BE117: 0 | BF117: 0
A118: Meditation Cleansing | B118: =VLOOKUP(A118,AllaSkills!$A$3:$BV$319,'Ny NPC'!$A$2+3,FALSE) -> 2/4 | C118: 2 | D118: 4 | E118: Concentration | AC118: 0 | AD118: -25 | AE118: =(SD+EM)/2 -> 5 | AF118: =HLOOKUP(Yrke,Levelbonus!$B$1:$CR$20,6,FALSE) -> 0 | AG118: 0 | AH118: =IF(ISNUMBER(VLOOKUP($A118,Rasbonus!$A$61:$AM$295,MATCH(Ras,Rasbonus!$A$1:$AM$1,0),FALSE)),VLOOKUP($A118,Rasbonus!$A$61:$AM$295,MATCH(Ras,Rasbonus!$A$1:$AM$1,0),FALSE),"0") -> 0 | AK118: -20 | AL118: 0 | AM118: 0 | AN118: 0 | AO118: 0 | AP118: 0 | AQ118: 0 | AR118: 0 | AS118: 0 | AT118: 0 | AU118: 0 | AV118: 0 | AW118: 0 | AX118: 0 | AY118: 0 | AZ118: 0 | BA118: 0 | BB118: 0 | BC118: 0 | BD118: 0 | BE118: 0 | BF118: 0
A119: Meditation Death | B119: =VLOOKUP(A119,AllaSkills!$A$3:$BV$319,'Ny NPC'!$A$2+3,FALSE) -> 1/5 | C119: 1 | D119: 5 | E119: Concentration | AC119: 0 | AD119: -25 | AE119: =(SD+PR)/2 -> 7.5 | AF119: =HLOOKUP(Yrke,Levelbonus!$B$1:$CR$20,6,FALSE) -> 0 | AG119: 0 | AH119: =IF(ISNUMBER(VLOOKUP($A119,Rasbonus!$A$61:$AM$295,MATCH(Ras,Rasbonus!$A$1:$AM$1,0),FALSE)),VLOOKUP($A119,Rasbonus!$A$61:$AM$295,MATCH(Ras,Rasbonus!$A$1:$AM$1,0),FALSE),"0") -> 0 | AK119: -18 | AL119: 0 | AM119: 0 | AN119: 0 | AO119: 0 | AP119: 0 | AQ119: 0 | AR119: 0 | AS119: 0 | AT119: 0 | AU119: 0 | AV119: 0 | AW119: 0 | AX119: 0 | AY119: 0 | AZ119: 0 | BA119: 0 | BB119: 0 | BC119: 0 | BD119: 0 | BE119: 0 | BF119: 0
A120: Meditation Healing | B120: =VLOOKUP(A120,AllaSkills!$A$3:$BV$319,'Ny NPC'!$A$2+3,FALSE) -> 2/4 | C120: 2 | D120: 4 | E120: Concentration | AC120: 0 | AD120: -25 | AE120: =(SD+EM)/2 -> 5 | AF120: =HLOOKUP(Yrke,Levelbonus!$B$1:$CR$20,6,FALSE) -> 0 | AG120: 0 | AH120: =IF(ISNUMBER(VLOOKUP($A120,Rasbonus!$A$61:$AM$295,MATCH(Ras,Rasbonus!$A$1:$AM$1,0),FALSE)),VLOOKUP($A120,Rasbonus!$A$61:$AM$295,MATCH(Ras,Rasbonus!$A$1:$AM$1,0),FALSE),"0") -> 0 | AK120: -20 | AL120: 0 | AM120: 0 | AN120: 0 | AO120: 0 | AP120: 0 | AQ120: 0 | AR120: 0 | AS120: 0 | AT120: 0 | AU120: 0 | AV120: 0 | AW120: 0 | AX120: 0 | AY120: 0 | AZ120: 0 | BA120: 0 | BB120: 0 | BC120: 0 | BD120: 0 | BE120: 0 | BF120: 0
A121: Meditation Ki | B121: =VLOOKUP(A121,AllaSkills!$A$3:$BV$319,'Ny NPC'!$A$2+3,FALSE) -> 3/5 | C121: 3 | D121: 5 | E121: Concentration | AC121: 0 | AD121: -25 | AE121: =(SD+PR)/2 -> 7.5 | AF121: =HLOOKUP(Yrke,Levelbonus!$B$1:$CR$20,6,FALSE) -> 0 | AG121: 0 | AH121: =IF(ISNUMBER(VLOOKUP($A121,Rasbonus!$A$61:$AM$295,MATCH(Ras,Rasbonus!$A$1:$AM$1,0),FALSE)),VLOOKUP($A121,Rasbonus!$A$61:$AM$295,MATCH(Ras,Rasbonus!$A$1:$AM$1,0),FALSE),"0") -> 0 | AK121: -18 | AL121: 0 | AM121: 0 | AN121: 0 | AO121: 0 | AP121: 0 | AQ121: 0 | AR121: 0 | AS121: 0 | AT121: 0 | AU121: 0 | AV121: 0 | AW121: 0 | AX121: 0 | AY121: 0 | AZ121: 0 | BA121: 0 | BB121: 0 | BC121: 0 | BD121: 0 | BE121: 0 | BF121: 0
A122: Meditation Sleep | B122: =VLOOKUP(A122,AllaSkills!$A$3:$BV$319,'Ny NPC'!$A$2+3,FALSE) -> 1/4 | C122: 1 | D122: 4 | E122: Concentration | AC122: 0 | AD122: -25 | AE122: =(SD+IN)/2 -> 5 | AF122: =HLOOKUP(Yrke,Levelbonus!$B$1:$CR$20,6,FALSE) -> 0 | AG122: 0 | AH122: =IF(ISNUMBER(VLOOKUP($A122,Rasbonus!$A$61:$AM$295,MATCH(Ras,Rasbonus!$A$1:$AM$1,0),FALSE)),VLOOKUP($A122,Rasbonus!$A$61:$AM$295,MATCH(Ras,Rasbonus!$A$1:$AM$1,0),FALSE),"0") -> 0 | AK122: -20 | AL122: 0 | AM122: 0 | AN122: 0 | AO122: 0 | AP122: 0 | AQ122: 0 | AR122: 0 | AS122: 0 | AT122: 0 | AU122: 0 | AV122: 0 | AW122: 0 | AX122: 0 | AY122: 0 | AZ122: 0 | BA122: 0 | BB122: 0 | BC122: 0 | BD122: 0 | BE122: 0 | BF122: 0
A123: Meditation Trance | B123: =VLOOKUP(A123,AllaSkills!$A$3:$BV$319,'Ny NPC'!$A$2+3,FALSE) -> 1/4 | C123: 1 | D123: 4 | E123: Concentration | AC123: 0 | AD123: -25 | AE123: =(SD+PR)/2 -> 7.5 | AF123: =HLOOKUP(Yrke,Levelbonus!$B$1:$CR$20,6,FALSE) -> 0 | AG123: 0 | AH123: =IF(ISNUMBER(VLOOKUP($A123,Rasbonus!$A$61:$AM$295,MATCH(Ras,Rasbonus!$A$1:$AM$1,0),FALSE)),VLOOKUP($A123,Rasbonus!$A$61:$AM$295,MATCH(Ras,Rasbonus!$A$1:$AM$1,0),FALSE),"0") -> 0 | AK123: -18 | AL123: 0 | AM123: 0 | AN123: 0 | AO123: 0 | AP123: 0 | AQ123: 0 | AR123: 0 | AS123: 0 | AT123: 0 | AU123: 0 | AV123: 0 | AW123: 0 | AX123: 0 | AY123: 0 | AZ123: 0 | BA123: 0 | BB123: 0 | BC123: 0 | BD123: 0 | BE123: 0 | BF123: 0
A124: Mnemonics | B124: =VLOOKUP(A124,AllaSkills!$A$3:$BV$319,'Ny NPC'!$A$2+3,FALSE) -> 1/4 | C124: 1 | D124: 4 | E124: Concentration | AC124: 0 | AD124: -25 | AE124: =(RE+SD)/2 -> 5 | AF124: =HLOOKUP(Yrke,Levelbonus!$B$1:$CR$20,6,FALSE) -> 0 | AG124: 0 | AH124: =IF(ISNUMBER(VLOOKUP($A124,Rasbonus!$A$61:$AM$295,MATCH(Ras,Rasbonus!$A$1:$AM$1,0),FALSE)),VLOOKUP($A124,Rasbonus!$A$61:$AM$295,MATCH(Ras,Rasbonus!$A$1:$AM$1,0),FALSE),"0") -> 0 | AK124: -20 | AL124: 0 | AM124: 0 | AN124: 0 | AO124: 0 | AP124: 0 | AQ124: 0 | AR124: 0 | AS124: 0 | AT124: 0 | AU124: 0 | AV124: 0 | AW124: 0 | AX124: 0 | AY124: 0 | AZ124: 0 | BA124: 0 | BB124: 0 | BC124: 0 | BD124: 0 | BE124: 0 | BF124: 0
A125: Prepared Shot | B125: =VLOOKUP(A125,AllaSkills!$A$3:$BV$319,'Ny NPC'!$A$2+3,FALSE) -> 6 | C125: 6 | D125: 6 | E125: Concentration | AC125: 0 | AD125: -25 | AE125: =(SD+IN)/2 -> 5 | AF125: =HLOOKUP(Yrke,Levelbonus!$B$1:$CR$20,6,FALSE) -> 0 | AG125: 0 | AH125: =IF(ISNUMBER(VLOOKUP($A125,Rasbonus!$A$61:$AM$295,MATCH(Ras,Rasbonus!$A$1:$AM$1,0),FALSE)),VLOOKUP($A125,Rasbonus!$A$61:$AM$295,MATCH(Ras,Rasbonus!$A$1:$AM$1,0),FALSE),"0") -> 0 | AK125: -20 | AL125: 0 | AM125: 0 | AN125: 0 | AO125: 0 | AP125: 0 | AQ125: 0 | AR125: 0 | AS125: 0 | AT125: 0 | AU125: 0 | AV125: 0 | AW125: 0 | AX125: 0 | AY125: 0 | AZ125: 0 | BA125: 0 | BB125: 0 | BC125: 0 | BD125: 0 | BE125: 0 | BF125: 0
A126: WOW Fatigue | B126: =VLOOKUP(A126,AllaSkills!$A$3:$BV$319,'Ny NPC'!$A$2+3,FALSE) -> 20 | C126: 20 | D126: 20 | E126: Concentration | AC126: 0 | AD126: -25 | AE126: =SD -> 5 | AF126: =HLOOKUP(Yrke,Levelbonus!$B$1:$CR$20,6,FALSE) -> 0 | AG126: 0 | AH126: =IF(ISNUMBER(VLOOKUP($A126,Rasbonus!$A$61:$AM$295,MATCH(Ras,Rasbonus!$A$1:$AM$1,0),FALSE)),VLOOKUP($A126,Rasbonus!$A$61:$AM$295,MATCH(Ras,Rasbonus!$A$1:$AM$1,0),FALSE),"0") -> 10 | AK126: -10 | AL126: 0 | AM126: 0 | AN126: 0 | AO126: 0 | AP126: 0 | AQ126: 0 | AR126: 0 | AS126: 0 | AT126: 0 | AU126: 0 | AV126: 0 | AW126: 0 | AX126: 0 | AY126: 0 | AZ126: 0 | BA126: 0 | BB126: 0 | BC126: 0 | BD126: 0 | BE126: 0 | BF126: 0
A127: WOW Pain | B127: =VLOOKUP(A127,AllaSkills!$A$3:$BV$319,'Ny NPC'!$A$2+3,FALSE) -> 20 | C127: =IF(LEN(B127)=3,LEFT(B127,1),IF(LEN(B127)<3,B127,99)) -> 20 | D127: 20 | E127: Concentration | AC127: 0 | AD127: =IF(AC127<1,-25,IF(AC127>30,80+((AC127-30)*0.5),IF(AC127>20,70+(AC127-20),IF(AC127>10,50+((AC127-10)*2),AC127*5)))) -> -25 | AE127: =SD -> 5 | AF127: =HLOOKUP(Yrke,Levelbonus!$B$1:$CR$20,6,FALSE) -> 0 | AG127: =AF127*Level -> 0 | AH127: =IF(ISNUMBER(VLOOKUP($A127,Rasbonus!$A$61:$AM$295,MATCH(Ras,Rasbonus!$A$1:$AM$1,0),FALSE)),VLOOKUP($A127,Rasbonus!$A$61:$AM$295,MATCH(Ras,Rasbonus!$A$1:$AM$1,0),FALSE),"0") -> 10 | AK127: -10 | AL127: 0 | AM127: 0 | AN127: 0 | AO127: 0 | AP127: 0 | AQ127: 0 | AR127: 0 | AS127: 0 | AT127: 0 | AU127: 0 | AV127: 0 | AW127: 0 | AX127: 0 | AY127: 0 | AZ127: 0 | BA127: 0 | BB127: 0 | BC127: 0 | BD127: 0 | BE127: 0 | BF127: 0
A128: WOW Unconsciousness | B128: =VLOOKUP(A128,AllaSkills!$A$3:$BV$319,'Ny NPC'!$A$2+3,FALSE) -> 20 | C128: 20 | D128: 20 | E128: Concentration | AC128: 0 | AD128: -25 | AE128: =SD -> 5 | AF128: =HLOOKUP(Yrke,Levelbonus!$B$1:$CR$20,6,FALSE) -> 0 | AG128: 0 | AH128: =IF(ISNUMBER(VLOOKUP($A128,Rasbonus!$A$61:$AM$295,MATCH(Ras,Rasbonus!$A$1:$AM$1,0),FALSE)),VLOOKUP($A128,Rasbonus!$A$61:$AM$295,MATCH(Ras,Rasbonus!$A$1:$AM$1,0),FALSE),"0") -> 10 | AK128: -10 | AL128: 0 | AM128: 0 | AN128: 0 | AO128: 0 | AP128: 0 | AQ128: 0 | AR128: 0 | AS128: 0 | AT128: 0 | AU128: 0 | AV128: 0 | AW128: 0 | AX128: 0 | AY128: 0 | AZ128: 0 | BA128: 0 | BB128: 0 | BC128: 0 | BD128: 0 | BE128: 0 | BF128: 0
A129: WOW Will | B129: =VLOOKUP(A129,AllaSkills!$A$3:$BV$319,'Ny NPC'!$A$2+3,FALSE) -> 20 | C129: 20 | D129: =IF(RIGHT(B129,1)="*",LEFT(B129,1),IF(LEN(B129)=3,RIGHT(B129,1),IF(LEN(B129)<3,B129,RIGHT(B129,2)))) -> 20 | E129: Concentration | AC129: =SUM(F129:AB129) -> 0 | AD129: -25 | AE129: =SD -> 5 | AF129: =HLOOKUP(Yrke,Levelbonus!$B$1:$CR$20,6,FALSE) -> 0 | AG129: 0 | AH129: =IF(ISNUMBER(VLOOKUP($A129,Rasbonus!$A$61:$AM$295,MATCH(Ras,Rasbonus!$A$1:$AM$1,0),FALSE)),VLOOKUP($A129,Rasbonus!$A$61:$AM$295,MATCH(Ras,Rasbonus!$A$1:$AM$1,0),FALSE),"0") -> 0 | AK129: -20 | AL129: 0 | AM129: 0 | AN129: 0 | AO129: 0 | AP129: 0 | AQ129: 0 | AR129: 0 | AS129: 0 | AT129: 0 | AU129: 0 | AV129: 0 | AW129: 0 | AX129: 0 | AY129: 0 | AZ129: 0 | BA129: 0 | BB129: 0 | BC129: 0 | BD129: 0 | BE129: 0 | BF129: 0
A131: General & Evaluation | B131: =HLOOKUP(Diverse!$G$2,'2nd'!$B$1:$CR$18,9,FALSE) -> 22 | F131: =SUM(AL132:AL156) -> 0 | G131: =SUM(AM132:AM156) -> 0 | I131: =SUM(AM132:AM156) -> 0 | J131: =SUM(AN132:AN156) -> 0 | K131: 0 | L131: 0 | M131: 0 | N131: 0 | O131: 0 | P131: 0 | Q131: 0 | R131: 0 | S131: 0 | T131: 0 | U131: 0 | V131: 0 | W131: 0 | X131: 0 | Y131: 0 | Z131: 0 | AA131: 0 | AB131: 0 | AC131: Rank | AD131: Skill | AE131: Stat | AG131: Lvl | AH131: Race | AI131: Armor | AJ131: Item | AK131: Total
A132: Advertising | B132: =VLOOKUP(A132,AllaSkills!$A$3:$BV$319,'Ny NPC'!$A$2+3,FALSE) -> 3/5 | C132: 3 | D132: 5 | E132: General | AC132: 0 | AD132: -25 | AE132: =(IN+RE)/2 -> 5 | AF132: =HLOOKUP(Yrke,Levelbonus!$B$1:$CR$20,9,FALSE) -> 2 | AG132: 2 | AH132: =IF(ISNUMBER(VLOOKUP($A132,Rasbonus!$A$61:$AM$295,MATCH(Ras,Rasbonus!$A$1:$AM$1,0),FALSE)),VLOOKUP($A132,Rasbonus!$A$61:$AM$295,MATCH(Ras,Rasbonus!$A$1:$AM$1,0),FALSE),"0") -> 0 | AK132: -18 | AL132: =IF(F132>2,"99",IF(F132<1,0,IF(F132=1,$C132+$C132-$C132,IF(F132=2,$C132+$D132)))) -> 0 | AM132: =IF(I132>2,"99",IF(I132<1,0,IF(I132=1,$C132+$C132-$C132,IF(I132=2,$C132+$D132)))) -> 0 | AN132: =IF(J132>2,"99",IF(J132<1,0,IF(J132=1,$C132+$C132-$C132,IF(J132=2,$C132+$D132)))) -> 0 | AO132: =IF(K132>2,"99",IF(K132<1,0,IF(K132=1,$C132+$C132-$C132,IF(K132=2,$C132+$D132)))) -> 0 | AP132: =IF(L132>2,"99",IF(L132<1,0,IF(L132=1,$C132+$C132-$C132,IF(L132=2,$C132+$D132)))) -> 0 | AQ132: =IF(M132>2,"99",IF(M132<1,0,IF(M132=1,$C132+$C132-$C132,IF(M132=2,$C132+$D132)))) -> 0 | AR132: =IF(N132>2,"99",IF(N132<1,0,IF(N132=1,$C132+$C132-$C132,IF(N132=2,$C132+$D132)))) -> 0 | AS132: =IF(O132>2,"99",IF(O132<1,0,IF(O132=1,$C132+$C132-$C132,IF(O132=2,$C132+$D132)))) -> 0 | AT132: =IF(P132>2,"99",IF(P132<1,0,IF(P132=1,$C132+$C132-$C132,IF(P132=2,$C132+$D132)))) -> 0 | AU132: =IF(Q132>2,"99",IF(Q132<1,0,IF(Q132=1,$C132+$C132-$C132,IF(Q132=2,$C132+$D132)))) -> 0 | AV132: =IF(R132>2,"99",IF(R132<1,0,IF(R132=1,$C132+$C132-$C132,IF(R132=2,$C132+$D132)))) -> 0 | AW132: =IF(S132>2,"99",IF(S132<1,0,IF(S132=1,$C132+$C132-$C132,IF(S132=2,$C132+$D132)))) -> 0 | AX132: =IF(T132>2,"99",IF(T132<1,0,IF(T132=1,$C132+$C132-$C132,IF(T132=2,$C132+$D132)))) -> 0 | AY132: =IF(U132>2,"99",IF(U132<1,0,IF(U132=1,$C132+$C132-$C132,IF(U132=2,$C132+$D132)))) -> 0 | AZ132: =IF(V132>2,"99",IF(V132<1,0,IF(V132=1,$C132+$C132-$C132,IF(V132=2,$C132+$D132)))) -> 0 | BA132: =IF(W132>2,"99",IF(W132<1,0,IF(W132=1,$C132+$C132-$C132,IF(W132=2,$C132+$D132)))) -> 0 | BB132: =IF(X132>2,"99",IF(X132<1,0,IF(X132=1,$C132+$C132-$C132,IF(X132=2,$C132+$D132)))) -> 0 | BC132: =IF(Y132>2,"99",IF(Y132<1,0,IF(Y132=1,$C132+$C132-$C132,IF(Y132=2,$C132+$D132)))) -> 0 | BD132: =IF(Z132>2,"99",IF(Z132<1,0,IF(Z132=1,$C132+$C132-$C132,IF(Z132=2,$C132+$D132)))) -> 0 | BE132: =IF(AA132>2,"99",IF(AA132<1,0,IF(AA132=1,$C132+$C132-$C132,IF(AA132=2,$C132+$D132)))) -> 0 | BF132: =IF(AB132>2,"99",IF(AB132<1,0,IF(AB132=1,$C132+$C132-$C132,IF(AB132=2,$C132+$D132)))) -> 0
A133: Cookery | B133: =VLOOKUP(A133,AllaSkills!$A$3:$BV$319,'Ny NPC'!$A$2+3,FALSE) -> 1/2 | C133: 1 | D133: 2 | E133: General | AC133: 0 | AD133: -25 | AE133: =(IN+RE)/2 -> 5 | AF133: =HLOOKUP(Yrke,Levelbonus!$B$1:$CR$20,9,FALSE) -> 2 | AG133: 2 | AH133: =IF(ISNUMBER(VLOOKUP($A133,Rasbonus!$A$61:$AM$295,MATCH(Ras,Rasbonus!$A$1:$AM$1,0),FALSE)),VLOOKUP($A133,Rasbonus!$A$61:$AM$295,MATCH(Ras,Rasbonus!$A$1:$AM$1,0),FALSE),"0") -> 0 | AK133: -18 | AL133: 0 | AM133: 0 | AN133: 0 | AO133: 0 | AP133: 0 | AQ133: 0 | AR133: 0 | AS133: 0 | AT133: 0 | AU133: 0 | AV133: 0 | AW133: 0 | AX133: 0 | AY133: 0 | AZ133: 0 | BA133: 0 | BB133: 0 | BC133: 0 | BD133: 0 | BE133: 0 | BF133: 0
A134: Crafting | B134: =VLOOKUP(A134,AllaSkills!$A$3:$BV$319,'Ny NPC'!$A$2+3,FALSE) -> 1/2 | C134: 1 | D134: 2 | E134: General | AC134: 0 | AD134: -25 | AE134: =(AG+SD)/2 -> 5 | AF134: =HLOOKUP(Yrke,Levelbonus!$B$1:$CR$20,9,FALSE) -> 2 | AG134: 2 | AH134: =IF(ISNUMBER(VLOOKUP($A134,Rasbonus!$A$61:$AM$295,MATCH(Ras,Rasbonus!$A$1:$AM$1,0),FALSE)),VLOOKUP($A134,Rasbonus!$A$61:$AM$295,MATCH(Ras,Rasbonus!$A$1:$AM$1,0),FALSE),"0") -> 0 | AK134: -18 | AL134: 0 | AM134: 0 | AN134: 0 | AO134: 0 | AP134: 0 | AQ134: 0 | AR134: 0 | AS134: 0 | AT134: 0 | AU134: 0 | AV134: 0 | AW134: 0 | AX134: 0 | AY134: 0 | AZ134: 0 | BA134: 0 | BB134: 0 | BC134: 0 | BD134: 0 | BE134: 0 | BF134: 0
A135: Fletching | B135: =VLOOKUP(A135,AllaSkills!$A$3:$BV$319,'Ny NPC'!$A$2+3,FALSE) -> 1/3 | C135: 1 | D135: 3 | E135: General | AC135: 0 | AD135: -25 | AE135: =(AG+SD)/2 -> 5 | AF135: =HLOOKUP(Yrke,Levelbonus!$B$1:$CR$20,9,FALSE) -> 2 | AG135: 2 | AH135: =IF(ISNUMBER(VLOOKUP($A135,Rasbonus!$A$61:$AM$295,MATCH(Ras,Rasbonus!$A$1:$AM$1,0),FALSE)),VLOOKUP($A135,Rasbonus!$A$61:$AM$295,MATCH(Ras,Rasbonus!$A$1:$AM$1,0),FALSE),"0") -> 0 | AK135: -18 | AL135: 0 | AM135: 0 | AN135: 0 | AO135: 0 | AP135: 0 | AQ135: 0 | AR135: 0 | AS135: 0 | AT135: 0 | AU135: 0 | AV135: 0 | AW135: 0 | AX135: 0 | AY135: 0 | AZ135: 0 | BA135: 0 | BB135: 0 | BC135: 0 | BD135: 0 | BE135: 0 | BF135: 0
A136: Gimmickry | B136: =VLOOKUP(A136,AllaSkills!$A$3:$BV$319,'Ny NPC'!$A$2+3,FALSE) -> 2/4 | C136: 2 | D136: 4 | E136: General | AC136: 0 | AD136: -25 | AE136: =RE -> 5 | AF136: =HLOOKUP(Yrke,Levelbonus!$B$1:$CR$20,9,FALSE) -> 2 | AG136: 2 | AH136: =IF(ISNUMBER(VLOOKUP($A136,Rasbonus!$A$61:$AM$295,MATCH(Ras,Rasbonus!$A$1:$AM$1,0),FALSE)),VLOOKUP($A136,Rasbonus!$A$61:$AM$295,MATCH(Ras,Rasbonus!$A$1:$AM$1,0),FALSE),"0") -> 0 | AK136: -18 | AL136: 0 | AM136: 0 | AN136: 0 | AO136: 0 | AP136: 0 | AQ136: 0 | AR136: 0 | AS136: 0 | AT136: 0 | AU136: 0 | AV136: 0 | AW136: 0 | AX136: 0 | AY136: 0 | AZ136: 0 | BA136: 0 | BB136: 0 | BC136: 0 | BD136: 0 | BE136: 0 | BF136: 0
A137: Horticulture | B137: =VLOOKUP(A137,AllaSkills!$A$3:$BV$319,'Ny NPC'!$A$2+3,FALSE) -> 1/4 | C137: 1 | D137: 4 | E137: General | AC137: 0 | AD137: -25 | AE137: =(IN+EM)/2 -> 5 | AF137: =HLOOKUP(Yrke,Levelbonus!$B$1:$CR$20,9,FALSE) -> 2 | AG137: 2 | AH137: =IF(ISNUMBER(VLOOKUP($A137,Rasbonus!$A$61:$AM$295,MATCH(Ras,Rasbonus!$A$1:$AM$1,0),FALSE)),VLOOKUP($A137,Rasbonus!$A$61:$AM$295,MATCH(Ras,Rasbonus!$A$1:$AM$1,0),FALSE),"0") -> 0 | AK137: -18 | AL137: 0 | AM137: 0 | AN137: 0 | AO137: 0 | AP137: 0 | AQ137: 0 | AR137: 0 | AS137: 0 | AT137: 0 | AU137: 0 | AV137: 0 | AW137: 0 | AX137: 0 | AY137: 0 | AZ137: 0 | BA137: 0 | BB137: 0 | BC137: 0 | BD137: 0 | BE137: 0 | BF137: 0
A138: Hygien | B138: =VLOOKUP(A138,AllaSkills!$A$3:$BV$319,'Ny NPC'!$A$2+3,FALSE) -> 3 | C138: 3 | D138: 3 | E138: General | AC138: 0 | AD138: -25 | AE138: =(CO+SD)/2 -> 12.5 | AF138: =HLOOKUP(Yrke,Levelbonus!$B$1:$CR$20,9,FALSE) -> 2 | AG138: 2 | AH138: =IF(ISNUMBER(VLOOKUP($A138,Rasbonus!$A$61:$AM$295,MATCH(Ras,Rasbonus!$A$1:$AM$1,0),FALSE)),VLOOKUP($A138,Rasbonus!$A$61:$AM$295,MATCH(Ras,Rasbonus!$A$1:$AM$1,0),FALSE),"0") -> 0 | AK138: -11 | AL138: 0 | AM138: 0 | AN138: 0 | AO138: 0 | AP138: 0 | AQ138: 0 | AR138: 0 | AS138: 0 | AT138: 0 | AU138: 0 | AV138: 0 | AW138: 0 | AX138: 0 | AY138: 0 | AZ138: 0 | BA138: 0 | BB138: 0 | BC138: 0 | BD138: 0 | BE138: 0 | BF138: 0
A139: Leatherworking | B139: =VLOOKUP(A139,AllaSkills!$A$3:$BV$319,'Ny NPC'!$A$2+3,FALSE) -> 3 | C139: 3 | D139: 3 | E139: General | AC139: 0 | AD139: -25 | AE139: =(AG+RE)/2 -> 5 | AF139: =HLOOKUP(Yrke,Levelbonus!$B$1:$CR$20,9,FALSE) -> 2 | AG139: 2 | AH139: =IF(ISNUMBER(VLOOKUP($A139,Rasbonus!$A$61:$AM$295,MATCH(Ras,Rasbonus!$A$1:$AM$1,0),FALSE)),VLOOKUP($A139,Rasbonus!$A$61:$AM$295,MATCH(Ras,Rasbonus!$A$1:$AM$1,0),FALSE),"0") -> 0 | AK139: -18 | AL139: 0 | AM139: 0 | AN139: 0 | AO139: 0 | AP139: 0 | AQ139: 0 | AR139: 0 | AS139: 0 | AT139: 0 | AU139: 0 | AV139: 0 | AW139: 0 | AX139: 0 | AY139: 0 | AZ139: 0 | BA139: 0 | BB139: 0 | BC139: 0 | BD139: 0 | BE139: 0 | BF139: 0
A140: Painting | B140: =VLOOKUP(A140,AllaSkills!$A$3:$BV$319,'Ny NPC'!$A$2+3,FALSE) -> 2/5 | C140: 2 | D140: 5 | E140: General | AC140: 0 | AD140: -25 | AE140: =(IN+AG)/2 -> 5 | AF140: =HLOOKUP(Yrke,Levelbonus!$B$1:$CR$20,9,FALSE) -> 2 | AG140: 2 | AH140: =IF(ISNUMBER(VLOOKUP($A140,Rasbonus!$A$61:$AM$295,MATCH(Ras,Rasbonus!$A$1:$AM$1,0),FALSE)),VLOOKUP($A140,Rasbonus!$A$61:$AM$295,MATCH(Ras,Rasbonus!$A$1:$AM$1,0),FALSE),"0") -> 0 | AK140: -18 | AL140: 0 | AM140: 0 | AN140: 0 | AO140: 0 | AP140: 0 | AQ140: 0 | AR140: 0 | AS140: 0 | AT140: 0 | AU140: 0 | AV140: 0 | AW140: 0 | AX140: 0 | AY140: 0 | AZ140: 0 | BA140: 0 | BB140: 0 | BC140: 0 | BD140: 0 | BE140: 0 | BF140: 0
A141: Play instrument #1 | B141: =VLOOKUP(A141,AllaSkills!$A$3:$BV$319,'Ny NPC'!$A$2+3,FALSE) -> 2/6 | C141: 2 | D141: 6 | E141: General | AC141: 0 | AD141: -25 | AE141: =(AG+RE)/2 -> 5 | AF141: =HLOOKUP(Yrke,Levelbonus!$B$1:$CR$20,9,FALSE) -> 2 | AG141: 2 | AH141: =IF(ISNUMBER(VLOOKUP($A141,Rasbonus!$A$61:$AM$295,MATCH(Ras,Rasbonus!$A$1:$AM$1,0),FALSE)),VLOOKUP($A141,Rasbonus!$A$61:$AM$295,MATCH(Ras,Rasbonus!$A$1:$AM$1,0),FALSE),"0") -> 0 | AK141: -18 | AL141: 0 | AM141: 0 | AN141: 0 | AO141: 0 | AP141: 0 | AQ141: 0 | AR141: 0 | AS141: 0 | AT141: 0 | AU141: 0 | AV141: 0 | AW141: 0 | AX141: 0 | AY141: 0 | AZ141: 0 | BA141: 0 | BB141: 0 | BC141: 0 | BD141: 0 | BE141: 0 | BF141: 0
A142: Play instrument #2 | B142: =VLOOKUP(A142,AllaSkills!$A$3:$BV$319,'Ny NPC'!$A$2+3,FALSE) -> 3/7 | C142: 3 | D142: 7 | E142: General | AC142: 0 | AD142: -25 | AE142: =(AG+RE)/2 -> 5 | AF142: =HLOOKUP(Yrke,Levelbonus!$B$1:$CR$20,9,FALSE) -> 2 | AG142: 2 | AH142: =IF(ISNUMBER(VLOOKUP($A142,Rasbonus!$A$61:$AM$295,MATCH(Ras,Rasbonus!$A$1:$AM$1,0),FALSE)),VLOOKUP($A142,Rasbonus!$A$61:$AM$295,MATCH(Ras,Rasbonus!$A$1:$AM$1,0),FALSE),"0") -> 0 | AK142: -18 | AL142: 0 | AM142: 0 | AN142: 0 | AO142: 0 | AP142: 0 | AQ142: 0 | AR142: 0 | AS142: 0 | AT142: 0 | AU142: 0 | AV142: 0 | AW142: 0 | AX142: 0 | AY142: 0 | AZ142: 0 | BA142: 0 | BB142: 0 | BC142: 0 | BD142: 0 | BE142: 0 | BF142: 0
A143: Play instrument #3 | B143: =VLOOKUP(A143,AllaSkills!$A$3:$BV$319,'Ny NPC'!$A$2+3,FALSE) -> 3 | C143: 3 | D143: 3 | E143: General | AC143: 0 | AD143: -25 | AE143: =(AG+RE)/2 -> 5 | AF143: =HLOOKUP(Yrke,Levelbonus!$B$1:$CR$20,9,FALSE) -> 2 | AG143: 2 | AH143: =IF(ISNUMBER(VLOOKUP($A143,Rasbonus!$A$61:$AM$295,MATCH(Ras,Rasbonus!$A$1:$AM$1,0),FALSE)),VLOOKUP($A143,Rasbonus!$A$61:$AM$295,MATCH(Ras,Rasbonus!$A$1:$AM$1,0),FALSE),"0") -> 0 | AK143: -18 | AL143: 0 | AM143: 0 | AN143: 0 | AO143: 0 | AP143: 0 | AQ143: 0 | AR143: 0 | AS143: 0 | AT143: 0 | AU143: 0 | AV143: 0 | AW143: 0 | AX143: 0 | AY143: 0 | AZ143: 0 | BA143: 0 | BB143: 0 | BC143: 0 | BD143: 0 | BE143: 0 | BF143: 0
A144: Rope Mastery | B144: =VLOOKUP(A144,AllaSkills!$A$3:$BV$319,'Ny NPC'!$A$2+3,FALSE) -> 3 | C144: 3 | D144: 3 | E144: General | AC144: 0 | AD144: -25 | AE144: =(AG+RE)/2 -> 5 | AF144: =HLOOKUP(Yrke,Levelbonus!$B$1:$CR$20,9,FALSE) -> 2 | AG144: 2 | AH144: =IF(ISNUMBER(VLOOKUP($A144,Rasbonus!$A$61:$AM$295,MATCH(Ras,Rasbonus!$A$1:$AM$1,0),FALSE)),VLOOKUP($A144,Rasbonus!$A$61:$AM$295,MATCH(Ras,Rasbonus!$A$1:$AM$1,0),FALSE),"0") -> 0 | AK144: -18 | AL144: 0 | AM144: 0 | AN144: 0 | AO144: 0 | AP144: 0 | AQ144: 0 | AR144: 0 | AS144: 0 | AT144: 0 | AU144: 0 | AV144: 0 | AW144: 0 | AX144: 0 | AY144: 0 | AZ144: 0 | BA144: 0 | BB144: 0 | BC144: 0 | BD144: 0 | BE144: 0 | BF144: 0
A145: Sculpting | B145: =VLOOKUP(A145,AllaSkills!$A$3:$BV$319,'Ny NPC'!$A$2+3,FALSE) -> 1/4 | C145: 1 | D145: 4 | E145: General | AC145: 0 | AD145: -25 | AE145: =(IN+AG)/2 -> 5 | AF145: =HLOOKUP(Yrke,Levelbonus!$B$1:$CR$20,9,FALSE) -> 2 | AG145: 2 | AH145: =IF(ISNUMBER(VLOOKUP($A145,Rasbonus!$A$61:$AM$295,MATCH(Ras,Rasbonus!$A$1:$AM$1,0),FALSE)),VLOOKUP($A145,Rasbonus!$A$61:$AM$295,MATCH(Ras,Rasbonus!$A$1:$AM$1,0),FALSE),"0") -> 0 | AK145: -18 | AL145: 0 | AM145: 0 | AN145: 0 | AO145: 0 | AP145: 0 | AQ145: 0 | AR145: 0 | AS145: 0 | AT145: 0 | AU145: 0 | AV145: 0 | AW145: 0 | AX145: 0 | AY145: 0 | AZ145: 0 | BA145: 0 | BB145: 0 | BC145: 0 | BD145: 0 | BE145: 0 | BF145: 0
A146: Skinning | B146: =VLOOKUP(A146,AllaSkills!$A$3:$BV$319,'Ny NPC'!$A$2+3,FALSE) -> 3 | C146: 3 | D146: 3 | E146: General | AC146: 0 | AD146: -25 | AE146: =(IN+AG)/2 -> 5 | AF146: =HLOOKUP(Yrke,Levelbonus!$B$1:$CR$20,9,FALSE) -> 2 | AG146: 2 | AH146: =IF(ISNUMBER(VLOOKUP($A146,Rasbonus!$A$61:$AM$295,MATCH(Ras,Rasbonus!$A$1:$AM$1,0),FALSE)),VLOOKUP($A146,Rasbonus!$A$61:$AM$295,MATCH(Ras,Rasbonus!$A$1:$AM$1,0),FALSE),"0") -> 0 | AK146: =ROUND(AD146+AE146+AG146+AH146+AI146+AJ146,0) -> -18 | AL146: 0 | AM146: 0 | AN146: 0 | AO146: 0 | AP146: 0 | AQ146: 0 | AR146: 0 | AS146: 0 | AT146: 0 | AU146: 0 | AV146: 0 | AW146: 0 | AX146: 0 | AY146: 0 | AZ146: 0 | BA146: 0 | BB146: 0 | BC146: 0 | BD146: 0 | BE146: 0 | BF146: 0
A147: Smithing | B147: =VLOOKUP(A147,AllaSkills!$A$3:$BV$319,'Ny NPC'!$A$2+3,FALSE) -> 1/2 | C147: 1 | D147: 2 | E147: General | AC147: 0 | AD147: -25 | AE147: =(ST+AG)/2 -> 12.5 | AF147: =HLOOKUP(Yrke,Levelbonus!$B$1:$CR$20,9,FALSE) -> 2 | AG147: 2 | AH147: =IF(ISNUMBER(VLOOKUP($A147,Rasbonus!$A$61:$AM$295,MATCH(Ras,Rasbonus!$A$1:$AM$1,0),FALSE)),VLOOKUP($A147,Rasbonus!$A$61:$AM$295,MATCH(Ras,Rasbonus!$A$1:$AM$1,0),FALSE),"0") -> 0 | AK147: -11 | AL147: 0 | AM147: 0 | AN147: 0 | AO147: 0 | AP147: 0 | AQ147: 0 | AR147: 0 | AS147: 0 | AT147: 0 | AU147: 0 | AV147: 0 | AW147: 0 | AX147: 0 | AY147: 0 | AZ147: 0 | BA147: 0 | BB147: 0 | BC147: 0 | BD147: 0 | BE147: 0 | BF147: 0
A148: Stonecrafts | B148: =VLOOKUP(A148,AllaSkills!$A$3:$BV$319,'Ny NPC'!$A$2+3,FALSE) -> 1/2 | C148: 1 | D148: 2 | E148: General | AC148: 0 | AD148: -25 | AE148: =(AG+SD)/2 -> 5 | AF148: =HLOOKUP(Yrke,Levelbonus!$B$1:$CR$20,9,FALSE) -> 2 | AG148: 2 | AH148: =IF(ISNUMBER(VLOOKUP($A148,Rasbonus!$A$61:$AM$295,MATCH(Ras,Rasbonus!$A$1:$AM$1,0),FALSE)),VLOOKUP($A148,Rasbonus!$A$61:$AM$295,MATCH(Ras,Rasbonus!$A$1:$AM$1,0),FALSE),"0") -> 0 | AK148: -18 | AL148: 0 | AM148: 0 | AN148: 0 | AO148: 0 | AP148: 0 | AQ148: 0 | AR148: 0 | AS148: 0 | AT148: 0 | AU148: 0 | AV148: 0 | AW148: 0 | AX148: 0 | AY148: 0 | AZ148: 0 | BA148: 0 | BB148: 0 | BC148: 0 | BD148: 0 | BE148: 0 | BF148: 0
A149: Tactical Games | B149: =VLOOKUP(A149,AllaSkills!$A$3:$BV$319,'Ny NPC'!$A$2+3,FALSE) -> 1/4 | C149: 1 | D149: 4 | E149: General | AC149: 0 | AD149: -25 | AE149: =(RE) -> 5 | AF149: =HLOOKUP(Yrke,Levelbonus!$B$1:$CR$20,9,FALSE) -> 2 | AG149: 2 | AH149: =IF(ISNUMBER(VLOOKUP($A149,Rasbonus!$A$61:$AM$295,MATCH(Ras,Rasbonus!$A$1:$AM$1,0),FALSE)),VLOOKUP($A149,Rasbonus!$A$61:$AM$295,MATCH(Ras,Rasbonus!$A$1:$AM$1,0),FALSE),"0") -> 0 | AK149: -18 | AL149: 0 | AM149: 0 | AN149: 0 | AO149: 0 | AP149: 0 | AQ149: 0 | AR149: 0 | AS149: 0 | AT149: 0 | AU149: 0 | AV149: 0 | AW149: 0 | AX149: 0 | AY149: 0 | AZ149: 0 | BA149: 0 | BB149: 0 | BC149: 0 | BD149: 0 | BE149: 0 | BF149: 0
A150: Woodcrafts | B150: =VLOOKUP(A150,AllaSkills!$A$3:$BV$319,'Ny NPC'!$A$2+3,FALSE) -> 1/3 | C150: =IF(LEN(B150)=3,LEFT(B150,1),IF(LEN(B150)<3,B150,99)) -> 1 | D150: =IF(RIGHT(B150,1)="*",LEFT(B150,1),IF(LEN(B150)=3,RIGHT(B150,1),IF(LEN(B150)<3,B150,RIGHT(B150,2)))) -> 3 | E150: General | AC150: =SUM(F150:AB150) -> 0 | AD150: =IF(AC150<1,-25,IF(AC150>30,80+((AC150-30)*0.5),IF(AC150>20,70+(AC150-20),IF(AC150>10,50+((AC150-10)*2),AC150*5)))) -> -25 | AE150: =(AG+EM)/2 -> 5 | AF150: =HLOOKUP(Yrke,Levelbonus!$B$1:$CR$20,9,FALSE) -> 2 | AG150: =AF150*Level -> 2 | AH150: =IF(ISNUMBER(VLOOKUP($A150,Rasbonus!$A$61:$AM$295,MATCH(Ras,Rasbonus!$A$1:$AM$1,0),FALSE)),VLOOKUP($A150,Rasbonus!$A$61:$AM$295,MATCH(Ras,Rasbonus!$A$1:$AM$1,0),FALSE),"0") -> 0 | AK150: =ROUND(AD150+AE150+AG150+AH150+AI150+AJ150,0) -> -18 | AL150: 0 | AM150: 0 | AN150: 0 | AO150: 0 | AP150: 0 | AQ150: 0 | AR150: 0 | AS150: 0 | AT150: 0 | AU150: 0 | AV150: 0 | AW150: 0 | AX150: 0 | AY150: 0 | AZ150: 0 | BA150: 0 | BB150: 0 | BC150: 0 | BD150: 0 | BE150: 0 | BF150: 0
A152: Appraisal | B152: =VLOOKUP(A152,AllaSkills!$A$3:$BV$319,'Ny NPC'!$A$2+3,FALSE) -> 1/2 | C152: =IF(LEN(B152)=3,LEFT(B152,1),IF(LEN(B152)<3,B152,99)) -> 1 | D152: =IF(RIGHT(B152,1)="*",LEFT(B152,1),IF(LEN(B152)=3,RIGHT(B152,1),IF(LEN(B152)<3,B152,RIGHT(B152,2)))) -> 2 | E152: Evaluation | AC152: =SUM(F152:AB152) -> 0 | AD152: =IF(AC152<1,-25,IF(AC152>30,80+((AC152-30)*0.5),IF(AC152>20,70+(AC152-20),IF(AC152>10,50+((AC152-10)*2),AC152*5)))) -> -25 | AE152: =(RE) -> 5 | AF152: =HLOOKUP(Yrke,Levelbonus!$B$1:$CR$20,8,FALSE) -> 2 | AG152: =AF152*Level -> 2 | AH152: =IF(ISNUMBER(VLOOKUP($A152,Rasbonus!$A$61:$AM$295,MATCH(Ras,Rasbonus!$A$1:$AM$1,0),FALSE)),VLOOKUP($A152,Rasbonus!$A$61:$AM$295,MATCH(Ras,Rasbonus!$A$1:$AM$1,0),FALSE),"0") -> 0 | AK152: =ROUND(AD152+AE152+AG152+AH152+AI152+AJ152,0) -> -18 | AL152: =IF(F152>2,"99",IF(F152<1,0,IF(F152=1,$C152+$C152-$C152,IF(F152=2,$C152+$D152)))) -> 0 | AM152: =IF(I152>2,"99",IF(I152<1,0,IF(I152=1,$C152+$C152-$C152,IF(I152=2,$C152+$D152)))) -> 0 | AN152: 0 | AO152: 0 | AP152: 0 | AQ152: 0 | AR152: 0 | AS152: 0 | AT152: 0 | AU152: 0 | AV152: 0 | AW152: =IF(S152>2,"99",IF(S152<1,0,IF(S152=1,$C152+$C152-$C152,IF(S152=2,$C152+$D152)))) -> 0 | AX152: 0 | AY152: 0 | AZ152: 0 | BA152: 0 | BB152: 0 | BC152: 0 | BD152: 0 | BE152: 0 | BF152: 0
A153: Armor Evaluation | B153: =VLOOKUP(A153,AllaSkills!$A$3:$BV$319,'Ny NPC'!$A$2+3,FALSE) -> 1/3 | C153: =IF(LEN(B153)=3,LEFT(B153,1),IF(LEN(B153)<3,B153,99)) -> 1 | D153: =IF(RIGHT(B153,1)="*",LEFT(B153,1),IF(LEN(B153)=3,RIGHT(B153,1),IF(LEN(B153)<3,B153,RIGHT(B153,2)))) -> 3 | E153: Evaluation | AC153: =SUM(F153:AB153) -> 0 | AD153: =IF(AC153<1,-25,IF(AC153>30,80+((AC153-30)*0.5),IF(AC153>20,70+(AC153-20),IF(AC153>10,50+((AC153-10)*2),AC153*5)))) -> -25 | AE153: =(IN+RE)/2 -> 5 | AF153: =HLOOKUP(Yrke,Levelbonus!$B$1:$CR$20,8,FALSE) -> 2 | AG153: =AF153*Level -> 2 | AH153: =IF(ISNUMBER(VLOOKUP($A153,Rasbonus!$A$61:$AM$295,MATCH(Ras,Rasbonus!$A$1:$AM$1,0),FALSE)),VLOOKUP($A153,Rasbonus!$A$61:$AM$295,MATCH(Ras,Rasbonus!$A$1:$AM$1,0),FALSE),"0") -> 0 | AK153: =ROUND(AD153+AE153+AG153+AH153+AI153+AJ153,0) -> -18 | AL153: =IF(F153>2,"99",IF(F153<1,0,IF(F153=1,$C153+$C153-$C153,IF(F153=2,$C153+$D153)))) -> 0 | AM153: 0 | AN153: 0 | AO153: 0 | AP153: 0 | AQ153: 0 | AR153: 0 | AS153: 0 | AT153: 0 | AU153: 0 | AV153: 0 | AW153: 0 | AX153: 0 | AY153: 0 | AZ153: 0 | BA153: 0 | BB153: 0 | BC153: 0 | BD153: 0 | BE153: 0 | BF153: 0
A154: Metal Evaluation | B154: =VLOOKUP(A154,AllaSkills!$A$3:$BV$319,'Ny NPC'!$A$2+3,FALSE) -> 1/2 | C154: =IF(LEN(B154)=3,LEFT(B154,1),IF(LEN(B154)<3,B154,99)) -> 1 | D154: =IF(RIGHT(B154,1)="*",LEFT(B154,1),IF(LEN(B154)=3,RIGHT(B154,1),IF(LEN(B154)<3,B154,RIGHT(B154,2)))) -> 2 | E154: Evaluation | AC154: =SUM(F154:AB154) -> 0 | AD154: =IF(AC154<1,-25,IF(AC154>30,80+((AC154-30)*0.5),IF(AC154>20,70+(AC154-20),IF(AC154>10,50+((AC154-10)*2),AC154*5)))) -> -25 | AE154: =(IN+RE)/2 -> 5 | AF154: =HLOOKUP(Yrke,Levelbonus!$B$1:$CR$20,8,FALSE) -> 2 | AG154: =AF154*Level -> 2 | AH154: =IF(ISNUMBER(VLOOKUP($A154,Rasbonus!$A$61:$AM$295,MATCH(Ras,Rasbonus!$A$1:$AM$1,0),FALSE)),VLOOKUP($A154,Rasbonus!$A$61:$AM$295,MATCH(Ras,Rasbonus!$A$1:$AM$1,0),FALSE),"0") -> 0 | AK154: =ROUND(AD154+AE154+AG154+AH154+AI154+AJ154,0) -> -18 | AL154: =IF(F154>2,"99",IF(F154<1,0,IF(F154=1,$C154+$C154-$C154,IF(F154=2,$C154+$D154)))) -> 0 | AM154: 0 | AN154: 0 | AO154: 0 | AP154: 0 | AQ154: 0 | AR154: 0 | AS154: 0 | AT154: 0 | AU154: 0 | AV154: 0 | AW154: 0 | AX154: 0 | AY154: 0 | AZ154: 0 | BA154: 0 | BB154: 0 | BC154: 0 | BD154: 0 | BE154: 0 | BF154: 0
A155: Stone Evaluation | B155: =VLOOKUP(A155,AllaSkills!$A$3:$BV$319,'Ny NPC'!$A$2+3,FALSE) -> 1/2 | C155: =IF(LEN(B155)=3,LEFT(B155,1),IF(LEN(B155)<3,B155,99)) -> 1 | D155: =IF(RIGHT(B155,1)="*",LEFT(B155,1),IF(LEN(B155)=3,RIGHT(B155,1),IF(LEN(B155)<3,B155,RIGHT(B155,2)))) -> 2 | E155: Evaluation | AC155: =SUM(F155:AB155) -> 0 | AD155: =IF(AC155<1,-25,IF(AC155>30,80+((AC155-30)*0.5),IF(AC155>20,70+(AC155-20),IF(AC155>10,50+((AC155-10)*2),AC155*5)))) -> -25 | AE155: =(IN+RE)/2 -> 5 | AF155: =HLOOKUP(Yrke,Levelbonus!$B$1:$CR$20,8,FALSE) -> 2 | AG155: =AF155*Level -> 2 | AH155: =IF(ISNUMBER(VLOOKUP($A155,Rasbonus!$A$61:$AM$295,MATCH(Ras,Rasbonus!$A$1:$AM$1,0),FALSE)),VLOOKUP($A155,Rasbonus!$A$61:$AM$295,MATCH(Ras,Rasbonus!$A$1:$AM$1,0),FALSE),"0") -> 0 | AK155: =ROUND(AD155+AE155+AG155+AH155+AI155+AJ155,0) -> -18 | AL155: =IF(F155>2,"99",IF(F155<1,0,IF(F155=1,$C155+$C155-$C155,IF(F155=2,$C155+$D155)))) -> 0 | AM155: 0 | AN155: 0 | AO155: 0 | AP155: 0 | AQ155: 0 | AR155: 0 | AS155: 0 | AT155: 0 | AU155: 0 | AV155: 0 | AW155: 0 | AX155: 0 | AY155: 0 | AZ155: 0 | BA155: 0 | BB155: 0 | BC155: 0 | BD155: 0 | BE155: 0 | BF155: 0
A156: Weapon Evaluation | B156: =VLOOKUP(A156,AllaSkills!$A$3:$BV$319,'Ny NPC'!$A$2+3,FALSE) -> 1/3 | C156: =IF(LEN(B156)=3,LEFT(B156,1),IF(LEN(B156)<3,B156,99)) -> 1 | D156: =IF(RIGHT(B156,1)="*",LEFT(B156,1),IF(LEN(B156)=3,RIGHT(B156,1),IF(LEN(B156)<3,B156,RIGHT(B156,2)))) -> 3 | E156: Evaluation | AC156: =SUM(F156:AB156) -> 0 | AD156: =IF(AC156<1,-25,IF(AC156>30,80+((AC156-30)*0.5),IF(AC156>20,70+(AC156-20),IF(AC156>10,50+((AC156-10)*2),AC156*5)))) -> -25 | AE156: =(IN+RE)/2 -> 5 | AF156: =HLOOKUP(Yrke,Levelbonus!$B$1:$CR$20,8,FALSE) -> 2 | AG156: =AF156*Level -> 2 | AH156: =IF(ISNUMBER(VLOOKUP($A156,Rasbonus!$A$61:$AM$295,MATCH(Ras,Rasbonus!$A$1:$AM$1,0),FALSE)),VLOOKUP($A156,Rasbonus!$A$61:$AM$295,MATCH(Ras,Rasbonus!$A$1:$AM$1,0),FALSE),"0") -> 0 | AK156: =ROUND(AD156+AE156+AG156+AH156+AI156+AJ156,0) -> -18 | AL156: =IF(F156>2,"99",IF(F156<1,0,IF(F156=1,$C156+$C156-$C156,IF(F156=2,$C156+$D156)))) -> 0 | AM156: 0 | AN156: 0 | AO156: 0 | AP156: 0 | AQ156: 0 | AR156: 0 | AS156: 0 | AT156: 0 | AU156: 0 | AV156: 0 | AW156: 0 | AX156: 0 | AY156: 0 | AZ156: 0 | BA156: 0 | BB156: 0 | BC156: 0 | BD156: 0 | BE156: 0 | BF156: 0
A158: Linguistic | B158: =HLOOKUP(Diverse!$G$2,'2nd'!$B$1:$CR$18,11,FALSE) -> 3 | F158: =SUM(AL159:AL171) -> 0 | G158: =SUM(AM159:AM171) -> 0 | I158: =SUM(AM159:AM171) -> 0 | J158: =SUM(AN159:AN171) -> 0 | K158: 0 | L158: 0 | M158: 0 | N158: 0 | O158: 0 | P158: 0 | Q158: 0 | R158: 0 | S158: 0 | T158: 0 | U158: 0 | V158: 0 | W158: 0 | X158: 0 | Y158: 0 | Z158: 0 | AA158: 0 | AB158: 0 | AC158: Rank | AD158: Skill | AE158: Stat | AG158: Lvl | AH158: Race | AI158: Armor | AJ158: Item | AK158: Total
A159: Language | B159: =VLOOKUP(A159,AllaSkills!$A$3:$BV$319,'Ny NPC'!$A$2+3,FALSE) -> 1/* | C159: 1 | D159: 1 | E159: Linguistic | AC159: 0 | AD159: -25 | AF159: =HLOOKUP(Yrke,Levelbonus!$B$1:$CR$20,11,FALSE) -> 0 | AG159: 0 | AK159: =ROUND(AD159+AE159+AG159+AH159+AI159+AJ159,0) -> -25 | AL159: =IF(F159>2,"99",IF(F159<1,0,IF(F159=1,$C159+$C159-$C159,IF(F159=2,$C159+$D159)))) -> 0 | AM159: =IF(I159>2,"99",IF(I159<1,0,IF(I159=1,$C159+$C159-$C159,IF(I159=2,$C159+$D159)))) -> 0 | AN159: 0 | AO159: 0 | AP159: 0 | AQ159: 0 | AR159: 0 | AS159: 0 | AT159: 0 | AU159: 0 | AV159: 0 | AW159: 0 | AX159: 0 | AY159: 0 | AZ159: 0 | BA159: 0 | BB159: 0 | BC159: 0 | BD159: 0 | BE159: 0 | BF159: 0
A161: Lip Reading | B161: =VLOOKUP(A161,AllaSkills!$A$3:$BV$319,'Ny NPC'!$A$2+3,FALSE) -> 3/5 | C161: 3 | D161: 5 | E161: Linguistic | AC161: 0 | AD161: -25 | AE161: =(IN+RE)/2 -> 5 | AF161: =HLOOKUP(Yrke,Levelbonus!$B$1:$CR$20,11,FALSE) -> 0 | AG161: 0 | AH161: =IF(ISNUMBER(VLOOKUP($A161,Rasbonus!$A$61:$AM$295,MATCH(Ras,Rasbonus!$A$1:$AM$1,0),FALSE)),VLOOKUP($A161,Rasbonus!$A$61:$AM$295,MATCH(Ras,Rasbonus!$A$1:$AM$1,0),FALSE),"0") -> 0 | AK161: -20 | AL161: =IF(F161>2,"99",IF(F161<1,0,IF(F161=1,$C161+$C161-$C161,IF(F161=2,$C161+$D161)))) -> 0 | AM161: =IF(I161>2,"99",IF(I161<1,0,IF(I161=1,$C161+$C161-$C161,IF(I161=2,$C161+$D161)))) -> 0 | AN161: =IF(J161>2,"99",IF(J161<1,0,IF(J161=1,$C161+$C161-$C161,IF(J161=2,$C161+$D161)))) -> 0 | AO161: =IF(K161>2,"99",IF(K161<1,0,IF(K161=1,$C161+$C161-$C161,IF(K161=2,$C161+$D161)))) -> 0 | AP161: =IF(L161>2,"99",IF(L161<1,0,IF(L161=1,$C161+$C161-$C161,IF(L161=2,$C161+$D161)))) -> 0 | AQ161: =IF(M161>2,"99",IF(M161<1,0,IF(M161=1,$C161+$C161-$C161,IF(M161=2,$C161+$D161)))) -> 0 | AR161: =IF(N161>2,"99",IF(N161<1,0,IF(N161=1,$C161+$C161-$C161,IF(N161=2,$C161+$D161)))) -> 0 | AS161: =IF(O161>2,"99",IF(O161<1,0,IF(O161=1,$C161+$C161-$C161,IF(O161=2,$C161+$D161)))) -> 0 | AT161: =IF(P161>2,"99",IF(P161<1,0,IF(P161=1,$C161+$C161-$C161,IF(P161=2,$C161+$D161)))) -> 0 | AU161: =IF(Q161>2,"99",IF(Q161<1,0,IF(Q161=1,$C161+$C161-$C161,IF(Q161=2,$C161+$D161)))) -> 0 | AV161: =IF(R161>2,"99",IF(R161<1,0,IF(R161=1,$C161+$C161-$C161,IF(R161=2,$C161+$D161)))) -> 0 | AW161: =IF(S161>2,"99",IF(S161<1,0,IF(S161=1,$C161+$C161-$C161,IF(S161=2,$C161+$D161)))) -> 0 | AX161: =IF(T161>2,"99",IF(T161<1,0,IF(T161=1,$C161+$C161-$C161,IF(T161=2,$C161+$D161)))) -> 0 | AY161: =IF(U161>2,"99",IF(U161<1,0,IF(U161=1,$C161+$C161-$C161,IF(U161=2,$C161+$D161)))) -> 0 | AZ161: =IF(V161>2,"99",IF(V161<1,0,IF(V161=1,$C161+$C161-$C161,IF(V161=2,$C161+$D161)))) -> 0 | BA161: =IF(W161>2,"99",IF(W161<1,0,IF(W161=1,$C161+$C161-$C161,IF(W161=2,$C161+$D161)))) -> 0 | BB161: =IF(X161>2,"99",IF(X161<1,0,IF(X161=1,$C161+$C161-$C161,IF(X161=2,$C161+$D161)))) -> 0 | BC161: =IF(Y161>2,"99",IF(Y161<1,0,IF(Y161=1,$C161+$C161-$C161,IF(Y161=2,$C161+$D161)))) -> 0 | BD161: =IF(Z161>2,"99",IF(Z161<1,0,IF(Z161=1,$C161+$C161-$C161,IF(Z161=2,$C161+$D161)))) -> 0 | BE161: =IF(AA161>2,"99",IF(AA161<1,0,IF(AA161=1,$C161+$C161-$C161,IF(AA161=2,$C161+$D161)))) -> 0 | BF161: =IF(AB161>2,"99",IF(AB161<1,0,IF(AB161=1,$C161+$C161-$C161,IF(AB161=2,$C161+$D161)))) -> 0
A162: Mimicry | B162: =VLOOKUP(A162,AllaSkills!$A$3:$BV$319,'Ny NPC'!$A$2+3,FALSE) -> 2/6 | C162: 2 | D162: 6 | E162: Linguistic | AC162: 0 | AD162: -25 | AE162: =(IN+SD)/2 -> 5 | AF162: =HLOOKUP(Yrke,Levelbonus!$B$1:$CR$20,11,FALSE) -> 0 | AG162: 0 | AH162: =IF(ISNUMBER(VLOOKUP($A162,Rasbonus!$A$61:$AM$295,MATCH(Ras,Rasbonus!$A$1:$AM$1,0),FALSE)),VLOOKUP($A162,Rasbonus!$A$61:$AM$295,MATCH(Ras,Rasbonus!$A$1:$AM$1,0),FALSE),"0") -> 0 | AK162: -20 | AL162: 0 | AM162: 0 | AN162: 0 | AO162: 0 | AP162: 0 | AQ162: 0 | AR162: 0 | AS162: 0 | AT162: 0 | AU162: 0 | AV162: 0 | AW162: 0 | AX162: 0 | AY162: 0 | AZ162: 0 | BA162: 0 | BB162: 0 | BC162: 0 | BD162: 0 | BE162: 0 | BF162: 0
A163: Music | B163: =VLOOKUP(A163,AllaSkills!$A$3:$BV$319,'Ny NPC'!$A$2+3,FALSE) -> 2/6 | C163: 2 | D163: 6 | E163: Linguistic | AC163: 0 | AD163: -25 | AE163: =(AG+EM)/2 -> 5 | AF163: =HLOOKUP(Yrke,Levelbonus!$B$1:$CR$20,11,FALSE) -> 0 | AG163: 0 | AH163: =IF(ISNUMBER(VLOOKUP($A163,Rasbonus!$A$61:$AM$295,MATCH(Ras,Rasbonus!$A$1:$AM$1,0),FALSE)),VLOOKUP($A163,Rasbonus!$A$61:$AM$295,MATCH(Ras,Rasbonus!$A$1:$AM$1,0),FALSE),"0") -> 0 | AK163: -20 | AL163: 0 | AM163: 0 | AN163: 0 | AO163: 0 | AP163: 0 | AQ163: 0 | AR163: 0 | AS163: 0 | AT163: 0 | AU163: 0 | AV163: 0 | AW163: 0 | AX163: 0 | AY163: 0 | AZ163: 0 | BA163: 0 | BB163: 0 | BC163: 0 | BD163: 0 | BE163: 0 | BF163: 0
A164: Poetic Improvisation | B164: =VLOOKUP(A164,AllaSkills!$A$3:$BV$319,'Ny NPC'!$A$2+3,FALSE) -> 2/6 | C164: 2 | D164: 6 | E164: Linguistic | AC164: 0 | AD164: -25 | AE164: =(IN+RE)/2 -> 5 | AF164: =HLOOKUP(Yrke,Levelbonus!$B$1:$CR$20,11,FALSE) -> 0 | AG164: 0 | AH164: =IF(ISNUMBER(VLOOKUP($A164,Rasbonus!$A$61:$AM$295,MATCH(Ras,Rasbonus!$A$1:$AM$1,0),FALSE)),VLOOKUP($A164,Rasbonus!$A$61:$AM$295,MATCH(Ras,Rasbonus!$A$1:$AM$1,0),FALSE),"0") -> 0 | AK164: -20 | AL164: 0 | AM164: 0 | AN164: 0 | AO164: 0 | AP164: 0 | AQ164: 0 | AR164: 0 | AS164: 0 | AT164: 0 | AU164: 0 | AV164: 0 | AW164: 0 | AX164: 0 | AY164: 0 | AZ164: 0 | BA164: 0 | BB164: 0 | BC164: 0 | BD164: 0 | BE164: 0 | BF164: 0
A165: Propaganda | B165: =VLOOKUP(A165,AllaSkills!$A$3:$BV$319,'Ny NPC'!$A$2+3,FALSE) -> 3/5 | C165: 3 | D165: 5 | E165: Linguistic | AC165: 0 | AD165: -25 | AE165: =(IN+EM)/2 -> 5 | AF165: =HLOOKUP(Yrke,Levelbonus!$B$1:$CR$20,11,FALSE) -> 0 | AG165: 0 | AH165: =IF(ISNUMBER(VLOOKUP($A165,Rasbonus!$A$61:$AM$295,MATCH(Ras,Rasbonus!$A$1:$AM$1,0),FALSE)),VLOOKUP($A165,Rasbonus!$A$61:$AM$295,MATCH(Ras,Rasbonus!$A$1:$AM$1,0),FALSE),"0") -> 0 | AK165: -20 | AL165: 0 | AM165: 0 | AN165: 0 | AO165: 0 | AP165: 0 | AQ165: 0 | AR165: 0 | AS165: 0 | AT165: 0 | AU165: 0 | AV165: 0 | AW165: 0 | AX165: 0 | AY165: 0 | AZ165: 0 | BA165: 0 | BB165: 0 | BC165: 0 | BD165: 0 | BE165: 0 | BF165: 0
A166: Public Speaking | B166: =VLOOKUP(A166,AllaSkills!$A$3:$BV$319,'Ny NPC'!$A$2+3,FALSE) -> 3/5 | C166: 3 | D166: 5 | E166: Linguistic | AC166: 0 | AD166: -25 | AE166: =AVERAGE(EM,PR) -> 7.5 | AF166: =HLOOKUP(Yrke,Levelbonus!$B$1:$CR$20,11,FALSE) -> 0 | AG166: 0 | AH166: =IF(ISNUMBER(VLOOKUP($A166,Rasbonus!$A$61:$AM$295,MATCH(Ras,Rasbonus!$A$1:$AM$1,0),FALSE)),VLOOKUP($A166,Rasbonus!$A$61:$AM$295,MATCH(Ras,Rasbonus!$A$1:$AM$1,0),FALSE),"0") -> 0 | AK166: -18 | AL166: 0 | AM166: 0 | AN166: 0 | AO166: 0 | AP166: 0 | AQ166: 0 | AR166: 0 | AS166: 0 | AT166: 0 | AU166: 0 | AV166: 0 | AW166: 0 | AX166: 0 | AY166: 0 | AZ166: 0 | BA166: 0 | BB166: 0 | BC166: 0 | BD166: 0 | BE166: 0 | BF166: 0
A167: Signaling | B167: =VLOOKUP(A167,AllaSkills!$A$3:$BV$319,'Ny NPC'!$A$2+3,FALSE) -> 1/5 | C167: 1 | D167: 5 | E167: Linguistic | AC167: 0 | AD167: -25 | AE167: =(RE+SD)/2 -> 5 | AF167: =HLOOKUP(Yrke,Levelbonus!$B$1:$CR$20,11,FALSE) -> 0 | AG167: 0 | AH167: =IF(ISNUMBER(VLOOKUP($A167,Rasbonus!$A$61:$AM$295,MATCH(Ras,Rasbonus!$A$1:$AM$1,0),FALSE)),VLOOKUP($A167,Rasbonus!$A$61:$AM$295,MATCH(Ras,Rasbonus!$A$1:$AM$1,0),FALSE),"0") -> 0 | AK167: -20 | AL167: 0 | AM167: 0 | AN167: 0 | AO167: 0 | AP167: 0 | AQ167: 0 | AR167: 0 | AS167: 0 | AT167: 0 | AU167: 0 | AV167: 0 | AW167: 0 | AX167: 0 | AY167: 0 | AZ167: 0 | BA167: 0 | BB167: 0 | BC167: 0 | BD167: 0 | BE167: 0 | BF167: 0
A168: Singing | B168: =VLOOKUP(A168,AllaSkills!$A$3:$BV$319,'Ny NPC'!$A$2+3,FALSE) -> 2/6 | C168: 2 | D168: 6 | E168: Linguistic | AC168: 0 | AD168: -25 | AE168: =(PR+IN)/2 -> 7.5 | AF168: =HLOOKUP(Yrke,Levelbonus!$B$1:$CR$20,11,FALSE) -> 0 | AG168: 0 | AH168: =IF(ISNUMBER(VLOOKUP($A168,Rasbonus!$A$61:$AM$295,MATCH(Ras,Rasbonus!$A$1:$AM$1,0),FALSE)),VLOOKUP($A168,Rasbonus!$A$61:$AM$295,MATCH(Ras,Rasbonus!$A$1:$AM$1,0),FALSE),"0") -> 0 | AK168: -18 | AL168: 0 | AM168: 0 | AN168: 0 | AO168: 0 | AP168: 0 | AQ168: 0 | AR168: 0 | AS168: 0 | AT168: 0 | AU168: 0 | AV168: 0 | AW168: 0 | AX168: 0 | AY168: 0 | AZ168: 0 | BA168: 0 | BB168: 0 | BC168: 0 | BD168: 0 | BE168: 0 | BF168: 0
A169: Tale Telling | B169: =VLOOKUP(A169,AllaSkills!$A$3:$BV$319,'Ny NPC'!$A$2+3,FALSE) -> 2/6 | C169: 2 | D169: 6 | E169: Linguistic | AC169: 0 | AD169: -25 | AE169: =PR -> 10 | AF169: =HLOOKUP(Yrke,Levelbonus!$B$1:$CR$20,11,FALSE) -> 0 | AG169: 0 | AH169: =IF(ISNUMBER(VLOOKUP($A169,Rasbonus!$A$61:$AM$295,MATCH(Ras,Rasbonus!$A$1:$AM$1,0),FALSE)),VLOOKUP($A169,Rasbonus!$A$61:$AM$295,MATCH(Ras,Rasbonus!$A$1:$AM$1,0),FALSE),"0") -> 0 | AK169: -15 | AL169: 0 | AM169: 0 | AN169: 0 | AO169: 0 | AP169: 0 | AQ169: 0 | AR169: 0 | AS169: 0 | AT169: 0 | AU169: 0 | AV169: 0 | AW169: 0 | AX169: 0 | AY169: 0 | AZ169: 0 | BA169: 0 | BB169: 0 | BC169: 0 | BD169: 0 | BE169: 0 | BF169: 0
A170: Trading | B170: =VLOOKUP(A170,AllaSkills!$A$3:$BV$319,'Ny NPC'!$A$2+3,FALSE) -> 3/5 | C170: 3 | D170: 5 | E170: Linguistic | AC170: 0 | AD170: -25 | AE170: =(RE) -> 5 | AF170: =HLOOKUP(Yrke,Levelbonus!$B$1:$CR$20,11,FALSE) -> 0 | AG170: 0 | AH170: =IF(ISNUMBER(VLOOKUP($A170,Rasbonus!$A$61:$AM$295,MATCH(Ras,Rasbonus!$A$1:$AM$1,0),FALSE)),VLOOKUP($A170,Rasbonus!$A$61:$AM$295,MATCH(Ras,Rasbonus!$A$1:$AM$1,0),FALSE),"0") -> 0 | AK170: -20 | AL170: 0 | AM170: 0 | AN170: 0 | AO170: 0 | AP170: 0 | AQ170: 0 | AR170: 0 | AS170: 0 | AT170: 0 | AU170: 0 | AV170: 0 | AW170: 0 | AX170: 0 | AY170: 0 | AZ170: 0 | BA170: 0 | BB170: 0 | BC170: 0 | BD170: 0 | BE170: 0 | BF170: 0
A171: Ventriloquism | B171: =VLOOKUP(A171,AllaSkills!$A$3:$BV$319,'Ny NPC'!$A$2+3,FALSE) -> 3/6 | C171: =IF(LEN(B171)=3,LEFT(B171,1),IF(LEN(B171)<3,B171,99)) -> 3 | D171: =IF(RIGHT(B171,1)="*",LEFT(B171,1),IF(LEN(B171)=3,RIGHT(B171,1),IF(LEN(B171)<3,B171,RIGHT(B171,2)))) -> 6 | E171: Linguistic | AC171: =SUM(F171:AB171) -> 0 | AD171: =IF(AC171<1,-25,IF(AC171>30,80+((AC171-30)*0.5),IF(AC171>20,70+(AC171-20),IF(AC171>10,50+((AC171-10)*2),AC171*5)))) -> -25 | AE171: =(SD+IN)/2 -> 5 | AF171: =HLOOKUP(Yrke,Levelbonus!$B$1:$CR$20,11,FALSE) -> 0 | AG171: =AF171*Level -> 0 | AH171: =IF(ISNUMBER(VLOOKUP($A171,Rasbonus!$A$61:$AM$295,MATCH(Ras,Rasbonus!$A$1:$AM$1,0),FALSE)),VLOOKUP($A171,Rasbonus!$A$61:$AM$295,MATCH(Ras,Rasbonus!$A$1:$AM$1,0),FALSE),"0") -> 0 | AK171: =ROUND(AD171+AE171+AG171+AH171+AI171+AJ171,0) -> -20 | AL171: 0 | AM171: 0 | AN171: 0 | AO171: 0 | AP171: 0 | AQ171: 0 | AR171: 0 | AS171: 0 | AT171: 0 | AU171: 0 | AV171: 0 | AW171: 0 | AX171: 0 | AY171: 0 | AZ171: 0 | BA171: 0 | BB171: 0 | BC171: 0 | BD171: 0 | BE171: 0 | BF171: 0
A173: Magical | B173: =HLOOKUP(Diverse!$G$2,'2nd'!$B$1:$CR$18,12,FALSE) -> 26 | F173: =SUM(AL174:AL193) -> 0 | I173: =SUM(AM174:AM193) -> 0 | J173: =SUM(AN175:AN193) -> 0 | K173: 0 | L173: 0 | M173: 0 | N173: 0 | O173: 0 | P173: 0 | Q173: 0 | R173: 0 | S173: 0 | T173: 0 | U173: 0 | V173: 0 | W173: 0 | X173: 0 | Y173: 0 | Z173: 0 | AA173: 0 | AB173: 0 | AC173: Rank | AD173: Skill | AE173: Stat | AG173: Lvl | AH173: Race | AI173: Armor | AJ173: Item | AK173: Total
A174: Circle Lore (Protecting) | B174: =VLOOKUP(A174,AllaSkills!$A$3:$BV$319,'Ny NPC'!$A$2+3,FALSE) -> 2/4 | C174: =IF(LEN(B174)=3,LEFT(B174,1),IF(LEN(B174)<3,B174,99)) -> 2 | D174: =IF(RIGHT(B174,1)="*",LEFT(B174,1),IF(LEN(B174)=3,RIGHT(B174,1),IF(LEN(B174)<3,B174,RIGHT(B174,2)))) -> 4 | E174: Magical | AC174: =SUM(F174:AB174) -> 0 | AD174: =IF(AC174<1,-25,IF(AC174>30,80+((AC174-30)*0.5),IF(AC174>20,70+(AC174-20),IF(AC174>10,50+((AC174-10)*2),AC174*5)))) -> -25 | AE174: =RE -> 5 | AF174: =HLOOKUP(Yrke,Levelbonus!$B$1:$CR$20,12,FALSE) -> 3 | AG174: =AF174*Level -> 3 | AH174: =IF(ISNUMBER(VLOOKUP($A174,Rasbonus!$A$61:$AM$295,MATCH(Ras,Rasbonus!$A$1:$AM$1,0),FALSE)),VLOOKUP($A174,Rasbonus!$A$61:$AM$295,MATCH(Ras,Rasbonus!$A$1:$AM$1,0),FALSE),"0") -> 0 | AK174: =ROUND(AD174+AE174+AG174+AH174+AI174+AJ174,0) -> -17 | AL174: =IF(F174>2,"99",IF(F174<1,0,IF(F174=1,$C174+$C174-$C174,IF(F174=2,$C174+$D174)))) -> 0 | AM174: =IF(I174>2,"99",IF(I174<1,0,IF(I174=1,$C174+$C174-$C174,IF(I174=2,$C174+$D174)))) -> 0 | AN174: =IF(J174>2,"99",IF(J174<1,0,IF(J174=1,$C174+$C174-$C174,IF(J174=2,$C174+$D174)))) -> 0 | AO174: 0 | AP174: 0 | AQ174: 0 | AR174: 0 | AS174: 0 | AT174: 0 | AU174: 0 | AV174: 0 | AW174: 0 | AX174: 0 | AY174: 0 | AZ174: 0 | BA174: 0 | BB174: 0 | BC174: 0 | BD174: 0 | BE174: 0 | BF174: 0
A176: Circle Lore (Fortitude) | B176: =VLOOKUP(A176,AllaSkills!$A$3:$BV$319,'Ny NPC'!$A$2+3,FALSE) -> 2/4 | C176: =IF(LEN(B176)=3,LEFT(B176,1),IF(LEN(B176)<3,B176,99)) -> 2 | D176: =IF(RIGHT(B176,1)="*",LEFT(B176,1),IF(LEN(B176)=3,RIGHT(B176,1),IF(LEN(B176)<3,B176,RIGHT(B176,2)))) -> 4 | E176: Magical | AC176: =SUM(F176:AB176) -> 0 | AD176: =IF(AC176<1,-25,IF(AC176>30,80+((AC176-30)*0.5),IF(AC176>20,70+(AC176-20),IF(AC176>10,50+((AC176-10)*2),AC176*5)))) -> -25 | AE176: =RE -> 5 | AF176: =HLOOKUP(Yrke,Levelbonus!$B$1:$CR$20,12,FALSE) -> 3 | AG176: =AF176*Level -> 3 | AH176: =IF(ISNUMBER(VLOOKUP($A176,Rasbonus!$A$61:$AM$295,MATCH(Ras,Rasbonus!$A$1:$AM$1,0),FALSE)),VLOOKUP($A176,Rasbonus!$A$61:$AM$295,MATCH(Ras,Rasbonus!$A$1:$AM$1,0),FALSE),"0") -> 0 | AK176: =ROUND(AD176+AE176+AG176+AH176+AI176+AJ176,0) -> -17 | AL176: =IF(F176>2,"99",IF(F176<1,0,IF(F176=1,$C176+$C176-$C176,IF(F176=2,$C176+$D176)))) -> 0 | AM176: =IF(I176>2,"99",IF(I176<1,0,IF(I176=1,$C176+$C176-$C176,IF(I176=2,$C176+$D176)))) -> 0 | AN176: =IF(J176>2,"99",IF(J176<1,0,IF(J176=1,$C176+$C176-$C176,IF(J176=2,$C176+$D176)))) -> 0 | AO176: =IF(K176>2,"99",IF(K176<1,0,IF(K176=1,$C176+$C176-$C176,IF(K176=2,$C176+$D176)))) -> 0 | AP176: =IF(L176>2,"99",IF(L176<1,0,IF(L176=1,$C176+$C176-$C176,IF(L176=2,$C176+$D176)))) -> 0 | AQ176: =IF(M176>2,"99",IF(M176<1,0,IF(M176=1,$C176+$C176-$C176,IF(M176=2,$C176+$D176)))) -> 0 | AR176: =IF(N176>2,"99",IF(N176<1,0,IF(N176=1,$C176+$C176-$C176,IF(N176=2,$C176+$D176)))) -> 0 | AS176: =IF(O176>2,"99",IF(O176<1,0,IF(O176=1,$C176+$C176-$C176,IF(O176=2,$C176+$D176)))) -> 0 | AT176: =IF(P176>2,"99",IF(P176<1,0,IF(P176=1,$C176+$C176-$C176,IF(P176=2,$C176+$D176)))) -> 0 | AU176: =IF(Q176>2,"99",IF(Q176<1,0,IF(Q176=1,$C176+$C176-$C176,IF(Q176=2,$C176+$D176)))) -> 0 | AV176: =IF(R176>2,"99",IF(R176<1,0,IF(R176=1,$C176+$C176-$C176,IF(R176=2,$C176+$D176)))) -> 0 | AW176: =IF(S176>2,"99",IF(S176<1,0,IF(S176=1,$C176+$C176-$C176,IF(S176=2,$C176+$D176)))) -> 0 | AX176: =IF(T176>2,"99",IF(T176<1,0,IF(T176=1,$C176+$C176-$C176,IF(T176=2,$C176+$D176)))) -> 0 | AY176: =IF(U176>2,"99",IF(U176<1,0,IF(U176=1,$C176+$C176-$C176,IF(U176=2,$C176+$D176)))) -> 0 | AZ176: =IF(V176>2,"99",IF(V176<1,0,IF(V176=1,$C176+$C176-$C176,IF(V176=2,$C176+$D176)))) -> 0 | BA176: =IF(W176>2,"99",IF(W176<1,0,IF(W176=1,$C176+$C176-$C176,IF(W176=2,$C176+$D176)))) -> 0 | BB176: =IF(X176>2,"99",IF(X176<1,0,IF(X176=1,$C176+$C176-$C176,IF(X176=2,$C176+$D176)))) -> 0 | BC176: =IF(Y176>2,"99",IF(Y176<1,0,IF(Y176=1,$C176+$C176-$C176,IF(Y176=2,$C176+$D176)))) -> 0 | BD176: =IF(Z176>2,"99",IF(Z176<1,0,IF(Z176=1,$C176+$C176-$C176,IF(Z176=2,$C176+$D176)))) -> 0 | BE176: =IF(AA176>2,"99",IF(AA176<1,0,IF(AA176=1,$C176+$C176-$C176,IF(AA176=2,$C176+$D176)))) -> 0 | BF176: =IF(AB176>2,"99",IF(AB176<1,0,IF(AB176=1,$C176+$C176-$C176,IF(AB176=2,$C176+$D176)))) -> 0
A177: Divination | B177: =VLOOKUP(A177,AllaSkills!$A$3:$BV$319,'Ny NPC'!$A$2+3,FALSE) -> 2/4 | C177: 2 | D177: 4 | E177: Magical | AC177: 0 | AD177: =IF(AC177<1,-25,IF(AC177>30,80+((AC177-30)*0.5),IF(AC177>20,70+(AC177-20),IF(AC177>10,50+((AC177-10)*2),AC177*5)))) -> -25 | AE177: =(IN+EM)/2 -> 5 | AF177: =HLOOKUP(Yrke,Levelbonus!$B$1:$CR$20,12,FALSE) -> 3 | AG177: =AF177*Level -> 3 | AH177: =IF(ISNUMBER(VLOOKUP($A177,Rasbonus!$A$61:$AM$295,MATCH(Ras,Rasbonus!$A$1:$AM$1,0),FALSE)),VLOOKUP($A177,Rasbonus!$A$61:$AM$295,MATCH(Ras,Rasbonus!$A$1:$AM$1,0),FALSE),"0") -> 0 | AK177: =ROUND(AD177+AE177+AG177+AH177+AI177+AJ177,0) -> -17 | AL177: =IF(F177>2,"99",IF(F177<1,0,IF(F177=1,$C177+$C177-$C177,IF(F177=2,$C177+$D177)))) -> 0 | AM177: 0 | AN177: 0 | AO177: 0 | AP177: 0 | AQ177: 0 | AR177: 0 | AS177: 0 | AT177: 0 | AU177: 0 | AV177: 0 | AW177: 0 | AX177: 0 | AY177: 0 | AZ177: 0 | BA177: 0 | BB177: 0 | BC177: 0 | BD177: 0 | BE177: 0 | BF177: 0
A178: Magical Expertise | B178: =VLOOKUP(A178,AllaSkills!$A$3:$BV$319,'Ny NPC'!$A$2+3,FALSE) -> 2/5 | C178: 2 | D178: 5 | E178: Magical | AC178: 0 | AL178: 0 | AM178: 0 | AN178: 0 | AO178: 0 | AP178: 0 | AQ178: 0 | AR178: 0 | AS178: 0 | AT178: 0 | AU178: 0 | AV178: 0 | AW178: 0 | AX178: 0 | AY178: 0 | AZ178: 0 | BA178: 0 | BB178: 0 | BC178: 0 | BD178: 0 | BE178: 0 | BF178: 0
A179: Magical Rituals | B179: =VLOOKUP(A179,AllaSkills!$A$3:$BV$319,'Ny NPC'!$A$2+3,FALSE) -> 1/4 | C179: 1 | D179: 4 | E179: Magical | AC179: 0 | AD179: =IF(AC179<1,-25,IF(AC179>30,80+((AC179-30)*0.5),IF(AC179>20,70+(AC179-20),IF(AC179>10,50+((AC179-10)*2),AC179*5)))) -> -25 | AE179: =(IN+RE)/2 -> 5 | AF179: =HLOOKUP(Yrke,Levelbonus!$B$1:$CR$20,12,FALSE) -> 3 | AG179: =AF179*Level -> 3 | AH179: =IF(ISNUMBER(VLOOKUP($A179,Rasbonus!$A$61:$AM$295,MATCH(Ras,Rasbonus!$A$1:$AM$1,0),FALSE)),VLOOKUP($A179,Rasbonus!$A$61:$AM$295,MATCH(Ras,Rasbonus!$A$1:$AM$1,0),FALSE),"0") -> 0 | AK179: =ROUND(AD179+AE179+AG179+AH179+AI179+AJ179,0) -> -17 | AL179: 0 | AM179: 0 | AN179: 0 | AO179: 0 | AP179: 0 | AQ179: 0 | AR179: 0 | AS179: 0 | AT179: 0 | AU179: 0 | AV179: 0 | AW179: 0 | AX179: 0 | AY179: 0 | AZ179: 0 | BA179: 0 | BB179: 0 | BC179: 0 | BD179: 0 | BE179: 0 | BF179: 0
A180: Magnitude | B180: =VLOOKUP(A180,AllaSkills!$A$3:$BV$319,'Ny NPC'!$A$2+3,FALSE) -> 3/8 | C180: 3 | D180: 8 | E180: Magical | AC180: 0 | AD180: =IF(AC180<1,-25,IF(AC180>30,80+((AC180-30)*0.5),IF(AC180>20,70+(AC180-20),IF(AC180>10,50+((AC180-10)*2),AC180*5)))) -> -25 | AE180: =(EM+IN)/2 -> 5 | AF180: =HLOOKUP(Yrke,Levelbonus!$B$1:$CR$20,12,FALSE) -> 3 | AG180: =AF180*Level -> 3 | AH180: =IF(ISNUMBER(VLOOKUP($A180,Rasbonus!$A$61:$AM$295,MATCH(Ras,Rasbonus!$A$1:$AM$1,0),FALSE)),VLOOKUP($A180,Rasbonus!$A$61:$AM$295,MATCH(Ras,Rasbonus!$A$1:$AM$1,0),FALSE),"0") -> 0 | AK180: =ROUND(AD180+AE180+AG180+AH180+AI180+AJ180,0) -> -17 | AL180: 0 | AM180: 0 | AN180: 0 | AO180: 0 | AP180: 0 | AQ180: 0 | AR180: 0 | AS180: 0 | AT180: 0 | AU180: 0 | AV180: 0 | AW180: 0 | AX180: 0 | AY180: 0 | AZ180: 0 | BA180: 0 | BB180: 0 | BC180: 0 | BD180: 0 | BE180: 0 | BF180: 0
A181: Overcasting | B181: =VLOOKUP(A181,AllaSkills!$A$3:$BV$319,'Ny NPC'!$A$2+3,FALSE) -> 2/5 | C181: 2 | D181: 5 | E181: Magical | AC181: 0 | AD181: =IF(AC181<1,-25,IF(AC181>30,80+((AC181-30)*0.5),IF(AC181>20,70+(AC181-20),IF(AC181>10,50+((AC181-10)*2),AC181*5)))) -> -25 | AE181: =IF('Ny NPC'!V45=1,IN,IF('Ny NPC'!V45=2,EM,IF('Ny NPC'!V45=3,PR,IF('Ny NPC'!V45=4,(EM+IN)*0.5,IF('Ny NPC'!V45=5,(PR+IN)*0.5,IF('Ny NPC'!V45=6,(EM+PR)*0.5,(EM+IN+PR)*0.33)))))) -> 5 | AF181: =HLOOKUP(Yrke,Levelbonus!$B$1:$CR$20,12,FALSE) -> 3 | AG181: =AF181*Level -> 3 | AH181: =IF(ISNUMBER(VLOOKUP($A181,Rasbonus!$A$61:$AM$295,MATCH(Ras,Rasbonus!$A$1:$AM$1,0),FALSE)),VLOOKUP($A181,Rasbonus!$A$61:$AM$295,MATCH(Ras,Rasbonus!$A$1:$AM$1,0),FALSE),"0") -> 0 | AK181: =ROUND(AD181+AE181+AG181+AH181+AI181+AJ181,0) -> -17 | AL181: 0 | AM181: 0 | AN181: 0 | AO181: 0 | AP181: 0 | AQ181: 0 | AR181: 0 | AS181: 0 | AT181: 0 | AU181: 0 | AV181: 0 | AW181: 0 | AX181: 0 | AY181: 0 | AZ181: 0 | BA181: 0 | BB181: 0 | BC181: 0 | BD181: 0 | BE181: 0 | BF181: 0
A182: Power Manipulation | B182: =VLOOKUP(A182,AllaSkills!$A$3:$BV$319,'Ny NPC'!$A$2+3,FALSE) -> 3/6 | C182: 3 | D182: 6 | E182: Magical | AC182: 0 | AL182: 0 | AM182: 0 | AN182: 0 | AO182: 0 | AP182: 0 | AQ182: 0 | AR182: 0 | AS182: 0 | AT182: 0 | AU182: 0 | AV182: 0 | AW182: 0 | AX182: 0 | AY182: 0 | AZ182: 0 | BA182: 0 | BB182: 0 | BC182: 0 | BD182: 0 | BE182: 0 | BF182: 0
A183: Power Perception | B183: =VLOOKUP(A183,AllaSkills!$A$3:$BV$319,'Ny NPC'!$A$2+3,FALSE) -> 1/3 | C183: 1 | D183: 3 | E183: Magical | AC183: 0 | AD183: =IF(AC183<1,-25,IF(AC183>30,80+((AC183-30)*0.5),IF(AC183>20,70+(AC183-20),IF(AC183>10,50+((AC183-10)*2),AC183*5)))) -> -25 | AE183: =EM -> 5 | AF183: =HLOOKUP(Yrke,Levelbonus!$B$1:$CR$20,12,FALSE) -> 3 | AG183: =AF183*Level -> 3 | AH183: =IF(ISNUMBER(VLOOKUP($A183,Rasbonus!$A$61:$AM$295,MATCH(Ras,Rasbonus!$A$1:$AM$1,0),FALSE)),VLOOKUP($A183,Rasbonus!$A$61:$AM$295,MATCH(Ras,Rasbonus!$A$1:$AM$1,0),FALSE),"0") -> 0 | AK183: =ROUND(AD183+AE183+AG183+AH183+AI183+AJ183,0) -> -17 | AL183: 0 | AM183: 0 | AN183: 0 | AO183: 0 | AP183: 0 | AQ183: 0 | AR183: 0 | AS183: 0 | AT183: 0 | AU183: 0 | AV183: 0 | AW183: 0 | AX183: 0 | AY183: 0 | AZ183: 0 | BA183: 0 | BB183: 0 | BC183: 0 | BD183: 0 | BE183: 0 | BF183: 0
A184: Power Projection | B184: =VLOOKUP(A184,AllaSkills!$A$3:$BV$319,'Ny NPC'!$A$2+3,FALSE) -> 1/4 | C184: 1 | D184: 4 | E184: Magical | AC184: 0 | AD184: =IF(AC184<1,-25,IF(AC184>30,80+((AC184-30)*0.5),IF(AC184>20,70+(AC184-20),IF(AC184>10,50+((AC184-10)*2),AC184*5)))) -> -25 | AE184: =EM -> 5 | AF184: =HLOOKUP(Yrke,Levelbonus!$B$1:$CR$20,12,FALSE) -> 3 | AG184: 3 | AH184: =IF(ISNUMBER(VLOOKUP($A184,Rasbonus!$A$61:$AM$295,MATCH(Ras,Rasbonus!$A$1:$AM$1,0),FALSE)),VLOOKUP($A184,Rasbonus!$A$61:$AM$295,MATCH(Ras,Rasbonus!$A$1:$AM$1,0),FALSE),"0") -> 0 | AK184: -17 | AL184: 0 | AM184: 0 | AN184: 0 | AO184: 0 | AP184: 0 | AQ184: 0 | AR184: 0 | AS184: 0 | AT184: 0 | AU184: 0 | AV184: 0 | AW184: 0 | AX184: 0 | AY184: 0 | AZ184: 0 | BA184: 0 | BB184: 0 | BC184: 0 | BD184: 0 | BE184: 0 | BF184: 0
A185: PP Development | B185: =VLOOKUP(A185,AllaSkills!$A$3:$BV$319,'Ny NPC'!$A$2+3,FALSE) -> 2/5 | C185: 2 | D185: 5 | E185: Magical | AC185: 0 | AD185: =(AC185)*3 -> 0 | AE185: =IF('Ny NPC'!V45=1,IN/2,IF('Ny NPC'!V45=2,EM/2,IF('Ny NPC'!V45=3,PR/2,IF('Ny NPC'!V45=4,(EM+IN)*0.25,IF('Ny NPC'!V45=5,(PR+IN)*0.25,IF('Ny NPC'!V45=6,(EM+PR)*0.25,(EM+IN+PR)/6)))))) -> 2.5 | AF185: =HLOOKUP(Yrke,Levelbonus!$B$1:$CR$20,18,FALSE) -> 2 | AG185: 2 | AH185: =IF(ISNUMBER(VLOOKUP($A185,Rasbonus!$A$61:$AM$295,MATCH(Ras,Rasbonus!$A$1:$AM$1,0),FALSE)),VLOOKUP($A185,Rasbonus!$A$61:$AM$295,MATCH(Ras,Rasbonus!$A$1:$AM$1,0),FALSE),"0") -> 0 | AK185: 5 | AL185: 0 | AM185: 0 | AN185: 0 | AO185: 0 | AP185: 0 | AQ185: 0 | AR185: 0 | AS185: 0 | AT185: 0 | AU185: 0 | AV185: 0 | AW185: 0 | AX185: 0 | AY185: 0 | AZ185: 0 | BA185: 0 | BB185: 0 | BC185: 0 | BD185: 0 | BE185: 0 | BF185: 0
A186: Rejuvenation | B186: =VLOOKUP(A186,AllaSkills!$A$3:$BV$319,'Ny NPC'!$A$2+3,FALSE) -> 2/5 | C186: 2 | D186: 5 | E186: Magical | AC186: 0 | AD186: =IF(AC186<1,-25,IF(AC186>30,80+((AC186-30)*0.5),IF(AC186>20,70+(AC186-20),IF(AC186>10,50+((AC186-10)*2),AC186*5)))) -> -25 | AE186: =SD -> 5 | AF186: =HLOOKUP(Yrke,Levelbonus!$B$1:$CR$20,12,FALSE) -> 3 | AG186: 3 | AH186: =IF(ISNUMBER(VLOOKUP($A186,Rasbonus!$A$61:$AM$295,MATCH(Ras,Rasbonus!$A$1:$AM$1,0),FALSE)),VLOOKUP($A186,Rasbonus!$A$61:$AM$295,MATCH(Ras,Rasbonus!$A$1:$AM$1,0),FALSE),"0") -> 0 | AK186: -17 | AL186: 0 | AM186: 0 | AN186: 0 | AO186: 0 | AP186: 0 | AQ186: 0 | AR186: 0 | AS186: 0 | AT186: 0 | AU186: 0 | AV186: 0 | AW186: 0 | AX186: 0 | AY186: 0 | AZ186: 0 | BA186: 0 | BB186: 0 | BC186: 0 | BD186: 0 | BE186: 0 | BF186: 0
A187: Scrying | B187: =VLOOKUP(A187,AllaSkills!$A$3:$BV$319,'Ny NPC'!$A$2+3,FALSE) -> 2/4 | C187: 2 | D187: 4 | E187: Magical | AC187: 0 | AD187: -25 | AE187: =(IN+PR)/2 -> 7.5 | AF187: =HLOOKUP(Yrke,Levelbonus!$B$1:$CR$20,12,FALSE) -> 3 | AG187: 3 | AH187: =IF(ISNUMBER(VLOOKUP($A187,Rasbonus!$A$61:$AM$295,MATCH(Ras,Rasbonus!$A$1:$AM$1,0),FALSE)),VLOOKUP($A187,Rasbonus!$A$61:$AM$295,MATCH(Ras,Rasbonus!$A$1:$AM$1,0),FALSE),"0") -> 0 | AK187: -15 | AL187: 0 | AM187: 0 | AN187: 0 | AO187: 0 | AP187: 0 | AQ187: 0 | AR187: 0 | AS187: 0 | AT187: 0 | AU187: 0 | AV187: 0 | AW187: 0 | AX187: 0 | AY187: 0 | AZ187: 0 | BA187: 0 | BB187: 0 | BC187: 0 | BD187: 0 | BE187: 0 | BF187: 0
A188: Spell Mastery | B188: =VLOOKUP(A188,AllaSkills!$A$3:$BV$319,'Ny NPC'!$A$2+3,FALSE) -> 2/7 | C188: 2 | D188: 7 | E188: Magical | AC188: 0 | AD188: -25 | AE188: =(EM+PR)/2 -> 7.5 | AF188: =HLOOKUP(Yrke,Levelbonus!$B$1:$CR$20,12,FALSE) -> 3 | AG188: 3 | AH188: =IF(ISNUMBER(VLOOKUP($A188,Rasbonus!$A$61:$AM$295,MATCH(Ras,Rasbonus!$A$1:$AM$1,0),FALSE)),VLOOKUP($A188,Rasbonus!$A$61:$AM$295,MATCH(Ras,Rasbonus!$A$1:$AM$1,0),FALSE),"0") -> 0 | AK188: -15 | AL188: 0 | AM188: 0 | AN188: 0 | AO188: 0 | AP188: 0 | AQ188: 0 | AR188: 0 | AS188: 0 | AT188: 0 | AU188: 0 | AV188: 0 | AW188: 0 | AX188: 0 | AY188: 0 | AZ188: 0 | BA188: 0 | BB188: 0 | BC188: 0 | BD188: 0 | BE188: 0 | BF188: 0
A189: Summoning | B189: =VLOOKUP(A189,AllaSkills!$A$3:$BV$319,'Ny NPC'!$A$2+3,FALSE) -> 2/4 | C189: 2 | D189: 4 | E189: Magical | AC189: 0 | AD189: -25 | AE189: =(EM+RE)/2 -> 5 | AF189: =HLOOKUP(Yrke,Levelbonus!$B$1:$CR$20,12,FALSE) -> 3 | AG189: 3 | AH189: =IF(ISNUMBER(VLOOKUP($A189,Rasbonus!$A$61:$AM$295,MATCH(Ras,Rasbonus!$A$1:$AM$1,0),FALSE)),VLOOKUP($A189,Rasbonus!$A$61:$AM$295,MATCH(Ras,Rasbonus!$A$1:$AM$1,0),FALSE),"0") -> 0 | AK189: -17 | AL189: 0 | AM189: 0 | AN189: 0 | AO189: 0 | AP189: 0 | AQ189: 0 | AR189: 0 | AS189: 0 | AT189: 0 | AU189: 0 | AV189: 0 | AW189: 0 | AX189: 0 | AY189: 0 | AZ189: 0 | BA189: 0 | BB189: 0 | BC189: 0 | BD189: 0 | BE189: 0 | BF189: 0
A190: Symbol Lore | B190: =VLOOKUP(A190,AllaSkills!$A$3:$BV$319,'Ny NPC'!$A$2+3,FALSE) -> 1/4 | C190: 1 | D190: 4 | E190: Magical | AC190: 0 | AD190: -25 | AE190: =RE -> 5 | AF190: =HLOOKUP(Yrke,Levelbonus!$B$1:$CR$20,12,FALSE) -> 3 | AG190: 3 | AH190: =IF(ISNUMBER(VLOOKUP($A190,Rasbonus!$A$61:$AM$295,MATCH(Ras,Rasbonus!$A$1:$AM$1,0),FALSE)),VLOOKUP($A190,Rasbonus!$A$61:$AM$295,MATCH(Ras,Rasbonus!$A$1:$AM$1,0),FALSE),"0") -> 0 | AK190: -17 | AL190: 0 | AM190: 0 | AN190: 0 | AO190: 0 | AP190: 0 | AQ190: 0 | AR190: 0 | AS190: 0 | AT190: 0 | AU190: 0 | AV190: 0 | AW190: 0 | AX190: 0 | AY190: 0 | AZ190: 0 | BA190: 0 | BB190: 0 | BC190: 0 | BD190: 0 | BE190: 0 | BF190: 0
A191: Targeting Skill | B191: =VLOOKUP(A191,AllaSkills!$A$3:$BV$319,'Ny NPC'!$A$2+3,FALSE) -> 2/5 | C191: 2 | D191: 5 | E191: Magical | AC191: 0 | AD191: -25 | AE191: =IN -> 5 | AF191: =HLOOKUP(Yrke,Levelbonus!$B$1:$CR$20,12,FALSE) -> 3 | AG191: 3 | AH191: =IF(ISNUMBER(VLOOKUP($A191,Rasbonus!$A$61:$AM$295,MATCH(Ras,Rasbonus!$A$1:$AM$1,0),FALSE)),VLOOKUP($A191,Rasbonus!$A$61:$AM$295,MATCH(Ras,Rasbonus!$A$1:$AM$1,0),FALSE),"0") -> 0 | AK191: -17 | AL191: 0 | AM191: 0 | AN191: 0 | AO191: 0 | AP191: 0 | AQ191: 0 | AR191: 0 | AS191: 0 | AT191: 0 | AU191: 0 | AV191: 0 | AW191: 0 | AX191: 0 | AY191: 0 | AZ191: 0 | BA191: 0 | BB191: 0 | BC191: 0 | BD191: 0 | BE191: 0 | BF191: 0
A192: Transcend Armor | B192: =VLOOKUP(A192,AllaSkills!$A$3:$BV$319,'Ny NPC'!$A$2+3,FALSE) -> 4 | C192: 4 | D192: 4 | E192: Magical | AC192: 0 | AD192: -25 | AE192: =IF('Ny NPC'!V45=1,IN,IF('Ny NPC'!V45=2,EM,IF('Ny NPC'!V45=3,PR,IF('Ny NPC'!V45=4,(EM+IN)*0.5,IF('Ny NPC'!V45=5,(PR+IN)*0.5,IF('Ny NPC'!V45=6,(EM+PR)*0.5,(EM+IN+PR)*0.33)))))) -> 5 | AF192: =HLOOKUP(Yrke,Levelbonus!$B$1:$CR$20,12,FALSE) -> 3 | AG192: 3 | AH192: =IF(ISNUMBER(VLOOKUP($A192,Rasbonus!$A$61:$AM$295,MATCH(Ras,Rasbonus!$A$1:$AM$1,0),FALSE)),VLOOKUP($A192,Rasbonus!$A$61:$AM$295,MATCH(Ras,Rasbonus!$A$1:$AM$1,0),FALSE),"0") -> 0 | AK192: -17 | AL192: 0 | AM192: 0 | AN192: 0 | AO192: 0 | AP192: 0 | AQ192: 0 | AR192: 0 | AS192: 0 | AT192: 0 | AU192: 0 | AV192: 0 | AW192: 0 | AX192: 0 | AY192: 0 | AZ192: 0 | BA192: 0 | BB192: 0 | BC192: 0 | BD192: 0 | BE192: 0 | BF192: 0
A193: Warding Lore | B193: =VLOOKUP(A193,AllaSkills!$A$3:$BV$319,'Ny NPC'!$A$2+3,FALSE) -> 1/4 | C193: 1 | D193: 4 | E193: Magical | AC193: 0 | AD193: -25 | AE193: =(RE+IN)/2 -> 5 | AF193: =HLOOKUP(Yrke,Levelbonus!$B$1:$CR$20,12,FALSE) -> 3 | AG193: 3 | AH193: =IF(ISNUMBER(VLOOKUP($A193,Rasbonus!$A$61:$AM$295,MATCH(Ras,Rasbonus!$A$1:$AM$1,0),FALSE)),VLOOKUP($A193,Rasbonus!$A$61:$AM$295,MATCH(Ras,Rasbonus!$A$1:$AM$1,0),FALSE),"0") -> 0 | AK193: -17 | AL193: 0 | AM193: 0 | AN193: 0 | AO193: 0 | AP193: 0 | AQ193: 0 | AR193: 0 | AS193: 0 | AT193: 0 | AU193: 0 | AV193: 0 | AW193: 0 | AX193: 0 | AY193: 0 | AZ193: 0 | BA193: 0 | BB193: 0 | BC193: 0 | BD193: 0 | BE193: 0 | BF193: 0
A196: Medical | B196: =HLOOKUP(Diverse!$G$2,'2nd'!$B$1:$CR$18,13,FALSE) -> 0 | F196: =SUM(AL197:AL206) -> 0 | I196: =SUM(AM197:AM206) -> 0 | J196: 0 | K196: 0 | L196: 0 | M196: 0 | N196: 0 | O196: 0 | P196: 0 | Q196: 0 | R196: 0 | S196: 0 | T196: 0 | U196: 0 | V196: 0 | W196: 0 | X196: 0 | Y196: 0 | Z196: 0 | AA196: 0 | AB196: 0 | AC196: Rank | AD196: Skill | AE196: Stat | AG196: Lvl | AH196: Race | AI196: Armor | AJ196: Item | AK196: Total
A197: Animal healing | B197: =VLOOKUP(A197,AllaSkills!$A$3:$BV$319,'Ny NPC'!$A$2+3,FALSE) -> 2/5 | C197: =IF(LEN(B197)=3,LEFT(B197,1),IF(LEN(B197)<3,B197,99)) -> 2 | D197: =IF(RIGHT(B197,1)="*",LEFT(B197,1),IF(LEN(B197)=3,RIGHT(B197,1),IF(LEN(B197)<3,B197,RIGHT(B197,2)))) -> 5 | E197: Medical | AC197: =SUM(F197:AB197) -> 0 | AD197: =IF(AC197<1,-25,IF(AC197>30,80+((AC197-30)*0.5),IF(AC197>20,70+(AC197-20),IF(AC197>10,50+((AC197-10)*2),AC197*5)))) -> -25 | AE197: =(EM+RE)/2 -> 5 | AF197: =HLOOKUP(Yrke,Levelbonus!$B$1:$CR$20,13,FALSE) -> 0 | AG197: =AF197*Level -> 0 | AH197: =IF(ISNUMBER(VLOOKUP($A197,Rasbonus!$A$61:$AM$295,MATCH(Ras,Rasbonus!$A$1:$AM$1,0),FALSE)),VLOOKUP($A197,Rasbonus!$A$61:$AM$295,MATCH(Ras,Rasbonus!$A$1:$AM$1,0),FALSE),"0") -> 0 | AK197: =ROUND(AD197+AE197+AG197+AH197+AI197+AJ197,0) -> -20 | AL197: =IF(F197>2,"99",IF(F197<1,0,IF(F197=1,$C197+$C197-$C197,IF(F197=2,$C197+$D197)))) -> 0 | AM197: =IF(I197>2,"99",IF(I197<1,0,IF(I197=1,$C197+$C197-$C197,IF(I197=2,$C197+$D197)))) -> 0 | AN197: =IF(J197>2,"99",IF(J197<1,0,IF(J197=1,$C197+$C197-$C197,IF(J197=2,$C197+$D197)))) -> 0 | AO197: =IF(K197>2,"99",IF(K197<1,0,IF(K197=1,$C197+$C197-$C197,IF(K197=2,$C197+$D197)))) -> 0 | AP197: =IF(L197>2,"99",IF(L197<1,0,IF(L197=1,$C197+$C197-$C197,IF(L197=2,$C197+$D197)))) -> 0 | AQ197: =IF(M197>2,"99",IF(M197<1,0,IF(M197=1,$C197+$C197-$C197,IF(M197=2,$C197+$D197)))) -> 0 | AR197: =IF(N197>2,"99",IF(N197<1,0,IF(N197=1,$C197+$C197-$C197,IF(N197=2,$C197+$D197)))) -> 0 | AS197: =IF(O197>2,"99",IF(O197<1,0,IF(O197=1,$C197+$C197-$C197,IF(O197=2,$C197+$D197)))) -> 0 | AT197: =IF(P197>2,"99",IF(P197<1,0,IF(P197=1,$C197+$C197-$C197,IF(P197=2,$C197+$D197)))) -> 0 | AU197: =IF(Q197>2,"99",IF(Q197<1,0,IF(Q197=1,$C197+$C197-$C197,IF(Q197=2,$C197+$D197)))) -> 0 | AV197: =IF(R197>2,"99",IF(R197<1,0,IF(R197=1,$C197+$C197-$C197,IF(R197=2,$C197+$D197)))) -> 0 | AW197: =IF(S197>2,"99",IF(S197<1,0,IF(S197=1,$C197+$C197-$C197,IF(S197=2,$C197+$D197)))) -> 0 | AX197: =IF(T197>2,"99",IF(T197<1,0,IF(T197=1,$C197+$C197-$C197,IF(T197=2,$C197+$D197)))) -> 0 | AY197: =IF(U197>2,"99",IF(U197<1,0,IF(U197=1,$C197+$C197-$C197,IF(U197=2,$C197+$D197)))) -> 0 | AZ197: =IF(V197>2,"99",IF(V197<1,0,IF(V197=1,$C197+$C197-$C197,IF(V197=2,$C197+$D197)))) -> 0 | BA197: =IF(W197>2,"99",IF(W197<1,0,IF(W197=1,$C197+$C197-$C197,IF(W197=2,$C197+$D197)))) -> 0 | BB197: =IF(X197>2,"99",IF(X197<1,0,IF(X197=1,$C197+$C197-$C197,IF(X197=2,$C197+$D197)))) -> 0 | BC197: =IF(Y197>2,"99",IF(Y197<1,0,IF(Y197=1,$C197+$C197-$C197,IF(Y197=2,$C197+$D197)))) -> 0 | BD197: =IF(Z197>2,"99",IF(Z197<1,0,IF(Z197=1,$C197+$C197-$C197,IF(Z197=2,$C197+$D197)))) -> 0 | BE197: =IF(AA197>2,"99",IF(AA197<1,0,IF(AA197=1,$C197+$C197-$C197,IF(AA197=2,$C197+$D197)))) -> 0 | BF197: =IF(AB197>2,"99",IF(AB197<1,0,IF(AB197=1,$C197+$C197-$C197,IF(AB197=2,$C197+$D197)))) -> 0
A198: Dentistry | B198: =VLOOKUP(A198,AllaSkills!$A$3:$BV$319,'Ny NPC'!$A$2+3,FALSE) -> 5 | C198: 5 | D198: 5 | E198: Medical | AC198: 0 | AD198: -25 | AE198: =(RE+AG)/2 -> 5 | AF198: =HLOOKUP(Yrke,Levelbonus!$B$1:$CR$20,13,FALSE) -> 0 | AG198: 0 | AH198: =IF(ISNUMBER(VLOOKUP($A198,Rasbonus!$A$61:$AM$295,MATCH(Ras,Rasbonus!$A$1:$AM$1,0),FALSE)),VLOOKUP($A198,Rasbonus!$A$61:$AM$295,MATCH(Ras,Rasbonus!$A$1:$AM$1,0),FALSE),"0") -> 0 | AK198: -20 | AL198: 0 | AM198: 0 | AN198: 0 | AO198: 0 | AP198: 0 | AQ198: 0 | AR198: 0 | AS198: 0 | AT198: 0 | AU198: 0 | AV198: 0 | AW198: 0 | AX198: 0 | AY198: 0 | AZ198: 0 | BA198: 0 | BB198: 0 | BC198: 0 | BD198: 0 | BE198: 0 | BF198: 0
A199: Diagnostics | B199: =VLOOKUP(A199,AllaSkills!$A$3:$BV$319,'Ny NPC'!$A$2+3,FALSE) -> 2 | C199: 2 | D199: 2 | E199: Medical | AC199: 0 | AD199: -25 | AE199: =(IN+RE)/2 -> 5 | AF199: =HLOOKUP(Yrke,Levelbonus!$B$1:$CR$20,13,FALSE) -> 0 | AG199: 0 | AH199: =IF(ISNUMBER(VLOOKUP($A199,Rasbonus!$A$61:$AM$295,MATCH(Ras,Rasbonus!$A$1:$AM$1,0),FALSE)),VLOOKUP($A199,Rasbonus!$A$61:$AM$295,MATCH(Ras,Rasbonus!$A$1:$AM$1,0),FALSE),"0") -> 0 | AK199: -20 | AL199: 0 | AM199: 0 | AN199: 0 | AO199: 0 | AP199: 0 | AQ199: 0 | AR199: 0 | AS199: 0 | AT199: 0 | AU199: 0 | AV199: 0 | AW199: 0 | AX199: 0 | AY199: 0 | AZ199: 0 | BA199: 0 | BB199: 0 | BC199: 0 | BD199: 0 | BE199: 0 | BF199: 0
A200: Drug Tolerance | B200: =VLOOKUP(A200,AllaSkills!$A$3:$BV$319,'Ny NPC'!$A$2+3,FALSE) -> 2/5 | C200: 2 | D200: 5 | E200: Medical | AC200: 0 | AD200: -25 | AF200: =HLOOKUP(Yrke,Levelbonus!$B$1:$CR$20,13,FALSE) -> 0 | AG200: 0 | AH200: =IF(ISNUMBER(VLOOKUP($A200,Rasbonus!$A$61:$AM$295,MATCH(Ras,Rasbonus!$A$1:$AM$1,0),FALSE)),VLOOKUP($A200,Rasbonus!$A$61:$AM$295,MATCH(Ras,Rasbonus!$A$1:$AM$1,0),FALSE),"0") -> 0 | AK200: -25 | AL200: 0 | AM200: 0 | AN200: 0 | AO200: 0 | AP200: 0 | AQ200: 0 | AR200: 0 | AS200: 0 | AT200: 0 | AU200: 0 | AV200: 0 | AW200: 0 | AX200: 0 | AY200: 0 | AZ200: 0 | BA200: 0 | BB200: 0 | BC200: 0 | BD200: 0 | BE200: 0 | BF200: 0
A202: First Aid | B202: =VLOOKUP(A202,AllaSkills!$A$3:$BV$319,'Ny NPC'!$A$2+3,FALSE) -> 2/5 | C202: 2 | D202: 5 | E202: Medical | AC202: 0 | AD202: -25 | AE202: =(SD+EM)/2 -> 5 | AF202: =HLOOKUP(Yrke,Levelbonus!$B$1:$CR$20,13,FALSE) -> 0 | AG202: 0 | AH202: =IF(ISNUMBER(VLOOKUP($A202,Rasbonus!$A$61:$AM$295,MATCH(Ras,Rasbonus!$A$1:$AM$1,0),FALSE)),VLOOKUP($A202,Rasbonus!$A$61:$AM$295,MATCH(Ras,Rasbonus!$A$1:$AM$1,0),FALSE),"0") -> 0 | AK202: -20 | AL202: 0 | AM202: 0 | AN202: 0 | AO202: 0 | AP202: 0 | AQ202: 0 | AR202: 0 | AS202: 0 | AT202: 0 | AU202: 0 | AV202: 0 | AW202: 0 | AX202: 0 | AY202: 0 | AZ202: 0 | BA202: 0 | BB202: 0 | BC202: 0 | BD202: 0 | BE202: 0 | BF202: 0
A203: Hypnosis | B203: =VLOOKUP(A203,AllaSkills!$A$3:$BV$319,'Ny NPC'!$A$2+3,FALSE) -> 2/4 | C203: 2 | D203: 4 | E203: Medical | AC203: 0 | AD203: -25 | AE203: =(PR+SD)/2 -> 7.5 | AF203: =HLOOKUP(Yrke,Levelbonus!$B$1:$CR$20,13,FALSE) -> 0 | AG203: 0 | AH203: =IF(ISNUMBER(VLOOKUP($A203,Rasbonus!$A$61:$AM$295,MATCH(Ras,Rasbonus!$A$1:$AM$1,0),FALSE)),VLOOKUP($A203,Rasbonus!$A$61:$AM$295,MATCH(Ras,Rasbonus!$A$1:$AM$1,0),FALSE),"0") -> 0 | AK203: -18 | AL203: 0 | AM203: 0 | AN203: 0 | AO203: 0 | AP203: 0 | AQ203: 0 | AR203: 0 | AS203: 0 | AT203: 0 | AU203: 0 | AV203: 0 | AW203: 0 | AX203: 0 | AY203: 0 | AZ203: 0 | BA203: 0 | BB203: 0 | BC203: 0 | BD203: 0 | BE203: 0 | BF203: 0
A204: Midwifery | B204: =VLOOKUP(A204,AllaSkills!$A$3:$BV$319,'Ny NPC'!$A$2+3,FALSE) -> 4 | C204: 4 | D204: 4 | E204: Medical | AC204: 0 | AD204: -25 | AE204: =(EM+RE+IN)/3 -> 5 | AF204: =HLOOKUP(Yrke,Levelbonus!$B$1:$CR$20,13,FALSE) -> 0 | AG204: 0 | AH204: =IF(ISNUMBER(VLOOKUP($A204,Rasbonus!$A$61:$AM$295,MATCH(Ras,Rasbonus!$A$1:$AM$1,0),FALSE)),VLOOKUP($A204,Rasbonus!$A$61:$AM$295,MATCH(Ras,Rasbonus!$A$1:$AM$1,0),FALSE),"0") -> 0 | AK204: -20 | AL204: 0 | AM204: 0 | AN204: 0 | AO204: 0 | AP204: 0 | AQ204: 0 | AR204: 0 | AS204: 0 | AT204: 0 | AU204: 0 | AV204: 0 | AW204: 0 | AX204: 0 | AY204: 0 | AZ204: 0 | BA204: 0 | BB204: 0 | BC204: 0 | BD204: 0 | BE204: 0 | BF204: 0
A205: Second Aid | B205: =VLOOKUP(A205,AllaSkills!$A$3:$BV$319,'Ny NPC'!$A$2+3,FALSE) -> 3/6 | C205: 3 | D205: 6 | E205: Medical | AC205: 0 | AD205: -25 | AE205: =(SD+EM+IN)/3 -> 5 | AF205: =HLOOKUP(Yrke,Levelbonus!$B$1:$CR$20,13,FALSE) -> 0 | AG205: 0 | AH205: =IF(ISNUMBER(VLOOKUP($A205,Rasbonus!$A$61:$AM$295,MATCH(Ras,Rasbonus!$A$1:$AM$1,0),FALSE)),VLOOKUP($A205,Rasbonus!$A$61:$AM$295,MATCH(Ras,Rasbonus!$A$1:$AM$1,0),FALSE),"0") -> 0 | AK205: -20 | AL205: 0 | AM205: 0 | AN205: 0 | AO205: 0 | AP205: 0 | AQ205: 0 | AR205: 0 | AS205: 0 | AT205: 0 | AU205: 0 | AV205: 0 | AW205: 0 | AX205: 0 | AY205: 0 | AZ205: 0 | BA205: 0 | BB205: 0 | BC205: 0 | BD205: 0 | BE205: 0 | BF205: 0
A206: Surgery | B206: =VLOOKUP(A206,AllaSkills!$A$3:$BV$319,'Ny NPC'!$A$2+3,FALSE) -> 5 | C206: =IF(LEN(B206)=3,LEFT(B206,1),IF(LEN(B206)<3,B206,99)) -> 5 | D206: =IF(RIGHT(B206,1)="*",LEFT(B206,1),IF(LEN(B206)=3,RIGHT(B206,1),IF(LEN(B206)<3,B206,RIGHT(B206,2)))) -> 5 | E206: Medical | AC206: =SUM(F206:AB206) -> 0 | AD206: =IF(AC206<1,-25,IF(AC206>30,80+((AC206-30)*0.5),IF(AC206>20,70+(AC206-20),IF(AC206>10,50+((AC206-10)*2),AC206*5)))) -> -25 | AE206: =(SD+EM+IN)/3 -> 5 | AF206: =HLOOKUP(Yrke,Levelbonus!$B$1:$CR$20,13,FALSE) -> 0 | AG206: =AF206*Level -> 0 | AH206: =IF(ISNUMBER(VLOOKUP($A206,Rasbonus!$A$61:$AM$295,MATCH(Ras,Rasbonus!$A$1:$AM$1,0),FALSE)),VLOOKUP($A206,Rasbonus!$A$61:$AM$295,MATCH(Ras,Rasbonus!$A$1:$AM$1,0),FALSE),"0") -> 0 | AK206: =ROUND(AD206+AE206+AG206+AH206+AI206+AJ206,0) -> -20 | AL206: 0 | AM206: 0 | AN206: 0 | AO206: 0 | AP206: 0 | AQ206: 0 | AR206: 0 | AS206: 0 | AT206: 0 | AU206: 0 | AV206: 0 | AW206: 0 | AX206: 0 | AY206: 0 | AZ206: 0 | BA206: 0 | BB206: 0 | BC206: 0 | BD206: 0 | BE206: 0 | BF206: 0
A208: Perception | B208: =HLOOKUP(Diverse!$G$2,'2nd'!$B$1:$CR$18,14,FALSE) -> 5 | F208: =SUM(AL209:AL216) -> 0 | I208: =SUM(AM209:AM216) -> 0 | J208: 0 | K208: 0 | L208: 0 | M208: 0 | N208: 0 | O208: 0 | P208: 0 | Q208: 0 | R208: 0 | S208: 0 | T208: 0 | U208: 0 | V208: 0 | W208: 0 | X208: 0 | Y208: 0 | Z208: 0 | AA208: 0 | AB208: 0 | AC208: Rank | AD208: Skill | AE208: Stat | AG208: Lvl | AH208: Race | AI208: Armor | AJ208: Item | AK208: Total
A209: Awakening | B209: =VLOOKUP(A209,AllaSkills!$A$3:$BV$319,'Ny NPC'!$A$2+3,FALSE) -> 18 | C209: 18 | D209: 18 | E209: Perception | AC209: 0 | AD209: -25 | AE209: =IN -> 5 | AF209: =HLOOKUP(Yrke,Levelbonus!$B$1:$CR$20,14,FALSE) -> 1 | AG209: 1 | AH209: =IF(ISNUMBER(VLOOKUP($A209,Rasbonus!$A$61:$AM$295,MATCH(Ras,Rasbonus!$A$1:$AM$1,0),FALSE)),VLOOKUP($A209,Rasbonus!$A$61:$AM$295,MATCH(Ras,Rasbonus!$A$1:$AM$1,0),FALSE),"0") -> 0 | AK209: -19 | AL209: =IF(F209>2,"99",IF(F209<1,0,IF(F209=1,$C209+$C209-$C209,IF(F209=2,$C209+$D209)))) -> 0 | AM209: =IF(I209>2,"99",IF(I209<1,0,IF(I209=1,$C209+$C209-$C209,IF(I209=2,$C209+$D209)))) -> 0 | AN209: 0 | AO209: 0 | AP209: 0 | AQ209: 0 | AR209: 0 | AS209: 0 | AT209: 0 | AU209: 0 | AV209: 0 | AW209: =IF(S209>2,"99",IF(S209<1,0,IF(S209=1,$C209+$C209-$C209,IF(S209=2,$C209+$D209)))) -> 0 | AX209: 0 | AY209: 0 | AZ209: 0 | BA209: 0 | BB209: 0 | BC209: 0 | BD209: 0 | BE209: 0 | BF209: 0
A210: Direction Sense | B210: =VLOOKUP(A210,AllaSkills!$A$3:$BV$319,'Ny NPC'!$A$2+3,FALSE) -> 2/4 | C210: 2 | D210: 4 | E210: Perception | AC210: 0 | AD210: -25 | AE210: =(IN+RE)/2 -> 5 | AF210: =HLOOKUP(Yrke,Levelbonus!$B$1:$CR$20,14,FALSE) -> 1 | AG210: 1 | AH210: =IF(ISNUMBER(VLOOKUP($A210,Rasbonus!$A$61:$AM$295,MATCH(Ras,Rasbonus!$A$1:$AM$1,0),FALSE)),VLOOKUP($A210,Rasbonus!$A$61:$AM$295,MATCH(Ras,Rasbonus!$A$1:$AM$1,0),FALSE),"0") -> 0 | AK210: -19 | AL210: 0 | AM210: 0 | AN210: 0 | AO210: 0 | AP210: 0 | AQ210: 0 | AR210: 0 | AS210: 0 | AT210: 0 | AU210: 0 | AV210: 0 | AW210: 0 | AX210: 0 | AY210: 0 | AZ210: 0 | BA210: 0 | BB210: 0 | BC210: 0 | BD210: 0 | BE210: 0 | BF210: 0
A211: Lie Perception | B211: =VLOOKUP(A211,AllaSkills!$A$3:$BV$319,'Ny NPC'!$A$2+3,FALSE) -> 3/5 | C211: 3 | D211: 5 | E211: Perception | AC211: 0 | AD211: -25 | AE211: =(IN+RE)/2 -> 5 | AF211: =HLOOKUP(Yrke,Levelbonus!$B$1:$CR$20,14,FALSE) -> 1 | AG211: 1 | AH211: =IF(ISNUMBER(VLOOKUP($A211,Rasbonus!$A$61:$AM$295,MATCH(Ras,Rasbonus!$A$1:$AM$1,0),FALSE)),VLOOKUP($A211,Rasbonus!$A$61:$AM$295,MATCH(Ras,Rasbonus!$A$1:$AM$1,0),FALSE),"0") -> 0 | AK211: -19 | AL211: 0 | AM211: 0 | AN211: 0 | AO211: 0 | AP211: 0 | AQ211: 0 | AR211: 0 | AS211: 0 | AT211: 0 | AU211: 0 | AV211: 0 | AW211: 0 | AX211: 0 | AY211: 0 | AZ211: 0 | BA211: 0 | BB211: 0 | BC211: 0 | BD211: 0 | BE211: 0 | BF211: 0
A212: Poison Perception | B212: =VLOOKUP(A212,AllaSkills!$A$3:$BV$319,'Ny NPC'!$A$2+3,FALSE) -> 1/4 | C212: 1 | D212: 4 | E212: Perception | AC212: 0 | AD212: -25 | AE212: =(IN+RE)/2 -> 5 | AF212: =HLOOKUP(Yrke,Levelbonus!$B$1:$CR$20,14,FALSE) -> 1 | AG212: 1 | AH212: =IF(ISNUMBER(VLOOKUP($A212,Rasbonus!$A$61:$AM$295,MATCH(Ras,Rasbonus!$A$1:$AM$1,0),FALSE)),VLOOKUP($A212,Rasbonus!$A$61:$AM$295,MATCH(Ras,Rasbonus!$A$1:$AM$1,0),FALSE),"0") -> 0 | AK212: -19 | AL212: 0 | AM212: 0 | AN212: 0 | AO212: 0 | AP212: 0 | AQ212: 0 | AR212: 0 | AS212: 0 | AT212: 0 | AU212: 0 | AV212: 0 | AW212: 0 | AX212: 0 | AY212: 0 | AZ212: 0 | BA212: 0 | BB212: 0 | BC212: 0 | BD212: 0 | BE212: 0 | BF212: 0
A213: Sense Ambush | B213: =VLOOKUP(A213,AllaSkills!$A$3:$BV$319,'Ny NPC'!$A$2+3,FALSE) -> 3 | C213: 3 | D213: 3 | E213: Perception | AC213: 0 | AD213: -25 | AE213: =(IN+RE)/2 -> 5 | AF213: =HLOOKUP(Yrke,Levelbonus!$B$1:$CR$20,14,FALSE) -> 1 | AG213: 1 | AH213: =IF(ISNUMBER(VLOOKUP($A213,Rasbonus!$A$61:$AM$295,MATCH(Ras,Rasbonus!$A$1:$AM$1,0),FALSE)),VLOOKUP($A213,Rasbonus!$A$61:$AM$295,MATCH(Ras,Rasbonus!$A$1:$AM$1,0),FALSE),"0") -> 0 | AK213: -19 | AL213: 0 | AM213: 0 | AN213: 0 | AO213: 0 | AP213: 0 | AQ213: 0 | AR213: 0 | AS213: 0 | AT213: 0 | AU213: 0 | AV213: 0 | AW213: 0 | AX213: 0 | AY213: 0 | AZ213: 0 | BA213: 0 | BB213: 0 | BC213: 0 | BD213: 0 | BE213: 0 | BF213: 0
A214: Surveillance | B214: =VLOOKUP(A214,AllaSkills!$A$3:$BV$319,'Ny NPC'!$A$2+3,FALSE) -> 2/6 | C214: 2 | D214: 6 | E214: Perception | AC214: 0 | AD214: -25 | AE214: =(IN+SD)/2 -> 5 | AF214: =HLOOKUP(Yrke,Levelbonus!$B$1:$CR$20,14,FALSE) -> 1 | AG214: 1 | AH214: =IF(ISNUMBER(VLOOKUP($A214,Rasbonus!$A$61:$AM$295,MATCH(Ras,Rasbonus!$A$1:$AM$1,0),FALSE)),VLOOKUP($A214,Rasbonus!$A$61:$AM$295,MATCH(Ras,Rasbonus!$A$1:$AM$1,0),FALSE),"0") -> 0 | AK214: -19 | AL214: 0 | AM214: 0 | AN214: 0 | AO214: 0 | AP214: 0 | AQ214: 0 | AR214: 0 | AS214: 0 | AT214: 0 | AU214: 0 | AV214: 0 | AW214: 0 | AX214: 0 | AY214: 0 | AZ214: 0 | BA214: 0 | BB214: 0 | BC214: 0 | BD214: 0 | BE214: 0 | BF214: 0
A215: Time Sense | B215: =VLOOKUP(A215,AllaSkills!$A$3:$BV$319,'Ny NPC'!$A$2+3,FALSE) -> 1/3 | C215: 1 | D215: 3 | E215: Perception | AC215: 0 | AD215: -25 | AE215: =(IN+RE)/2 -> 5 | AF215: =HLOOKUP(Yrke,Levelbonus!$B$1:$CR$20,14,FALSE) -> 1 | AG215: 1 | AH215: =IF(ISNUMBER(VLOOKUP($A215,Rasbonus!$A$61:$AM$295,MATCH(Ras,Rasbonus!$A$1:$AM$1,0),FALSE)),VLOOKUP($A215,Rasbonus!$A$61:$AM$295,MATCH(Ras,Rasbonus!$A$1:$AM$1,0),FALSE),"0") -> 0 | AK215: -19 | AL215: 0 | AM215: 0 | AN215: 0 | AO215: 0 | AP215: 0 | AQ215: 0 | AR215: 0 | AS215: 0 | AT215: 0 | AU215: 0 | AV215: 0 | AW215: 0 | AX215: 0 | AY215: 0 | AZ215: 0 | BA215: 0 | BB215: 0 | BC215: 0 | BD215: 0 | BE215: 0 | BF215: 0
A216: Tracking | B216: =VLOOKUP(A216,AllaSkills!$A$3:$BV$319,'Ny NPC'!$A$2+3,FALSE) -> 3 | C216: =IF(LEN(B216)=3,LEFT(B216,1),IF(LEN(B216)<3,B216,99)) -> 3 | D216: =IF(RIGHT(B216,1)="*",LEFT(B216,1),IF(LEN(B216)=3,RIGHT(B216,1),IF(LEN(B216)<3,B216,RIGHT(B216,2)))) -> 3 | E216: Perception | AC216: =SUM(F216:AB216) -> 0 | AD216: =IF(AC216<1,-25,IF(AC216>30,80+((AC216-30)*0.5),IF(AC216>20,70+(AC216-20),IF(AC216>10,50+((AC216-10)*2),AC216*5)))) -> -25 | AE216: =(IN+RE)/2 -> 5 | AF216: =HLOOKUP(Yrke,Levelbonus!$B$1:$CR$20,14,FALSE) -> 1 | AG216: =AF216*Level -> 1 | AH216: =IF(ISNUMBER(VLOOKUP($A216,Rasbonus!$A$61:$AM$295,MATCH(Ras,Rasbonus!$A$1:$AM$1,0),FALSE)),VLOOKUP($A216,Rasbonus!$A$61:$AM$295,MATCH(Ras,Rasbonus!$A$1:$AM$1,0),FALSE),"0") -> 10 | AK216: =ROUND(AD216+AE216+AG216+AH216+AI216+AJ216,0) -> -9 | AL216: =IF(F217>2,"99",IF(F217<1,0,IF(F217=1,$C217+$C217-$C217,IF(F217=2,$C217+$D217)))) -> 0 | AM216: =IF(I217>2,"99",IF(I217<1,0,IF(I217=1,$C217+$C217-$C217,IF(I217=2,$C217+$D217)))) -> 0 | AN216: 0 | AO216: 0 | AP216: 0 | AQ216: 0 | AR216: 0 | AS216: 0 | AT216: 0 | AU216: 0 | AV216: 0 | AW216: 0 | AX216: 0 | AY216: 0 | AZ216: 0 | BA216: 0 | BB216: 0 | BC216: 0 | BD216: 0 | BE216: 0 | BF216: 0
A218: Social & Subterfuge | B218: =HLOOKUP(Diverse!$G$2,'2nd'!$B$1:$CR$18,15,FALSE) -> 2 | F218: =SUM(AL219:AL237) -> 0 | G218: =SUM(AM219:AM237) -> 0 | I218: =SUM(AM219:AM237) -> 0 | J218: =SUM(AN219:AN237) -> 0 | K218: 0 | L218: 0 | M218: 0 | N218: 0 | O218: 0 | P218: 0 | Q218: 0 | R218: 0 | S218: 0 | T218: 0 | U218: 0 | V218: 0 | W218: 0 | X218: 0 | Y218: 0 | Z218: 0 | AA218: 0 | AB218: 0 | AC218: Rank | AD218: Skill | AE218: Stat | AG218: Lvl | AH218: Race | AI218: Armor | AJ218: Item | AK218: Total
A219: Diplomacy | B219: =VLOOKUP(A219,AllaSkills!$A$3:$BV$319,'Ny NPC'!$A$2+3,FALSE) -> 2/5 | C219: 2 | D219: 5 | E219: Social | AC219: 0 | AD219: -25 | AE219: =(PR+IN)/2 -> 7.5 | AF219: =HLOOKUP(Yrke,Levelbonus!$B$1:$CR$20,15,FALSE) -> 0 | AG219: 0 | AH219: =IF(ISNUMBER(VLOOKUP($A219,Rasbonus!$A$61:$AM$295,MATCH(Ras,Rasbonus!$A$1:$AM$1,0),FALSE)),VLOOKUP($A219,Rasbonus!$A$61:$AM$295,MATCH(Ras,Rasbonus!$A$1:$AM$1,0),FALSE),"0") -> 0 | AK219: -18 | AL219: =IF(F219>2,"99",IF(F219<1,0,IF(F219=1,$C219+$C219-$C219,IF(F219=2,$C219+$D219)))) -> 0 | AM219: =IF(I219>2,"99",IF(I219<1,0,IF(I219=1,$C219+$C219-$C219,IF(I219=2,$C219+$D219)))) -> 0 | AN219: 0 | AO219: 0 | AP219: 0 | AQ219: 0 | AR219: 0 | AS219: 0 | AT219: 0 | AU219: 0 | AV219: 0 | AW219: =IF(S219>2,"99",IF(S219<1,0,IF(S219=1,$C219+$C219-$C219,IF(S219=2,$C219+$D219)))) -> 0 | AX219: 0 | AY219: 0 | AZ219: 0 | BA219: 0 | BB219: 0 | BC219: 0 | BD219: 0 | BE219: 0 | BF219: 0
A220: Duping | B220: =VLOOKUP(A220,AllaSkills!$A$3:$BV$319,'Ny NPC'!$A$2+3,FALSE) -> 3/5 | C220: 3 | D220: 5 | E220: Social | AC220: 0 | AD220: -25 | AE220: =PR -> 10 | AF220: =HLOOKUP(Yrke,Levelbonus!$B$1:$CR$20,15,FALSE) -> 0 | AG220: 0 | AH220: =IF(ISNUMBER(VLOOKUP($A220,Rasbonus!$A$61:$AM$295,MATCH(Ras,Rasbonus!$A$1:$AM$1,0),FALSE)),VLOOKUP($A220,Rasbonus!$A$61:$AM$295,MATCH(Ras,Rasbonus!$A$1:$AM$1,0),FALSE),"0") -> 0 | AK220: -15 | AL220: 0 | AM220: 0 | AN220: 0 | AO220: 0 | AP220: 0 | AQ220: 0 | AR220: 0 | AS220: 0 | AT220: 0 | AU220: 0 | AV220: 0 | AW220: 0 | AX220: 0 | AY220: 0 | AZ220: 0 | BA220: 0 | BB220: 0 | BC220: 0 | BD220: 0 | BE220: 0 | BF220: 0
... 16 more rows

Sheet Bonuses
A2: Combat (Attacks) | E2: Statistics | I2: Most used skills | N2: Abilities & Drawbacks
A3: Attack | B3: With what? | C3: OB | E3: Statistic | F3: Total | G3: Current | I3: Skill | J3: Bonus | K3: Skill | L3: Bonus | N3: Cost | O3: Ability | P3: Description
A4: Primary Attack | B4: My magical mace | C4: ='Ny NPC'!$Q30 -> 25 | E4: Hit Points | F4: ='Ny NPC'!$V43 -> 25 | I4: AM Speed | J4: ='Ny NPC'!$Q6 -> -20 | K4: General Perception | L4: ='Ny NPC'!$Q17 -> 11
A5: Secondary Attack | B5: My extraordinary warhammer | C5: ='Ny NPC'!$Q31 -> 22.5 | E5: PP (incl. adder/multiplier) | F5: ='Ny NPC'!$O42 -> 5 | I5: AM Strength | J5: ='Ny NPC'!$Q7 -> 23
A6: Tert. Attack | B6: My horrible crossbow | C6: ='Ny NPC'!$Q32 -> 17.5 | E6: Initiative | F6: ='Ny NPC'!$B72 -> 0
A7: Weapon Brawling | C7: =Secondary!$AK104 -> -17
A8: Shield Bash | C8: =Secondary!$AK98 -> -10
B15: Please feel free to change the
B16: above attacks to those favored
A19: Combat (Defenses)
A20: Defense | C20: Bonus
A21: Shield skill (incl. Shield expertise) | C21: ='Ny NPC'!$Q36 -> 15
A22: Total DB (incl. Inherent) | C22: ='Ny NPC'!B53 -> 15
A23: Inherent DB | C23: ='Ny NPC'!$B51 -> 0
A24: Stunned Maneuver | C24: =Secondary!$AK100 -> -20
B29: Please feel free to change the
B30: above defensive skills to those
B31: favored

Sheet Items
A2: # | B2: Item | C2: lbs | D2: # | E2: Item | F2: lbs | G2: # | H2: Item | I2: lbs | J2: # | K2: Item (not carried) | M2: Antal | N2: Level | O2: Herb | P2: Form/Prep | Q2: Cost | R2: Effect | S2: Sideeffects/drawbacks | T2: Risk | U2: CL | V2: Max effect | W2: Time | X2: Finding
A3: 0 | B3: Example Dagger | D3: 1 | E3: Delicious Cookie | G3: 0 | H3: Example gold coins | J3: 0 | K3: Horse | O3: Concussion Relief
A4: 2 | B4: Example Waterskin | D4: 10 | E4: Example Torches | N4: 1 | O4: Abaas | P4: Leaf/Ingest | Q4: 3 bp | R4: Heals 2-12 hit points. | U4: 101 | V4: 10 | W4: 20 rnds | X4: Light
N5: 1 | O5: Akbutege | P5: Leaf/Ingest | Q5: 2 bp | R5: Heals 1-10 hit points. | U5: 623 | V5: 5 | W5: 20 rnds | X5: Easy
N6: 1 | O6: Arkasu | P6: Sap/Apply | Q6: 6 bp | R6: Heals 2-12 hit points. Doubles rate of healing for major wounds if used once per day during the healing process. | U6: 637 | V6: 5 | W6: 20 rnds | X6: Medium
N7: 4 | O7: Arlan | P7: Leaf/Apply | Q7: 3 bp | R7: Grown and prepared by healer it heals 4-9 hit points. Wild it will heal 1-6 hit points. The price is for the garden grown species. | U7: 624 | V7: 5 | W7: 20 rnds | X7: Easy
N8: 4 | O8: Caranan | P8: Leaves/Ingest | Q8: 1 bp | R8: Heals 2-4 hits. Relieves swelling. | U8: 105 | V8: 5 | W8: 20 rnds | X8: Medium
N9: 6 | O9: Carefree Mustard | P9: Leaves/Brew | Q9: 100 sp | R9: Heals all concussion hits in 1 hour. I.e after 20 minutes of drinking the brew the imbiber has been relieved of 1/3 of his taken hits. | U9: 106 | V9: — | W9: 1 hour continous effect | X9: Hard
N10: 20 | O10: Carneyar | P10: Flower/Brew | Q10: 1200 sp | R10: Instantly heals all hits and stops all bleeding. | S10: If drawback occurs, user is sluggish and slow (acts at -10) for 11-20 minutes after taking the herb. | U10: 107 | V10: — | W10: Instant | X10: Absurd
N11: 10 | O11: Cusamar | P11: Flower/Ingest | Q11: 12 sp | R11: Heals 15-60 (10+5d10) hit points. Takes 2 rounds to take effect. | U11: 625 | V11: 3 | W11: 2 rounds | X11: Extremely hard
N12: 3 | O12: Darsurion | P12: Leaf/Apply | Q12: 3 bp | R12: Heals 1-6 hit points. | U12: 626 | V12: 10 | W12: 20 rnds | X12: Light
N13: 4 | O13: Draaf | P13: Leaf/Ingest | Q13: 1 sp | R13: Heals 1-10 for each of 2 consecutive rounds (i.e 2-20 hits total). | U13: 627 | V13: 10 | W13: 2 rounds | X13: Easy
N14: 1 | O14: Dugmuthur | P14: Berry/Ingest | Q14: 5 sp | R14: Heals 10 hit points instantly. | U14: 628 | V14: 10 | W14: Instant | X14: Light
N15: 2 | O15: Fiis | P15: Resin/Apply | Q15: 5 bp | R15: Heals 1-6 hit points. | U15: 111 | V15: 10 | W15: 20 rnds | X15: Easy
N16: 6 | O16: Gariig | P16: Cactus/Ingest | Q16: 40 sp | R16: Instantly heal 30 hit points. | U16: 646 | V16: — | W16: Instant | X16: Light
A17: # | B17: Magical Items | C17: lbs | E17: Location | F17: Notes & Abilities | N17: 12 | O17: Gefnul | P17: Lichen/Ingest | Q17: 150 sp | R17: Heals 100 hit points instantly. | U17: 647 | V17: — | W17: Instant | X17: Hard
A18: 1 | B18: Example Broadsword | C18: 4 | E18: Side scabbard | F18: Magical +10 | N18: 10 | O18: Harwite | P18: Moss/Ingest | Q18: 10 sp | R18: Heals 1-50 hit points in one hour. Also mends small wounds (remove the penalty from one wound, up to -10). | V18: 3 | W18: 1 hour | X18: Extremely hard
N19: 4 | O19: Kargijak | P19: Berry/Paste | Q19: 5 sp | R19: Berries from Mordor. Healing and rejuvenating effect: user instantly regains 20 hit points. | S19: If drawback occurs, any non-orc user will be stunned for 1-2 rounds due to severe pain. The wound is certain to leave a scar in either case. | V19: — | W19: Instant | X19: Easy
N20: 8 | O20: Madarch | P20: Mushroom/Brew | Q20: 100 sp | R20: Heals all cuts and restores blood vessels in 2 hours. User is relieved of all hits taken. The herb requires user to rest or healing time will be prolonged until user rests properly. | V20: — | W20: 2 hours | X20: Very Hard
N21: 1 | O21: Mirenna | P21: Berry/Ingest | Q21: 6 sp | R21: Red berry. Heals 10 hits. Instant effect. | U21: 631 | V21: 10 | W21: Instant | X21: Light
N22: 1 | O22: Reglen | P22: Moss/Brew | Q22: 24 sp | R22: This is the cultivated variant which lacks some of the potency of the ancient moss that grows wild. It heals 5-50 hit points instantly. Since it is less potent up to 4 doses per day will have effect. | U22: 632 | V22: 4 | W22: Instant | X22: —
N23: 1 | O23: Reglen | P23: Moss/Brew | Q23: 45 sp | R23: Found wild and prepared by a skilled healer, the Reglen moss heals 50 hit points instantly. | U23: 632 | V23: 2 | W23: Instant | X23: Light
N24: 1 | O24: Rewk | P24: Nodule/Brew | Q24: 8 bp | R24: Heals 2-20 hit points over 20 rounds. | S24: If drawback occurs, user is sluggish and slow (acts at -10) for 11-20 minutes after taking the herb. | U24: 633 | V24: 10 | W24: 20 rounds | X24: Light
N25: 12 | O25: Telperion | P25: Leaf/Ingest | Q25: 70 sp | R25: Heals 10-100 hit points. | U25: 134 | V25: 2 | W25: Instant | X25: Extremely hard
N26: 1 | O26: Thurl | P26: Clove/Brew | Q26: 1 cp | R26: Heals 1-4 hit points. Brew keeps 1-2 weeks. | U26: 634 | V26: 10 | W26: 20 rnds | X26: Routine
N27: 14 | O27: Winclamit | P27: Fruit/Ingest | Q27: 90 sp | R27: Heals 3-300 hit points instantly upon ingestion. | S27: If drawback occurs, user is sluggish and slow (acts at -10) for 11-20 minutes after taking the herb. | U27: 635 | V27: — | W27: Instant | X27: Extremely hard
N28: 6 | O28: Yavethalion | P28: Fruit/Ingest | Q28: 65 sp | R28: Heals 5-50 hit points | U28: 636 | V28: — | W28: Instant | X28: Hard
N31: Level | O31: Herb | P31: Form/Prep | Q31: Cost | R31: Effect | S31: Sideeffects/drawbacks | T31: Risk | U31: CL | V31: Max effect | W31: Time/ Duration | X31: Finding
O32: Circulatory Repair
N33: 10 | O33: Anserke | P33: Root/Apply | Q33: 12 sp | R33: Stops bleeding on the wound applied to. Bleedings of 1-3 hits/rnd close in 1 rnd, 4-6 hits/rnd close in 2 rnds and 7+ hits/rnd close in 3 rnds. Require 1 hour immobility or bleeding resumes. | U33: 619 | V33: — | W33: 1-3 rnds/ 1 hr | X33: Very Hard
N34: 8 | O34: Belan | P34: Nut/Ingest | Q34: 15 sp | R34: Stops all bleeding wounds in one body. Take 1-10 rounds to take effect. Patient cannot be moved for 1 hour or bleeding will resume at half rate. | V34: — | W34: 1-10 rnds/ 1 hr | X34: Very Hard
N35: 10 | O35: Fek | P35: Nut/Brew | Q35: 15 sp | R35: Stops all bleeding wounds in one body. Take 1-10 rounds to take effect. Patient cannot be moved for 1 hour or bleeding will resume at half rate. The nut will keep a long time, but once brewed it will only have full effect for 1 week. | S35: Each week after the first provide a -10 penalty to the Herb Lore roll when using. | U35: 620 | V35: — | W35: 1-10 rnds/ 1 hr | X35: Very Hard
N36: 9 | O36: Golden Cress | P36: Fern/Apply | Q36: 10 sp | R36: Stops bleeding up to 5 hits/rnd. Take 1-5 rounds to permanently seal one wound. If used on a wound bleeding more than 5 hits/rnd the Golden Cress will halve the bleeding for as long as the target remains still. | V36: — | W36: 1-5 rnds | X36: Very Hard
N37: 16 | O37: Harfy | P37: Resin/Apply | Q37: 120 sp | R37: Powerful herb that immediately and permanently closes one bleeding wound. | U37: 621 | V37: — | W37: Instant | X37: Very Hard
N38: 18 | O38: Hugburtun | P38: Fruit/Brew | Q38: 180 sp | R38: Immediately stops any form of bleeding. All wounds will close and stops internal bleeding stops. Hugburtun restores blood vessels to normality. | U38: 622 | V38: — | W38: Instant | X38: Very Hard
N39: 11 | O39: Miretars Crown | P39: Flower/Apply | Q39: 30 sp | R39: Instantly stops bleeding of any one wound. Bleeding resumes if flowers are removed before 10 minutes have passed. | U39: 124 | V39: — | W39: Instant/ 10 min | X39: Very Hard
N40: 4 | O40: Rumareth | P40: Leaves/Brew | Q40: 5 bp | R40: Often used by the Angmarim. Stops bleeding from all wounds bleeding less than or equal to 2 hits per round. Causes bad scaring. Once the leaves have been brewed, the brew will keep for 1 week. | S40: Drawback causes user to be drowsy (-30 to all actions) for 1 hour after imbibing. Each week of storage, after the first) provide a -10 penalty to Herb Lore roll when using. | U40: 128 | V40: — | W40: Instant | X40: Very Hard
N41: 8 | O41: Sindoluin | P41: Flower/Apply | Q41: 1 sp | R41: Anti-coagulant. Will stop bleeding from one wound that bleeds up to 3 hits per round. The patient may walk and move without the bleeding reopening so long as the Sindoluin plant remains attached to the wound. | U41: 130 | V41: — | W41: Instant | X41: Easy
N42: 12 | O42: Tulaxar | P42: Leaves/Brew | Q42: 70 sp | R42: Stops all bleeding in one body. Take 3-6 rounds to take effect. Wounds will not reopen. | S42: If drawback occurs, user must RR vs a 12th level poison. Failure by 1-25 causes drowsiness (-30) for 1 hour, failure by 26+ causes heart attack, unconsciousness and possibly death (25%). | V42: — | W42: 3-6 rnds | X42: Very Hard
N45: Level | O45: Herb | P45: Form/Prep | Q45: Cost | R45: Effect | S45: Sideeffects/drawbacks | T45: Risk | U45: CL | V45: Max effect | W45: Time/ Duration | X45: Finding
O46: Antidotes
N47: 20 | O47: Arduvaar | P47: Plant/Brew | Q47: 250 sp | R47: Universal antidote. Reverse the effect of any known poison (unless target is dead). Magical herb, requires preparation of skilled alchemist. | U47: 102 | V47: — | W47: Instant | X47: Absurd
N48: 6 | O48: Argsbargie | P48: Flower/Ingest | Q48: 3 sp | R48: Antidote for muscle poisons. Does not reverse any effects, but effectively stop any further damage. | U48: 601 | V48: — | W48: 3 rnds | X48: Hard
N49: 2 | O49: Baranie | P49: Leaves/Brew | Q49: 5 bp | R49: Reduces nausea. Cures stomach disease and reduces the effects of certain poisons. Lower the effects of conversion poisons by 1 degree of severity. | U49: 104 | V49: — | W49: Varies | X49: Easy
N50: 10 | O50: Carnerem | P50: Leaf/Apply | Q50: 8 sp | R50: Delays any poison for 24 hours. | V50: — | W50: 24 hours | X50: Hard
N51: 12 | O51: Cashdir | P51: Flower/Ingest | Q51: 16 sp | R51: Antidote for muscle poison. Does not reverse any effects already taken, but stops any further damage. | V51: — | W51: Instant | X51: Very Hard
N52: 6 | O52: Culan | P52: Leaf/Brew | Q52: 12 sp | R52: Anti spasmodic. Reduce the effects of any poison. Every dose of Culan lowers the result by 1 degree of severity; i.e extreme become severe, severe become moderate etc. Mild effects are cured immediately. Culan take 3 rounds to take effect. | U52: 108 | V52: — | W52: 3 rounds | X52: Medium
N53: 9 | O53: Eldaana | P53: Leaf/Brew | Q53: 25 sp | R53: Antidote for reduction poisons. Will reverse any effects of a reduction poison over the course of 1 hour. Also reverses the effects of ‘Ugliness of Orn’ curse. | U53: 602 | V53: — | W53: 1 hour | X53: Medium
N54: 4 | O54: Elendils Basket | P54: Root/Brew | Q54: 2 sp | R54: Purifies foul, tainted water and slows the effects of poisons by x10. | U54: 649 | V54: — | W54: x10 | X54: Light
N55: 14 | O55: Flur-rort | P55: Flower/Liquid | Q55: 40 sp | R55: Antidote for nerve poisons. Will reverse all effects. The reversal take 1-10 minutes depending severity. This antidote cannot bring back anyone that has died as a result of poison. | V55: — | W55: 1-10 mins | X55: Very Hard
N56: 5 | O56: Maiana | P56: Leaf/Brew | Q56: 7 sp | R56: Halves the negative effects of lung afflications and respiratory disease (i.e halves the penalties from respiratory poisons and diseases). Take 4 hours for full effect. | V56: — | W56: 4 hours | X56: Routine
N57: 7 | O57: Menelar | P57: Cone/Brew | Q57: 10 sp | R57: Cures infections and functions as an antidote for circulatory poisons. Stops any further damage but do not reverse effects already taken place. | V57: — | W57: 20 rnds | X57: Hard
N58: 18 | O58: Mir-Melellen | P58: Nectar/Apply | Q58: 175 sp | R58: Cures and reverses the effects of any poison. Full reversion take 20 rounds. | W58: 20 rnds | X58: Extremely hard
N59: 4 | O59: Mook | P59: Berry/Ingest | Q59: 5 sp | R59: Antidote for respiratory poisons. Stops any further damage. Effects that have already taken effect is not reversed. | U59: 604 | V59: — | W59: 3 rnds | X59: Light
N60: 20 | O60: Naza | P60: Leaf/Ingest | Q60: 210 sp | R60: Aka Ul-Naza. Universal antidote with immediate effect. The Naza will cleanse the body of poisons and reverse all ill effects. Must be taken within 24 hours of poisoning. | U60: 125 | V60: — | W60: Instant | X60: Absurd
N61: 13 | O61: Quilmufur | P61: Root/Brew | Q61: 50 sp | R61: Antidote for conversion poisons. Reverse the effect of any conversion poison. | U61: 605 | V61: — | W61: Instant | X61: Extremely hard
N62: 10 | O62: Shen | P62: Leaf/Ingest | Q62: 40 sp | R62: Antidote for nerve poison. Will reverse any effects from nerve poisons in 20 rounds. | U62: 606 | V62: — | W62: 20 rnds | X62: Very Hard
N63: 4 | O63: Sorel nut | P63: Nut/Ingest | Q63: 5 cp | R63: Antidote for Nur-Oiolosse | V63: — | W63: Instant | X63: Easy
N64: 8 | O64: Sweet Sorrel | P64: Leaves/Inhale | Q64: 12 sp | R64: Incense that acts as antidote for poisonous gases. Will instantly stop the effect of any poison in gasform, but damage already done must be healed by other means. | V64: — | W64: Instant | X64: Hard
N65: 11 | O65: Taynaga | P65: Bark/Powder | Q65: 45 sp | R65: Multipurpose herb. Brownish powder sterilizes and gives 5-50 hit points within 6-12 minutes. Can also be used to neutralize Jegga poison that not yet have had effect on target. For additional description see Hands of the Healer p. 139. | U65: 912 | V65: N/A | W65: 6-12 mins | X65: Hard
N66: 20 | O66: Ul-Naza | P66: Leaf/Ingest | Q66: 210 sp | R66: Legendary antidote said to grow only in the wasteland were a Vala has walked. Will reverse the effects of any poison (even death) if taken within 1 day. | U66: 607 | V66: — | W66: Instant | X66: Sheer Folly
N67: 20 | O67: Valanar | P67: Leaf/Ingest | Q67: 80 sp | R67: Antidote for Karfar. Will reverse the effects, even death, if given within 24 hours of poisoning. | U67: 139 | V67: — | W67: 1-10 rnds | X67: Absurd
N68: 9 | O68: Vipersweed | P68: Root/Brew | Q68: 15 sp | R68: Antidote for Asgurath and most other snake venoms. Will reverse the effects instantly. | U68: 141 | V68: — | W68: Instant | X68: Medium
N69: 14 | O69: Yuth | P69: Flower/Ingest | Q69: 11 sp | R69: Antidote for nerve venoms. Will only stop the poison from doing further damage, not reverse the effects already taken. | U69: 665 | V69: — | W69: 20 rnds | X69: Sheer Folly
N72: Level | O72: Herb | P72: Form/Prep | Q72: Cost | R72: Effect | S72: Sideeffects/drawbacks | T72: Risk | U72: CL | V72: Max effect | W72: Time/ Duration | X72: Finding
O73: Bone, Nerve, Muscle and Organ Repair
N74: 5 | O74: Arfandas | P74: Stem/Apply | Q74: 5 bp | R74: Double healing rate for fractures. 1 dose per day of recovery needed. | U74: 608 | V74: — | W74: Active for 24 hrs | X74: Very Hard
N75: 1 | O75: Arnuminas | P75: Leaf/Apply | Q75: 2 bp | R75: Doubles rate of healing for sprains, torn ligaments and cartilage damage. 1 dose per day needed for effect. | S75: Drawback means healing has been faulty and user will have a permanent detriment of sorts. | U75: 655 | V75: — | W75: Active for 24 hrs | X75: Easy
N76: 6 | O76: Arpsusar | P76: Stalk/Brew | Q76: 45 sp | R76: Mends muscle damage. Will heal all damaged muscles in one body. Add 8 hours recovery time for each additional muscle damage. | U76: 656 | V76: — | W76: 8 hrs | X76: Hard
N77: 16 | O77: Baalak | P77: Reed/Brew | Q77: 220 sp | R77: Shatter repairs. Magical herb, mends shattered bones without need of surgery. The herb will only heal one shattered bone so if there are many in the users body it will target the gravest injury (usually the one that provide most penalty). | U77: 609 | V77: — | W77: 8 hours | X77: Sheer Folly
N78: 13 | O78: Baldakur | P78: Root/Brew | Q78: 90 sp | R78: Restores sight. Can repair one eye-damage as long as the eye is not completely destroyed. | U78: 666 | V78: — | W78: 8 hours | X78: Sheer Folly
N79: 11 | O79: Belramba | P79: Lichen/Brew | Q79: 60 sp | R79: Nerve repair. Will heal all damaged nerves in one body. | U79: 662 | V79: — | W79: 8 hours | X79: Very Hard
N80: 6 | O80: Boneset | P80: Root/Ingest | Q80: 10 sp | R80: Triple healing rate for fractures. Affects all fractures in a body. All fractures must be set before ingestion of the herbs. | S80: Drawback mean that bones set incorrect and may confer a permanent disability. | V80: — | W80: Varies | X80: Very Hard
N81: 14 | O81: Bursthelas | P81: Stalk/Brew | Q81: 180 sp | R81: Shatter repairs. Magical herb, mends shattered bones without need of surgery. The herb will only heal one shattered bone so if there are many in the users body it will target the gravest injury (usually the one that provide most penalty). | U81: 610 | V81: — | W81: 12 hrs | X81: Sheer Folly
N82: 10 | O82: Curfalka | P82: Fruit/Ingest | Q82: 120 sp/ 60 sp | R82: Fresh fruits will heal 1 muscle damage in 3-30 minutes, but the herb is only fresh for 3 days. If preserved it heals one muscle damage in 8 hours. If the body contains more than one damaged muscle the herb will affect the most severe injury first. | U82: 657 | V82: — | W82: 3-30 mins or 8 hours | X82: Extremely hard
N83: 5 | O83: Dagmather | P83: Spine/Brew | Q83: 30 sp | R83: Heals all cartilage damage in one damaged body. Healing take 8 hours of rest for full effect. If target continue to work or travel during the healing it take 12 hours for full effect. | U83: 658 | V83: — | W83: 8 hours | X83: Hard
N84: 4 | O84: Ebur | P84: Flower/Ingest | Q84: 12 sp | R84: Repairs sprains. All sprains, even if ligament is completely torn, will heal over a time period of 8 hours. Smaller sprains, causing a penalty of less than or equal to -15 will heal in 1 hour. | U84: 659 | V84: — | W84: 1-8 hrs | X84: Medium
N85: 12 | O85: Edram | P85: Moss/Ingest | Q85: 110 sp/ 55 sp | R85: Mends broken bones. The injured bone(s) must be set before ingestion of the herb. If herb is fresh (i.e picked within a minute) the healing time is 2 hours). If herb is preserved healing time is 8 hours. For every additional bone injury to be healed, add another 8 hour to total recovery time. Edram targets the worst wound first, usually the one with highest penalty to it. | U85: 611 | V85: — | W85: 2-8 hrs | X85: Sheer Folly
N86: 8 | O86: Febfendu | P86: Root/Brew | Q86: 42 sp | R86: Restores hearing regardless of how severe the damage to the ear is. Recovery time is between 8 hours and 1 week, depending on the severity of the damage (GM discretion). | S86: Drawback indicate a permanent reduction of hearing ability even though hearing is restored. | T86: 10 | U86: 668 | V86: — | W86: Varies | X86: Medium
N87: 13 | O87: Gildarion | P87: Leaf/Paste | Q87: 110 sp | R87: Major organ repair. Recovery time is 1-10 days depending on the severity of the wound. | S87: Drawback indicate a lowered function of the healed organ, such as persistent pain causing a permanent -5 penalty. | T87: 5 | U87: 113 | V87: — | W87: 1-10 days | X87: Extremely hard
N88: 6 | O88: Gorfon | P88: Fruit/Ingest | Q88: 38 sp | R88: Heals one nerve damage. | S88: Drawback causes user to go into sleep lasting for 11-20 hours. | V88: — | W88: 8 hours/ 11-20 hrs | X88: Hard
N89: 10 | O89: Gursamel | P89: Stalk/Apply | Q89: 66 sp | R89: Mends one broken bone. It take 6 hours of total rest (immobility) for full effect. If the victim is moved the herb will not take full effect (i.e some penalty will remain even when 6 hours has passed). | U89: 612 | V89: — | W89: 6 hours | X89: Extremely hard
N90: 11 | O90: Hegheg | P90: Root/Paste | Q90: 14 sp | R90: Heals one damaged cartilage in 8 hours. | U90: 660 | V90: — | W90: 8 hours | X90: Sheer Folly
N91: 10 | O91: Hoak-Foer | P91: Flower/Ingest | Q91: 50 sp | R91: Cures mental diseases in 1-6 days depending on severity. Will also cure mind loss (i.e stat loss in any non-physical stat). Stats temporary lowered by Stat Gain rolls or spells are increased by 1 point per day after the herb is ingested until it reach its former value. | S91: If drawback occurs, the ingester of the herb suffer a temporary loss of movement for 1-10 weeks. During this period user is at -15 to all moving maneuvers. | T91: 10 | U91: 805 | V91: — | W91: 1-6 days | X91: Easy
N92: 11 | O92: Kakduram | P92: Fruit/Ingest | Q92: 130 sp | R92: Restores hearing unless the ear is totally destroyed. | S92: Drawback indicate a permanent reduction of hearing ability even though hearing is restored. | U92: 669 | V92: — | W92: 20 rnds | X92: Extremely hard
N93: 9 | O93: Klandun | P93: Fern/Ingest | Q93: 150 sp | R93: Cures paralysis. Immediate effect. | U93: 118 | V93: — | W93: Instant | X93: Very Hard
N94: 20 | O94: Kolandor | P94: Leaves/Apply | Q94: 900 sp | R94: Regenerates limbs in 6 months. | S94: If drawback occurs, a malformed and useless limb will grow back. | U94: 120 | V94: — | W94: 6 months | X94: Absurd
N95: 15 | O95: Laurre | P95: Flower/Ingest | Q95: 150 sp | R95: Cures Morgurth in 24 hours. Also usable to awaken anyone from almost any sleep, catatonia or coma condition (take 1-10 rounds). | U95: 121 | V95: — | W95: 24 hours | X95: Absurd
N96: 12 | O96: Numenelos | P96: Moss/Powder | Q96: 366 sp | R96: Complete nerve regeneration in 1-100 minutes (depending on severity of injury, a damaged nerve causing a -10 penalty should take a minute while a completely destroyed nervous system would take 100 minutes). | V96: — | W96: 1-100 min | X96: Hard
N97: 10 | O97: Siran | P97: Clove/Ingest | Q97: 95 sp | R97: Restoration of 1 damaged organ. | S97: The drawback on Siran is a rare skin disease that develops over 24 hours. Targets AP is lowered by 33% and the effects is even worse (50%) if skin is exposed to full sunshine. The disease will disappear in 1 week. | U97: 671 | V97: — | W97: 1 hour | X97: Very Hard
N98: 10 | O98: Tarnas | P98: Nodule/Brew | Q98: 165 sp | R98: Repairs all damaged organs in one body. | S98: If drawback occurs, user will be totally incapacitated for the duration (i.e 8 hrs) due to nausea and vomitting. | U98: 673 | V98: — | W98: 8 hours | X98: Very Hard
N99: 14 | O99: Tatharsul | P99: Bread/Ingest | Q99: 450 sp | R99: Repairs nervous system to normal in 1-10 rounds. | U99: 715 | V99: — | W99: 1-10 rnds | X99: Light
N100: 2 | O100: Terbas | P100: Leaf/Apply | Q100: 15 sp | R100: Heals nerve damage. Require 1 day per -10 penalty for recovery. A nerve damage causing victim a -30 penalty will heal in 3 days with the help of Terbas. | U100: 663 | V100: — | W100: 1-10 days | X100: Light
N101: 11 | O101: Ucason | P101: Grass/Smoke | Q101: 36 sp | R101: Cures blindness from nerve damage, spells or any reason as long as the eye is not physically destroyed. | U101: 137 | V101: — | W101: 2-20 rnds | X101: Extremely hard
N102: 11 | O102: Ul-Ucason | P102: Grass/Smoke | Q102: 150 sp | R102: A magically enhanced variant of the Ucason herb. Restores eye-sight to any victim even if eyes are destroyed. | U102: 138 | V102: — | W102: 4-40 rnds | X102: Sheer Folly
N103: 16 | O103: Wek-wek | P103: Nodule/Brew | Q103: 300 sp | R103: Magical herb that repairs all damaged organs in one body within 2-20 rounds. | U103: 674 | V103: — | W103: 2-20 rnds | X103: Sheer Folly
N104: 16 | O104: Wifurwif | P104: Lichen/Ingest | Q104: 420 sp | R104: Nerve repairs. | U104: 664 | V104: — | W104: 20 rnds | X104: Extremely hard
N107: Level | O107: Herb | P107: Form/Prep | Q107: Cost | R107: Effect | S107: Sideeffects/drawbacks | T107: Risk | U107: CL | V107: Max effect | W107: Time/ Duration | X107: Finding
O108: Nutrition
N109: 10 | O109: Chap Beech Nut | P109: Nut/Ingest | Q109: 15 bp | R109: 1 days nutrition. | V109: — | W109: 1 day | X109: Very Hard
N110: 1 | O110: Cram | P110: Bread/Ingest | Q110: 13 bp | R110: Dwarven waybread. A 4 oz slice provide 1 days nutrition. A 10-slice loaf costs 13 sp. Keeps 7 weeks if stored dry. Tastes of mushrooms. | U110: 712 | V110: — | W110: 1 day | X110: Easy
N111: 6 | O111: Furry Oak Acorn | P111: Nut/Ingest | Q111: 12 bp | R111: 1 nut provide 1 days nutrition. However one cannot live for more than 7 days on Furry Oak Acorns without suffering nutrition shortage. | V111: 1 | W111: 1 day | X111: Medium
N112: 12 | O112: Grapeleaf | P112: Nectar/Ingest | Q112: 7 sp | R112: 1 days nutrition. If taken before going to sleep it also causes dreams for 2 hours. The dreams often come true. Target has +50 bonus to Divination for these 2 hours. | S112: Drawback mean target involuntarily falls asleep unless a RR vs the herbs level is made. | U112: 717 | V112: 1 | W112: 1 day/ 2 hours | X112: Very Hard
N113: 6 | O113: Hiam | P113: Moss/Ingest | Q113: 5 bp | R113: 1 days nutrition. Those who ingest Hiam moss find themselves alert and vigorous for 24 hours. Can be used for max 4 consecutive days. After that time a user must rest (or be at -75 to all activity) for twice as many days as he have used the herb. | S113: Drawback: outside the hillmen society some people are allergic to Hiam moss, causing them to suffer convulsions and eventually dying a horribly torturous death if RR fails by 21+. | V113: — | W113: 24 hours | X113: Hard
N114: 6 | O114: Kujanikapurd | P114: Mushroom/Ingest | Q114: 5 sp | R114: 1 days nutrition. | S114: If drawback occur, user will be drowsy and unbalanced, all maneuvers at -30 for the day. | V114: 1 | W114: 1 day | X114: Medium
N115: 1 | O115: Lembas | P115: Bread/Ingest | Q115: N/A | R115: Elven waybread. Lembas feeds the will, providing +15 to RR vs disease, poisons and will contests (SD) and +15 Exhaustion points. It keeps for many years without deteriation. 1 thin cake sustains a full grown man for 1 day. | V115: — | W115: 1 day | X115: Absurd
N116: 6 | O116: Lemsang | P116: Mushroom/Ingest | Q116: 11 sp | R116: Dwarven mushroom. Dried, it keeps for many weeks without deteriation. 1 weeks nutrition. | V116: — | W116: 1 week | X116: Hard
N117: 6 | O117: Nelisse | P117: Leaf/Brew | Q117: 8 bp | R117: 1 days nutrition. | S117: Drawback indicates that after drinking the brew user become sluggish and tired, performing at -50 for 1 hour. | U117: 807 | V117: — | W117: 1 day | X117: Hard
N118: 6 | O118: Ukur | P118: Nut/Ingest | Q118: 6 bp | R118: One nut equals one days nutrition. | S118: Drawback indicate user has a -10 due to hunger, unless something else is ingested. | U118: 650 | V118: — | W118: 24 hours | X118: Medium
N119: 1 | O119: Ulginor | P119: Bread/Ingest | Q119: 15 bp | R119: 1 days nutrition per slice. Keeps 1-2 months. Tastes of cheese & spinach. A 10 slice loaf costs 15 sp. | U119: 716 | V119: — | W119: 24 hours | X119: Routine
N122: Level | O122: Herb | P122: Form/Prep | Q122: Cost | R122: Effect | S122: Sideeffects/drawbacks | T122: Risk | U122: CL | V122: Max effect | W122: Time/ Duration | X122: Finding
O123: General Purpose Herbs
N124: 6 | O124: Ajkara | P124: Incense/Smoke | Q124: 30 sp | R124: Truth serum. RR failure by 1-25 put victim at -10 for 1-10 hours. Victim behave slow and drugged. RR failure by 26-50 results in -20 and victim being easy to interrogate (+50 to any Lie Perception rolls). RR failure by 51+ results in target being unable to lie. | U124: 202 | V124: — | W124: 1-10 hrs | X124: Medium
N125: 11 | O125: Ankii | P125: Berry/Ingest | Q125: 17 sp | R125: Equals 8 hours of good sleep. Dangerous to use for prolonged periods. If used twice per week = 5 points of CON loss, thrice = lose 15 pts, four times = lose 30 pts. Four times = RR or coma. | S125: Drawback lowers CON-stat (temp) by 1. Overuse is dangerous. | U125: 676 | V125: — | W125: Active for 24 hrs | X125: Extremely hard
N126: 1 | O126: Arlan | P126: Root/Ingest | Q126: 1 cp | R126: Decongestant. +20 RR vs common cold. Speeds recovery rate from respiratory ills by 5x. One dose per day. | U126: 638 | V126: — | W126: Active for 24 hrs | X126: Easy
N127: 3 | O127: Arunya | P127: Root/Brew | Q127: 6 bp | R127: Causes deep sleep (unconsciousness) for 1-4 hours. Every hour slept equals 4 hours of normal rest. User runs the risk of addiction if used for 2 or more consecutive days. | S127: Drawback causes addiction. First use has regular drawback factor. Second day use increases drawback by 15. If user take more than one dose per 8 hour period it will act as a Mild conversion poison. | T127: 0/15 | U127: 801 | V127: — | W127: 20 rnds/ 1-4 hrs | X127: Light
N128: 10 | O128: Athelas | P128: Leaf/Brew | Q128: 5 bp | R128: Cures anything on the living. Full effect only in the hands of a true king, in which it may substitute nearly every other herb known. Hastens the healing process (x3), neutralizes minor poisons, slows major poisons and staves off supernatural maladies. | S128: Does not bring back the dead. | U128: 639 | V128: — | W128: Varies | X128: Hard
N129: 4 | O129: Attanar | P129: Moss/Apply | Q129: 6 sp | R129: Cures fever in 24 hours. | U129: 640 | V129: — | W129: 24 hours | X129: Medium
N130: 20 | O130: Awn | P130: Bark/Brew | Q130: 750 sp | R130: Joins limbs. Require complete immobility. | S130: Drawback causes enormous and lasting pains from the joined limb, equaling a permanent -10 penalty to all activity including use of limb. | U130: 103 | V130: — | W130: 8 hours | X130: Absurd
N131: 5 | O131: Brorkwilb | P131: Flower/Ingest | Q131: 18 sp | R131: Allows shared dreams with a family member within 100 miles/level. Lasts for 8 hours during which person is asleep and may communicate (full duplex) with his family member. | S131: Drawback results in either (01-33) that herb has no effect or (34-66) that the shared dreams is with an entirely random target or (67-100) that the user gets a vision of something else, important or unimportant. | T131: 15 | U131: 802 | V131: — | W131: 8 hrs | X131: Light
N132: 10 | O132: Cicino | P132: Leaf/Brew | Q132: 7 sp | R132: 1 dose provide +40 RR vs disease for 3 days and will provide a second RR for anyone already incubated. | V132: 1 | W132: 3 days | X132: Very Hard
N133: 3 | O133: Delrean | P133: Bark/Apply | Q133: 1 bp | R133: Repels any insect. Smells foul within a 50 feet radius. | U133: 641 | V133: — | W133: 12 hrs | X133: Easy
N134: 12 | O134: Faghiu | P134: Flower/Brew | Q134: 100 sp | R134: Love potion made from the magical Vanimelda flower. If imbibed the target will be faithful and loving versus the one who administers the potion or has worn it close to his heart for a prolonged period of time. The effect will last for 1-100 days (1 day per 1 failure up to 100). For more rules on Love Potions, see the Hands of the Healer p.147. | S134: Drawback will cause equally strong emotions, but of other types: i.e hate, anxiety, fear, sorrow etc, in target. | T134: 10 | V134: — | W134: 1-100 days | X134: Very Hard
N135: 7 | O135: Felmather | P135: Leaf/Ingest | Q135: 50 sp | R135: Mental summons of 1 friend (folk or beast) within 300' per level of user. This herb also serve as a powerful coma relief, awakening the comatose victim within 1-10 minutes of ingestion. | S135: Drawback will cause the attention of other, maybe hostile, beasts of the area. | T135: 15 | U135: 642 | V135: — | W135: Varies | X135: Hard
N136: 10 | O136: Fleabane | P136: Leaves/Apply | Q136: 3 bp | R136: Repels blood sucking insects. Comes in powder and juice form. The powder keeps for several months while the juice must be used with one week. | V136: — | W136: 1 day | X136: Extremely hard
N137: 10 | O137: Fukavar | P137: Flower/Smoke | Q137: 22 sp | R137: Allows mental summons of 1 friend within 20 miles. The summons take 20 rounds to perform and user may NOT communicate with the summoned friend by use of this herb. The summoned friend will know the distance and direction towards his friend for 24 hours. | S137: Drawback awakens the interrest of someone else than desired. Perhaps a Faerië or other being of the twilight world? | T137: 20 | U137: 112 | V137: — | W137: Varies | X137: Very Hard
N138: 13 | O138: Harlindar | P138: Plant/Brew | Q138: 24 sp | R138: Assures safe childbirth. Harlindar tea shall be consumed one cup every morning the entire labor for full effect. The price noted covers a whole 9 months. | S138: Drawback need only be rolled for once during the entire treatment. If drawback occur, child will be delivered safely, but mother might die (10% risk, depending on circumstances). | U138: 115 | V138: — | W138: 9 months | X138: Hard
N139: 10 | O139: Hevik | P139: Leaves/Ingest | Q139: 12 sp | R139: Intoxicant. Induces sleep for 11-20 hours. RR vs 10th lvl if ingested. RR vs 3rd lvl if smoked. | S139: Drawback causes spastical cramps, user will be out/prone for 1-10 rounds, thereafter at -10 to all activity. Nerve damage. | U139: 218 | V139: — | W139: 11-20 hours | X139: Very Hard
N140: 6 | O140: Hugar | P140: Root/Ingest | Q140: 1 sp | R140: Harmless circulatory poison. Causes sleep and deep unconsciousness within 6-12 rounds of ingesting. Sleep lasts for 1 hour per 10 failure, but no longer than 3 hours maximum. 1 hours sleep equals 4. | S140: Drawback equals the same effects as from a Mild circulatory poison. | T140: 10 | U140: 805 | V140: Mild | W140: Varies | X140: Medium
N141: 10 | O141: Joef | P141: Plant/Ingest | Q141: 20 sp | R141: Allows mental summons of 1 sentient friend from up to 1 mile'/lvl. The friend know that he has been summoned but has no obligation to go to the summoner (i.e he is in no way forced). The process take 3 rounds of concentration. The summoned friend will know the distance and direction towards his friend for 24 hours. | U141: 683 | V141: — | W141: 3 rounds | X141: Light
N142: 4 | O142: Klynyk | P142: Oyster/Apply | Q142: 2 sp | R142: Removes hair for several days. Take 12-24 hours to take effect. | U142: 119 | V142: — | W142: 12-24 hours | X142: Easy
N143: 2 | O143: Latha | P143: Stem/Brew | Q143: 3 sp | R143: Cures common cold in 1-10 hours depending on severity. Provide +10 to RR vs disease for 24 hours. Heals 1-2 hit points over 20 rnds. | U143: 643 | V143: — | W143: 1-10 hours | X143: Medium
N144: 18 | O144: Lestagii | P144: Crystal/Ingest | Q144: 75 sp | R144: When ingested the user falls into a deep sleep lasting for 24 hours. During that time any stat loss other than due to age will be restored (up to a full potential). Each dose affects only one stat. | S144: Drawback indicate herb has no beneficial effect and user falls asleep 25-34 hours (24 + 1d10) within 1-10 minutes of ingestion. | T144: 15 | U144: 694 | V144: — | W144: 24 hours | X144: Absurd
N145: 9 | O145: Lichen Gloriosa | P145: Lichen/Apply | Q145: 2 sp | R145: Sharpens swords to cut even stone. The effects last for 1-10 strokes. Provide non-magical weapons with an additional +5 OB for 1-10 attacks, depending mostly on what armor the enemy wears. | V145: — | W145: Varies | X145: Extremely hard
N146: 10 | O146: Lu-jy-Mirenna | P146: Berry/Ingest | Q146: 10 sp | R146: Beneficial visions. Powerful hallucinogen that puts user at -15 to all actions for 1-10 hours during which he has visions of the future, the present and the past. | S146: The herb still work even if drawback is rolled, but the visions are then so disturbing that the character must resist (with SD-bonus) not to act upon them. | T146: 20 | V146: — | W146: 1-10 hours | X146: Extremely hard
N147: 1 | O147: Nelthandon | P147: Plant/Ingest | Q147: 1 bp | R147: Emetic. Induces vomiting in 20 mins. Vomitting lasts for 1-2 hours and puts victim at -20 while it lasts. | U147: 126 | V147: — | W147: 20 mins/ 1-2 hours | X147: Routine
N148: 1 | O148: Red Willow | P148: Leaf/Brew | Q148: 5 bp | R148: Herb commonly found in Dagorlad swamp. Cures fever. Also doubles the effect of the common healing herb Thurl. Relieves pain and swelling. Only 1 dose can have effect per day. | S148: If drawback occur, or more than 5 doses are used at the same time, user (1-50) suffer nausea (-20), (51-75) falling blood pressure (25% risk each round of passing into unconsciousness) or (76-100) coma. | U148: 127 | V148: 1 | W148: 6 hours/ 24 hours | X148: Easy
N149: 3 | O149: Silraen | P149: Plant/Brew | Q149: 5 bp | R149: Analgesic. Smells so strong that it cannot be hidden in food or drink. When consumed target must resist vs 4th lvl (poison) or fall asleep. The sleep is deep and unwakable. Usually used during surgical operations due to it's lack of harmless side-effects. | S149: Drawback does not interfere with the herbs positive qualities, but adds a terrible headache (-15) for 1-10 hours after awakening. | T149: 5 | U149: 129 | V149: — | W149: 20 rnds/ 1-10 hours | X149: Easy
N150: 1N | O150: Sulimquelote | P150: Flower/Brew | Q150: 2 sp | R150: Fragrant scent for 1-4 hours. "For the Ladies". Rub some on the skin. One bottle lasts for 4 weeks for a day-to-day user. | V150: — | W150: 1-4 hours | X150: Medium
N151: 1 | O151: Tharm | P151: Kelp/Apply | Q151: 15 bp | R151: Sun lotion. Protects versus the extreme sun in the deserts of southern Middle Earth. The price noted is for a 8 oz bottle (225 gr) which lasts for about 1 week during normal use. | U151: 135 | V151: — | W151: Instant/ 24 hours | X151: Routine
N152: 8 | O152: Tukamur | P152: Grass/Brew | Q152: 9 sp | R152: Euphoric. Allows shared dreams with friend(s) similarly affected within 50 miles/level. The range is counted on the highest level friend. This herb causes addiction in all cases (see rules for withdrawal) which lower its popularity. | T152: 100 | U152: 810 | V152: — | X152: Medium
N155: Level | O155: Herb | P155: Form/Prep | Q155: Cost | R155: Effect | S155: Sideeffects/drawbacks | T155: Risk | U155: CL | V155: Max effect | W155: Time/ Duration | X155: Finding
O156: Physical Enhancement
N157: 10 | O157: Agaath | P157: Berry/Ingest | Q157: 10 sp | R157: Enable user to act normal without having to breath. Protects against inhalable poisonous gases and provide the ability to be under water for 5 minutes. | S157: Drawback confers a lung disease breaking out within 1-4 days of ingesting the Agaath. User is at -25 until a RR is made (minimum two full days). | U157: 675 | V157: — | W157: 5 min | X157: Easy
N158: 4 | O158: Alshana | P158: Bread/Ingest | Q158: 12 sp | R158: Dwarven bread, provided to the guests of dwarven underground cities to aid them in the dark caverns. Provide nightvision 300' (i.e user still need a torch or lantern to see) for 1 hour. Keeps 6-8 weeks. Seldom sold on the open market. | U158: 701 | V158: — | W158: 1 hr | X158: Easy
N159: 8 | O159: Atigax | P159: Root/Brew | Q159: 10 sp | R159: Prevents blindness due to sudden or blinding light. Lasts 9 hours. User is immune to Sudden Light. | U159: 677 | V159: — | W159: 9 hrs | X159: Medium
N160: 15 | O160: Blue Eyes | P160: Flower/Brew | Q160: 14 sp | R160: x3 vision (+25 visual perception) and 50' infravision for 3 hours. Usable once per day. | U160: 679 | V160: 1 | W160: 3 hours | X160: Extremely hard
N161: 17 | O161: Boskone | P161: Powder/Inhale | Q161: 12 sp | R161: Effect equals a Nature's Awareness spell lasting for 11-20 rounds. Require concentration. | S161: Drawback confers a severe headache that puts user at -10 for 1-8 hours. | T161: 5 | V161: — | W161: 11-20 rnds | X161: Sheer Folly
N162: 12 | O162: Breldiar | P162: Flower/Ingest | Q162: 50 sp | R162: Euphoric. Subtracts 30 from moving maneuvers and melee. Add +50 to missile attacks and directed spells. Lasts for 1 hour. | U162: 678 | V162: — | W162: 1 hour | X162: Medium
N163: 8 | O163: Chrume | P163: Mushroom/Ingest | Q163: 15 sp | R163: Imbiber has +20 to CO & PR for 1-10 hours. -10 to AG & QU for the same time period. Euphoric and addictive. | S163: Drawback indicate an addiction to the herb. See addiction rules in Gamemaster Law, p. 90. | V163: AF | W163: 1-10 hours | X163: Medium
N164: 12 | O164: Ecsasse | P164: Clove/Brew | Q164: 16 sp | R164: Imbiber is immune to mind attacks and mind disease for the duration (1-10 hours). | V164: — | W164: 1-10 hrs | X164: Very Hard
N165: 6 | O165: Feduilas | P165: Flower/Smoke | Q165: 11 cp | R165: Intoxicant. Provide +20 to RR vs Mentalism and Essence, but also -10 to Agility and Quickness stats for 1-5 hours. | S165: Drawback indicate an addiction to the herb. See addiction rules in Gamemaster Law, p. 90. | T165: 15 | V165: AF | W165: 1-5 hrs | X165: Hard
N166: 4 | O166: Galenas | P166: Leaf/Smoke | Q166: 1 bp | R166: Relaxing intoxicant. User feels happy, but is slow and acts at -75 for 1-10 rounds. The euphoric feeling continue for 1-6 hours, during which user is at a mere -10. | S166: Drawback indicate an addiction to the herb. See addiction rules in Gamemaster Law, p. 90. | U166: 803 | V166: AF | W166: 1-10 rnds | X166: Medium
N167: 5 | O167: Gort | P167: Leaf/Ingest | Q167: 13 cp | R167: Narcotic intoxicant. User has +10 to Presence and Appearance stat-bonus for 2 hours. After that user will be at -50 to all activities for 1-10 hours. | S167: Drawback indicate an addiction to the herb. See addiction rules in Gamemaster Law, p. 90. | T167: 5 | U167: 803 | V167: AF | W167: Varies | X167: Hard
N168: 12 | O168: Gylvir | P168: Algae/Ingest | Q168: 62 sp | R168: Enables imbiber to breathe under water for 4 hours. | S168: If drawback occurs, user is not able to breathe air for the entire duration of the herb. | U168: 681 | V168: — | W168: 4 hours | X168: Very Hard
N169: 13 | O169: Kilmakur | P169: Root/Brew | Q169: 19 sp | R169: Protects versus flame and heat for 1-10 hrs. Character has a +30 DB vs all heat attacks. | U169: 685 | V169: — | W169: 1-10 hours | X169: Extremely hard
N170: 7 | O170: Klagul | P170: Bud/Brew | Q170: 15 sp | R170: Provides elven eyesight for 6 hours. Imbiber can see perfectly at night (300') without lightsource as long as there is starlight. Also confers a slight infravision (30') so that things that emanate heat are more visible in darkness. | S170: If drawback occurs, user gets a horrible migraine, beginning within 6-10 hours and lasting 1-10 hours. This head ache gives user a -25 to all actions. | U170: 686 | V170: — | W170: 6 hrs | X170: Light
N171: 6 | O171: Kykykyl | P171: Bread/Ingest | Q171: 66 sp | R171: Haradrim bread, secret recipe. Made from a plethora of quite common herbs. Allows one to see with perfect clarity for 1 hour regardless of environment or injuries. Keeps 2-20 weeks. | U171: 714 | V171: — | W171: 1 hour | X171: Easy
N172: 12 | O172: Lothnimgil | P172: Flower/Ingest | Q172: 26 sp | R172: Elven flower, grows in and near Lothlorien. Heals user of 1-10 hit points. Provide extended self-confidence and allows additonal +5 to all actions for 24 hours. | V172: — | W172: 20 rnds/ 24 hrs | X172: Extremely hard
N173: 10 | O173: Marku | P173: Nut/Ingest | Q173: 22 sp | R173: Provides user with infravision (100') for 6 hours. This vision is able to see through even magical darkness. | U173: 687 | V173: — | W173: 6 hours | X173: Very Hard
N174: 10 | O174: Megillos | P174: Leaf/Ingest | Q174: 4 sp | R174: Aka. Megilloth. If eaten fresh: increases visual perception by 50-500% for 10 mins. If roasted the range of vision lasts for 4-8 hours. Usually this herb confers a +10 perception modification for the duration. | S174: Drawback confers headache and dizziness (-10 penalty for all manuevers other than perception) for the duration. | U174: 688 | V174: — | W174: Varies | X174: Light
N175: 12 | O175: Merrig | P175: Thorn/Brew | Q175: 2 sp | R175: Daily ingestion for 10 consecutive days increases PR and AP-stat by 5 (cannot exceed 102). Interruption and withdrawal from a habit of Merrig use means loss of stats (-10 CO, -5 RE, -5 PR and -5 AP). | S175: Drawback indicate an addiction to the herb. See addiction rules in Gamemaster Law, p. 90. | T175: 15 | U175: 695 | V175: AF | W175: 10 days | X175: Sheer Folly
N176: 10 | O176: Phacalus | P176: Root/Ingest | Q176: 3 sp | R176: A herb used by the Beffraen in their religious ceremonies. PR, IN, EM, RE & EQ are increased by 1 permanently (cannot exceed 102). The Beffraen have, due to genetic differences, no increased drawback risk on this herb. | S176: Drawback puts user into coma for 4 days all stats are decreased by 15. Complex description, see Hands of the Healer p.128. | T176: 10 | U176: p.128 | V176: — | W176: 1 hr | X176: Light
N177: 11 | O177: Rud-tekma | P177: Fruit/Ingest | Q177: 38 sp | R177: Magical herb from the east. Increases Base Spell Casting by +20 for 1 hour. All moving maneuvers and OB are at -20. There is 10% chance for every spell cast while under effect of Rud-Tekma that the spell unintenionally is cast on nearest target. | U177: 689 | V177: — | W177: 1 hour | X177: Very Hard
N178: 8 | O178: Sha | P178: Flower/Brew | Q178: 8 sp | R178: Provide a 300' nightvision for 1-5 hours. | S178: Drawback causes user to suffer a (-20 penalty) diahorrea, starting 11-20 hours after consumption, lasting for 1-5 days. Many of the Hillmen of the Trollshaws are immune to this side effect. | T178: 10 | V178: — | W178: 1-5 hours | X178: Very Hard
N179: 3 | O179: Sweet Galenas | P179: Leaf/Smoke | Q179: 1 sp | R179: Euphoric relaxant. All within 10' radius are relaxed and anyone directly inhaling the smoke will be stoned (-75 to all maneuvers for 1-10 rounds). | S179: Drawback indicate an addiction to the herb. See addiction rules in Gamemaster Law, p. 90. | T179: 10 | U179: 132 | V179: AF | W179: 1-10 rnds | X179: Easy
N180: 4 | O180: Tartiella | P180: Leaf/Smoke | Q180: 8 bp | R180: Euphoric. All stats drop by 10 for 1-10 hours. For more detailed description, see Hands of the Healer p. 139. | S180: Drawback indicate an addiction to the herb. See addiction rules in Gamemaster Law, p. 90. | T180: 10 | V180: AF | W180: 1-10 hours | X180: Light
N181: 12 | O181: Thembitul | P181: Flower/Ingest | Q181: 36 sp | R181: Provide +50 RR vs disease and poisons. | V181: — | W181: 24 hours | X181: Sheer Folly
N182: 5 | O182: Trudurs | P182: Moss/Brew | Q182: 2 sp | R182: Provide +10 to RR versus disease for 6-10 days. | U182: 644 | V182: — | W182: 6-10 days | X182: Medium
N183: 2 | O183: Yaran | P183: Pollen/Ingest | Q183: 17 bp | R183: Increased sensitivity to smell and taste allows user to detect poisons (and other things) on blades or in food. +50 to all perception based on smell/taste for 1 hour, including Poison perception. | U183: 691 | V183: — | W183: 1 hour | X183: Easy
N184: 6 | O184: Zur | P184: Fungus/Brew | Q184: 27 sp | R184: Enhances smell and hearing for 1 hour. The hearing range is increased by x3 and that will provide +50 to perception based on hearing. | U184: 693 | V184: — | W184: 1 hour | X184: Medium
N187: Level | O187: Herb | P187: Form/Prep | Q187: Cost | R187: Effect | S187: Sideeffects/drawbacks | T187: Risk | U187: CL | V187: Max effect | W187: Time/ Duration | X187: Finding
O188: Burn and Exposure Relief
N189: 6 | O189: Alambas | P189: Grass/Apply | Q189: 6 sp | R189: Heals 4 square feet of any burns. Relieving any hit points and penalties from that injury. As a rule of thumb, one dose of Alambas is enough to heal the injuries from one heat critical. | U189: 613 | V189: — | W189: 8 hrs | X189: Medium
N190: 1 | O190: Aloe | P190: Leaf/Apply | Q190: 1 bp | R190: Double healing rate for minor burns. Immediately heals 5 hit points from burns. For medium or major burns five or ten times the dosage is needed for the same healing effect. | U190: 614 | V190: — | W190: Active for 24 hrs | X190: Medium
N191: 10 | O191: Culkas | P191: Leaf/Apply | Q191: 36 sp | R191: 1 dose heals the effects of any type of burns (one critical). This herb completely negate any hit points and penalties taken from burns. Full healing take 1 hour but the wound is tender for a few more days. | U191: 615 | V191: — | W191: 1 hour | X191: Medium
N192: 9 | O192: Himros | P192: Leaves/Apply | Q192: 15 sp | R192: Cures burns. Will heal the injuries from 1 wound in 8 hours (including penalties and hits). Also relieves Pangwood inflammation. | U192: 116 | V192: — | W192: 8 hours | X192: Very Hard
N193: 6 | O193: Jojojopo | P193: Leaf/Apply | Q193: 5 sp | R193: Cures frostbite. Heals 2-20 hits and relieves penalties by 10 from wounds caused by cold. | U193: 616 | V193: — | W193: 20 rnds | X193: Medium
N194: 8 | O194: Kelventari | P194: Berry/Rub | Q194: 9 sp | R194: 1 dose heals the effects of a 1st or 2nd degree burn (one critical, "A" take 1 hour, "B" take 2 hours, "C" take 4 hours, "D" take 6 hours and "E" take 8 hours to heal). The herb also instantly relieves 1-10 hit points delivered by burns. | U194: 617 | V194: — | W194: 1-8 hours | X194: Light
N195: 12 | O195: Telek | P195: Berry/Apply | Q195: 48 sp | R195: Cures frostbite in 10 rounds. Can be used on one wound inflicted by frostbite. Halves penalties and bleeding by half and heal 3-30 hit points resulting from cold. | V195: — | W195: 10 rnds | X195: Very Hard
N196: 10 | O196: Veldurak | P196: Kelp/Apply | Q196: 32 sp | R196: Cures frostbite. Heals 1-50 hits and lowers a penalty by 15 from a wound resulting from cold. | U196: 618 | V196: — | W196: 20 rnds | X196: Hard
N197: 10 | O197: Vessin | P197: Clams/Apply | Q197: 30 sp | R197: Cures 2nd degree burns (a burn from either an "A", "B" or "C" severity critical) in 20 rnds or 3rd degree burns ("D" or "E" severity critical) in 8 hours. Vessin will completely remove all hits and penalties resulting from burn. | U197: 140 | V197: — | W197: 20 rnds (8 hours) | X197: Hard
N200: Level | O200: Herb | P200: Form/Prep | Q200: Cost | R200: Effect | S200: Sideeffects/drawbacks | U200: CL | V200: Max effect | W200: Time/ Duration | X200: Finding/ Preparing
O201: Poisons and Rotten things
N202: 10 | O202: Acaana | P202: Flower/Paste | Q202: 350 sp | R202: Nerve poison. Black paste that destroys nervous system. RR failure by 01-15 results in a destroyed nervous system and incapacitated victim. RR failure by 16-30 sends victim into a coma. RR failure by 31+ results in instant death. | T202: — | U202: 916 | V202: N/A | W202: Instant | X202: Absurd
N203: 10 | O203: Adder Venom | P203: Venom/Paste | Q203: 80 sp | R203: Muscle poison. RR failure with 1-25 results in a pseudoparalysis causing -2 per 1 failure for 5-10 rounds. Failure with 26-50 results in similar paralysis for 11-20 rounds. RR failure by 51+ equals death due to heart failure in 6 rounds. | T203: — | U203: 201 | V203: N/A | W203: 1 round/ Varies | X203: Extremely hard
N204: 2 | O204: Ancalthur | P204: Grass/Liquid | Q204: 25 sp | R204: Circulatory poison. RR failure by 1-15 incapacitates victim for 1-5 hours (-100). RR failure by 16-30 results in incapacitation for 6-10 hours. RR failure by 31+ results in death due to oxygen starvation. | T204: — | U204: N/A | V204: N/A | W204: 3-6 rnds/ 1-5 hrs or 6-10 hrs | X204: Sheer Folly
N205: 2 | O205: Angurth | P205: Bacteria/Paste | Q205: N/A | R205: Bubonic disease. Cause fever and nausea for 2-10 days. RR failure by 01-15 leaves victim at -15. RR failure by 16-30 put victim at -25. RR failure by 31+ results in -50 and a slow, painful death over 1-6 days. | S205: Some armies deliberately defile their weapons to cause epidemic diseases amongst enemies. | T205: — | U205: 203 | V205: N/A | W205: 1-3 hrs/ 2-10 days | X205: Routine
N206: 3 | O206: Asgurash | P206: Snake/Paste | Q206: 28 sp | R206: Nerve poison. Brownish snake venom. RR failure causes a gradual paralysis of the inflicted area over 6-10 rnds, lasting for 5 minutes/10 failure. Paralysed area is useless. If head or chest is poisoned, the upper body is paralysed and target is incapacitated for the duration. | T206: — | U206: 917 | V206: Mild | W206: 6-10 rnds/ varies | X206: Extremely hard
N207: 5 | O207: Asp Venom | P207: Venom/Paste | Q207: 25 sp | R207: Nerve poison. Clear fluid made into a paste. Struck limb is numb and useless for 1 day/10 failure. RR failure by 51+ means either loss of affected limb (i.e amputation is necessary) or death within 11-20 hours. | T207: — | U207: 204 | V207: Moderate | W207: 6-10 rnds/ varies | X207: Medium
N208: 3 | O208: Athanar | P208: Snake/Liquid | Q208: 15 sp | R208: Reduction poison. Reduces CO-stat (temp) by 50 over the course of 6-10 hours. If CO-stat falls beneath zero, victim dies. | T208: — | U208: 205 | V208: Mild | W208: 6-10 hours | X208: Medium
N209: 7 | O209: Black Vines | P209: Leaf/Liquid | Q209: 7 sp | R209: Intoxicant. Euphoria and inactivity for 2-20 hours. It confers no pain, but othervise acts as a respiratory poison. May be used as a medical anaestethic since it lowers the targets consciousness and receptibility to pain. | S209: Not very useful as a poison since it require target to drink large amounts. | T209: — | V209: AF | W209: 2-20 hrs | X209: Sheer Folly
N210: 6 | O210: Blade Hemlock | P210: Plant/Paste | Q210: 42 sp | R210: Muscle poison. Incapacitation (-100) for 5 minutes per 10 failure, starting in 3 rounds. Failure by 26+ results in unconsciousness. Failure by 51+ results in instant unconciousness and death within 1-10 hours. | T210: — | U210: 216 | V210: Mild | W210: 3 rnds/ Varies | X210: Very Hard
N211: 5 | O211: Bragolith | P211: Juice/Ingest | Q211: 90 sp | R211: Conversion poison. Phosphorescent green firefly juice. RR failure by 01-25 incapacitates (-100) victim until healed of the internal burns. Failure by 26+ causes victim to spontaneously combust, taking 20 hit points per round until dead. | T211: — | U211: 907 | V211: N/A | W211: 6-10 rnds | X211: Sheer Folly
N212: 2 | O212: Brithagurth | P212: Roots/Paste | Q212: 18 sp | R212: Conversion poison. Venom causes hardening of tendons in 1-4 appendages. Areas affected become useless for 10 minutes/10 failure. Victim is at -25 per useless appendage. | S212: The -25 penalty from useless appandages are not cumulative with any penalties from the 11.2.3 Poison Severity Chart. | T212: — | U212: 908 | V212: Moderate | W212: 3 rnds/ varies | X212: Sheer Folly
N213: 3 | O213: Bukandas Bulch | P213: Wolves/Juice | Q213: 12 sp | R213: Respiratory poison. Gland juice induces asthma attack. Victim that fails RR by 01-25 is at -15 to all physical actions for 11-20 rnds. Victims that fail RR by 26+ is at -25 to all physical actions for 21-30 rnds. Movement is cut by 50% for the duration. | T213: — | U213: 207 | V213: Mild | W213: 1-10 rnds/ varies | X213: Extremely hard
N214: 4 | O214: Carcalen | P214: Moss/Brew | Q214: 36 sp | R214: Nerve poison. RR failure by 01-25 results in a random limb being unusable for 1-100 days. RR Failure by 26-50 results in nerve damage: victim is out until nerves are healed. Failure by 51+ equals death in 20 rounds. | T214: — | V214: Moderate | W214: 20 rnds | X214: Sheer Folly
N215: 1 | O215: Carnegurth | P215: Flower/Liquid | Q215: 5 sp | R215: Circulatory poison. RR failure by 51+ equals massive internal blood clotting and death in 1-100 hours. If RR fails by less, check the results in table 11.2.3 Poison Descriptions Effect Descriptions. | T215: — | U215: 901 | V215: Extreme | W215: 1-100 hours | X215: Medium
N216: 1 | O216: Cathaana | P216: Nut/Ingest | Q216: 21 sp | R216: Nerve poison. "Sly viper", white powder that causes euphoria for 1-10 rounds, thereafter victim acts normally for 1-10 minutes, after which he has to roll another RR. If that fails by 26+, he dies instantly. | S216: If second RR is successful, there is no harm to victim. | T216: — | U216: 918 | V216: N/A | W216: Instant | X216: Very Hard
N217: 7 | O217: Craeg-Curfluin | P217: Plant/Liquid | Q217: 210 sp | R217: Conversion poison. Magical poison extracted from Gargoyle blood. Very rare. RR failure by 1-15 causes unconsciousness for 1-10 rounds. RR failure by 16-30 confer a permanent coma and RR failure by 31+ turns victim to stone (also quite permanent). | T217: — | V217: Mild | W217: Instant | X217: Absurd
... 132 more rows

Sheet Spells
A2: Known Spell Lists | E2: Favourite Spells or entire spell lists | K2: Favourite Spells
A3: Lvl | B3: Spell list | C3: Book | E3: Lvl | F3: Spell | G3: Book | H3: A | I3: Duration | K3: Lvl | L3: Spell list | M3: Book | N3: A | O3: Duration
A4: 20 | B4: Weapon enchantments | C4: Öberg | E4: 13 | F4: Hammerstrike II, x2 damage | G4: Öberg | I4: =CONCATENATE(Level*2," rnd") -> 2 rnd | K4: 1 | L4: Sly ears | M4: RMCII | N4: x | O4: =CONCATENATE(Level*10*2," min") -> 20 min
A5: 10 | B5: Earth law | C5: SpLaw | E5: 16 | F5: Eldritch weapon II | G5: Öberg | I5: =CONCATENATE(Level," rnd") -> 1 rnd | K5: 2 | L5: Nightvision | M5: RMCII | O5: =CONCATENATE(Level*10*2," min") -> 20 min
A6: 10 | B6: Sense enhanchement | C6: RMCII | E6: 3 | F6: Stoneskin I, AT12 | G6: RMCVII | I6: =CONCATENATE(Level*2," rnd") -> 2 rnd | K6: 3 | L6: Smelling | M6: RMCII | N6: x | O6: 20 min
A7: 10 | B7: Movement enhancement | C7: RMCII | E7: 5 | F7: Earthmight II, +20 ST | G7: RMCVII | I7: =CONCATENATE(Level*2," rnd") -> 2 rnd | K7: 4 | L7: Sidevision | M7: RMCII | N7: x | O7: 20 min
A8: 5 | B8: Invisible ways | C8: SpLaw | E8: 3 | F8: Stun relief I* | G8: SpLaw | K8: 5 | L8: Tasting | M8: RMCII | O8: 20 min
A9: 10 | B9: Earth forms | C9: RMCVII | E9: 9 | F9: Stun relief III* | G9: SpLaw | K9: 6 | L9: Sharp eyes | M9: RMCII | N9: x | O9: 20 min
A10: 20 | B10: Body renewal | C10: SpLaw | E10: 1 | F10: Blur* | G10: Ess.C | I10: =CONCATENATE(Level*2," min") -> 2 min | K10: 7 | L10: Fine touch | M10: RMCII | N10: x | O10: 20 min
A11: 10 | B11: Highriding | C11: RMCII | E11: 7 | F11: Mirror image I | G11: Ess.C | H11: x | I11: =CONCATENATE(Level*2," min") -> 2 min | K11: 9 | L11: Watervision | M11: RMCII | N11: x | O11: 20 min
A12: 10 | B12: Minds touch | C12: RMCII | E12: 9 | F12: Displacement III*, 30% | G12: Ess.C | H12: x | I12: =CONCATENATE(Level*2," min") -> 2 min | K12: 10 | L12: Darkvision | M12: RMCII | N12: x | O12: 20 min
B13: Rapid ways | C13: SpLaw | E13: 10 | F13: Parry illusion* | G13: Ess.C | I13: =CONCATENATE(Level*2," rnd") -> 2 rnd | K13: 4 | L13: Silent movement* | M13: RMCII | O13: =CONCATENATE(Level*10*2," min") -> 20 min
B14: Unbarring ways | C14: SpLaw | K14: 5 | L14: Suggestion | M14: RMCII
A15: 20 | B15: Familiar mastery | C15: Ess.C | K15: 9 | L15: Master of kind | M15: RMCII | O15: =CONCATENATE(Level*10*2," min") -> 20 min
A16: 5 | B16: Sustain body | C16: Ess.C | K16: 4 | L16: Leaving I | M16: RMCII
A17: 10 | B17: Combat illusions | C17: Ess.C | K17: 7 | L17: Leaving II, 200' | M17: RMCII
K18: 10 | L18: Long door I | M18: RMCII
K19: 2 | L19: Shadow | M19: Ess.C | N19: x | O19: =CONCATENATE(Level*10*2," min") -> 20 min

Sheet Rasbonus
B1: Dwarf | C1: Noldo (Academic) | D1: Noldo (Martial) | E1: Sinda | F1: Silvan | G1: Half-elf | H1: Hobbit | I1: Northman | J1: Eothraim | K1: Lesser Dunadan | L1: Common (rural) | M1: Common (city-folk) | N1: Corsair | O1: Dorwinadan | P1: Wose | Q1: Woodman | R1: Beorning | S1: Greater Dunadan | T1: Dunlending | U1: Black Numenorean | V1: Easterling | W1: Sagath/Logath | X1: Gathmarim | Y1: Variag | Z1: Orc | AA1: Uruk-Hai | AB1: Half-orc | AC1: Half-troll | AD1: Forest Troll | AE1: Stone Troll | AF1: Hill Troll | AG1: Snow Troll | AH1: Mountain Troll | AI1: Cave Troll | AJ1: Olog-Hai | AK1: Haruze | AL1: Umbarean | AM1: Mornedain
A2: Constitution | B2: 15 | C2: 10 | D2: 10 | E2: 5 | F2: 0 | G2: 5 | H2: 15 | I2: 5 | J2: 5 | K2: 5 | L2: 5 | M2: 5 | N2: 5 | O2: 5 | P2: 5 | Q2: 5 | R2: 15 | S2: 10 | T2: 10 | U2: 10 | V2: 5 | W2: 5 | X2: 5 | Y2: 5 | Z2: 10 | AA2: 15 | AB2: 10 | AC2: 15 | AD2: 20 | AE2: 35 | AF2: 25 | AG2: 30 | AH2: 30 | AI2: 40 | AJ2: 35 | AK2: 5 | AL2: 10 | AM2: 5
A3: Agility | B3: -5 | C3: 15 | D3: 15 | E3: 10 | F3: 10 | G3: 5 | H3: 15 | I3: 0 | J3: 0 | K3: 0 | L3: 0 | M3: 0 | N3: 0 | O3: 0 | P3: 0 | Q3: 5 | R3: 0 | S3: 0 | T3: 0 | U3: 0 | V3: 5 | W3: 0 | X3: 0 | Y3: 0 | Z3: 0 | AA3: 0 | AB3: 0 | AC3: 0 | AD3: 0 | AE3: -10 | AF3: -10 | AG3: -10 | AH3: -10 | AI3: -10 | AJ3: -5 | AK3: 5 | AL3: 0 | AM3: 5
A4: Self Discipline | B4: 5 | C4: 0 | D4: 0 | E4: 0 | F4: 0 | G4: 0 | H4: 0 | I4: 5 | J4: 5 | K4: 5 | L4: 0 | M4: 0 | N4: 0 | O4: 5 | P4: 0 | Q4: 0 | R4: 0 | S4: 5 | T4: 0 | U4: 5 | V4: -5 | W4: 0 | X4: -5 | Y4: -5 | Z4: -5 | AA4: 0 | AB4: 0 | AC4: 0 | AD4: -5 | AE4: -10 | AF4: -10 | AG4: -10 | AH4: -10 | AI4: -10 | AJ4: -5 | AK4: 0 | AL4: 0 | AM4: -5
A5: Reasoning | B5: 0 | C5: 5 | D5: 5 | E5: 0 | F5: 0 | G5: 0 | H5: 0 | I5: 0 | J5: 0 | K5: 0 | L5: 0 | M5: 0 | N5: 0 | O5: 0 | P5: 0 | Q5: 0 | R5: 0 | S5: 0 | T5: 0 | U5: 0 | V5: 0 | W5: 0 | X5: 0 | Y5: 0 | Z5: -5 | AA5: 0 | AB5: 0 | AC5: -5 | AD5: -10 | AE5: -15 | AF5: -15 | AG5: -15 | AH5: -15 | AI5: -15 | AJ5: -5 | AK5: 0 | AL5: 0 | AM5: 0
A6: Eloquence | B6: 0 | C6: 0 | D6: 0 | E6: 0 | F6: 0 | G6: 0 | H6: 0 | I6: 0 | J6: 0 | K6: 0 | L6: 0 | M6: 0 | N6: 0 | O6: 0 | P6: 0 | Q6: 0 | R6: 0 | S6: 0 | T6: 0 | U6: 0 | V6: 0 | W6: 0 | X6: 0 | Y6: 0 | Z6: 0 | AA6: 0 | AB6: 0 | AC6: 0 | AD6: 0 | AE6: -5 | AF6: 0 | AG6: 0 | AH6: 0 | AI6: -5 | AJ6: 0 | AK6: 0 | AL6: 0 | AM6: 0
A7: Strength | B7: 10 | C7: 0 | D7: 0 | E7: 0 | F7: 0 | G7: 5 | H7: -15 | I7: 10 | J7: 10 | K7: 5 | L7: 5 | M7: 5 | N7: 5 | O7: 5 | P7: 5 | Q7: 5 | R7: 15 | S7: 10 | T7: 10 | U7: 10 | V7: 5 | W7: 5 | X7: 5 | Y7: 5 | Z7: 5 | AA7: 10 | AB7: 5 | AC7: 15 | AD7: 15 | AE7: 30 | AF7: 20 | AG7: 25 | AH7: 25 | AI7: 35 | AJ7: 30 | AK7: 5 | AL7: 5 | AM7: 5
A8: Quickness | B8: -5 | C8: 5 | D8: 5 | E8: 10 | F8: 10 | G8: 5 | H8: 15 | I8: 0 | J8: 0 | K8: 0 | L8: 0 | M8: 0 | N8: 5 | O8: 0 | P8: 0 | Q8: 0 | R8: -5 | S8: 0 | T8: 0 | U8: 0 | V8: 5 | W8: 5 | X8: 10 | Y8: 5 | Z8: 0 | AA8: 0 | AB8: 0 | AC8: -5 | AD8: -5 | AE8: -10 | AF8: -10 | AG8: -15 | AH8: -15 | AI8: -15 | AJ8: -10 | AK8: 5 | AL8: 5 | AM8: 5
A9: Presence | B9: -5 | C9: 15 | D9: 15 | E9: 10 | F9: 5 | G9: 5 | H9: -5 | I9: 0 | J9: 0 | K9: 5 | L9: 0 | M9: 0 | N9: 0 | O9: 0 | P9: -5 | Q9: 0 | R9: 5 | S9: 10 | T9: 0 | U9: 10 | V9: 0 | W9: 0 | X9: 0 | Y9: 0 | Z9: -10 | AA9: 0 | AB9: -5 | AC9: -5 | AD9: -10 | AE9: -10 | AF9: -10 | AG9: -10 | AH9: -10 | AI9: -10 | AJ9: -10 | AK9: 0 | AL9: 0 | AM9: 0
A10: Intuition | B10: 0 | C10: 5 | D10: 5 | E10: 5 | F10: 5 | G10: 0 | H10: -5 | I10: 0 | J10: 0 | K10: 0 | L10: 0 | M10: 0 | N10: 0 | O10: 0 | P10: 5 | Q10: 0 | R10: 0 | S10: 0 | T10: 0 | U10: 0 | V10: 0 | W10: 0 | X10: 0 | Y10: 0 | Z10: -10 | AA10: 0 | AB10: -5 | AC10: -5 | AD10: -10 | AE10: -10 | AF10: -10 | AG10: -10 | AH10: -10 | AI10: -10 | AJ10: -10 | AK10: 0 | AL10: 0 | AM10: 0
A11: Empathy | B11: -5 | C11: 5 | D11: 5 | E11: 0 | F11: 0 | G11: 0 | H11: 0 | I11: 0 | J11: 0 | K11: 0 | L11: 0 | M11: 0 | N11: 0 | O11: 0 | P11: 0 | Q11: 0 | R11: 0 | S11: 5 | T11: 0 | U11: 0 | V11: -5 | W11: 0 | X11: -5 | Y11: -5 | Z11: -10 | AA11: -5 | AB11: -5 | AC11: -5 | AD11: -10 | AE11: -10 | AF11: -10 | AG11: -10 | AH11: -10 | AI11: -10 | AJ11: -10 | AK11: 0 | AL11: 0 | AM11: 0
A12: Appearance
A13: Hit D type | B13: D10 | C13: D10 | D13: D10 | E13: D8 | F13: D8 | G13: D10 | H13: D8 | I13: D10 | J13: D10 | K13: D8 | L13: D8 | M13: D8 | N13: D8 | O13: D8 | P13: D8 | Q13: D8 | R13: D10 | S13: D10 | T13: D10 | U13: D10 | V13: D8 | W13: D8 | X13: D8 | Y13: D8 | Z13: D8 | AA13: D10 | AB13: D8 | AC13: D10 | AD13: D10 | AE13: D12 | AF13: D12 | AG13: D12 | AH13: D12 | AI13: D12 | AJ13: D12 | AK13: D8 | AL13: D8 | AM13: D8
A14: Soul Departure | B14: 18 | C14: 1 | D14: 1 | E14: 2 | F14: 3 | G14: 5 | H14: 18 | I14: 12 | J14: 12 | K14: 12 | L14: 12 | M14: 12 | N14: 12 | O14: 12 | P14: 12 | Q14: 12 | R14: 12 | S14: 10 | T14: 12 | U14: 10 | V14: 12 | W14: 12 | X14: 12 | Y14: 12 | Z14: 2 | AA14: 2 | AB14: 6 | AC14: 8 | AD14: 3 | AE14: 3 | AF14: 3 | AG14: 3 | AH14: 3 | AI14: 3 | AJ14: 6 | AK14: 12 | AL14: 12 | AM14: 12
A15: Rec. Mult | B15: 0.5 | C15: 3 | D15: 3 | E15: 2 | F15: 1.5 | G15: 1.5 | H15: 0.5 | I15: 1 | J15: 1 | L15: 1 | M15: 1 | N15: 1 | O15: 1 | P15: 1 | Q15: 1 | R15: 0.75 | S15: 0.75 | T15: 1 | U15: 0.75 | V15: 1 | W15: 1 | X15: 1 | Y15: 1 | Z15: 0.8 | AA15: 0.8 | AB15: 1 | AC15: 0.8 | AD15: 0.5 | AE15: 0.5 | AF15: 0.5 | AG15: 0.5 | AH15: 0.5 | AI15: 0.5 | AJ15: 0.5 | AK15: 1 | AL15: 1 | AM15: 1
A16: Max Hits | B16: 120 | C16: 120 | D16: 120 | E16: 110 | F16: 100 | G16: 130 | H16: 60 | I16: 130 | J16: 130 | K16: 120 | L16: 120 | M16: 120 | N16: 120 | O16: 120 | P16: 120 | Q16: 120 | R16: 150 | S16: 140 | T16: 120 | U16: 140 | V16: 120 | W16: 120 | X16: 110 | Y16: 120 | Z16: 120 | AA16: 140 | AB16: 120 | AC16: 160 | AD16: 150 | AE16: 170 | AF16: 180 | AG16: 200 | AH16: 180 | AI16: 240 | AJ16: 200 | AK16: 120 | AL16: 130 | AM16: 120
A17: RR Fear | B17: 0 | C17: 0 | D17: 0 | E17: 0 | F17: 0 | G17: 0 | H17: 0 | I17: 0 | J17: 0 | K17: 0 | L17: 0 | M17: 0 | N17: 0 | O17: 0 | P17: 0 | Q17: 0 | R17: 0 | S17: 0 | T17: 0 | U17: 0 | V17: 0 | W17: 0 | X17: 0 | Y17: 0 | Z17: 0 | AA17: 0 | AB17: 0 | AC17: 0 | AD17: 0 | AE17: 0 | AF17: 0 | AG17: 0 | AH17: 0 | AI17: 0 | AJ17: 0 | AK17: 0 | AL17: 0 | AM17: 0
A18: RR Disease | B18: 10 | C18: 100 | D18: 100 | E18: 100 | F18: 100 | G18: 50 | H18: 30 | I18: 0 | J18: 0 | K18: 0 | L18: 0 | M18: 0 | N18: 0 | O18: 0 | P18: 0 | Q18: 0 | R18: 0 | S18: 5 | T18: 0 | U18: 5 | V18: 0 | W18: 0 | X18: 0 | Y18: 0 | Z18: 0 | AA18: 0 | AB18: 0 | AC18: 0 | AD18: 0 | AE18: 10 | AF18: 0 | AG18: 20 | AH18: 0 | AI18: 0 | AJ18: 0 | AK18: 0 | AL18: 0 | AM18: 0
A19: RR Poison | B19: 10 | C19: 10 | D19: 10 | E19: 10 | F19: 10 | G19: 5 | H19: 15 | I19: 0 | J19: 0 | K19: 0 | L19: 0 | M19: 0 | N19: 0 | O19: 30 | P19: 0 | Q19: 0 | R19: 0 | S19: 5 | T19: 0 | U19: 5 | V19: 0 | W19: 0 | X19: 0 | Y19: 0 | Z19: 0 | AA19: 0 | AB19: 0 | AC19: 0 | AD19: 0 | AE19: 10 | AF19: 0 | AG19: 20 | AH19: 0 | AI19: 0 | AJ19: 0 | AK19: 0 | AL19: 0 | AM19: 0
A20: RR Essence | B20: 40 | C20: 0 | D20: 0 | E20: 0 | F20: 0 | G20: 0 | H20: 50 | I20: 0 | J20: 0 | K20: 0 | L20: 0 | M20: 0 | N20: 0 | O20: 0 | P20: 20 | Q20: 0 | R20: 0 | S20: 0 | T20: 0 | U20: 0 | V20: 0 | W20: 0 | X20: 0 | Y20: 0 | Z20: 0 | AA20: 0 | AB20: 0 | AC20: 0 | AD20: 0 | AE20: 0 | AF20: 0 | AG20: 0 | AH20: 0 | AI20: 0 | AJ20: 0 | AK20: 0 | AL20: 0 | AM20: 0
A21: RR Channeling | B21: 0 | C21: 0 | D21: 0 | E21: 0 | F21: 0 | G21: 0 | H21: 20 | I21: 0 | J21: 0 | K21: 0 | L21: 0 | M21: 0 | N21: 0 | O21: 0 | P21: 10 | Q21: 0 | R21: 0 | S21: 0 | T21: 0 | U21: 0 | V21: 0 | W21: 0 | X21: 0 | Y21: 0 | Z21: 0 | AA21: 0 | AB21: 0 | AC21: 0 | AD21: 0 | AE21: 0 | AF21: 0 | AG21: 0 | AH21: 0 | AI21: 0 | AJ21: 0 | AK21: 0 | AL21: 0 | AM21: 0
A22: RR Mentalism | B22: 40 | C22: 0 | D22: 0 | E22: 0 | F22: 0 | G22: 0 | H22: 40 | I22: 0 | J22: 0 | K22: 0 | L22: 0 | M22: 0 | N22: 0 | O22: 0 | P22: 0 | Q22: 0 | R22: 0 | S22: 0 | T22: 0 | U22: 0 | V22: 0 | W22: 0 | X22: 0 | Y22: 0 | Z22: 0 | AA22: 0 | AB22: 0 | AC22: 0 | AD22: 0 | AE22: 0 | AF22: 0 | AG22: 0 | AH22: 0 | AI22: 0 | AJ22: 0 | AK22: 0 | AL22: 0 | AM22: 0
A23: B. opt | B23: 350 | C23: 275 | D23: 275 | E23: 300 | F23: 325 | G23: 300 | H23: 450 | I23: 375 | J23: 350 | K23: 350 | L23: 425 | M23: 425 | N23: 400 | O23: 400 | P23: 400 | Q23: 400 | R23: 300 | S23: 300 | T23: 375 | U23: 300 | V23: 400 | W23: 375 | X23: 375 | Y23: 400 | Z23: 200 | AA23: 300 | AB23: 300 | AC23: 250 | AD23: 200 | AE23: 200 | AF23: 200 | AG23: 200 | AH23: 200 | AI23: 200 | AJ23: 300 | AK23: 400 | AL23: 375 | AM23: 425
A24: vs Cold | B24: 30 | C24: 20 | D24: 20 | E24: 15 | F24: 10 | G24: 5 | H24: 0 | I24: 0 | J24: 0 | K24: 0 | L24: 0 | M24: 0 | N24: 0 | O24: 0 | P24: 0 | Q24: 0 | R24: 0 | S24: 0 | T24: 0 | U24: 0 | V24: 0 | W24: 0 | X24: 0 | Y24: 0 | Z24: 0 | AA24: 0 | AB24: 0 | AC24: 0 | AD24: 0 | AE24: 10 | AF24: 0 | AG24: 30 | AH24: 0 | AI24: 20 | AJ24: 20 | AK24: -10 | AL24: 0 | AM24: -10
A25: vs Heat | B25: 30 | C25: 0 | D25: 0 | E25: 0 | F25: 0 | G25: 0 | H25: 0 | I25: 0 | J25: 0 | K25: 0 | L25: 0 | M25: 0 | N25: 0 | O25: 0 | P25: 0 | Q25: 0 | R25: 0 | S25: 0 | T25: 0 | U25: 0 | V25: 0 | W25: 0 | X25: 0 | Y25: 0 | Z25: 30 | AA25: 0 | AB25: 0 | AC25: 15 | AD25: 0 | AE25: 10 | AF25: 0 | AG25: 0 | AH25: 0 | AI25: 10 | AJ25: 20 | AK25: 10 | AL25: 0 | AM25: 10
A26: Spell list | B26: 0.03 | C26: 0.5 | D26: 0.3 | E26: 0.3 | F26: 0.2 | G26: 0.1 | H26: N/A | I26: 0 | J26: 0 | K26: 0.1 | L26: 0.03 | M26: 0.15 | N26: 0.05 | O26: 0.1 | P26: 0.05 | Q26: 0.03 | R26: 0.03 | S26: 0.25 | T26: 0.02 | U26: 0.25 | V26: 0.02 | W26: 0.02 | X26: 0.02 | Y26: 0.02 | Z26: 0 | AA26: 0 | AB26: 0 | AC26: 0 | AD26: 0 | AE26: 0 | AF26: 0 | AG26: 0 | AH26: 0 | AI26: 0 | AJ26: 0 | AK26: 0.05 | AL26: 0.1 | AM26: 0.05
A28: Adolescent skills
A29: 1H Crush | B29: 4 | O29: 1 | P29: 2 | T29: 2 | Z29: 3 | AA29: 1 | AB29: 3 | AC29: 2 | AD29: 2 | AF29: 3 | AG29: 2 | AH29: 3 | AI29: 3 | AJ29: 3 | AM29: 1
A30: 1H Slash | D30: 2 | E30: 2 | F30: 2 | G30: 2 | I30: 2 | J30: 2 | K30: 2 | L30: 1 | M30: 1 | N30: 2 | O30: 1 | Q30: 1 | S30: 3 | U30: 3 | V30: 1 | W30: 2 | X30: 2 | Y30: 2 | AA30: 4 | AJ30: 3 | AK30: 2 | AL30: 2
A31: 1H Thrust | E31: 1 | N31: 1 | S31: 1 | U31: 1 | AA31: 1 | AM31: 1
A32: 2 Handed | B32: 2 | D32: 2 | I32: 2 | K32: 1 | R32: 2 | S32: 3 | U32: 3 | AA32: 1 | AC32: 4 | AD32: 3 | AE32: 3 | AF32: 3 | AG32: 3 | AH32: 3 | AI32: 4 | AJ32: 5
A33: AM Balance | F33: 1 | N33: 2 | Q33: 1 | V33: 1 | W33: 1 | X33: 2 | AL33: 1
A34: AM Speed | H34: 1 | N34: 1 | V34: 1 | X34: 1 | AM34: 1
A35: AM Strength | B35: 2 | R35: 2 | AC35: 1 | AD35: 1 | AE35: 1 | AF35: 2 | AG35: 2 | AH35: 2 | AI35: 2 | AJ35: 2
A36: Ambush | P36: 2 | Z36: 1 | AA36: 1 | AB36: 1
A37: Body Development | B37: 3 | C37: 1 | D37: 2 | E37: 1 | F37: 1 | G37: 1 | H37: 2 | I37: 2 | J37: 2 | K37: 2 | L37: 2 | M37: 1 | N37: 2 | O37: 1 | P37: 3 | Q37: 2 | R37: 3 | S37: 3 | T37: 3 | U37: 3 | V37: 2 | W37: 2 | X37: 1 | Y37: 2 | Z37: 2 | AA37: 3 | AB37: 2 | AC37: 4 | AD37: 4 | AE37: 5 | AF37: 5 | AG37: 5 | AH37: 5 | AI37: 5 | AJ37: 5 | AK37: 2 | AL37: 2 | AM37: 2
A38: Bow | B38: 1 | D38: 1 | E38: 2 | F38: 3 | G38: 2 | H38: 2 | I38: 1 | J38: 1 | K38: 1 | L38: 1 | M38: 1 | N38: 1 | O38: 1 | Q38: 2 | S38: 1 | T38: 1 | U38: 1 | V38: 2 | W38: 2 | X38: 1 | Y38: 1 | AA38: 1 | AB38: 1 | AK38: 1 | AL38: 1 | AM38: 2
A39: Climbing | B39: 1 | E39: 1 | F39: 2 | G39: 1 | H39: 2 | I39: 1 | L39: 1 | N39: 2 | P39: 3 | Q39: 3 | R39: 2 | T39: 5 | X39: 1 | Z39: 1 | AA39: 1 | AB39: 1 | AC39: 1 | AD39: 1 | AE39: 1 | AF39: 1 | AG39: 1 | AH39: 2 | AI39: 1 | AJ39: 1 | AM39: 1
A40: Disarm traps | B40: 1 | H40: 1
A41: General perception | B41: 1 | C41: 3 | D41: 3 | E41: 3 | F41: 3 | G41: 1 | H41: 4 | I41: 1 | J41: 1 | K41: 1 | L41: 1 | M41: 1 | N41: 1 | O41: 1 | P41: 2 | Q41: 1 | R41: 1 | S41: 1 | T41: 1 | U41: 1 | V41: 1 | W41: 2 | X41: 1 | Y41: 1 | Z41: 1 | AA41: 1 | AB41: 1 | AC41: 1 | AD41: 1 | AF41: 1 | AG41: 1 | AH41: 1 | AI41: 1 | AJ41: 1 | AK41: 1 | AL41: 1 | AM41: 1
A42: MA Strikes | B42: 2 | R42: 2 | X42: 2 | AC42: 2 | AD42: 2 | AE42: 4 | AF42: 3 | AG42: 3 | AH42: 3 | AI42: 4 | AJ42: 4
A43: MA Sweeps | X43: 2
A44: Man. Chain | B44: 3 | G44: 1 | I44: 2 | J44: 2 | K44: 2 | L44: 1 | S44: 3 | U44: 3 | Y44: 2 | Z44: 2 | AA44: 3 | AB44: 1 | AC44: 3 | AJ44: 2 | AK44: 1 | AL44: 2
A45: Man. Plate | B45: 1 | G45: 1 | S45: 2 | U45: 2 | AA45: 2 | AC45: 3 | AJ45: 2
A46: Man. Rigid L | B46: 1 | G46: 1 | I46: 1 | J46: 1 | K46: 1 | L46: 1 | N46: 2 | O46: 1 | S46: 1 | T46: 1 | U46: 1 | V46: 1 | W46: 1 | Y46: 1 | Z46: 3 | AA46: 2 | AB46: 3 | AC46: 2 | AK46: 1 | AL46: 1 | AM46: 2
A47: Man. Soft L | B47: 1 | E47: 1 | F47: 1 | I47: 1 | J47: 1 | K47: 1 | L47: 1 | M47: 1 | N47: 1 | O47: 1 | P47: 3 | Q47: 2 | R47: 1 | T47: 1 | V47: 1 | W47: 1 | X47: 1 | Y47: 1 | Z47: 2 | AA47: 1 | AB47: 1 | AC47: 1 | AK47: 1 | AM47: 1
A48: Pick locks | B48: 2 | H48: 1
A49: Polearm | E49: 1 | F49: 1 | J49: 2 | K49: 1 | L49: 1 | O49: 1 | P49: 1 | Q49: 1 | R49: 2 | T49: 2 | V49: 2 | Y49: 2 | Z49: 1 | AA49: 1 | AB49: 1 | AG49: 2 | AJ49: 2 | AK49: 1 | AM49: 2
A50: Riding | C50: 1 | D50: 1 | E50: 1 | F50: 1 | G50: 1 | I50: 1 | J50: 8 | K50: 1 | L50: 1 | M50: 1 | O50: 2 | S50: 1 | U50: 1 | V50: 5 | W50: 5 | Y50: 1 | AK50: 1 | AM50: 1
A51: Runes | C51: 2 | D51: 1 | E51: 1 | G51: 1 | K51: 1 | S51: 2 | U51: 2
A52: Shield | B52: 2 | D52: 2 | E52: 1 | F52: 1 | G52: 1 | I52: 1 | J52: 1 | K52: 1 | L52: 1 | N52: 1 | S52: 2 | T52: 1 | U52: 2 | V52: 1 | W52: 1 | X52: 1 | Y52: 1 | Z52: 1 | AA52: 2 | AB52: 1 | AJ52: 2 | AK52: 1 | AL52: 1
A53: Stalk & Hide | C53: 1 | D53: 2 | E53: 3 | F53: 4 | G53: 2 | H53: 5 | I53: 1 | J53: 1 | L53: 1 | M53: 1 | P53: 4 | Q53: 4 | R53: 4 | T53: 2 | V53: 1 | X53: 2 | Z53: 1 | AD53: 1 | AK53: 1 | AM53: 1
A54: Staves & wands | B54: 2 | C54: 2 | D54: 2 | E54: 1 | F54: 1 | G54: 1 | K54: 1 | M54: 1 | S54: 2 | U54: 2 | AL54: 2
A55: Swimming | C55: 1 | D55: 2 | E55: 2 | F55: 3 | G55: 1 | K55: 1 | L55: 1 | M55: 1 | N55: 2 | P55: 2 | Q55: 1 | R55: 2 | S55: 1 | T55: 1 | U55: 1 | X55: 1
A56: Thrown | B56: 1 | H56: 2 | L56: 1 | N56: 1 | O56: 1 | P56: 4 | Q56: 1 | R56: 1 | T56: 2 | V56: 1 | W56: 2 | Y56: 2 | Z56: 1 | AA56: 1 | AB56: 1 | AC56: 2 | AD56: 2 | AE56: 1 | AF56: 2 | AG56: 1 | AH56: 2 | AI56: 2 | AJ56: 2 | AK56: 1 | AM56: 2
A58: Total | B58: =SUM(B29:B56) -> 30 | C58: =SUM(C29:C56) -> 11 | D58: 20 | E58: 21 | F58: 24 | G58: 17 | H58: 20 | I58: 16 | J58: 22 | K58: 17 | L58: 15 | M58: 9 | N58: 19 | O58: 11 | P58: 26 | Q58: 19 | R58: 22 | S58: 26 | T58: 22 | U58: =SUM(U29:U56) -> 26 | V58: 20 | W58: 19 | X58: 18 | Y58: 16 | Z58: 19 | AA58: 26 | AB58: 17 | AC58: 26 | AD58: 17 | AE58: 15 | AF58: 20 | AG58: 20 | AH58: 21 | AI58: 22 | AJ58: 34 | AK58: 14 | AL58: 13 | AM58: 18
A60: Racial bonuses
A61: AM Balance | F61: 10 | N61: 10 | Q61: 20 | T61: 20 | W61: 5 | X61: 10 | AM61: 10
A62: AM Landing
A63: AM Leaping
A64: AM Speed
A65: AM Strength | AC65: 10 | AD65: 10 | AE65: 20 | AF65: 10 | AG65: 15 | AH65: 20 | AI65: 20 | AJ65: 20
A66: Adrenal Defense
A67: Armored AD
A68: Ambush | P68: 10
A69: Sniping | P69: 10
A70: Body Development | AC70: 10 | AD70: 15 | AE70: 20 | AF70: 20 | AG70: 20 | AH70: 20 | AI70: 20 | AJ70: 20
A71: Channeling | P71: 10
A72: Climbing | Q72: 20 | T72: 20 | X72: 10
A73: Directed Spells
A74: Disarm Traps
A75: General Perception | C75: 20 | D75: 20 | E75: 20 | F75: 20
A76: MA Strikes
A77: MA Sweeps
A78: Man. Soft L
A79: Man. Rigid L
A80: Man. Chain
A81: Man. Plate
A82: Pick locks
A83: Riding | J83: 20 | V83: 10 | Y83: 10 | AM83: 5
A84: Runes | C84: 20
A85: Staves & Wands | C85: 20 | D85: 20
A86: Stalk & Hide | F86: 10
A87: Swimming
A88: Administration | C88: 10 | S88: 10 | U88: 10
A89: Alchemy | C89: 10
A90: Architecture | C90: 10 | S90: 10 | U90: 10
A91: Basic Mathematics | C91: 10 | S91: 10 | U91: 10
A92: Biochemistry | C92: 10
A93: Boat Pilot | C93: 10 | E93: 10 | N93: 10 | O93: 10
A94: Cryptography | C94: 10
A95: Demon/Devil Lore | C95: 10
A96: Drafting | C96: 10
A97: Dragon Lore | C97: 10
A98: Engineering | C98: 10
A99: Faerie Lore | C99: 10
A100: Fauna Lore | C100: 10 | F100: 10 | Q100: 10 | R100: 20
A101: Flora Lore | C101: 10 | F101: 10 | P101: 10 | Q101: 10
A102: Heraldry | C102: 10 | O102: 5 | S102: 10 | U102: 10
A103: Herb Lore | C103: 10 | F103: 10 | O103: 5 | P103: 10
A104: Lock Lore | B104: 10 | C104: 10
A105: Mapping | C105: 10
A106: Mechanition | C106: 10
A107: Metal Lore | B107: 10 | C107: 10
A108: Military Organization | C108: 10 | N108: 10 | S108: 10 | U108: 10 | AA108: 5
A109: Mining | B109: 10 | C109: 10
A110: Navigation | C110: 10 | E110: 10 | N110: 15 | O110: 10 | U110: 25 | AL110: 10
A111: Phil/Relig. Doctrine | C111: 10
A112: Poison Lore | C112: 10 | O112: 10 | P112: 10 | AK112: 5 | AM112: 10
A113: Racial History | C113: 10 | S113: 10 | U113: 10
C114: 10
A115: Sanity Healing Lore | C115: 10
A116: Siege Engineer | C116: 10
A117: Spec. know. Lore | C117: 10
C118: 10
A119: Star-gazing | C119: 10 | N119: 10 | O119: 5 | AK119: 5
A120: Stone Lore | B120: 10 | C120: 10
A121: Tactics | C121: 10 | S121: 10 | U121: 10 | AA121: 5
A122: Trading lore | C122: 10 | O122: 10 | AK122: 10 | AL122: 10
A123: Weather Watching | C123: 10 | E123: 10 | N123: 25 | O123: 5 | P123: 10 | R123: 10 | AK123: 5
A124: Animal handling | F124: 10 | J124: 10 | Q124: 5 | R124: 15 | V124: 10 | W124: 20 | AK124: 5
A125: Animal training | F125: 10 | J125: 10 | Q125: 5 | R125: 15 | V125: 10 | W125: 20
A126: Beast Master | F126: 10 | P126: 5 | R126: 25 | AD126: 10
A127: Driving | O127: 5 | T127: 10 | V127: 10 | W127: 10
A128: Herding | R128: 10
A129: Loading
A130: Athletic Games | Q130: 15
A131: Dancing | AK131: 10
A132: Distance Running | R132: 15 | Z132: 10 | AA132: 10 | AM132: 5
A133: Diving
A134: Flying/Gliding
A135: Holding Breath
A136: Portaging | B136: 10 | R136: 10 | AC136: 10 | AD136: 20 | AE136: 30 | AF136: 25 | AH136: 25 | AI136: 25 | AJ136: 25
A137: Rappelling | N137: 15 | Q137: 10
A138: Rowing | N138: 10 | O138: 10
A139: Sailing | E139: 20 | N139: 20 | O139: 10 | U139: 25 | AL139: 10
A140: Skating
A141: Skiing
A142: Sprinting
A143: Brawling | B143: 20 | R143: 20 | AC143: 10 | AD143: 20 | AE143: 30 | AF143: 25 | AG143: 30 | AH143: 25 | AI143: 30 | AJ143: 30
A144: Defensive Technique
A145: Defensive Weaving
A146: Disarm, Armed
A147: Disarm, Unarmed
A148: Donning/Doffing Chain
A149: Donning/Doffing Plate
A150: Donning/Doffing RL
A151: Donning/Doffing SL
A152: Expertise
A153: Feinting | N153: 10
A154: Grappling Hook | N154: 25 | AM154: 5
A155: Honing | P155: 10 | AK155: 5 | AM155: 5
A156: Iai
A157: Instinctive Maneuver
A158: Lancing
A159: Melee Scuffle | B159: 10 | R159: 20 | AC159: 15 | AD159: 25 | AE159: 30 | AF159: 25 | AG159: 30 | AH159: 25 | AI159: 30 | AJ159: 30
A160: Missile Artillery | N160: 10
A161: SeaBorn Combat | E161: 15 | N161: 20 | O161: 5 | U161: 15 | AL161: 10
A162: Shield Bash | AD162: 25 | AF162: 25 | AG162: 15 | AH162: 25 | AJ162: 30
A163: Shield Expertise
A164: Stunned Maneuver | V164: 5 | X164: 5 | Y164: 5 | Z164: 5 | AC164: 15 | AD164: 25 | AE164: 30 | AF164: 25 | AG164: 30 | AH164: 30 | AI164: 30 | AJ164: 30 | AM164: 5
A165: Subduing
A166: Tackling | B166: 10 | R166: 20 | AC166: 15 | AD166: 25 | AE166: 30 | AF166: 25 | AG166: 30 | AH166: 30 | AI166: 30 | AJ166: 30
A167: Unarmed Expertise
A168: Weapon Brawling
A169: Weapon Kata
A170: Yado
A171: AM Quickdraw
A172: Blind Fighting | D172: 40 | E172: 20
A173: Body Damage Stabilization | AA173: 20 | AD173: 20
A174: Control Lycantrophy
A175: Dowsing
A176: Frenzy | R176: 15 | T176: 10 | AA176: 5 | AD176: 15 | AF176: 15 | AG176: 15 | AH176: 15 | AI176: 20 | AJ176: 15
A177: Meditation Cleansing | P177: 10
A178: Meditation Death | P178: 10
A179: Meditation Healing | P179: 10
A180: Meditation Ki | P180: 10
A181: Meditation Sleep | P181: 10
A182: Meditation Trance | C182: 25 | D182: 25 | E182: 20 | F182: 20
A183: Mnemonics
A184: Prepared Shot | P184: 10
A185: WOW Fatigue | B185: 10 | P185: 10 | R185: 10 | T185: 5 | V185: 5 | X185: 5 | Y185: 5 | Z185: 5 | AA185: 15 | AD185: 20 | AE185: 30 | AF185: 20 | AG185: 30 | AH185: 30 | AI185: 30 | AJ185: 30 | AM185: 5
A186: WOW Pain | B186: 10 | R186: 10 | T186: 5 | V186: 5 | X186: 5 | Y186: 5 | Z186: 5 | AA186: 15 | AD186: 20 | AE186: 30 | AF186: 20 | AG186: 30 | AH186: 30 | AI186: 30 | AJ186: 30 | AM186: 5
A187: WOW Unconsciousness | B187: 10 | R187: 10 | T187: 5 | V187: 5 | X187: 5 | Y187: 5 | Z187: 5 | AA187: 15 | AD187: 20 | AE187: 30 | AF187: 20 | AG187: 30 | AH187: 30 | AI187: 30 | AJ187: 30 | AM187: 5
A188: WOW Will | B188: 10 | P188: 10 | AA188: 5
A189: Silent Kill | P189: 10
A190: Use/Remove Poison | O190: 10 | P190: 10 | AA190: 5 | AM190: 10
A191: Appraisal | B191: 5 | C191: 10 | O191: 5 | AK191: 5
A192: Armor Evaluation | B192: 5 | C192: 10 | D192: 10 | O192: 5 | AA192: 5
A193: Metal Evaluation | B193: 5 | C193: 10 | O193: 5 | AA193: 5
A194: Stone Evaluation | B194: 5 | C194: 10 | O194: 5
A195: Weapon Evaluation | B195: 5 | C195: 10 | D195: 10 | O195: 5
A196: Advertising
A197: Cookery | H197: 10 | P197: 5
A198: Crafting
A199: Fletching | F199: 10 | Q199: 5
A200: Gimmickry
A201: Horticulture
A202: Hygien
A203: Leatherworking | P203: 5 | Q203: 5
... 92 more rows

Sheet Diverse
A1: Stat value | B1: Bonus | C1: Dev.pts | D1: Baserate | E1: Alchemist | F1: Beorning | G1: Valt yrke | H1: Nada | J1: Frågor, din dumma djävulsdyrkande och löjliga rollspelsfåne! | K1: Svar på tal, din jävla tattare… du med så sparsam intellektuell begåvning ska passa dig noga! | L1: 1
A2: 1 | B2: -25 | C2: 1 | D2: 25 | E2: Archer | F2: Black Numenorean | G2: =INDEX(Diverse!E1:E84,'Ny NPC'!A2) -> Alchemist | H2: Ett varannan level | J2: Hur kan man sätta tre kryss på två levlar? | K2: Du sätter ett nu och två nästa level…
A3: 2 | B3: -23 | C3: 1.3 | D3: 30 | E3: Archmage | F3: Cave Troll | H3: Ett varje level | J3: Vad kostar det för varje level att sätta tre kryss varannan level? | K3: Det kostar hälften av vad det gör totalt.
A4: 3 | B4: -21 | C4: 1.6 | D4: 35 | E4: Assassin | F4: Common (city-folk) | G4: Vald ras | H4: Tre på två levlar | J4: Kan jag redigera en gubbe som jag trodde att jag var klar med? | K4: Nä, är du klar så är du klar. Du kan gå in på bladet Master NPC table och ändra själv om du vill.
A5: 4 | B5: -19 | C5: 1.8 | D5: 35 | E5: Astrologer | F5: Common (rural) | G5: =INDEX(Diverse!F1:F94,'Ny NPC'!C2) -> Beorning | H5: Två varje level | J5: Jag kan välja att slå högre på hits än vad jag borde kunna med den ras jag valt… | K5: Ja, jag vet… men eftersom du har märkt det så antar jag att du inte vill fuska så mycket. Att du alls är i närheten av max-slaget är orimligt!
A6: 5 | B6: -17 | C6: 2 | D6: 40 | E6: Barbarian | F6: Corsair | J6: Kan jag fortfarande göra gubben trots att jag gjort av med mer dev.pts än jag har? | K6: Ja, det finns ingen sån spärr. Du är SL, du får bända på reglerna lite grann.
A7: 6 | B7: -15 | C7: 2.2 | D7: 40 | E7: Bard | F7: Dorwinadan | G7: Karaktärens level | H7: Dev.pts primary | J7: Varför är kalkylen så onödigt stor? Den är ju på över en MB… | K7: Bra fråga, svaret är att det är ganska mycket text som har skrivits in och att Excelkalkyler kan både svälla och bli långsamma efter ett tag.
A8: 7 | B8: -14 | C8: 2.4 | D8: 40 | E8: Bashkar | F8: Dunlending | G8: 1 | H8: =SUM('Ny NPC'!W3:W12)/2 -> 35 | J8: Måste man verkligen skriva så här mycket själv och räkna hela tiden? | K8: Du har nog valt att spelleda i fel rollspel, du kan nog ta att köra systemlöst och utan papper… latmask!
A9: 8 | B9: -13 | C9: 2.6 | D9: 40 | E9: Beastmaster | F9: Dwarf | H9: Dev.pts secondary | J9: Jag kan ju välja samma vapentyp på olika kategorier! | K9: …och vad har du tjänat på det då? Du har istället förlorat dev.pts och respekt!
A10: 9 | B10: -12 | C10: 2.7 | D10: 40 | E10: Bounty Hunter | F10: Easterling | G10: Medelhits-slag | H10: =70+H8 -> 105 | J10: Varför är vissa kalkylblad låsta och/eller dolda? | K10: Risken är att om du skulle få gå in i dem så gör du större skada än nytta…
A11: 10 | B11: -11 | C11: 2.8 | D11: 45 | E11: Burglar | F11: Eothraim | G11: 35 | J11: Jag vill lägga in egna raser, egna yrken och egna skills… går det bra? | K11: Visst, ta dig in i rätt blad och ändra det du vill (gärna i alfabetisk ordning) men du har ju lika lite support från mig vilket som…
A12: 11 | B12: -10 | C12: 2.9 | D12: 45 | E12: Cavalier | F12: Forest Troll | G12: =G11/10+1 -> 4.5 | J12: Jag vill ha några secondary skills också, har inte alla Stunned Maneuver nuförtiden? | K12: Jo, men det är lite trångt redan nu med 33 skills. Tror du inte att något av vapen-skillsen är lika höga som Stunned… borde vara?
A13: 12 | B13: -10 | C13: 2.9 | D13: 45 | E13: Channeler | F13: Gathmarim | J13: Såhär kan man väl inte göra en NPC, det är ju sterilt, fånigt och utan känsla! | K13: Jodå, det kan man. Jag kan göra mina riktiga karaktärer här ända tills jag kommer till skills med bara ett rank eller de över 30 då det inte är värt de poäng det kostar.
A14: 13 | B14: -9 | C14: 3 | D14: 45 | E14: Conjuror | F14: Greater Dunadan | G14: Vapengrupp/stats | J14: Det saknas skillranks för level noll på trollen, orcherna och jättarna! | K14: Ja, antingen hade de ingen barndom eller så har ingen orkat göra level noll för dem. Har du nåt förslag så hör av dig!
A15: 14 | B15: -9 | C15: 3 | D15: 45 | E15: Craftsman | F15: Half-elf | G15: 1H Crush | H15: =(ST+ST+EQ)/3 -> 15 | J15: Fan va smått det är med alla knappar, text osv… | K15: Ja, antingen det eller sprida ut sig mer på bredden. Det är inte perfekt, men alla har varken 21"-skärmar eller upplösning som matchar. Använd Excels zoom-funktion eller låt bli…
A16: 15 | B16: -9 | C16: 3 | D16: 45 | E16: Crystal mage | F16: Half-orc | G16: 1H Slash | H16: =(ST+ST+AG+EQ)/4 -> 12.5
A17: 16 | B17: -8 | C17: 3.3 | D17: 45 | E17: Cultist | F17: Half-troll | G17: 1H Thrust | H17: =(AG+QU+ST+EQ)/4 -> 7.5
A18: 17 | B18: -8 | C18: 3.3 | D18: 45 | E18: Dancer | F18: Haruze | G18: 2 Handed | H18: =(ST+ST+EQ)/3 -> 15
A19: 18 | B19: -8 | C19: 3.3 | D19: 45 | E19: Dervish | F19: Hill Troll | G19: Polearm | H19: =(ST+ST+AG+EQ)/4 -> 12.5
A20: 19 | B20: -7 | C20: 3.6 | D20: 45 | E20: Druid | F20: Hobbit | G20: Staff | H20: =(ST+ST+AG+EQ)/4 -> 12.5
A21: 20 | B21: -7 | C21: 3.6 | D21: 45 | E21: Duelist | F21: Lesser Dunadan | G21: Bow | H21: =(AG+AG+ST)/3 -> 10
A22: 21 | B22: -7 | C22: 3.6 | D22: 45 | E22: Enchanter | F22: Mornedain | G22: Crossbow | H22: =AG -> 5
A23: 22 | B23: -6 | C23: 3.8 | D23: 45 | E23: Farmer | F23: Mountain Troll | G23: Blowgun | H23: =(CO+AG)/2 -> 12.5
A24: 23 | B24: -6 | C24: 3.8 | D24: 45 | E24: Feldsher | F24: Noldo (Academic) | G24: Thrown | H24: =(AG+ST)/2 -> 12.5 | J24: Är du så jävla bra själv då? | K24: Nä, men är du så jävla bra själv då? (jag har också hört på Riskradion)
A25: 24 | B25: -6 | C25: 3.8 | D25: 45 | E25: Fighter | F25: Noldo (Martial)
A26: 25 | B26: -5 | C26: 4 | D26: 45 | E26: Forcemage | F26: Northman | G26: Primärt vapen | H26: 4 | L26: Channeling | M26: Essence | N26: Mentalism
A27: 26 | B27: -5 | C27: 4 | D27: 50 | E27: Healer | F27: Olog-Hai | G27: Sekundärt vapen | H27: 5 | J27: None | K27: 1 | L27: 0 | M27: 0 | N27: 0
A28: 27 | B28: -5 | C28: 4 | D28: 50 | E28: High War monk | F28: Orc | G28: Tertiärt vapen | H28: 10 | J28: Leather | K28: 2 | L28: 0 | M28: 16 | N28: 20
A29: 28 | B29: -4 | C29: 4.3 | D29: 50 | E29: Horseman | F29: Sagath/Logath | G29: Fjärde vapen | H29: 2 | J29: Leather and metal | K29: 3 | L29: 6 | M29: 22 | N29: 30
A30: 29 | B30: -4 | C30: 4.3 | D30: 50 | E30: Houri | F30: Silvan | G30: Femte vapen | H30: 3 | J30: Metal | K30: 4 | L30: 12 | M30: 32 | N30: 50
A31: 30 | B31: -3 | C31: 4.6 | D31: 50 | E31: Hunter | F31: Sinda | G31: Sjätte vapen | H31: 7
A32: 31 | B32: -3 | C32: 4.6 | D32: 50 | E32: Illusionist | F32: Snow Troll
A33: 32 | B33: -3 | C33: 4.6 | D33: 50 | E33: Indurate | F33: Stone Troll | G33: Armor Type | H33: MMP | I33: Maximum Penalty | J33: Missile Attack Penalty | K33: Quickness Penalty | L33: Reverse | M33: Channeling | N33: Essence
A34: 33 | B34: -2 | C34: 4.8 | D34: 50 | E34: Lancer | F34: Umbarean | G34: 1 | H34: 0 | I34: 0 | J34: 0 | K34: 0 | L34: 0 | M34: 0 | N34: 0
A35: 34 | B35: -2 | C35: 4.8 | D35: 50 | E35: Leader | F35: Uruk-Hai | G35: 2 | H35: 0 | I35: 0 | J35: 0 | K35: 0 | L35: 0 | M35: 0 | N35: 0
A36: 35 | B36: -2 | C36: 4.8 | D36: 50 | E36: Macabre | F36: Variag | G36: 3 | H36: 0 | I36: 0 | J36: 0 | K36: 0 | L36: 0 | M36: 0 | N36: 0
A37: 36 | B37: -2 | C37: 4.8 | D37: 50 | E37: Magician | F37: Woodman | G37: 4 | H37: 0 | I37: 0 | J37: 0 | K37: 0 | L37: 0 | M37: 0 | N37: 0
A38: 37 | B38: -1 | C38: 5 | D38: 50 | E38: Mentalist | F38: Wose | G38: 5 | H38: 0 | I38: 0 | J38: 0 | K38: 0 | L38: 0 | M38: 0 | N38: 8
A39: 38 | B39: -1 | C39: 5 | D39: 50 | E39: Monk | G39: 6 | H39: 0 | I39: -20 | J39: -5 | K39: 0 | L39: 0 | M39: 0 | N39: 12
A40: 39 | B40: -1 | C40: 5 | D40: 50 | E40: Montebanc | G40: 7 | H40: -5 | I40: -40 | J40: -5 | K40: -5 | L40: 5 | M40: 0 | N40: 16
A41: 40 | B41: -1 | C41: 5 | D41: 50 | E41: Moon Mage | G41: 8 | H41: -10 | I41: -50 | J41: -10 | K41: -5 | L41: 10 | M41: 0 | N41: 20
A42: 41 | B42: 0 | C42: 5.5 | D42: 50 | E42: Mystic | G42: 9 | H42: -5 | I42: -50 | J42: 0 | K42: 0 | L42: 5 | M42: 0 | N42: 12
A43: 42 | B43: 0 | C43: 5.5 | D43: 50 | E43: Necromancer | G43: 10 | H43: -10 | I43: -70 | J43: -10 | K43: -5 | L43: 10 | M43: 0 | N43: 24
A44: 43 | B44: 0 | C44: 5.5 | D44: 50 | E44: Nightblade | G44: 11 | H44: -15 | I44: -90 | J44: -20 | K44: -15 | L44: 15 | M44: 0 | N44: 32
A45: 44 | B45: 0 | C45: 5.5 | D45: 50 | E45: No Profession | G45: 12 | H45: -15 | I45: -110 | J45: -30 | K45: -15 | L45: 15 | M45: 0 | N45: 40
A46: 45 | B46: 0 | C46: 5.5 | D46: 50 | E46: Outrider | G46: 13 | H46: -10 | I46: -70 | J46: 0 | K46: -5 | L46: 10 | M46: 15 | N46: 28
A47: 46 | B47: 0 | C47: 5.5 | D47: 50 | E47: Paladin | G47: 14 | H47: -15 | I47: -90 | J47: -10 | K47: -10 | L47: 15 | M47: 22 | N47: 36
A48: 47 | B48: 0 | C48: 5.5 | D48: 50 | E48: Ranger | G48: 15 | H48: -25 | I48: -120 | J48: -20 | K48: -20 | L48: 25 | M48: 36 | N48: 56
A49: 48 | B49: 0 | C49: 5.5 | D49: 50 | E49: Rogue | G49: 16 | H49: -25 | I49: -130 | J49: -20 | K49: -20 | L49: 25 | M49: 36 | N49: 56
A50: 49 | B50: 0 | C50: 5.5 | D50: 50 | E50: Romantic | G50: 17 | H50: -15 | I50: -90 | J50: 0 | K50: -10 | L50: 15 | M50: 20 | N50: 32
A51: 50 | B51: 0 | C51: 5.5 | D51: 50 | E51: Sage | G51: 18 | H51: -20 | I51: -110 | J51: -10 | K51: -20 | L51: 20 | M51: 32 | N51: 40
A52: 51 | B52: 0 | C52: 5.5 | D52: 50 | E52: Sailor | G52: 19 | H52: -35 | I52: -150 | J52: -30 | K52: -30 | L52: 35 | M52: 38 | N52: 60
A53: 52 | B53: 0 | C53: 5.5 | D53: 50 | E53: Scholar | G53: 20 | H53: -45 | I53: -165 | J53: -40 | K53: -40 | L53: 45 | M53: 45 | N53: 72
A54: 53 | B54: 0 | C54: 5.5 | D54: 50 | E54: Seer
A55: 54 | B55: 0 | C55: 5.5 | D55: 50 | E55: Shadow Mage | G55: Length | H55: Baserate
A56: 55 | B56: 0 | C56: 5.5 | D56: 50 | E56: Shaikan | G56: 1 | H56: -10
A57: 56 | B57: 0 | C57: 5.5 | D57: 50 | E57: Shaman | G57: 100 | H57: -5
A58: 57 | B58: 0 | C58: 5.5 | D58: 50 | E58: Sleuth | G58: 163 | H58: 0
A59: 58 | B59: 0 | C59: 5.5 | D59: 50 | E59: Sorceror | G59: 194 | H59: 5
A60: 59 | B60: 0 | C60: 5.5 | D60: 50 | E60: Swordsman | G60: 208 | H60: 10
A61: 60 | B61: 1 | C61: 6 | D61: 50 | E61: Templar | G61: 223 | H61: 15
A62: 61 | B62: 1 | C62: 6 | D62: 50 | E62: Thief | G62: 238 | H62: 20
A63: 62 | B63: 1 | C63: 6 | D63: 50 | E63: Trader
A64: 63 | B64: 1 | C64: 6 | D64: 50 | E64: Trench Fighter | G64: Weapon Type
A65: 64 | B65: 2 | C65: 6.3 | D65: 50 | E65: War Monk | G65: Unencumbered | I65: 75
A66: 65 | B66: 2 | C66: 6.3 | D66: 50 | E66: Warlock | G66: 1H weapon (no shield) | I66: 55
A67: 66 | B67: 2 | C67: 6.3 | D67: 50 | E67: Warrior | G67: 1H thrust & shield | I67: 35
A68: 67 | B68: 2 | C68: 6.3 | D68: 50 | E68: Warrior Mage | G68: 1H weapon & shield | I68: 25
A69: 68 | B69: 3 | C69: 6.6 | D69: 50 | E69: Witch | G69: 2w Combo (small weapons) | I69: 35
A70: 69 | B70: 3 | C70: 6.6 | D70: 50 | E70: Witch Hunter | G70: 2w Combo (large weapons) | I70: 25
A71: 70 | B71: 3 | C71: 6.6 | D71: 50 | E71: Wizard | G71: Twohanded weapon | I71: 25
A72: 71 | B72: 3 | C72: 6.6 | D72: 50
A73: 72 | B73: 4 | C73: 6.8 | D73: 50 | G73: Channeling
A74: 73 | B74: 4 | C74: 6.8 | D74: 50 | G74: Essence
A75: 74 | B75: 4 | C75: 6.8 | D75: 50 | G75: Mentalism
A76: 75 | B76: 5 | C76: 7 | D76: 50 | G76: Hybrid: Channeling/Essence
A77: 76 | B77: 5 | C77: 7 | D77: 50 | G77: Hybrid: Channeling/Mentalism
A78: 77 | B78: 5 | C78: 7 | D78: 50 | G78: Hybrid: Mentalism/Essence
A79: 78 | B79: 6 | C79: 7.4 | D79: 50 | G79: Arcane
A80: 79 | B80: 6 | C80: 7.4 | D80: 50
A81: 80 | B81: 6 | C81: 7.4 | D81: 50 | G81: Stat value | H81: PP Recovery
A82: 81 | B82: 7 | C82: 7.7 | D82: 50 | G82: 1 | H82: 0
A83: 82 | B83: 7 | C83: 7.7 | D83: 50 | G83: 2 | H83: 0
A84: 83 | B84: 7 | C84: 7.7 | D84: 50 | G84: 3 | H84: 0
A85: 84 | B85: 8 | C85: 8 | D85: 50 | G85: 4 | H85: 0
A86: 85 | B86: 8 | C86: 8 | D86: 50 | G86: 5 | H86: 0
A87: 86 | B87: 8 | C87: 8 | D87: 50 | G87: 6 | H87: 0
A88: 87 | B88: 9 | C88: 8.2 | D88: 50 | G88: 7 | H88: 0
A89: 88 | B89: 9 | C89: 8.2 | D89: 50 | G89: 8 | H89: 0
A90: 89 | B90: 9 | C90: 8.2 | D90: 50 | G90: 9 | H90: 0
A91: 90 | B91: 10 | C91: 8.4 | D91: 50 | G91: 10 | H91: 0
A92: 91 | B92: 11 | C92: 8.6 | D92: 51 | G92: 11 | H92: 0
A93: 92 | B93: 12 | C93: 8.7 | D93: 52 | G93: 12 | H93: 0
A94: 93 | B94: 13 | C94: 8.8 | D94: 53 | G94: 13 | H94: 0
A95: 94 | B95: 14 | C95: 8.9 | D95: 54 | G95: 14 | H95: 0
A96: 95 | B96: 15 | C96: 9 | D96: 55 | G96: 15 | H96: 0
A97: 96 | B97: 17 | C97: 9.2 | D97: 56 | G97: 16 | H97: 0
A98: 97 | B98: 19 | C98: 9.4 | D98: 57 | G98: 17 | H98: 0
A99: 98 | B99: 21 | C99: 9.6 | D99: 58 | G99: 18 | H99: 0
A100: 99 | B100: 23 | C100: 9.8 | D100: 59 | G100: 19 | H100: 0
A101: 100 | B101: 25 | C101: 10 | D101: 60 | G101: 20 | H101: 0
A102: 101 | B102: 30 | C102: 10.5 | D102: 62 | G102: 21 | H102: 0
A103: 102 | B103: 35 | C103: 11 | D103: 64 | G103: 22 | H103: 0
A104: 103 | B104: 40 | C104: 11.5 | D104: 66 | G104: 23 | H104: 0
A105: 104 | B105: 45 | C105: 12 | D105: 68 | G105: 24 | H105: 0
A106: 105 | B106: 50 | C106: 12.5 | D106: 70 | G106: 25 | H106: 1
A107: 106 | B107: 55 | C107: 13 | D107: 72 | G107: 26 | H107: 1
A108: 107 | B108: 60 | C108: 13.5 | D108: 74 | G108: 27 | H108: 1
A109: 108 | B109: 65 | C109: 14 | D109: 76 | G109: 28 | H109: 1
A110: 109 | B110: 70 | C110: 14.5 | D110: 78 | G110: 29 | H110: 1
A111: 110 | B111: 75 | C111: 15 | D111: 80 | G111: 30 | H111: 1
A112: 111 | B112: 80 | C112: 15.5 | D112: 82 | G112: 31 | H112: 1
A113: 112 | B113: 85 | C113: 16 | D113: 84 | G113: 32 | H113: 1
A114: 113 | B114: 90 | C114: 16.5 | D114: 86 | G114: 33 | H114: 1
A115: 114 | B115: 95 | C115: 17 | D115: 88 | G115: 34 | H115: 1
A116: 115 | B116: 100 | C116: 17.5 | D116: 90 | G116: 35 | H116: 1
A117: 116 | B117: 105 | C117: 18 | D117: 92 | G117: 36 | H117: 1
A118: 117 | B118: 110 | C118: 18.5 | D118: 94 | G118: 37 | H118: 1
A119: 118 | B119: 115 | C119: 19 | D119: 96 | G119: 38 | H119: 1
A120: 119 | B120: 120 | C120: 19.5 | D120: 98 | G120: 39 | H120: 1
A121: 120 | B121: 125 | C121: 20 | D121: 100 | G121: 40 | H121: 1
A122: 121 | B122: 130 | C122: 20.5 | D122: 102 | G122: 41 | H122: 1
A123: 122 | B123: 135 | C123: 21 | D123: 104 | G123: 42 | H123: 1
A124: 123 | B124: 140 | C124: 21.5 | D124: 106 | G124: 43 | H124: 1
A125: 124 | B125: 145 | C125: 22 | D125: 108 | G125: 44 | H125: 1
A126: 125 | B126: 150 | C126: 22.5 | D126: 110 | G126: 45 | H126: 1
A127: 126 | B127: 155 | C127: 23 | D127: 112 | G127: 46 | H127: 1
A128: 127 | B128: 160 | C128: 23.5 | D128: 114 | G128: 47 | H128: 1
A129: 128 | B129: 165 | C129: 24 | D129: 116 | G129: 48 | H129: 1
A130: 129 | B130: 170 | C130: 24.5 | D130: 118 | G130: 49 | H130: 1
A131: 130 | B131: 175 | C131: 25 | D131: 120 | G131: 50 | H131: 1
G132: 51 | H132: 1
G133: 52 | H133: 1
G134: 53 | H134: 1
G135: 54 | H135: 1
G136: 55 | H136: 1
G137: 56 | H137: 1
G138: 57 | H138: 1
G139: 58 | H139: 1
G140: 59 | H140: 1
G141: 60 | H141: 1.5
G142: 61 | H142: 1.5
G143: 62 | H143: 1.5
G144: 63 | H144: 1.5
G145: 64 | H145: 1.5
G146: 65 | H146: 1.5
G147: 66 | H147: 1.5
G148: 67 | H148: 1.5
G149: 68 | H149: 1.5
G150: 69 | H150: 1.5
G151: 70 | H151: 1.5
G152: 71 | H152: 1.5
G153: 72 | H153: 1.5
G154: 73 | H154: 1.5
G155: 74 | H155: 1.5
G156: 75 | H156: 2
G157: 76 | H157: 2
G158: 77 | H158: 2
G159: 78 | H159: 2
G160: 79 | H160: 2
G161: 80 | H161: 2
G162: 81 | H162: 2
G163: 82 | H163: 2
G164: 83 | H164: 2
G165: 84 | H165: 2
G166: 85 | H166: 2
G167: 86 | H167: 2
G168: 87 | H168: 2
G169: 88 | H169: 2
G170: 89 | H170: 2
G171: 90 | H171: 3
G172: 91 | H172: 3
G173: 92 | H173: 3
G174: 93 | H174: 3
G175: 94 | H175: 3
G176: 95 | H176: 3
G177: 96 | H177: 3.5
G178: 97 | H178: 3.5
G179: 98 | H179: 3.5
G180: 99 | H180: 3.5
G181: 100 | H181: 4
G182: 101 | H182: 4.5
G183: 102 | H183: 5
G184: 103 | H184: 5.5
G185: 104 | H185: 6
G186: 105 | H186: 6.5

Sheet Levelbonus
A1: Profession | B1: Alchemist | C1: Animist | D1: Archer | E1: Archmage | F1: Arcist | G1: Arms Master | H1: Assassin | I1: Astral Traveller | J1: Astrologer | K1: Barbarian | L1: Bard | M1: Bashkar | N1: Beastmaster | O1: Bounty Hunter | P1: Burglar | Q1: Cavalier | R1: Chaotic Lord | S1: Channeler | T1: Conjuror | U1: Crafter | V1: Craftsman | W1: Creator | X1: Crystal mage | Y1: Cultist | Z1: Dancer | AA1: Delver | AB1: Dervish | AC1: Doppelgänger | AD1: Dream Lord Illusionist | AE1: Dream Lord Shaman | AF1: Druid | AG1: Duelist | AH1: Elementalist | AI1: Enchanter | AJ1: Farmer | AK1: Feldsher | AL1: Fighter | AM1: Forcemage | AN1: Free Thinker | AO1: Gypsy | AP1: Healer | AQ1: High War monk | AR1: Horseman | AS1: Houri | AT1: Hunter | AU1: Illusionist | AV1: Indurate | AW1: Lancer | AX1: Lay Healer | AY1: Leader | AZ1: Macabre | BA1: Magician | BB1: Magus Chan | BC1: Magus Chan/Ess | BD1: Magus Ess | BE1: Maleficant | BF1: Mentalist | BG1: Monk | BH1: Montebanc | BI1: Moon Mage | BJ1: Mystic | BK1: Necromancer | BL1: Nightblade | BM1: No Profession | BN1: Noble Warrior | BO1: Outrider | BP1: Paladin | BQ1: Ranger (old) | BR1: Ranger | BS1: Rogue | BT1: Romantic | BU1: Runemaster | BV1: Sage | BW1: Sailor | BX1: Scholar | BY1: Seeker | BZ1: Seer | CA1: Shadow Mage | CB1: Shaikan | CC1: Shaman | CD1: Sleuth | CE1: Sorceror | CF1: Swordsman | CG1: Tarotmage | CH1: Templar | CI1: Thief | CJ1: Trader | CK1: Trench Fighter | CL1: War Monk | CM1: Warlock | CN1: Warrior | CO1: Warrior Mage | CP1: Witch | CQ1: Witch Hunter | CR1: Wizard
A2: Academic skills | B2: 3 | C2: 1 | D2: 0 | E2: 3 | F2: 3 | G2: 0 | H2: 0 | I2: 3 | J2: 2 | K2: 0 | L2: 2 | M2: 0 | N2: 0 | O2: 0 | P2: 0 | Q2: 0 | R2: 0 | S2: 2 | T2: 3 | U2: 3 | V2: 1 | W2: 2 | X2: 2 | Y2: 1 | Z2: 0 | AA2: 2 | AB2: 0 | AC2: 0 | AD2: 1 | AE2: 1 | AF2: 1 | AG2: 0 | AH2: 2 | AI2: 1 | AJ2: 0 | AK2: 1 | AL2: 0 | AM2: 3 | AN2: 3 | AO2: 0 | AP2: 2 | AQ2: 0 | AR2: 0 | AS2: 0 | AT2: 0 | AU2: 3 | AV2: 0 | AW2: 0 | AX2: 1 | AY2: 1 | AZ2: 1 | BA2: 3 | BB2: 2 | BC2: 2 | BD2: 2 | BE2: 2 | BF2: 2 | BG2: 1 | BH2: 0 | BI2: 0 | BJ2: 2 | BK2: 2 | BL2: 0 | BM2: 1 | BN2: 0 | BO2: 0 | BP2: 0 | BQ2: 0 | BR2: 0 | BS2: 0 | BT2: 0 | BU2: 3 | BV2: 1 | BW2: 0 | BX2: 3 | BY2: 3 | BZ2: 2 | CA2: 2 | CB2: 0 | CC2: 1 | CD2: 0 | CE2: 2 | CF2: 0 | CG2: 1 | CH2: 1 | CI2: 0 | CJ2: 0 | CK2: 0 | CL2: 0 | CM2: 2 | CN2: 0 | CO2: 0 | CP2: 2 | CQ2: 0 | CR2: 2
A3: Animal | B3: 0 | C3: 3 | D3: 0 | E3: 0 | F3: 0 | G3: 1 | H3: 0 | I3: 0 | J3: 1 | K3: 2 | L3: 0 | M3: 0 | N3: 2 | O3: 2 | P3: 0 | Q3: 1 | R3: 0 | S3: 0 | T3: 0 | U3: 0 | V3: 1 | W3: 0 | X3: 1 | Y3: 0 | Z3: 0 | AA3: 0 | AB3: 0 | AC3: 0 | AD3: 0 | AE3: 3 | AF3: 3 | AG3: 0 | AH3: 0 | AI3: 0 | AJ3: 3 | AK3: 0 | AL3: 1 | AM3: 0 | AN3: 0 | AO3: 1 | AP3: 0 | AQ3: 0 | AR3: 3 | AS3: 0 | AT3: 2 | AU3: 0 | AV3: 0 | AW3: 1 | AX3: 0 | AY3: 0 | AZ3: 0 | BA3: 0 | BB3: 0 | BC3: 0 | BD3: 0 | BE3: 1 | BF3: 0 | BG3: 0 | BH3: 0 | BI3: 0 | BJ3: 0 | BK3: 0 | BL3: 0 | BM3: 1 | BN3: 1 | BO3: 2 | BP3: 0 | BQ3: 3 | BR3: 2 | BS3: 1 | BT3: 0 | BU3: 0 | BV3: 0 | BW3: 0 | BX3: 0 | BY3: 0 | BZ3: 0 | CA3: 0 | CB3: 0 | CC3: 3 | CD3: 0 | CE3: 0 | CF3: 0 | CG3: 0 | CH3: 2 | CI3: 1 | CJ3: 1 | CK3: 1 | CL3: 2 | CM3: 0 | CN3: 0 | CO3: 0 | CP3: 1 | CQ3: 2 | CR3: 0
A4: Athletic | B4: 0 | C4: 0 | D4: 1 | E4: 0 | F4: 0 | G4: 2 | H4: 1 | I4: 0 | J4: 0 | K4: 2 | L4: 0 | M4: 2 | N4: 1 | O4: 1 | P4: 3 | Q4: 2 | R4: 1 | S4: 0 | T4: 0 | U4: 0 | V4: 1 | W4: 0 | X4: 0 | Y4: 0 | Z4: 3 | AA4: 0 | AB4: 1 | AC4: 0 | AD4: 0 | AE4: 0 | AF4: 0 | AG4: 2 | AH4: 1 | AI4: 1 | AJ4: 0 | AK4: 0 | AL4: 2 | AM4: 0 | AN4: 0 | AO4: 0 | AP4: 0 | AQ4: 2 | AR4: 1 | AS4: 0 | AT4: 0 | AU4: 0 | AV4: 2 | AW4: 2 | AX4: 0 | AY4: 2 | AZ4: 0 | BA4: 0 | BB4: 0 | BC4: 0 | BD4: 0 | BE4: 0 | BF4: 0 | BG4: 2 | BH4: 0 | BI4: 1 | BJ4: 0 | BK4: 0 | BL4: 2 | BM4: 1 | BN4: 2 | BO4: 0 | BP4: 1 | BQ4: 1 | BR4: 1 | BS4: 2 | BT4: 1 | BU4: 0 | BV4: 0 | BW4: 2 | BX4: 0 | BY4: 0 | BZ4: 0 | CA4: 0 | CB4: 1 | CC4: 0 | CD4: 0 | CE4: 0 | CF4: 2 | CG4: 0 | CH4: 1 | CI4: 2 | CJ4: 0 | CK4: 1 | CL4: 2 | CM4: 0 | CN4: 3 | CO4: 1 | CP4: 0 | CQ4: 0 | CR4: 0
A5: Combat | B5: 0 | C5: 0 | D5: 3 | E5: 0 | F5: 0 | G5: 3 | H5: 2 | I5: 0 | J5: 0 | K5: 3 | L5: 0 | M5: 3 | N5: 2 | O5: 2 | P5: 1 | Q5: 3 | R5: 2 | S5: 1 | T5: 0 | U5: 0 | V5: 1 | W5: 0 | X5: 0 | Y5: 2 | Z5: 1 | AA5: 2 | AB5: 2 | AC5: 0 | AD5: 0 | AE5: 0 | AF5: 0 | AG5: 3 | AH5: 2 | AI5: 0 | AJ5: 0 | AK5: 2 | AL5: 3 | AM5: 0 | AN5: 0 | AO5: 0 | AP5: 0 | AQ5: 3 | AR5: 3 | AS5: 0 | AT5: 2 | AU5: 0 | AV5: 3 | AW5: 3 | AX5: 0 | AY5: 3 | AZ5: 1 | BA5: 0 | BB5: 0 | BC5: 0 | BD5: 0 | BE5: 0 | BF5: 0 | BG5: 1 | BH5: 1 | BI5: 1 | BJ5: 0 | BK5: 0 | BL5: 2 | BM5: 1 | BN5: 3 | BO5: 2 | BP5: 3 | BQ5: 1 | BR5: 2 | BS5: 3 | BT5: 3 | BU5: 0 | BV5: 0 | BW5: 3 | BX5: 0 | BY5: 0 | BZ5: 0 | CA5: 0 | CB5: 3 | CC5: 0 | CD5: 1 | CE5: 0 | CF5: 3 | CG5: 1 | CH5: 3 | CI5: 2 | CJ5: 1 | CK5: 3 | CL5: 2 | CM5: 0 | CN5: 3 | CO5: 2 | CP5: 0 | CQ5: 2 | CR5: 0
A6: Concentration | B6: 0 | C6: 1 | D6: 1 | E6: 2 | F6: 2 | G6: 0 | H6: 0 | I6: 2 | J6: 1 | K6: 0 | L6: 1 | M6: 2 | N6: 0 | O6: 0 | P6: 1 | Q6: 0 | R6: 0 | S6: 0 | T6: 0 | U6: 0 | V6: 1 | W6: 0 | X6: 1 | Y6: 0 | Z6: 0 | AA6: 0 | AB6: 0 | AC6: 0 | AD6: 2 | AE6: 2 | AF6: 0 | AG6: 2 | AH6: 0 | AI6: 0 | AJ6: 0 | AK6: 1 | AL6: 0 | AM6: 0 | AN6: 2 | AO6: 0 | AP6: 2 | AQ6: 2 | AR6: 0 | AS6: 0 | AT6: 0 | AU6: 0 | AV6: 1 | AW6: 1 | AX6: 1 | AY6: 0 | AZ6: 0 | BA6: 1 | BB6: 0 | BC6: 0 | BD6: 0 | BE6: 0 | BF6: 2 | BG6: 1 | BH6: 0 | BI6: 1 | BJ6: 3 | BK6: 0 | BL6: 1 | BM6: 1 | BN6: 0 | BO6: 0 | BP6: 0 | BQ6: 0 | BR6: 0 | BS6: 0 | BT6: 0 | BU6: 1 | BV6: 3 | BW6: 0 | BX6: 2 | BY6: 0 | BZ6: 2 | CA6: 0 | CB6: 2 | CC6: 1 | CD6: 0 | CE6: 1 | CF6: 1 | CG6: 1 | CH6: 0 | CI6: 0 | CJ6: 0 | CK6: 2 | CL6: 2 | CM6: 0 | CN6: 0 | CO6: 0 | CP6: 0 | CQ6: 0 | CR6: 1
A7: Deadly | B7: 0 | C7: 0 | D7: 0 | E7: 0 | F7: 0 | G7: 0 | H7: 3 | I7: 0 | J7: 0 | K7: 0 | L7: 0 | M7: 0 | N7: 1 | O7: 1 | P7: 0 | Q7: 0 | R7: 1 | S7: 0 | T7: 0 | U7: 0 | V7: 0 | W7: 1 | X7: 0 | Y7: 1 | Z7: 0 | AA7: 0 | AB7: 2 | AC7: 0 | AD7: 0 | AE7: 0 | AF7: 0 | AG7: 0 | AH7: 0 | AI7: 0 | AJ7: 0 | AK7: 1 | AL7: 1 | AM7: 0 | AN7: 0 | AO7: 0 | AP7: 1 | AQ7: 0 | AR7: 0 | AS7: 1 | AT7: 2 | AU7: 0 | AV7: 0 | AW7: 0 | AX7: 0 | AY7: 0 | AZ7: 0 | BA7: 0 | BB7: 0 | BC7: 0 | BD7: 0 | BE7: 0 | BF7: 0 | BG7: 0 | BH7: 0 | BI7: 0 | BJ7: 0 | BK7: 0 | BL7: 3 | BM7: 0 | BN7: 0 | BO7: 0 | BP7: 0 | BQ7: 1 | BR7: 0 | BS7: 0 | BT7: 0 | BU7: 0 | BV7: 0 | BW7: 0 | BX7: 0 | BY7: 0 | BZ7: 0 | CA7: 0 | CB7: 0 | CC7: 0 | CD7: 0 | CE7: 0 | CF7: 0 | CG7: 0 | CH7: 0 | CI7: 1 | CJ7: 0 | CK7: 0 | CL7: 1 | CM7: 1 | CN7: 1 | CO7: 1 | CP7: 0 | CQ7: 0 | CR7: 0
A8: Evaluation | B8: 2 | C8: 0 | D8: 1 | E8: 0 | F8: 0 | G8: 1 | H8: 0 | I8: 0 | J8: 0 | K8: 0 | L8: 3 | M8: 0 | N8: 1 | O8: 0 | P8: 2 | Q8: 0 | R8: 0 | S8: 2 | T8: 0 | U8: 3 | V8: 1 | W8: 0 | X8: 0 | Y8: 0 | Z8: 0 | AA8: 2 | AB8: 0 | AC8: 1 | AD8: 2 | AE8: 2 | AF8: 0 | AG8: 0 | AH8: 1 | AI8: 0 | AJ8: 2 | AK8: 0 | AL8: 0 | AM8: 0 | AN8: 0 | AO8: 2 | AP8: 0 | AQ8: 0 | AR8: 0 | AS8: 0 | AT8: 0 | AU8: 0 | AV8: 0 | AW8: 0 | AX8: 1 | AY8: 0 | AZ8: 0 | BA8: 0 | BB8: 0 | BC8: 0 | BD8: 0 | BE8: 0 | BF8: 0 | BG8: 0 | BH8: 1 | BI8: 0 | BJ8: 0 | BK8: 0 | BL8: 0 | BM8: 1 | BN8: 1 | BO8: 0 | BP8: 0 | BQ8: 2 | BR8: 2 | BS8: 1 | BT8: 0 | BU8: 0 | BV8: 0 | BW8: 2 | BX8: 1 | BY8: 0 | BZ8: 0 | CA8: 0 | CB8: 1 | CC8: 1 | CD8: 0 | CE8: 0 | CF8: 1 | CG8: 1 | CH8: 1 | CI8: 0 | CJ8: 2 | CK8: 0 | CL8: 0 | CM8: 0 | CN8: 0 | CO8: 0 | CP8: 1 | CQ8: 0 | CR8: 0
